Workbook

Sheet HeroPowerUpConfig
A1: ID | B1: HeroLevel | C1: jingjie1 | D1: jingjie2 | E1: jingjie3 | F1: jingjieLanIDs | M1: levelUpExp | N1: DujieLevelbattleID | O1: DujieRateviaBattle | P1: DujieMustItemIDs | Q1: DujieMustItemValues | R1: DujieItemIDs | S1: DujieItemValues | T1: LeijieDamages | U1: HPFactor | V1: ATKFactor | W1: DEFFactor | X1: HudunFactor | Y1: defK | Z1: ShenshiMax | AA1: AutoXiuwei | AB1: FailureExpReduce | AC1: MaxActiveGongfaNum | AD1: MaxPassiveGongfaNum | AE1: MaxFabaoNum | AJ1: MPFactor | AK1: DaoyouCount
A2: int | B2: int | C2: int | D2: int | E2: int | F2: int[] | M2: int | N2: int | O2: int | P2: int[] | Q2: int[] | R2: int[] | S2: int[] | T2: int[] | U2: float | V2: float | W2: float | X2: float | Y2: int | Z2: int | AA2: float | AB2: int | AC2: int | AD2: int | AE2: int | AJ2: float | AK2: int
AF3: =SUM(AF5:AF304) -> 1229974 | AG3: =AF3/60 -> 20499.56667 | AH3: =AG3/60 -> 341.6594444 | AI3: =AH3/12 -> 28.47162037
A4: ID | B4: 玩家修为境界（等级） | C4: 大境界ID | D4: 中境界ID | E4: 小境界ID | F4: 境界语言表ID | G4: 境界名称1 | H4: 境界名称2 | I4: 境界名称3 | M4: 升级所需修为值 （-1代表最大等级) | N4: 渡劫必须战斗ID | O4: 战斗增加渡劫几率 | P4: 渡劫必需道具ID | Q4: 渡劫必需道具数量 | R4: 渡劫选有道具IDs | S4: 渡劫选有道具数量 | T4: 雷劫伤害 要填下限、上限、表现上几根雷 | U4: 生命倍率 | V4: 攻击倍率 | W4: 防御倍率 | X4: 护盾倍率 | Y4: 防御系数K | Z4: 神识上限 | AA4: 每秒获得的修为值 | AB4: 雷劫失败扣除的当前等级修为百分比 | AC4: 主动功法可配置上限 | AD4: 被动功法可配置上限 | AE4: 法宝可配置上限 | AF4: 吐纳时长(s) | AG4: 分钟 | AH4: 小时 | AI4: 天（每天12小时） | AJ4: 法力倍率 | AK4: 允许出现的最大挂机道友数量 | AM4: 战斗 | AN4: 必须 | AO4: 数量 | AP4: 选有1 | AQ4: 数量1 | AR4: 选有2 | AS4: 数量2 | AT4: 选有3 | AU4: 数量3 | AV4: 选有4 | AW4: 数量4 | AX4: 选有5 | AY4: 数量5 | AZ4: 必须 | BA4: 选有1 | BB4: 选有2 | BC4: 选有3 | BD4: 选有4 | BE4: 选有5 | BF4: 挂机时长（分）
A5: 1 | B5: 1 | C5: 1 | D5: 1 | E5: 1 | F5: =_xlfn.TEXTJOIN(";",1,J5:L5) -> 225;235;238 | G5: 练气 | H5: 前期. | I5: 一重 | J5: 225 | K5: 235 | L5: 238 | M5: =ROUND([1]ResourceLevelConfig!$E5*[1]ResourceLevelConfig!$L5*0.1,0)*10 -> 400 | N5: =IF(E5=10,100004,-1) -> -1 | O5: 0 | P5: -1 | Q5: -1 | R5: =IF(I5=10,"1204;1203;1202;1201",-1) -> -1 | S5: =IF(R5=-1,-1,"1;1;1;1") -> -1 | T5: =IF(G5=G6,0,CONCATENATE(80*ROUND(VLOOKUP(B5,[2]MonsterPowerUpConfig!$A:$I,9,FALSE),0),";",120*ROUND(VLOOKUP(B5,[2]MonsterPowerUpConfig!$A:$I,9,FALSE),0))) -> 0 | U5: =[3]主表!K3 -> 5 | V5: =[3]主表!L3 -> 1 | W5: =[3]主表!M3 -> 1 | X5: =[3]主表!N3 -> 0 | Y5: =[3]主表!$G3 -> 211 | Z5: =[3]升级!$H3 -> 1000 | AA5: 0.1 | AB5: -1 | AC5: 2 | AD5: 1 | AE5: 1 | AF5: =ROUND(10^(B5*0.01+2.07),0) -> 120 | AH5: =50*W5 -> 50 | AJ5: 1 | AK5: 1 | AL5: 1 | AO5: =IF(AN5="","",1) ->  | AQ5: =IF(AP5="","",1) ->  | AS5: =IF(AR5="","",1) ->  | AU5: =IF(AT5="","",1) ->  | AW5: =IF(AV5="","",1) ->  | AY5: =IF(AX5="","",1) ->  | AZ5: =IF(AN5="","",VLOOKUP(AN5,[4]ItemConfig!$A:$C,3,FALSE)&AO5) ->  | BA5: =IF(AP5="","",VLOOKUP(AP5,[4]ItemConfig!$A:$C,3,FALSE)&AQ5) ->  | BB5: =IF(AR5="","",VLOOKUP(AR5,[4]ItemConfig!$A:$C,3,FALSE)&AS5) ->  | BC5: =IF(AT5="","",VLOOKUP(AT5,[4]ItemConfig!$A:$C,3,FALSE)&AU5) ->  | BD5: =IF(AV5="","",VLOOKUP(AV5,[4]ItemConfig!$A:$C,3,FALSE)&AW5) ->  | BE5: =IF(AX5="","",VLOOKUP(AX5,[4]ItemConfig!$A:$C,3,FALSE)&AY5) ->  | BF5: 5
A6: 2 | B6: 2 | C6: 1 | D6: 1 | E6: 2 | F6: =_xlfn.TEXTJOIN(";",1,J6:L6) -> 225;235;239 | G6: 练气 | H6: 前期. | I6: 二重 | J6: 225 | K6: 235 | L6: 239 | M6: =ROUND([1]ResourceLevelConfig!$E6*[1]ResourceLevelConfig!$L6*0.1,0)*10 -> 410 | N6: =IF(E6=10,100004,-1) -> -1 | O6: 0 | P6: -1 | Q6: -1 | R6: =IF(I6=10,"1204;1203;1202;1201",-1) -> -1 | S6: =IF(R6=-1,-1,"1;1;1;1") -> -1 | T6: =IF(G6=G7,0,CONCATENATE(80*ROUND(VLOOKUP(B6,[2]MonsterPowerUpConfig!$A:$I,9,FALSE),0),";",120*ROUND(VLOOKUP(B6,[2]MonsterPowerUpConfig!$A:$I,9,FALSE),0))) -> 0 | U6: =[3]主表!K4 -> 5.445962249 | V6: =[3]主表!L4 -> 1.013501828 | W6: =[3]主表!M4 -> 1.013501828 | X6: =[3]主表!N4 -> 0 | Y6: =[3]主表!$G4 -> 213 | Z6: =[3]升级!$H4 -> 1000 | AA6: 0.1 | AB6: -1 | AC6: =AC5 -> 2 | AD6: =AD5 -> 1 | AE6: 1 | AF6: =MAX(AF5+10,ROUND(10^(B6*0.01+1.405),0)) -> 130 | AH6: 50.67509142 | AJ6: 1 | AK6: 1 | AL6: 2 | AO6: =IF(AN6="","",1) ->  | AS6: =IF(AR6="","",1) ->  | AU6: =IF(AT6="","",1) ->  | AW6: =IF(AV6="","",1) ->  | AY6: =IF(AX6="","",1) ->  | AZ6: =IF(AN6="","",VLOOKUP(AN6,[4]ItemConfig!$A:$C,3,FALSE)&AO6) ->  | BA6: =IF(AP6="","",VLOOKUP(AP6,[4]ItemConfig!$A:$C,3,FALSE)&AQ6) ->  | BB6: =IF(AR6="","",VLOOKUP(AR6,[4]ItemConfig!$A:$C,3,FALSE)&AS6) ->  | BC6: =IF(AT6="","",VLOOKUP(AT6,[4]ItemConfig!$A:$C,3,FALSE)&AU6) ->  | BD6: =IF(AV6="","",VLOOKUP(AV6,[4]ItemConfig!$A:$C,3,FALSE)&AW6) ->  | BE6: =IF(AX6="","",VLOOKUP(AX6,[4]ItemConfig!$A:$C,3,FALSE)&AY6) ->  | BF6: 6
A7: 3 | B7: 3 | C7: 1 | D7: 1 | E7: 3 | F7: 225;235;240 | G7: 练气 | H7: 前期. | I7: 三重 | J7: 225 | K7: 235 | L7: 240 | M7: =ROUND([1]ResourceLevelConfig!$E7*[1]ResourceLevelConfig!$L7*0.1,0)*10 -> 420 | N7: -1 | O7: 0 | P7: -1 | Q7: -1 | R7: -1 | S7: -1 | T7: =IF(G7=G8,0,CONCATENATE(80*ROUND(VLOOKUP(B7,[2]MonsterPowerUpConfig!$A:$I,9,FALSE),0),";",120*ROUND(VLOOKUP(B7,[2]MonsterPowerUpConfig!$A:$I,9,FALSE),0))) -> 0 | U7: =[3]主表!K5 -> 5.903055614 | V7: =[3]主表!L5 -> 1.027185956 | W7: =[3]主表!M5 -> 1.027185956 | X7: =[3]主表!N5 -> 0 | Y7: =[3]主表!$G5 -> 216 | Z7: =[3]升级!$H5 -> 1000 | AA7: 0.1 | AB7: -1 | AC7: =AC6 -> 2 | AD7: =AD6 -> 1 | AE7: =AE6 -> 1 | AF7: 140 | AH7: 51.35929781 | AJ7: 1 | AK7: 1 | AL7: 3 | AS7: =IF(AR7="","",1) ->  | AU7: =IF(AT7="","",1) ->  | AW7: =IF(AV7="","",1) ->  | AY7: =IF(AX7="","",1) ->  | AZ7: =IF(AN7="","",VLOOKUP(AN7,[4]ItemConfig!$A:$C,3,FALSE)&AO7) ->  | BA7: =IF(AP7="","",VLOOKUP(AP7,[4]ItemConfig!$A:$C,3,FALSE)&AQ7) ->  | BB7: =IF(AR7="","",VLOOKUP(AR7,[4]ItemConfig!$A:$C,3,FALSE)&AS7) ->  | BC7: =IF(AT7="","",VLOOKUP(AT7,[4]ItemConfig!$A:$C,3,FALSE)&AU7) ->  | BD7: =IF(AV7="","",VLOOKUP(AV7,[4]ItemConfig!$A:$C,3,FALSE)&AW7) ->  | BE7: =IF(AX7="","",VLOOKUP(AX7,[4]ItemConfig!$A:$C,3,FALSE)&AY7) ->  | BF7: 7
A8: 4 | B8: 4 | C8: 1 | D8: 1 | E8: 4 | F8: 225;235;241 | G8: 练气 | H8: 前期. | I8: 四重 | J8: 225 | K8: 235 | L8: 241 | M8: =ROUND([1]ResourceLevelConfig!$E8*[1]ResourceLevelConfig!$L8*0.1,0)*10 -> 430 | N8: -1 | O8: 0 | P8: -1 | Q8: -1 | R8: -1 | S8: -1 | T8: =IF(G8=G9,0,CONCATENATE(80*ROUND(VLOOKUP(B8,[2]MonsterPowerUpConfig!$A:$I,9,FALSE),0),";",120*ROUND(VLOOKUP(B8,[2]MonsterPowerUpConfig!$A:$I,9,FALSE),0))) -> 0 | U8: =[3]主表!K6 -> 6.371499375 | V8: =[3]主表!L6 -> 1.041054845 | W8: =[3]主表!M6 -> 1.041054845 | X8: =[3]主表!N6 -> 0 | Y8: =[3]主表!$G6 -> 219 | Z8: =[3]升级!$H6 -> 1000 | AA8: 0.1 | AB8: -1 | AC8: 2 | AD8: 1 | AE8: 1 | AF8: 150 | AH8: 52.05274223 | AJ8: 1 | AK8: 1 | AL8: 4 | AS8: =IF(AR8="","",1) ->  | AU8: =IF(AT8="","",1) ->  | AW8: =IF(AV8="","",1) ->  | AY8: =IF(AX8="","",1) ->  | AZ8: =IF(AN8="","",VLOOKUP(AN8,[4]ItemConfig!$A:$C,3,FALSE)&AO8) ->  | BA8: =IF(AP8="","",VLOOKUP(AP8,[4]ItemConfig!$A:$C,3,FALSE)&AQ8) ->  | BB8: =IF(AR8="","",VLOOKUP(AR8,[4]ItemConfig!$A:$C,3,FALSE)&AS8) ->  | BC8: =IF(AT8="","",VLOOKUP(AT8,[4]ItemConfig!$A:$C,3,FALSE)&AU8) ->  | BD8: =IF(AV8="","",VLOOKUP(AV8,[4]ItemConfig!$A:$C,3,FALSE)&AW8) ->  | BE8: =IF(AX8="","",VLOOKUP(AX8,[4]ItemConfig!$A:$C,3,FALSE)&AY8) ->  | BF8: 8
A9: 5 | B9: 5 | C9: 1 | D9: 1 | E9: 5 | F9: 225;235;242 | G9: 练气 | H9: 前期. | I9: 五重 | J9: 225 | K9: 235 | L9: 242 | M9: =ROUND([1]ResourceLevelConfig!$E9*[1]ResourceLevelConfig!$L9*0.1,0)*10 -> 440 | N9: -1 | O9: 0 | P9: -1 | Q9: -1 | R9: -1 | S9: -1 | T9: =IF(G9=G10,0,CONCATENATE(80*ROUND(VLOOKUP(B9,[2]MonsterPowerUpConfig!$A:$I,9,FALSE),0),";",120*ROUND(VLOOKUP(B9,[2]MonsterPowerUpConfig!$A:$I,9,FALSE),0))) -> 0 | U9: =[3]主表!K7 -> 6.851516707 | V9: =[3]主表!L7 -> 1.055110989 | W9: =[3]主表!M7 -> 1.055110989 | X9: =[3]主表!N7 -> 0 | Y9: =[3]主表!$G7 -> 222 | Z9: =[3]升级!$H7 -> 1000 | AA9: 0.1 | AB9: -1 | AC9: 2 | AD9: 1 | AE9: 1 | AF9: 160 | AH9: 52.75554943 | AJ9: 1 | AK9: 1 | AL9: 5 | AS9: =IF(AR9="","",1) ->  | AU9: =IF(AT9="","",1) ->  | AW9: =IF(AV9="","",1) ->  | AY9: =IF(AX9="","",1) ->  | AZ9: =IF(AN9="","",VLOOKUP(AN9,[4]ItemConfig!$A:$C,3,FALSE)&AO9) ->  | BA9: =IF(AP9="","",VLOOKUP(AP9,[4]ItemConfig!$A:$C,3,FALSE)&AQ9) ->  | BB9: =IF(AR9="","",VLOOKUP(AR9,[4]ItemConfig!$A:$C,3,FALSE)&AS9) ->  | BC9: =IF(AT9="","",VLOOKUP(AT9,[4]ItemConfig!$A:$C,3,FALSE)&AU9) ->  | BD9: =IF(AV9="","",VLOOKUP(AV9,[4]ItemConfig!$A:$C,3,FALSE)&AW9) ->  | BE9: =IF(AX9="","",VLOOKUP(AX9,[4]ItemConfig!$A:$C,3,FALSE)&AY9) ->  | BF9: 9
A10: 6 | B10: 6 | C10: 1 | D10: 1 | E10: 6 | F10: 225;235;243 | G10: 练气 | H10: 前期. | I10: 六重 | J10: 225 | K10: 235 | L10: 243 | M10: =ROUND([1]ResourceLevelConfig!$E10*[1]ResourceLevelConfig!$L10*0.1,0)*10 -> 500 | N10: -1 | O10: 0 | P10: -1 | Q10: -1 | R10: -1 | S10: -1 | T10: =IF(G10=G11,0,CONCATENATE(80*ROUND(VLOOKUP(B10,[2]MonsterPowerUpConfig!$A:$I,9,FALSE),0),";",120*ROUND(VLOOKUP(B10,[2]MonsterPowerUpConfig!$A:$I,9,FALSE),0))) -> 0 | U10: =[3]主表!K8 -> 7.343334742 | V10: =[3]主表!L8 -> 1.069356916 | W10: =[3]主表!M8 -> 1.069356916 | X10: =[3]主表!N8 -> 0 | Y10: =[3]主表!$G8 -> 225 | Z10: =[3]升级!$H8 -> 1000 | AA10: 0.1 | AB10: -1 | AC10: 2 | AD10: 1 | AE10: 1 | AF10: 170 | AH10: 53.4678458 | AJ10: 1 | AK10: 1 | AL10: 6 | AS10: =IF(AR10="","",1) ->  | AU10: =IF(AT10="","",1) ->  | AW10: =IF(AV10="","",1) ->  | AY10: =IF(AX10="","",1) ->  | AZ10: =IF(AN10="","",VLOOKUP(AN10,[4]ItemConfig!$A:$C,3,FALSE)&AO10) ->  | BA10: =IF(AP10="","",VLOOKUP(AP10,[4]ItemConfig!$A:$C,3,FALSE)&AQ10) ->  | BB10: =IF(AR10="","",VLOOKUP(AR10,[4]ItemConfig!$A:$C,3,FALSE)&AS10) ->  | BC10: =IF(AT10="","",VLOOKUP(AT10,[4]ItemConfig!$A:$C,3,FALSE)&AU10) ->  | BD10: =IF(AV10="","",VLOOKUP(AV10,[4]ItemConfig!$A:$C,3,FALSE)&AW10) ->  | BE10: =IF(AX10="","",VLOOKUP(AX10,[4]ItemConfig!$A:$C,3,FALSE)&AY10) ->  | BF10: 10
A11: 7 | B11: 7 | C11: 1 | D11: 1 | E11: 7 | F11: 225;235;244 | G11: 练气 | H11: 前期. | I11: 七重 | J11: 225 | K11: 235 | L11: 244 | M11: =ROUND([1]ResourceLevelConfig!$E11*[1]ResourceLevelConfig!$L11*0.1,0)*10 -> 510 | N11: -1 | O11: 0 | P11: -1 | Q11: -1 | R11: -1 | S11: -1 | T11: =IF(G11=G12,0,CONCATENATE(80*ROUND(VLOOKUP(B11,[2]MonsterPowerUpConfig!$A:$I,9,FALSE),0),";",120*ROUND(VLOOKUP(B11,[2]MonsterPowerUpConfig!$A:$I,9,FALSE),0))) -> 0 | U11: =[3]主表!K9 -> 7.847184636 | V11: =[3]主表!L9 -> 1.08379519 | W11: =[3]主表!M9 -> 1.08379519 | X11: =[3]主表!N9 -> 0 | Y11: =[3]主表!$G9 -> 228 | Z11: =[3]升级!$H9 -> 1000 | AA11: 0.1 | AB11: -1 | AC11: 2 | AD11: 1 | AE11: 1 | AF11: 180 | AH11: 54.18975948 | AJ11: 1 | AK11: 1 | AL11: 7 | AS11: =IF(AR11="","",1) ->  | AU11: =IF(AT11="","",1) ->  | AW11: =IF(AV11="","",1) ->  | AY11: =IF(AX11="","",1) ->  | AZ11: =IF(AN11="","",VLOOKUP(AN11,[4]ItemConfig!$A:$C,3,FALSE)&AO11) ->  | BA11: =IF(AP11="","",VLOOKUP(AP11,[4]ItemConfig!$A:$C,3,FALSE)&AQ11) ->  | BB11: =IF(AR11="","",VLOOKUP(AR11,[4]ItemConfig!$A:$C,3,FALSE)&AS11) ->  | BC11: =IF(AT11="","",VLOOKUP(AT11,[4]ItemConfig!$A:$C,3,FALSE)&AU11) ->  | BD11: =IF(AV11="","",VLOOKUP(AV11,[4]ItemConfig!$A:$C,3,FALSE)&AW11) ->  | BE11: =IF(AX11="","",VLOOKUP(AX11,[4]ItemConfig!$A:$C,3,FALSE)&AY11) ->  | BF11: 11
A12: 8 | B12: 8 | C12: 1 | D12: 1 | E12: 8 | F12: 225;235;245 | G12: 练气 | H12: 前期. | I12: 八重 | J12: 225 | K12: 235 | L12: 245 | M12: =ROUND([1]ResourceLevelConfig!$E12*[1]ResourceLevelConfig!$L12*0.1,0)*10 -> 520 | N12: -1 | O12: 0 | P12: -1 | Q12: -1 | R12: -1 | S12: -1 | T12: =IF(G12=G13,0,CONCATENATE(80*ROUND(VLOOKUP(B12,[2]MonsterPowerUpConfig!$A:$I,9,FALSE),0),";",120*ROUND(VLOOKUP(B12,[2]MonsterPowerUpConfig!$A:$I,9,FALSE),0))) -> 0 | U12: =[3]主表!K10 -> 8.363301633 | V12: =[3]主表!L10 -> 1.098428406 | W12: =[3]主表!M10 -> 1.098428406 | X12: =[3]主表!N10 -> 0 | Y12: =[3]主表!$G10 -> 231 | Z12: =[3]升级!$H10 -> 1000 | AA12: 0.1 | AB12: -1 | AC12: 2 | AD12: 1 | AE12: 1 | AF12: 190 | AH12: 54.92142032 | AJ12: 1 | AK12: 1 | AL12: 8 | AS12: =IF(AR12="","",1) ->  | AU12: =IF(AT12="","",1) ->  | AW12: =IF(AV12="","",1) ->  | AY12: =IF(AX12="","",1) ->  | AZ12: =IF(AN12="","",VLOOKUP(AN12,[4]ItemConfig!$A:$C,3,FALSE)&AO12) ->  | BA12: =IF(AP12="","",VLOOKUP(AP12,[4]ItemConfig!$A:$C,3,FALSE)&AQ12) ->  | BB12: =IF(AR12="","",VLOOKUP(AR12,[4]ItemConfig!$A:$C,3,FALSE)&AS12) ->  | BC12: =IF(AT12="","",VLOOKUP(AT12,[4]ItemConfig!$A:$C,3,FALSE)&AU12) ->  | BD12: =IF(AV12="","",VLOOKUP(AV12,[4]ItemConfig!$A:$C,3,FALSE)&AW12) ->  | BE12: =IF(AX12="","",VLOOKUP(AX12,[4]ItemConfig!$A:$C,3,FALSE)&AY12) ->  | BF12: 12
A13: 9 | B13: 9 | C13: 1 | D13: 1 | E13: 9 | F13: 225;235;246 | G13: 练气 | H13: 前期. | I13: 九重 | J13: 225 | K13: 235 | L13: 246 | M13: =ROUND([1]ResourceLevelConfig!$E13*[1]ResourceLevelConfig!$L13*0.1,0)*10 -> 530 | N13: -1 | O13: 0 | P13: -1 | Q13: -1 | R13: -1 | S13: -1 | T13: =IF(G13=G14,0,CONCATENATE(80*ROUND(VLOOKUP(B13,[2]MonsterPowerUpConfig!$A:$I,9,FALSE),0),";",120*ROUND(VLOOKUP(B13,[2]MonsterPowerUpConfig!$A:$I,9,FALSE),0))) -> 0 | U13: =[3]主表!K11 -> 8.891925141 | V13: =[3]主表!L11 -> 1.113259198 | W13: =[3]主表!M11 -> 1.113259198 | X13: =[3]主表!N11 -> 0 | Y13: =[3]主表!$G11 -> 235 | Z13: =[3]升级!$H11 -> 1000 | AA13: 0.1 | AB13: -1 | AC13: 2 | AD13: 1 | AE13: 1 | AF13: 200 | AH13: 55.66295991 | AJ13: 1 | AK13: 1 | AL13: 9 | AS13: =IF(AR13="","",1) ->  | AU13: =IF(AT13="","",1) ->  | AW13: =IF(AV13="","",1) ->  | AY13: =IF(AX13="","",1) ->  | AZ13: =IF(AN13="","",VLOOKUP(AN13,[4]ItemConfig!$A:$C,3,FALSE)&AO13) ->  | BA13: =IF(AP13="","",VLOOKUP(AP13,[4]ItemConfig!$A:$C,3,FALSE)&AQ13) ->  | BB13: =IF(AR13="","",VLOOKUP(AR13,[4]ItemConfig!$A:$C,3,FALSE)&AS13) ->  | BC13: =IF(AT13="","",VLOOKUP(AT13,[4]ItemConfig!$A:$C,3,FALSE)&AU13) ->  | BD13: =IF(AV13="","",VLOOKUP(AV13,[4]ItemConfig!$A:$C,3,FALSE)&AW13) ->  | BE13: =IF(AX13="","",VLOOKUP(AX13,[4]ItemConfig!$A:$C,3,FALSE)&AY13) ->  | BF13: 13
A14: 10 | B14: 10 | C14: 1 | D14: 1 | E14: 10 | F14: 225;235;247 | G14: 练气 | H14: 前期. | I14: 十重 | J14: 225 | K14: 235 | L14: 247 | M14: =ROUND([1]ResourceLevelConfig!$E14*[1]ResourceLevelConfig!$L14*0.1,0)*10 -> 540 | N14: 100004 | O14: 0 | P14: =AN14 -> 1301 | Q14: =AO14 -> 1 | R14: =_xlfn.TEXTJOIN(";",1,AP14,AR14,AT14,AV14) ->  | S14: =_xlfn.TEXTJOIN(";",1,AQ14,AS14,AU14,AW14) ->  | T14: =IF(G14=G15,0,CONCATENATE(80*ROUND(VLOOKUP(B14,[2]MonsterPowerUpConfig!$A:$I,9,FALSE),0),";",120*ROUND(VLOOKUP(B14,[2]MonsterPowerUpConfig!$A:$I,9,FALSE),0))) -> 0 | U14: =[3]主表!K12 -> 9.433298791 | V14: =[3]主表!L12 -> 1.128290233 | W14: =[3]主表!M12 -> 1.128290233 | X14: =[3]主表!N12 -> 0 | Y14: =[3]主表!$G12 -> 238 | Z14: =[3]升级!$H12 -> 1000 | AA14: 0.1 | AB14: 15 | AC14: 2 | AD14: 1 | AE14: 1 | AF14: 210 | AH14: 56.41451164 | AJ14: 1 | AK14: 1 | AL14: 10 | AN14: 1301 | AO14: 1 | AS14: =IF(AR14="","",1) ->  | AU14: =IF(AT14="","",1) ->  | AW14: =IF(AV14="","",1) ->  | AY14: =IF(AX14="","",1) ->  | AZ14: =IF(AN14="","",VLOOKUP(AN14,[4]ItemConfig!$A:$C,3,FALSE)&AO14) -> 淬骨丹1 | BA14: =IF(AP14="","",VLOOKUP(AP14,[4]ItemConfig!$A:$C,3,FALSE)&AQ14) ->  | BB14: =IF(AR14="","",VLOOKUP(AR14,[4]ItemConfig!$A:$C,3,FALSE)&AS14) ->  | BC14: =IF(AT14="","",VLOOKUP(AT14,[4]ItemConfig!$A:$C,3,FALSE)&AU14) ->  | BD14: =IF(AV14="","",VLOOKUP(AV14,[4]ItemConfig!$A:$C,3,FALSE)&AW14) ->  | BE14: =IF(AX14="","",VLOOKUP(AX14,[4]ItemConfig!$A:$C,3,FALSE)&AY14) ->  | BF14: 14
A15: 11 | B15: 11 | C15: 1 | D15: 2 | E15: 1 | F15: 225;236;238 | G15: 练气 | H15: 中期. | I15: 一重 | J15: 225 | K15: 236 | L15: 238 | M15: =ROUND([1]ResourceLevelConfig!$E15*[1]ResourceLevelConfig!$L15*0.1,0)*10 -> 550 | N15: -1 | O15: 0 | P15: -1 | Q15: -1 | R15: -1 | S15: -1 | T15: =IF(G15=G16,0,CONCATENATE(80*ROUND(VLOOKUP(B15,[2]MonsterPowerUpConfig!$A:$I,9,FALSE),0),";",120*ROUND(VLOOKUP(B15,[2]MonsterPowerUpConfig!$A:$I,9,FALSE),0))) -> 0 | U15: =[3]主表!K13 -> 10.84007671 | V15: =[3]主表!L13 -> 1.241119256 | W15: =[3]主表!M13 -> 1.241119256 | X15: =[3]主表!N13 -> 0 | Y15: =[3]主表!$G13 -> 264 | Z15: =[3]升级!$H13 -> 1000 | AA15: 0.1 | AB15: -1 | AC15: 2 | AD15: 1 | AE15: 1 | AF15: 220 | AJ15: 1 | AK15: 1 | AL15: 11 | AS15: =IF(AR15="","",1) ->  | AU15: =IF(AT15="","",1) ->  | AW15: =IF(AV15="","",1) ->  | AY15: =IF(AX15="","",1) ->  | AZ15: =IF(AN15="","",VLOOKUP(AN15,[4]ItemConfig!$A:$C,3,FALSE)&AO15) ->  | BA15: =IF(AP15="","",VLOOKUP(AP15,[4]ItemConfig!$A:$C,3,FALSE)&AQ15) ->  | BB15: =IF(AR15="","",VLOOKUP(AR15,[4]ItemConfig!$A:$C,3,FALSE)&AS15) ->  | BC15: =IF(AT15="","",VLOOKUP(AT15,[4]ItemConfig!$A:$C,3,FALSE)&AU15) ->  | BD15: =IF(AV15="","",VLOOKUP(AV15,[4]ItemConfig!$A:$C,3,FALSE)&AW15) ->  | BE15: =IF(AX15="","",VLOOKUP(AX15,[4]ItemConfig!$A:$C,3,FALSE)&AY15) ->  | BF15: 15
A16: 12 | B16: 12 | C16: 1 | D16: 2 | E16: 2 | F16: 225;236;239 | G16: 练气 | H16: 中期. | I16: 二重 | J16: 225 | K16: 236 | L16: 239 | M16: =ROUND([1]ResourceLevelConfig!$E16*[1]ResourceLevelConfig!$L16*0.1,0)*10 -> 560 | N16: -1 | O16: 0 | P16: -1 | Q16: -1 | R16: -1 | S16: -1 | T16: =IF(G16=G17,0,CONCATENATE(80*ROUND(VLOOKUP(B16,[2]MonsterPowerUpConfig!$A:$I,9,FALSE),0),";",120*ROUND(VLOOKUP(B16,[2]MonsterPowerUpConfig!$A:$I,9,FALSE),0))) -> 0 | U16: =[3]主表!K14 -> 11.45614301 | V16: =[3]主表!L14 -> 1.257876635 | W16: =[3]主表!M14 -> 1.257876635 | X16: =[3]主表!N14 -> 0 | Y16: =[3]主表!$G14 -> 268 | Z16: =[3]升级!$H14 -> 1000 | AA16: 0.1 | AB16: -1 | AC16: =AC15 -> 2 | AD16: =AD15 -> 1 | AE16: 1 | AF16: 230 | AJ16: 1 | AK16: 1 | AL16: 12 | AS16: =IF(AR16="","",1) ->  | AU16: =IF(AT16="","",1) ->  | AW16: =IF(AV16="","",1) ->  | AY16: =IF(AX16="","",1) ->  | AZ16: =IF(AN16="","",VLOOKUP(AN16,[4]ItemConfig!$A:$C,3,FALSE)&AO16) ->  | BA16: =IF(AP16="","",VLOOKUP(AP16,[4]ItemConfig!$A:$C,3,FALSE)&AQ16) ->  | BB16: =IF(AR16="","",VLOOKUP(AR16,[4]ItemConfig!$A:$C,3,FALSE)&AS16) ->  | BC16: =IF(AT16="","",VLOOKUP(AT16,[4]ItemConfig!$A:$C,3,FALSE)&AU16) ->  | BD16: =IF(AV16="","",VLOOKUP(AV16,[4]ItemConfig!$A:$C,3,FALSE)&AW16) ->  | BE16: =IF(AX16="","",VLOOKUP(AX16,[4]ItemConfig!$A:$C,3,FALSE)&AY16) ->  | BF16: 16
A17: 13 | B17: 13 | C17: 1 | D17: 2 | E17: 3 | F17: 225;236;240 | G17: 练气 | H17: 中期. | I17: 三重 | J17: 225 | K17: 236 | L17: 240 | M17: =ROUND([1]ResourceLevelConfig!$E17*[1]ResourceLevelConfig!$L17*0.1,0)*10 -> 570 | N17: -1 | O17: 0 | P17: -1 | Q17: -1 | R17: -1 | S17: -1 | T17: =IF(G17=G18,0,CONCATENATE(80*ROUND(VLOOKUP(B17,[2]MonsterPowerUpConfig!$A:$I,9,FALSE),0),";",120*ROUND(VLOOKUP(B17,[2]MonsterPowerUpConfig!$A:$I,9,FALSE),0))) -> 0 | U17: =[3]主表!K15 -> 12.08686921 | V17: =[3]主表!L15 -> 1.27486027 | W17: =[3]主表!M15 -> 1.27486027 | X17: =[3]主表!N15 -> 0 | Y17: =[3]主表!$G15 -> 272 | Z17: =[3]升级!$H15 -> 1000 | AA17: 0.1 | AB17: -1 | AC17: =AC16 -> 2 | AD17: =AD16 -> 1 | AE17: =AE16 -> 1 | AF17: 240 | AJ17: 1 | AK17: 1 | AL17: 13 | AS17: =IF(AR17="","",1) ->  | AU17: =IF(AT17="","",1) ->  | AW17: =IF(AV17="","",1) ->  | AY17: =IF(AX17="","",1) ->  | AZ17: =IF(AN17="","",VLOOKUP(AN17,[4]ItemConfig!$A:$C,3,FALSE)&AO17) ->  | BA17: =IF(AP17="","",VLOOKUP(AP17,[4]ItemConfig!$A:$C,3,FALSE)&AQ17) ->  | BB17: =IF(AR17="","",VLOOKUP(AR17,[4]ItemConfig!$A:$C,3,FALSE)&AS17) ->  | BC17: =IF(AT17="","",VLOOKUP(AT17,[4]ItemConfig!$A:$C,3,FALSE)&AU17) ->  | BD17: =IF(AV17="","",VLOOKUP(AV17,[4]ItemConfig!$A:$C,3,FALSE)&AW17) ->  | BE17: =IF(AX17="","",VLOOKUP(AX17,[4]ItemConfig!$A:$C,3,FALSE)&AY17) ->  | BF17: 17
A18: 14 | B18: 14 | C18: 1 | D18: 2 | E18: 4 | F18: 225;236;241 | G18: 练气 | H18: 中期. | I18: 四重 | J18: 225 | K18: 236 | L18: 241 | M18: =ROUND([1]ResourceLevelConfig!$E18*[1]ResourceLevelConfig!$L18*0.1,0)*10 -> 580 | N18: -1 | O18: 0 | P18: -1 | Q18: -1 | R18: -1 | S18: -1 | T18: =IF(G18=G19,0,CONCATENATE(80*ROUND(VLOOKUP(B18,[2]MonsterPowerUpConfig!$A:$I,9,FALSE),0),";",120*ROUND(VLOOKUP(B18,[2]MonsterPowerUpConfig!$A:$I,9,FALSE),0))) -> 0 | U18: =[3]主表!K16 -> 12.73253887 | V18: =[3]主表!L16 -> 1.292073214 | W18: =[3]主表!M16 -> 1.292073214 | X18: =[3]主表!N16 -> 0 | Y18: =[3]主表!$G16 -> 276 | Z18: =[3]升级!$H16 -> 1000 | AA18: 0.1 | AB18: -1 | AC18: 2 | AD18: 1 | AE18: 1 | AF18: 250 | AJ18: 1 | AK18: 1 | AL18: 14 | AS18: =IF(AR18="","",1) ->  | AU18: =IF(AT18="","",1) ->  | AW18: =IF(AV18="","",1) ->  | AY18: =IF(AX18="","",1) ->  | AZ18: =IF(AN18="","",VLOOKUP(AN18,[4]ItemConfig!$A:$C,3,FALSE)&AO18) ->  | BA18: =IF(AP18="","",VLOOKUP(AP18,[4]ItemConfig!$A:$C,3,FALSE)&AQ18) ->  | BB18: =IF(AR18="","",VLOOKUP(AR18,[4]ItemConfig!$A:$C,3,FALSE)&AS18) ->  | BC18: =IF(AT18="","",VLOOKUP(AT18,[4]ItemConfig!$A:$C,3,FALSE)&AU18) ->  | BD18: =IF(AV18="","",VLOOKUP(AV18,[4]ItemConfig!$A:$C,3,FALSE)&AW18) ->  | BE18: =IF(AX18="","",VLOOKUP(AX18,[4]ItemConfig!$A:$C,3,FALSE)&AY18) ->  | BF18: 18
A19: 15 | B19: 15 | C19: 1 | D19: 2 | E19: 5 | F19: 225;236;242 | G19: 练气 | H19: 中期. | I19: 五重 | J19: 225 | K19: 236 | L19: 242 | M19: =ROUND([1]ResourceLevelConfig!$E19*[1]ResourceLevelConfig!$L19*0.1,0)*10 -> 590 | N19: -1 | O19: 0 | P19: -1 | Q19: -1 | R19: -1 | S19: -1 | T19: =IF(G19=G20,0,CONCATENATE(80*ROUND(VLOOKUP(B19,[2]MonsterPowerUpConfig!$A:$I,9,FALSE),0),";",120*ROUND(VLOOKUP(B19,[2]MonsterPowerUpConfig!$A:$I,9,FALSE),0))) -> 0 | U19: =[3]主表!K17 -> 13.39344055 | V19: =[3]主表!L17 -> 1.309518565 | W19: =[3]主表!M17 -> 1.309518565 | X19: =[3]主表!N17 -> 0 | Y19: =[3]主表!$G17 -> 280 | Z19: =[3]升级!$H17 -> 1000 | AA19: 0.1 | AB19: -1 | AC19: 2 | AD19: 1 | AE19: 1 | AF19: 260 | AJ19: 1 | AK19: 1 | AL19: 15 | AS19: =IF(AR19="","",1) ->  | AU19: =IF(AT19="","",1) ->  | AW19: =IF(AV19="","",1) ->  | AY19: =IF(AX19="","",1) ->  | AZ19: =IF(AN19="","",VLOOKUP(AN19,[4]ItemConfig!$A:$C,3,FALSE)&AO19) ->  | BA19: =IF(AP19="","",VLOOKUP(AP19,[4]ItemConfig!$A:$C,3,FALSE)&AQ19) ->  | BB19: =IF(AR19="","",VLOOKUP(AR19,[4]ItemConfig!$A:$C,3,FALSE)&AS19) ->  | BC19: =IF(AT19="","",VLOOKUP(AT19,[4]ItemConfig!$A:$C,3,FALSE)&AU19) ->  | BD19: =IF(AV19="","",VLOOKUP(AV19,[4]ItemConfig!$A:$C,3,FALSE)&AW19) ->  | BE19: =IF(AX19="","",VLOOKUP(AX19,[4]ItemConfig!$A:$C,3,FALSE)&AY19) ->  | BF19: 19
A20: 16 | B20: 16 | C20: 1 | D20: 2 | E20: 6 | F20: 225;236;243 | G20: 练气 | H20: 中期. | I20: 六重 | J20: 225 | K20: 236 | L20: 243 | M20: =ROUND([1]ResourceLevelConfig!$E20*[1]ResourceLevelConfig!$L20*0.1,0)*10 -> 660 | N20: -1 | O20: 0 | P20: -1 | Q20: -1 | R20: -1 | S20: -1 | T20: =IF(G20=G21,0,CONCATENATE(80*ROUND(VLOOKUP(B20,[2]MonsterPowerUpConfig!$A:$I,9,FALSE),0),";",120*ROUND(VLOOKUP(B20,[2]MonsterPowerUpConfig!$A:$I,9,FALSE),0))) -> 0 | U20: =[3]主表!K18 -> 14.06986786 | V20: =[3]主表!L18 -> 1.32719946 | W20: =[3]主表!M18 -> 1.32719946 | X20: =[3]主表!N18 -> 0 | Y20: =[3]主表!$G18 -> 284 | Z20: =[3]升级!$H18 -> 1000 | AA20: 0.1 | AB20: -1 | AC20: 2 | AD20: 1 | AE20: 1 | AF20: 270 | AJ20: 1 | AK20: 1 | AL20: 16 | AS20: =IF(AR20="","",1) ->  | AU20: =IF(AT20="","",1) ->  | AW20: =IF(AV20="","",1) ->  | AY20: =IF(AX20="","",1) ->  | AZ20: =IF(AN20="","",VLOOKUP(AN20,[4]ItemConfig!$A:$C,3,FALSE)&AO20) ->  | BA20: =IF(AP20="","",VLOOKUP(AP20,[4]ItemConfig!$A:$C,3,FALSE)&AQ20) ->  | BB20: =IF(AR20="","",VLOOKUP(AR20,[4]ItemConfig!$A:$C,3,FALSE)&AS20) ->  | BC20: =IF(AT20="","",VLOOKUP(AT20,[4]ItemConfig!$A:$C,3,FALSE)&AU20) ->  | BD20: =IF(AV20="","",VLOOKUP(AV20,[4]ItemConfig!$A:$C,3,FALSE)&AW20) ->  | BE20: =IF(AX20="","",VLOOKUP(AX20,[4]ItemConfig!$A:$C,3,FALSE)&AY20) ->  | BF20: 20
A21: 17 | B21: 17 | C21: 1 | D21: 2 | E21: 7 | F21: 225;236;244 | G21: 练气 | H21: 中期. | I21: 七重 | J21: 225 | K21: 236 | L21: 244 | M21: =ROUND([1]ResourceLevelConfig!$E21*[1]ResourceLevelConfig!$L21*0.1,0)*10 -> 670 | N21: -1 | O21: 0 | P21: -1 | Q21: -1 | R21: -1 | S21: -1 | T21: =IF(G21=G22,0,CONCATENATE(80*ROUND(VLOOKUP(B21,[2]MonsterPowerUpConfig!$A:$I,9,FALSE),0),";",120*ROUND(VLOOKUP(B21,[2]MonsterPowerUpConfig!$A:$I,9,FALSE),0))) -> 0 | U21: =[3]主表!K19 -> 14.76211956 | V21: =[3]主表!L19 -> 1.34511908 | W21: =[3]主表!M19 -> 1.34511908 | X21: =[3]主表!N19 -> 0 | Y21: =[3]主表!$G19 -> 288 | Z21: =[3]升级!$H19 -> 1000 | AA21: 0.1 | AB21: -1 | AC21: 2 | AD21: 1 | AE21: 1 | AF21: 280 | AJ21: 1 | AK21: 1 | AL21: 17 | AS21: =IF(AR21="","",1) ->  | AU21: =IF(AT21="","",1) ->  | AW21: =IF(AV21="","",1) ->  | AY21: =IF(AX21="","",1) ->  | AZ21: =IF(AN21="","",VLOOKUP(AN21,[4]ItemConfig!$A:$C,3,FALSE)&AO21) ->  | BA21: =IF(AP21="","",VLOOKUP(AP21,[4]ItemConfig!$A:$C,3,FALSE)&AQ21) ->  | BB21: =IF(AR21="","",VLOOKUP(AR21,[4]ItemConfig!$A:$C,3,FALSE)&AS21) ->  | BC21: =IF(AT21="","",VLOOKUP(AT21,[4]ItemConfig!$A:$C,3,FALSE)&AU21) ->  | BD21: =IF(AV21="","",VLOOKUP(AV21,[4]ItemConfig!$A:$C,3,FALSE)&AW21) ->  | BE21: =IF(AX21="","",VLOOKUP(AX21,[4]ItemConfig!$A:$C,3,FALSE)&AY21) ->  | BF21: 21
A22: 18 | B22: 18 | C22: 1 | D22: 2 | E22: 8 | F22: 225;236;245 | G22: 练气 | H22: 中期. | I22: 八重 | J22: 225 | K22: 236 | L22: 245 | M22: =ROUND([1]ResourceLevelConfig!$E22*[1]ResourceLevelConfig!$L22*0.1,0)*10 -> 680 | N22: -1 | O22: 0 | P22: -1 | Q22: -1 | R22: -1 | S22: -1 | T22: =IF(G22=G23,0,CONCATENATE(80*ROUND(VLOOKUP(B22,[2]MonsterPowerUpConfig!$A:$I,9,FALSE),0),";",120*ROUND(VLOOKUP(B22,[2]MonsterPowerUpConfig!$A:$I,9,FALSE),0))) -> 0 | U22: =[3]主表!K20 -> 15.47049966 | V22: =[3]主表!L20 -> 1.363280647 | W22: =[3]主表!M20 -> 1.363280647 | X22: =[3]主表!N20 -> 0 | Y22: =[3]主表!$G20 -> 293 | Z22: =[3]升级!$H20 -> 1000 | AA22: 0.1 | AB22: -1 | AC22: 2 | AD22: 1 | AE22: 1 | AF22: 290 | AJ22: 1 | AK22: 1 | AL22: 18 | AS22: =IF(AR22="","",1) ->  | AU22: =IF(AT22="","",1) ->  | AW22: =IF(AV22="","",1) ->  | AY22: =IF(AX22="","",1) ->  | AZ22: =IF(AN22="","",VLOOKUP(AN22,[4]ItemConfig!$A:$C,3,FALSE)&AO22) ->  | BA22: =IF(AP22="","",VLOOKUP(AP22,[4]ItemConfig!$A:$C,3,FALSE)&AQ22) ->  | BB22: =IF(AR22="","",VLOOKUP(AR22,[4]ItemConfig!$A:$C,3,FALSE)&AS22) ->  | BC22: =IF(AT22="","",VLOOKUP(AT22,[4]ItemConfig!$A:$C,3,FALSE)&AU22) ->  | BD22: =IF(AV22="","",VLOOKUP(AV22,[4]ItemConfig!$A:$C,3,FALSE)&AW22) ->  | BE22: =IF(AX22="","",VLOOKUP(AX22,[4]ItemConfig!$A:$C,3,FALSE)&AY22) ->  | BF22: 22
A23: 19 | B23: 19 | C23: 1 | D23: 2 | E23: 9 | F23: 225;236;246 | G23: 练气 | H23: 中期. | I23: 九重 | J23: 225 | K23: 236 | L23: 246 | M23: =ROUND([1]ResourceLevelConfig!$E23*[1]ResourceLevelConfig!$L23*0.1,0)*10 -> 700 | N23: -1 | O23: 0 | P23: -1 | Q23: -1 | R23: -1 | S23: -1 | T23: =IF(G23=G24,0,CONCATENATE(80*ROUND(VLOOKUP(B23,[2]MonsterPowerUpConfig!$A:$I,9,FALSE),0),";",120*ROUND(VLOOKUP(B23,[2]MonsterPowerUpConfig!$A:$I,9,FALSE),0))) -> 0 | U23: =[3]主表!K21 -> 16.19531749 | V23: =[3]主表!L21 -> 1.381687428 | W23: =[3]主表!M21 -> 1.381687428 | X23: =[3]主表!N21 -> 0 | Y23: =[3]主表!$G21 -> 297 | Z23: =[3]升级!$H21 -> 1000 | AA23: 0.1 | AB23: -1 | AC23: 2 | AD23: 1 | AE23: 1 | AF23: 300 | AJ23: 1 | AK23: 1 | AL23: 19 | AS23: =IF(AR23="","",1) ->  | AU23: =IF(AT23="","",1) ->  | AW23: =IF(AV23="","",1) ->  | AY23: =IF(AX23="","",1) ->  | AZ23: =IF(AN23="","",VLOOKUP(AN23,[4]ItemConfig!$A:$C,3,FALSE)&AO23) ->  | BA23: =IF(AP23="","",VLOOKUP(AP23,[4]ItemConfig!$A:$C,3,FALSE)&AQ23) ->  | BB23: =IF(AR23="","",VLOOKUP(AR23,[4]ItemConfig!$A:$C,3,FALSE)&AS23) ->  | BC23: =IF(AT23="","",VLOOKUP(AT23,[4]ItemConfig!$A:$C,3,FALSE)&AU23) ->  | BD23: =IF(AV23="","",VLOOKUP(AV23,[4]ItemConfig!$A:$C,3,FALSE)&AW23) ->  | BE23: =IF(AX23="","",VLOOKUP(AX23,[4]ItemConfig!$A:$C,3,FALSE)&AY23) ->  | BF23: 23
A24: 20 | B24: 20 | C24: 1 | D24: 2 | E24: 10 | F24: 225;236;247 | G24: 练气 | H24: 中期. | I24: 十重 | J24: 225 | K24: 236 | L24: 247 | M24: =ROUND([1]ResourceLevelConfig!$E24*[1]ResourceLevelConfig!$L24*0.1,0)*10 -> 710 | N24: 100004 | O24: 0 | P24: =AN24 -> 1302 | Q24: =AO24 -> 1 | R24: =_xlfn.TEXTJOIN(";",1,AP24,AR24,AT24,AV24) ->  | S24: =_xlfn.TEXTJOIN(";",1,AQ24,AS24,AU24,AW24) ->  | T24: =IF(G24=G25,0,CONCATENATE(80*ROUND(VLOOKUP(B24,[2]MonsterPowerUpConfig!$A:$I,9,FALSE),0),";",120*ROUND(VLOOKUP(B24,[2]MonsterPowerUpConfig!$A:$I,9,FALSE),0))) -> 0 | U24: =[3]主表!K22 -> 16.93688778 | V24: =[3]主表!L22 -> 1.400342734 | W24: =[3]主表!M22 -> 1.400342734 | X24: =[3]主表!N22 -> 0 | Y24: =[3]主表!$G22 -> 302 | Z24: =[3]升级!$H22 -> 1000 | AA24: 0.1 | AB24: 15 | AC24: 2 | AD24: 1 | AE24: 1 | AF24: 310 | AJ24: 1 | AK24: 1 | AL24: 20 | AN24: 1302 | AO24: 1 | AS24: =IF(AR24="","",1) ->  | AU24: =IF(AT24="","",1) ->  | AW24: =IF(AV24="","",1) ->  | AY24: =IF(AX24="","",1) ->  | AZ24: =IF(AN24="","",VLOOKUP(AN24,[4]ItemConfig!$A:$C,3,FALSE)&AO24) -> 凝灵丹1 | BA24: =IF(AP24="","",VLOOKUP(AP24,[4]ItemConfig!$A:$C,3,FALSE)&AQ24) ->  | BB24: =IF(AR24="","",VLOOKUP(AR24,[4]ItemConfig!$A:$C,3,FALSE)&AS24) ->  | BC24: =IF(AT24="","",VLOOKUP(AT24,[4]ItemConfig!$A:$C,3,FALSE)&AU24) ->  | BD24: =IF(AV24="","",VLOOKUP(AV24,[4]ItemConfig!$A:$C,3,FALSE)&AW24) ->  | BE24: =IF(AX24="","",VLOOKUP(AX24,[4]ItemConfig!$A:$C,3,FALSE)&AY24) ->  | BF24: 24
A25: 21 | B25: 21 | C25: 1 | D25: 3 | E25: 1 | F25: 225;237;238 | G25: 练气 | H25: 后期. | I25: 一重 | J25: 225 | K25: 237 | L25: 238 | M25: =ROUND([1]ResourceLevelConfig!$E25*[1]ResourceLevelConfig!$L25*0.1,0)*10 -> 720 | N25: -1 | O25: 0 | P25: -1 | Q25: -1 | R25: -1 | S25: -1 | T25: =IF(G25=G26,0,CONCATENATE(80*ROUND(VLOOKUP(B25,[2]MonsterPowerUpConfig!$A:$I,9,FALSE),0),";",120*ROUND(VLOOKUP(B25,[2]MonsterPowerUpConfig!$A:$I,9,FALSE),0))) -> 0 | U25: =[3]主表!K23 -> 19.20577085 | V25: =[3]主表!L23 -> 1.540377008 | W25: =[3]主表!M23 -> 1.540377008 | X25: =[3]主表!N23 -> 0 | Y25: =[3]主表!$G23 -> 351 | Z25: =[3]升级!$H23 -> 1000 | AA25: 0.1 | AB25: -1 | AC25: 3 | AD25: 1 | AE25: 1 | AF25: 320 | AJ25: 1 | AK25: 1 | AL25: 21 | AS25: =IF(AR25="","",1) ->  | AU25: =IF(AT25="","",1) ->  | AW25: =IF(AV25="","",1) ->  | AY25: =IF(AX25="","",1) ->  | AZ25: =IF(AN25="","",VLOOKUP(AN25,[4]ItemConfig!$A:$C,3,FALSE)&AO25) ->  | BA25: =IF(AP25="","",VLOOKUP(AP25,[4]ItemConfig!$A:$C,3,FALSE)&AQ25) ->  | BB25: =IF(AR25="","",VLOOKUP(AR25,[4]ItemConfig!$A:$C,3,FALSE)&AS25) ->  | BC25: =IF(AT25="","",VLOOKUP(AT25,[4]ItemConfig!$A:$C,3,FALSE)&AU25) ->  | BD25: =IF(AV25="","",VLOOKUP(AV25,[4]ItemConfig!$A:$C,3,FALSE)&AW25) ->  | BE25: =IF(AX25="","",VLOOKUP(AX25,[4]ItemConfig!$A:$C,3,FALSE)&AY25) ->  | BF25: 25
A26: 22 | B26: 22 | C26: 1 | D26: 3 | E26: 2 | F26: 225;237;239 | G26: 练气 | H26: 后期. | I26: 二重 | J26: 225 | K26: 237 | L26: 239 | M26: =ROUND([1]ResourceLevelConfig!$E26*[1]ResourceLevelConfig!$L26*0.1,0)*10 -> 730 | N26: -1 | O26: 0 | P26: -1 | Q26: -1 | R26: -1 | S26: -1 | T26: =IF(G26=G27,0,CONCATENATE(80*ROUND(VLOOKUP(B26,[2]MonsterPowerUpConfig!$A:$I,9,FALSE),0),";",120*ROUND(VLOOKUP(B26,[2]MonsterPowerUpConfig!$A:$I,9,FALSE),0))) -> 0 | U26: =[3]主表!K24 -> 20.04804434 | V26: =[3]主表!L24 -> 1.561174914 | W26: =[3]主表!M24 -> 1.561174914 | X26: =[3]主表!N24 -> 0 | Y26: =[3]主表!$G24 -> 356 | Z26: =[3]升级!$H24 -> 1000 | AA26: 0.1 | AB26: -1 | AC26: =AC25 -> 3 | AD26: =AD25 -> 1 | AE26: =AE25 -> 1 | AF26: 330 | AJ26: 1 | AK26: 1 | AL26: 22 | AS26: =IF(AR26="","",1) ->  | AU26: =IF(AT26="","",1) ->  | AW26: =IF(AV26="","",1) ->  | AY26: =IF(AX26="","",1) ->  | AZ26: =IF(AN26="","",VLOOKUP(AN26,[4]ItemConfig!$A:$C,3,FALSE)&AO26) ->  | BA26: =IF(AP26="","",VLOOKUP(AP26,[4]ItemConfig!$A:$C,3,FALSE)&AQ26) ->  | BB26: =IF(AR26="","",VLOOKUP(AR26,[4]ItemConfig!$A:$C,3,FALSE)&AS26) ->  | BC26: =IF(AT26="","",VLOOKUP(AT26,[4]ItemConfig!$A:$C,3,FALSE)&AU26) ->  | BD26: =IF(AV26="","",VLOOKUP(AV26,[4]ItemConfig!$A:$C,3,FALSE)&AW26) ->  | BE26: =IF(AX26="","",VLOOKUP(AX26,[4]ItemConfig!$A:$C,3,FALSE)&AY26) ->  | BF26: 26
A27: 23 | B27: 23 | C27: 1 | D27: 3 | E27: 3 | F27: 225;237;240 | G27: 练气 | H27: 后期. | I27: 三重 | J27: 225 | K27: 237 | L27: 240 | M27: =ROUND([1]ResourceLevelConfig!$E27*[1]ResourceLevelConfig!$L27*0.1,0)*10 -> 740 | N27: -1 | O27: 0 | P27: -1 | Q27: -1 | R27: -1 | S27: -1 | T27: =IF(G27=G28,0,CONCATENATE(80*ROUND(VLOOKUP(B27,[2]MonsterPowerUpConfig!$A:$I,9,FALSE),0),";",120*ROUND(VLOOKUP(B27,[2]MonsterPowerUpConfig!$A:$I,9,FALSE),0))) -> 0 | U27: =[3]主表!K25 -> 20.90956109 | V27: =[3]主表!L25 -> 1.58225363 | W27: =[3]主表!M25 -> 1.58225363 | X27: =[3]主表!N25 -> 0 | Y27: =[3]主表!$G25 -> 362 | Z27: =[3]升级!$H25 -> 1000 | AA27: 0.1 | AB27: -1 | AC27: =AC26 -> 3 | AD27: 1 | AE27: 1 | AF27: 340 | AJ27: 1 | AK27: 1 | AL27: 23 | AS27: =IF(AR27="","",1) ->  | AU27: =IF(AT27="","",1) ->  | AW27: =IF(AV27="","",1) ->  | AY27: =IF(AX27="","",1) ->  | AZ27: =IF(AN27="","",VLOOKUP(AN27,[4]ItemConfig!$A:$C,3,FALSE)&AO27) ->  | BA27: =IF(AP27="","",VLOOKUP(AP27,[4]ItemConfig!$A:$C,3,FALSE)&AQ27) ->  | BB27: =IF(AR27="","",VLOOKUP(AR27,[4]ItemConfig!$A:$C,3,FALSE)&AS27) ->  | BC27: =IF(AT27="","",VLOOKUP(AT27,[4]ItemConfig!$A:$C,3,FALSE)&AU27) ->  | BD27: =IF(AV27="","",VLOOKUP(AV27,[4]ItemConfig!$A:$C,3,FALSE)&AW27) ->  | BE27: =IF(AX27="","",VLOOKUP(AX27,[4]ItemConfig!$A:$C,3,FALSE)&AY27) ->  | BF27: 27
A28: 24 | B28: 24 | C28: 1 | D28: 3 | E28: 4 | F28: 225;237;241 | G28: 练气 | H28: 后期. | I28: 四重 | J28: 225 | K28: 237 | L28: 241 | M28: =ROUND([1]ResourceLevelConfig!$E28*[1]ResourceLevelConfig!$L28*0.1,0)*10 -> 760 | N28: -1 | O28: 0 | P28: -1 | Q28: -1 | R28: -1 | S28: -1 | T28: =IF(G28=G29,0,CONCATENATE(80*ROUND(VLOOKUP(B28,[2]MonsterPowerUpConfig!$A:$I,9,FALSE),0),";",120*ROUND(VLOOKUP(B28,[2]MonsterPowerUpConfig!$A:$I,9,FALSE),0))) -> 0 | U28: =[3]主表!K26 -> 21.7906872 | V28: =[3]主表!L26 -> 1.603616947 | W28: =[3]主表!M26 -> 1.603616947 | X28: =[3]主表!N26 -> 0 | Y28: =[3]主表!$G26 -> 367 | Z28: =[3]升级!$H26 -> 1000 | AA28: 0.1 | AB28: -1 | AC28: 3 | AD28: 1 | AE28: 1 | AF28: 350 | AJ28: 1 | AK28: 1 | AL28: 24 | AS28: =IF(AR28="","",1) ->  | AU28: =IF(AT28="","",1) ->  | AW28: =IF(AV28="","",1) ->  | AY28: =IF(AX28="","",1) ->  | AZ28: =IF(AN28="","",VLOOKUP(AN28,[4]ItemConfig!$A:$C,3,FALSE)&AO28) ->  | BA28: =IF(AP28="","",VLOOKUP(AP28,[4]ItemConfig!$A:$C,3,FALSE)&AQ28) ->  | BB28: =IF(AR28="","",VLOOKUP(AR28,[4]ItemConfig!$A:$C,3,FALSE)&AS28) ->  | BC28: =IF(AT28="","",VLOOKUP(AT28,[4]ItemConfig!$A:$C,3,FALSE)&AU28) ->  | BD28: =IF(AV28="","",VLOOKUP(AV28,[4]ItemConfig!$A:$C,3,FALSE)&AW28) ->  | BE28: =IF(AX28="","",VLOOKUP(AX28,[4]ItemConfig!$A:$C,3,FALSE)&AY28) ->  | BF28: 28
A29: 25 | B29: 25 | C29: 1 | D29: 3 | E29: 5 | F29: 225;237;242 | G29: 练气 | H29: 后期. | I29: 五重 | J29: 225 | K29: 237 | L29: 242 | M29: =ROUND([1]ResourceLevelConfig!$E29*[1]ResourceLevelConfig!$L29*0.1,0)*10 -> 770 | N29: -1 | O29: 0 | P29: -1 | Q29: -1 | R29: -1 | S29: -1 | T29: =IF(G29=G30,0,CONCATENATE(80*ROUND(VLOOKUP(B29,[2]MonsterPowerUpConfig!$A:$I,9,FALSE),0),";",120*ROUND(VLOOKUP(B29,[2]MonsterPowerUpConfig!$A:$I,9,FALSE),0))) -> 0 | U29: =[3]主表!K27 -> 22.69179514 | V29: =[3]主表!L27 -> 1.625268708 | W29: =[3]主表!M27 -> 1.625268708 | X29: =[3]主表!N27 -> 0 | Y29: =[3]主表!$G27 -> 373 | Z29: =[3]升级!$H27 -> 1000 | AA29: 0.1 | AB29: -1 | AC29: 3 | AD29: 1 | AE29: 1 | AF29: 360 | AJ29: 1 | AK29: 1 | AL29: 25 | AS29: =IF(AR29="","",1) ->  | AU29: =IF(AT29="","",1) ->  | AW29: =IF(AV29="","",1) ->  | AY29: =IF(AX29="","",1) ->  | AZ29: =IF(AN29="","",VLOOKUP(AN29,[4]ItemConfig!$A:$C,3,FALSE)&AO29) ->  | BA29: =IF(AP29="","",VLOOKUP(AP29,[4]ItemConfig!$A:$C,3,FALSE)&AQ29) ->  | BB29: =IF(AR29="","",VLOOKUP(AR29,[4]ItemConfig!$A:$C,3,FALSE)&AS29) ->  | BC29: =IF(AT29="","",VLOOKUP(AT29,[4]ItemConfig!$A:$C,3,FALSE)&AU29) ->  | BD29: =IF(AV29="","",VLOOKUP(AV29,[4]ItemConfig!$A:$C,3,FALSE)&AW29) ->  | BE29: =IF(AX29="","",VLOOKUP(AX29,[4]ItemConfig!$A:$C,3,FALSE)&AY29) ->  | BF29: 29
A30: 26 | B30: 26 | C30: 1 | D30: 3 | E30: 6 | F30: 225;237;243 | G30: 练气 | H30: 后期. | I30: 六重 | J30: 225 | K30: 237 | L30: 243 | M30: =ROUND([1]ResourceLevelConfig!$E30*[1]ResourceLevelConfig!$L30*0.1,0)*10 -> 840 | N30: -1 | O30: 0 | P30: -1 | Q30: -1 | R30: -1 | S30: -1 | T30: =IF(G30=G31,0,CONCATENATE(80*ROUND(VLOOKUP(B30,[2]MonsterPowerUpConfig!$A:$I,9,FALSE),0),";",120*ROUND(VLOOKUP(B30,[2]MonsterPowerUpConfig!$A:$I,9,FALSE),0))) -> 0 | U30: =[3]主表!K28 -> 23.61326386 | V30: =[3]主表!L28 -> 1.647212807 | W30: =[3]主表!M28 -> 1.647212807 | X30: =[3]主表!N28 -> 0 | Y30: =[3]主表!$G28 -> 379 | Z30: =[3]升级!$H28 -> 1000 | AA30: 0.1 | AB30: -1 | AC30: 3 | AD30: 1 | AE30: 1 | AF30: 370 | AJ30: 1 | AK30: 1 | AL30: 26 | AS30: =IF(AR30="","",1) ->  | AU30: =IF(AT30="","",1) ->  | AW30: =IF(AV30="","",1) ->  | AY30: =IF(AX30="","",1) ->  | AZ30: =IF(AN30="","",VLOOKUP(AN30,[4]ItemConfig!$A:$C,3,FALSE)&AO30) ->  | BA30: =IF(AP30="","",VLOOKUP(AP30,[4]ItemConfig!$A:$C,3,FALSE)&AQ30) ->  | BB30: =IF(AR30="","",VLOOKUP(AR30,[4]ItemConfig!$A:$C,3,FALSE)&AS30) ->  | BC30: =IF(AT30="","",VLOOKUP(AT30,[4]ItemConfig!$A:$C,3,FALSE)&AU30) ->  | BD30: =IF(AV30="","",VLOOKUP(AV30,[4]ItemConfig!$A:$C,3,FALSE)&AW30) ->  | BE30: =IF(AX30="","",VLOOKUP(AX30,[4]ItemConfig!$A:$C,3,FALSE)&AY30) ->  | BF30: 30
A31: 27 | B31: 27 | C31: 1 | D31: 3 | E31: 7 | F31: 225;237;244 | G31: 练气 | H31: 后期. | I31: 七重 | J31: 225 | K31: 237 | L31: 244 | M31: =ROUND([1]ResourceLevelConfig!$E31*[1]ResourceLevelConfig!$L31*0.1,0)*10 -> 860 | N31: -1 | O31: 0 | P31: -1 | Q31: -1 | R31: -1 | S31: -1 | T31: =IF(G31=G32,0,CONCATENATE(80*ROUND(VLOOKUP(B31,[2]MonsterPowerUpConfig!$A:$I,9,FALSE),0),";",120*ROUND(VLOOKUP(B31,[2]MonsterPowerUpConfig!$A:$I,9,FALSE),0))) -> 0 | U31: =[3]主表!K29 -> 24.5554789 | V31: =[3]主表!L29 -> 1.669453191 | W31: =[3]主表!M29 -> 1.669453191 | X31: =[3]主表!N29 -> 0 | Y31: =[3]主表!$G29 -> 385 | Z31: =[3]升级!$H29 -> 1000 | AA31: 0.1 | AB31: -1 | AC31: 3 | AD31: 1 | AE31: 1 | AF31: 380 | AJ31: 1 | AK31: 1 | AL31: 27 | AS31: =IF(AR31="","",1) ->  | AU31: =IF(AT31="","",1) ->  | AW31: =IF(AV31="","",1) ->  | AY31: =IF(AX31="","",1) ->  | AZ31: =IF(AN31="","",VLOOKUP(AN31,[4]ItemConfig!$A:$C,3,FALSE)&AO31) ->  | BA31: =IF(AP31="","",VLOOKUP(AP31,[4]ItemConfig!$A:$C,3,FALSE)&AQ31) ->  | BB31: =IF(AR31="","",VLOOKUP(AR31,[4]ItemConfig!$A:$C,3,FALSE)&AS31) ->  | BC31: =IF(AT31="","",VLOOKUP(AT31,[4]ItemConfig!$A:$C,3,FALSE)&AU31) ->  | BD31: =IF(AV31="","",VLOOKUP(AV31,[4]ItemConfig!$A:$C,3,FALSE)&AW31) ->  | BE31: =IF(AX31="","",VLOOKUP(AX31,[4]ItemConfig!$A:$C,3,FALSE)&AY31) ->  | BF31: 35
A32: 28 | B32: 28 | C32: 1 | D32: 3 | E32: 8 | F32: 225;237;245 | G32: 练气 | H32: 后期. | I32: 八重 | J32: 225 | K32: 237 | L32: 245 | M32: =ROUND([1]ResourceLevelConfig!$E32*[1]ResourceLevelConfig!$L32*0.1,0)*10 -> 870 | N32: -1 | O32: 0 | P32: -1 | Q32: -1 | R32: -1 | S32: -1 | T32: =IF(G32=G33,0,CONCATENATE(80*ROUND(VLOOKUP(B32,[2]MonsterPowerUpConfig!$A:$I,9,FALSE),0),";",120*ROUND(VLOOKUP(B32,[2]MonsterPowerUpConfig!$A:$I,9,FALSE),0))) -> 0 | U32: =[3]主表!K30 -> 25.51883251 | V32: =[3]主表!L30 -> 1.691993862 | W32: =[3]主表!M30 -> 1.691993862 | X32: =[3]主表!N30 -> 0 | Y32: =[3]主表!$G30 -> 391 | Z32: =[3]升级!$H30 -> 1000 | AA32: 0.1 | AB32: -1 | AC32: 3 | AD32: 1 | AE32: 1 | AF32: 390 | AJ32: 1 | AK32: 1 | AL32: 28 | AS32: =IF(AR32="","",1) ->  | AU32: =IF(AT32="","",1) ->  | AW32: =IF(AV32="","",1) ->  | AY32: =IF(AX32="","",1) ->  | AZ32: =IF(AN32="","",VLOOKUP(AN32,[4]ItemConfig!$A:$C,3,FALSE)&AO32) ->  | BA32: =IF(AP32="","",VLOOKUP(AP32,[4]ItemConfig!$A:$C,3,FALSE)&AQ32) ->  | BB32: =IF(AR32="","",VLOOKUP(AR32,[4]ItemConfig!$A:$C,3,FALSE)&AS32) ->  | BC32: =IF(AT32="","",VLOOKUP(AT32,[4]ItemConfig!$A:$C,3,FALSE)&AU32) ->  | BD32: =IF(AV32="","",VLOOKUP(AV32,[4]ItemConfig!$A:$C,3,FALSE)&AW32) ->  | BE32: =IF(AX32="","",VLOOKUP(AX32,[4]ItemConfig!$A:$C,3,FALSE)&AY32) ->  | BF32: 40
A33: 29 | B33: 29 | C33: 1 | D33: 3 | E33: 9 | F33: 225;237;246 | G33: 练气 | H33: 后期. | I33: 九重 | J33: 225 | K33: 237 | L33: 246 | M33: =ROUND([1]ResourceLevelConfig!$E33*[1]ResourceLevelConfig!$L33*0.1,0)*10 -> 880 | N33: -1 | O33: 0 | P33: -1 | Q33: -1 | R33: -1 | S33: -1 | T33: =IF(G33=G34,0,CONCATENATE(80*ROUND(VLOOKUP(B33,[2]MonsterPowerUpConfig!$A:$I,9,FALSE),0),";",120*ROUND(VLOOKUP(B33,[2]MonsterPowerUpConfig!$A:$I,9,FALSE),0))) -> 0 | U33: =[3]主表!K31 -> 26.50372374 | V33: =[3]主表!L31 -> 1.714838873 | W33: =[3]主表!M31 -> 1.714838873 | X33: =[3]主表!N31 -> 0 | Y33: =[3]主表!$G31 -> 397 | Z33: =[3]升级!$H31 -> 1000 | AA33: 0.1 | AB33: -1 | AC33: 3 | AD33: 1 | AE33: 1 | AF33: 400 | AJ33: 1 | AK33: 1 | AL33: 29 | AS33: =IF(AR33="","",1) ->  | AU33: =IF(AT33="","",1) ->  | AW33: =IF(AV33="","",1) ->  | AY33: =IF(AX33="","",1) ->  | AZ33: =IF(AN33="","",VLOOKUP(AN33,[4]ItemConfig!$A:$C,3,FALSE)&AO33) ->  | BA33: =IF(AP33="","",VLOOKUP(AP33,[4]ItemConfig!$A:$C,3,FALSE)&AQ33) ->  | BB33: =IF(AR33="","",VLOOKUP(AR33,[4]ItemConfig!$A:$C,3,FALSE)&AS33) ->  | BC33: =IF(AT33="","",VLOOKUP(AT33,[4]ItemConfig!$A:$C,3,FALSE)&AU33) ->  | BD33: =IF(AV33="","",VLOOKUP(AV33,[4]ItemConfig!$A:$C,3,FALSE)&AW33) ->  | BE33: =IF(AX33="","",VLOOKUP(AX33,[4]ItemConfig!$A:$C,3,FALSE)&AY33) ->  | BF33: 45
A34: 30 | B34: 30 | C34: 1 | D34: 3 | E34: 10 | F34: 225;237;247 | G34: 练气 | H34: 后期. | I34: 十重 | J34: 225 | K34: 237 | L34: 247 | M34: =ROUND([1]ResourceLevelConfig!$E34*[1]ResourceLevelConfig!$L34*0.1,0)*10 -> 900 | N34: 100004 | O34: 0 | P34: =AN34 -> 1303 | Q34: =AO34 -> 1 | R34: =_xlfn.TEXTJOIN(";",1,AP34,AR34,AT34,AV34) -> 1201 | S34: =_xlfn.TEXTJOIN(";",1,AQ34,AS34,AU34,AW34) -> 1 | T34: =CONCATENATE(ROUND(0.6*VLOOKUP(A34,[3]主表!$A:$P,16,FALSE)*[5]HeroModelConfig!$Q$5,0),";",ROUND(0.9*VLOOKUP(A34,[3]主表!$A:$P,16,FALSE)*[5]HeroModelConfig!$Q$5,0),";",INT(A34/30)+1) -> 1918;2878;2 | U34: =[3]主表!K32 -> 27.51055857 | V34: =[3]主表!L32 -> 1.737992333 | W34: =[3]主表!M32 -> 1.737992333 | X34: =[3]主表!N32 -> 0 | Y34: =[3]主表!$G32 -> 404 | Z34: =[3]升级!$H32 -> 1000 | AA34: 0.1 | AB34: 15 | AC34: 3 | AD34: 1 | AE34: 1 | AF34: 410 | AJ34: 1 | AK34: 1 | AL34: 30 | AN34: 1303 | AO34: 1 | AP34: 1201 | AQ34: 1 | AS34: =IF(AR34="","",1) ->  | AU34: =IF(AT34="","",1) ->  | AW34: =IF(AV34="","",1) ->  | AY34: =IF(AX34="","",1) ->  | AZ34: =IF(AN34="","",VLOOKUP(AN34,[4]ItemConfig!$A:$C,3,FALSE)&AO34) -> 筑基丹1 | BA34: =IF(AP34="","",VLOOKUP(AP34,[4]ItemConfig!$A:$C,3,FALSE)&AQ34) -> 灵血草1 | BB34: =IF(AR34="","",VLOOKUP(AR34,[4]ItemConfig!$A:$C,3,FALSE)&AS34) ->  | BC34: =IF(AT34="","",VLOOKUP(AT34,[4]ItemConfig!$A:$C,3,FALSE)&AU34) ->  | BD34: =IF(AV34="","",VLOOKUP(AV34,[4]ItemConfig!$A:$C,3,FALSE)&AW34) ->  | BE34: =IF(AX34="","",VLOOKUP(AX34,[4]ItemConfig!$A:$C,3,FALSE)&AY34) ->  | BF34: 50
A35: 31 | B35: 31 | C35: 2 | D35: 4 | E35: 1 | F35: 226;235;238 | G35: 筑基 | H35: 前期. | I35: 一重 | J35: 226 | K35: 235 | L35: 238 | M35: =ROUND([1]ResourceLevelConfig!$E35*[1]ResourceLevelConfig!$L35*0.1,0)*10 -> 910 | N35: -1 | O35: 0 | P35: -1 | Q35: -1 | R35: =IF(I35=10,"1001;1002;1004",-1) -> -1 | S35: =IF(R35=-1,-1,"100;200;300") -> -1 | T35: =IF(G35=G36,0,CONCATENATE("1;1")) -> 0 | U35: =[3]主表!K33 -> 36.60740807 | V35: =[3]主表!L33 -> 2.259390033 | W35: =[3]主表!M33 -> 2.259390033 | X35: =[3]主表!N33 -> 0 | Y35: =[3]主表!$G33 -> 533 | Z35: =[3]升级!$H33 -> 1100 | AA35: 0.1 | AB35: -1 | AC35: 3 | AD35: 2 | AE35: 1 | AF35: 420 | AJ35: 1 | AK35: 1 | AL35: 31 | AS35: =IF(AR35="","",1) ->  | AU35: =IF(AT35="","",1) ->  | AW35: =IF(AV35="","",1) ->  | AY35: =IF(AX35="","",1) ->  | AZ35: =IF(AN35="","",VLOOKUP(AN35,[4]ItemConfig!$A:$C,3,FALSE)&AO35) ->  | BA35: =IF(AP35="","",VLOOKUP(AP35,[4]ItemConfig!$A:$C,3,FALSE)&AQ35) ->  | BB35: =IF(AR35="","",VLOOKUP(AR35,[4]ItemConfig!$A:$C,3,FALSE)&AS35) ->  | BC35: =IF(AT35="","",VLOOKUP(AT35,[4]ItemConfig!$A:$C,3,FALSE)&AU35) ->  | BD35: =IF(AV35="","",VLOOKUP(AV35,[4]ItemConfig!$A:$C,3,FALSE)&AW35) ->  | BE35: =IF(AX35="","",VLOOKUP(AX35,[4]ItemConfig!$A:$C,3,FALSE)&AY35) ->  | BF35: 55
A36: 32 | B36: 32 | C36: 2 | D36: 4 | E36: 2 | F36: 226;235;239 | G36: 筑基 | H36: 前期. | I36: 二重 | J36: 226 | K36: 235 | L36: 239 | M36: =ROUND([1]ResourceLevelConfig!$E36*[1]ResourceLevelConfig!$L36*0.1,0)*10 -> 920 | N36: -1 | O36: 0 | P36: -1 | Q36: -1 | R36: =IF(I36=10,"1001;1002;1004",-1) -> -1 | S36: =IF(R36=-1,-1,"100;200;300") -> -1 | T36: 0 | U36: =[3]主表!K34 -> 37.95674819 | V36: =[3]主表!L34 -> 2.289895929 | W36: =[3]主表!M34 -> 2.289895929 | X36: =[3]主表!N34 -> 0 | Y36: =[3]主表!$G34 -> 541 | Z36: =[3]升级!$H34 -> 1100 | AA36: 0.1 | AB36: -1 | AC36: =AC35 -> 3 | AD36: =AD35 -> 2 | AE36: =AE35 -> 1 | AF36: 430 | AJ36: 1 | AK36: 1 | AL36: 32 | AS36: =IF(AR36="","",1) ->  | AU36: =IF(AT36="","",1) ->  | AW36: =IF(AV36="","",1) ->  | AY36: =IF(AX36="","",1) ->  | AZ36: =IF(AN36="","",VLOOKUP(AN36,[4]ItemConfig!$A:$C,3,FALSE)&AO36) ->  | BA36: =IF(AP36="","",VLOOKUP(AP36,[4]ItemConfig!$A:$C,3,FALSE)&AQ36) ->  | BB36: =IF(AR36="","",VLOOKUP(AR36,[4]ItemConfig!$A:$C,3,FALSE)&AS36) ->  | BC36: =IF(AT36="","",VLOOKUP(AT36,[4]ItemConfig!$A:$C,3,FALSE)&AU36) ->  | BD36: =IF(AV36="","",VLOOKUP(AV36,[4]ItemConfig!$A:$C,3,FALSE)&AW36) ->  | BE36: =IF(AX36="","",VLOOKUP(AX36,[4]ItemConfig!$A:$C,3,FALSE)&AY36) ->  | BF36: 60
A37: 33 | B37: 33 | C37: 2 | D37: 4 | E37: 3 | F37: 226;235;240 | G37: 筑基 | H37: 前期. | I37: 三重 | J37: 226 | K37: 235 | L37: 240 | M37: =ROUND([1]ResourceLevelConfig!$E37*[1]ResourceLevelConfig!$L37*0.1,0)*10 -> 940 | N37: -1 | O37: 0 | P37: -1 | Q37: -1 | R37: -1 | S37: -1 | T37: 0 | U37: =[3]主表!K35 -> 39.33585192 | V37: =[3]主表!L35 -> 2.320813711 | W37: =[3]主表!M35 -> 2.320813711 | X37: =[3]主表!N35 -> 0 | Y37: =[3]主表!$G35 -> 550 | Z37: =[3]升级!$H35 -> 1100 | AA37: 0.1 | AB37: -1 | AC37: =AC36 -> 3 | AD37: 2 | AE37: 1 | AF37: 440 | AJ37: 1 | AK37: 1 | AL37: 33 | AS37: =IF(AR37="","",1) ->  | AU37: =IF(AT37="","",1) ->  | AW37: =IF(AV37="","",1) ->  | AY37: =IF(AX37="","",1) ->  | AZ37: =IF(AN37="","",VLOOKUP(AN37,[4]ItemConfig!$A:$C,3,FALSE)&AO37) ->  | BA37: =IF(AP37="","",VLOOKUP(AP37,[4]ItemConfig!$A:$C,3,FALSE)&AQ37) ->  | BB37: =IF(AR37="","",VLOOKUP(AR37,[4]ItemConfig!$A:$C,3,FALSE)&AS37) ->  | BC37: =IF(AT37="","",VLOOKUP(AT37,[4]ItemConfig!$A:$C,3,FALSE)&AU37) ->  | BD37: =IF(AV37="","",VLOOKUP(AV37,[4]ItemConfig!$A:$C,3,FALSE)&AW37) ->  | BE37: =IF(AX37="","",VLOOKUP(AX37,[4]ItemConfig!$A:$C,3,FALSE)&AY37) ->  | BF37: 65
A38: 34 | B38: 34 | C38: 2 | D38: 4 | E38: 4 | F38: 226;235;241 | G38: 筑基 | H38: 前期. | I38: 四重 | J38: 226 | K38: 235 | L38: 241 | M38: =ROUND([1]ResourceLevelConfig!$E38*[1]ResourceLevelConfig!$L38*0.1,0)*10 -> 950 | N38: -1 | O38: 0 | P38: -1 | Q38: -1 | R38: -1 | S38: -1 | T38: 0 | U38: =[3]主表!K36 -> 40.74527701 | V38: =[3]主表!L36 -> 2.35214894 | W38: =[3]主表!M36 -> 2.35214894 | X38: =[3]主表!N36 -> 0 | Y38: =[3]主表!$G36 -> 559 | Z38: =[3]升级!$H36 -> 1100 | AA38: 0.1 | AB38: -1 | AC38: 3 | AD38: 2 | AE38: 1 | AF38: 450 | AJ38: 1 | AK38: 1 | AL38: 34 | AS38: =IF(AR38="","",1) ->  | AU38: =IF(AT38="","",1) ->  | AW38: =IF(AV38="","",1) ->  | AY38: =IF(AX38="","",1) ->  | AZ38: =IF(AN38="","",VLOOKUP(AN38,[4]ItemConfig!$A:$C,3,FALSE)&AO38) ->  | BA38: =IF(AP38="","",VLOOKUP(AP38,[4]ItemConfig!$A:$C,3,FALSE)&AQ38) ->  | BB38: =IF(AR38="","",VLOOKUP(AR38,[4]ItemConfig!$A:$C,3,FALSE)&AS38) ->  | BC38: =IF(AT38="","",VLOOKUP(AT38,[4]ItemConfig!$A:$C,3,FALSE)&AU38) ->  | BD38: =IF(AV38="","",VLOOKUP(AV38,[4]ItemConfig!$A:$C,3,FALSE)&AW38) ->  | BE38: =IF(AX38="","",VLOOKUP(AX38,[4]ItemConfig!$A:$C,3,FALSE)&AY38) ->  | BF38: 70
A39: 35 | B39: 35 | C39: 2 | D39: 4 | E39: 5 | F39: 226;235;242 | G39: 筑基 | H39: 前期. | I39: 五重 | J39: 226 | K39: 235 | L39: 242 | M39: =ROUND([1]ResourceLevelConfig!$E39*[1]ResourceLevelConfig!$L39*0.1,0)*10 -> 960 | N39: -1 | O39: 0 | P39: -1 | Q39: -1 | R39: -1 | S39: -1 | T39: 0 | U39: =[3]主表!K37 -> 42.18559082 | V39: =[3]主表!L37 -> 2.383907251 | W39: =[3]主表!M37 -> 2.383907251 | X39: =[3]主表!N37 -> 0 | Y39: =[3]主表!$G37 -> 568 | Z39: =[3]升级!$H37 -> 1100 | AA39: 0.1 | AB39: -1 | AC39: 3 | AD39: 2 | AE39: 1 | AF39: 460 | AJ39: 1 | AK39: 1 | AL39: 35 | AS39: =IF(AR39="","",1) ->  | AU39: =IF(AT39="","",1) ->  | AW39: =IF(AV39="","",1) ->  | AY39: =IF(AX39="","",1) ->  | AZ39: =IF(AN39="","",VLOOKUP(AN39,[4]ItemConfig!$A:$C,3,FALSE)&AO39) ->  | BA39: =IF(AP39="","",VLOOKUP(AP39,[4]ItemConfig!$A:$C,3,FALSE)&AQ39) ->  | BB39: =IF(AR39="","",VLOOKUP(AR39,[4]ItemConfig!$A:$C,3,FALSE)&AS39) ->  | BC39: =IF(AT39="","",VLOOKUP(AT39,[4]ItemConfig!$A:$C,3,FALSE)&AU39) ->  | BD39: =IF(AV39="","",VLOOKUP(AV39,[4]ItemConfig!$A:$C,3,FALSE)&AW39) ->  | BE39: =IF(AX39="","",VLOOKUP(AX39,[4]ItemConfig!$A:$C,3,FALSE)&AY39) ->  | BF39: 75
A40: 36 | B40: 36 | C40: 2 | D40: 4 | E40: 6 | F40: 226;235;243 | G40: 筑基 | H40: 前期. | I40: 六重 | J40: 226 | K40: 235 | L40: 243 | M40: =ROUND([1]ResourceLevelConfig!$E40*[1]ResourceLevelConfig!$L40*0.1,0)*10 -> 1050 | N40: -1 | O40: 0 | P40: -1 | Q40: -1 | R40: -1 | S40: -1 | T40: 0 | U40: =[3]主表!K38 -> 43.65737054 | V40: =[3]主表!L38 -> 2.416094358 | W40: =[3]主表!M38 -> 2.416094358 | X40: =[3]主表!N38 -> 0 | Y40: =[3]主表!$G38 -> 578 | Z40: =[3]升级!$H38 -> 1100 | AA40: 0.1 | AB40: -1 | AC40: 3 | AD40: 2 | AE40: 1 | AF40: 470 | AJ40: 1 | AK40: 1 | AL40: 36 | AS40: =IF(AR40="","",1) ->  | AU40: =IF(AT40="","",1) ->  | AW40: =IF(AV40="","",1) ->  | AY40: =IF(AX40="","",1) ->  | AZ40: =IF(AN40="","",VLOOKUP(AN40,[4]ItemConfig!$A:$C,3,FALSE)&AO40) ->  | BA40: =IF(AP40="","",VLOOKUP(AP40,[4]ItemConfig!$A:$C,3,FALSE)&AQ40) ->  | BB40: =IF(AR40="","",VLOOKUP(AR40,[4]ItemConfig!$A:$C,3,FALSE)&AS40) ->  | BC40: =IF(AT40="","",VLOOKUP(AT40,[4]ItemConfig!$A:$C,3,FALSE)&AU40) ->  | BD40: =IF(AV40="","",VLOOKUP(AV40,[4]ItemConfig!$A:$C,3,FALSE)&AW40) ->  | BE40: =IF(AX40="","",VLOOKUP(AX40,[4]ItemConfig!$A:$C,3,FALSE)&AY40) ->  | BF40: 80
A41: 37 | B41: 37 | C41: 2 | D41: 4 | E41: 7 | F41: 226;235;244 | G41: 筑基 | H41: 前期. | I41: 七重 | J41: 226 | K41: 235 | L41: 244 | M41: =ROUND([1]ResourceLevelConfig!$E41*[1]ResourceLevelConfig!$L41*0.1,0)*10 -> 1060 | N41: -1 | O41: 0 | P41: -1 | Q41: -1 | R41: -1 | S41: -1 | T41: 0 | U41: =[3]主表!K39 -> 45.16120328 | V41: =[3]主表!L39 -> 2.448716049 | W41: =[3]主表!M39 -> 2.448716049 | X41: =[3]主表!N39 -> 0 | Y41: =[3]主表!$G39 -> 588 | Z41: =[3]升级!$H39 -> 1100 | AA41: 0.1 | AB41: -1 | AC41: 3 | AD41: 2 | AE41: 1 | AF41: 480 | AJ41: 1 | AK41: 1 | AL41: 37 | AS41: =IF(AR41="","",1) ->  | AU41: =IF(AT41="","",1) ->  | AW41: =IF(AV41="","",1) ->  | AY41: =IF(AX41="","",1) ->  | AZ41: =IF(AN41="","",VLOOKUP(AN41,[4]ItemConfig!$A:$C,3,FALSE)&AO41) ->  | BA41: =IF(AP41="","",VLOOKUP(AP41,[4]ItemConfig!$A:$C,3,FALSE)&AQ41) ->  | BB41: =IF(AR41="","",VLOOKUP(AR41,[4]ItemConfig!$A:$C,3,FALSE)&AS41) ->  | BC41: =IF(AT41="","",VLOOKUP(AT41,[4]ItemConfig!$A:$C,3,FALSE)&AU41) ->  | BD41: =IF(AV41="","",VLOOKUP(AV41,[4]ItemConfig!$A:$C,3,FALSE)&AW41) ->  | BE41: =IF(AX41="","",VLOOKUP(AX41,[4]ItemConfig!$A:$C,3,FALSE)&AY41) ->  | BF41: 85
A42: 38 | B42: 38 | C42: 2 | D42: 4 | E42: 8 | F42: 226;235;245 | G42: 筑基 | H42: 前期. | I42: 八重 | J42: 226 | K42: 235 | L42: 245 | M42: =ROUND([1]ResourceLevelConfig!$E42*[1]ResourceLevelConfig!$L42*0.1,0)*10 -> 1080 | N42: -1 | O42: 0 | P42: -1 | Q42: -1 | R42: -1 | S42: -1 | T42: 0 | U42: =[3]主表!K40 -> 46.69768629 | V42: =[3]主表!L40 -> 2.481778193 | W42: =[3]主表!M40 -> 2.481778193 | X42: =[3]主表!N40 -> 0 | Y42: =[3]主表!$G40 -> 598 | Z42: =[3]升级!$H40 -> 1100 | AA42: 0.1 | AB42: -1 | AC42: 3 | AD42: 2 | AE42: 1 | AF42: 490 | AJ42: 1 | AK42: 1 | AL42: 38 | AS42: =IF(AR42="","",1) ->  | AU42: =IF(AT42="","",1) ->  | AW42: =IF(AV42="","",1) ->  | AY42: =IF(AX42="","",1) ->  | AZ42: =IF(AN42="","",VLOOKUP(AN42,[4]ItemConfig!$A:$C,3,FALSE)&AO42) ->  | BA42: =IF(AP42="","",VLOOKUP(AP42,[4]ItemConfig!$A:$C,3,FALSE)&AQ42) ->  | BB42: =IF(AR42="","",VLOOKUP(AR42,[4]ItemConfig!$A:$C,3,FALSE)&AS42) ->  | BC42: =IF(AT42="","",VLOOKUP(AT42,[4]ItemConfig!$A:$C,3,FALSE)&AU42) ->  | BD42: =IF(AV42="","",VLOOKUP(AV42,[4]ItemConfig!$A:$C,3,FALSE)&AW42) ->  | BE42: =IF(AX42="","",VLOOKUP(AX42,[4]ItemConfig!$A:$C,3,FALSE)&AY42) ->  | BF42: 90
A43: 39 | B43: 39 | C43: 2 | D43: 4 | E43: 9 | F43: 226;235;246 | G43: 筑基 | H43: 前期. | I43: 九重 | J43: 226 | K43: 235 | L43: 246 | M43: =ROUND([1]ResourceLevelConfig!$E43*[1]ResourceLevelConfig!$L43*0.1,0)*10 -> 1090 | N43: -1 | O43: 0 | P43: -1 | Q43: -1 | R43: -1 | S43: -1 | T43: 0 | U43: =[3]主表!K41 -> 48.26742711 | V43: =[3]主表!L41 -> 2.515286736 | W43: =[3]主表!M41 -> 2.515286736 | X43: =[3]主表!N41 -> 0 | Y43: =[3]主表!$G41 -> 608 | Z43: =[3]升级!$H41 -> 1100 | AA43: 0.1 | AB43: -1 | AC43: 3 | AD43: 2 | AE43: 1 | AF43: 500 | AJ43: 1 | AK43: 1 | AL43: 39 | AS43: =IF(AR43="","",1) ->  | AU43: =IF(AT43="","",1) ->  | AW43: =IF(AV43="","",1) ->  | AY43: =IF(AX43="","",1) ->  | AZ43: =IF(AN43="","",VLOOKUP(AN43,[4]ItemConfig!$A:$C,3,FALSE)&AO43) ->  | BA43: =IF(AP43="","",VLOOKUP(AP43,[4]ItemConfig!$A:$C,3,FALSE)&AQ43) ->  | BB43: =IF(AR43="","",VLOOKUP(AR43,[4]ItemConfig!$A:$C,3,FALSE)&AS43) ->  | BC43: =IF(AT43="","",VLOOKUP(AT43,[4]ItemConfig!$A:$C,3,FALSE)&AU43) ->  | BD43: =IF(AV43="","",VLOOKUP(AV43,[4]ItemConfig!$A:$C,3,FALSE)&AW43) ->  | BE43: =IF(AX43="","",VLOOKUP(AX43,[4]ItemConfig!$A:$C,3,FALSE)&AY43) ->  | BF43: 95
A44: 40 | B44: 40 | C44: 2 | D44: 4 | E44: 10 | F44: 226;235;247 | G44: 筑基 | H44: 前期. | I44: 十重 | J44: 226 | K44: 235 | L44: 247 | M44: =ROUND([1]ResourceLevelConfig!$E44*[1]ResourceLevelConfig!$L44*0.1,0)*10 -> 1110 | N44: 100004 | O44: 0 | P44: =AN44 -> 1304 | Q44: =AO44 -> 1 | R44: =_xlfn.TEXTJOIN(";",1,AP44,AR44,AT44,AV44) -> 1202 | S44: =_xlfn.TEXTJOIN(";",1,AQ44,AS44,AU44,AW44) -> 1 | T44: 0 | U44: =[3]主表!K42 -> 49.87104371 | V44: =[3]主表!L42 -> 2.549247706 | W44: =[3]主表!M42 -> 2.549247706 | X44: =[3]主表!N42 -> 0 | Y44: =[3]主表!$G42 -> 618 | Z44: =[3]升级!$H42 -> 1100 | AA44: 0.1 | AB44: 15 | AC44: 3 | AD44: 2 | AE44: 1 | AF44: 510 | AJ44: 1 | AK44: 1 | AL44: 40 | AN44: 1304 | AO44: 1 | AP44: 1202 | AQ44: 1 | AS44: =IF(AR44="","",1) ->  | AU44: =IF(AT44="","",1) ->  | AW44: =IF(AV44="","",1) ->  | AY44: =IF(AX44="","",1) ->  | AZ44: =IF(AN44="","",VLOOKUP(AN44,[4]ItemConfig!$A:$C,3,FALSE)&AO44) -> 固元丹1 | BA44: =IF(AP44="","",VLOOKUP(AP44,[4]ItemConfig!$A:$C,3,FALSE)&AQ44) -> 玄玉髓1 | BB44: =IF(AR44="","",VLOOKUP(AR44,[4]ItemConfig!$A:$C,3,FALSE)&AS44) ->  | BC44: =IF(AT44="","",VLOOKUP(AT44,[4]ItemConfig!$A:$C,3,FALSE)&AU44) ->  | BD44: =IF(AV44="","",VLOOKUP(AV44,[4]ItemConfig!$A:$C,3,FALSE)&AW44) ->  | BE44: =IF(AX44="","",VLOOKUP(AX44,[4]ItemConfig!$A:$C,3,FALSE)&AY44) ->  | BF44: 100
A45: 41 | B45: 41 | C45: 2 | D45: 5 | E45: 1 | F45: 226;236;238 | G45: 筑基 | H45: 中期. | I45: 一重 | J45: 226 | K45: 236 | L45: 238 | M45: =ROUND([1]ResourceLevelConfig!$E45*[1]ResourceLevelConfig!$L45*0.1,0)*10 -> 1120 | N45: -1 | O45: 0 | P45: -1 | Q45: -1 | R45: =IF(I45=10,"1001;1002;1004",-1) -> -1 | S45: -1 | T45: 0 | U45: =[3]主表!K43 -> 55.90525797 | V45: =[3]主表!L43 -> 2.804172477 | W45: =[3]主表!M43 -> 2.804172477 | X45: =[3]主表!N43 -> 0 | Y45: =[3]主表!$G43 -> 690 | Z45: =[3]升级!$H43 -> 1100 | AA45: 0.1 | AB45: -1 | AC45: 3 | AD45: 2 | AE45: 2 | AF45: 520 | AJ45: 1 | AK45: 1 | AL45: 41 | AS45: =IF(AR45="","",1) ->  | AU45: =IF(AT45="","",1) ->  | AW45: =IF(AV45="","",1) ->  | AY45: =IF(AX45="","",1) ->  | AZ45: =IF(AN45="","",VLOOKUP(AN45,[4]ItemConfig!$A:$C,3,FALSE)&AO45) ->  | BA45: =IF(AP45="","",VLOOKUP(AP45,[4]ItemConfig!$A:$C,3,FALSE)&AQ45) ->  | BB45: =IF(AR45="","",VLOOKUP(AR45,[4]ItemConfig!$A:$C,3,FALSE)&AS45) ->  | BC45: =IF(AT45="","",VLOOKUP(AT45,[4]ItemConfig!$A:$C,3,FALSE)&AU45) ->  | BD45: =IF(AV45="","",VLOOKUP(AV45,[4]ItemConfig!$A:$C,3,FALSE)&AW45) ->  | BE45: =IF(AX45="","",VLOOKUP(AX45,[4]ItemConfig!$A:$C,3,FALSE)&AY45) ->  | BF45: 110
A46: 42 | B46: 42 | C46: 2 | D46: 5 | E46: 2 | F46: 226;236;239 | G46: 筑基 | H46: 中期. | I46: 二重 | J46: 226 | K46: 236 | L46: 239 | M46: =ROUND([1]ResourceLevelConfig!$E46*[1]ResourceLevelConfig!$L46*0.1,0)*10 -> 1130 | N46: -1 | O46: 0 | P46: -1 | Q46: -1 | R46: -1 | S46: -1 | T46: 0 | U46: =[3]主表!K44 -> 57.72132896 | V46: =[3]主表!L44 -> 2.842033932 | W46: =[3]主表!M44 -> 2.842033932 | X46: =[3]主表!N44 -> 0 | Y46: =[3]主表!$G44 -> 702 | Z46: =[3]升级!$H44 -> 1100 | AA46: 0.1 | AB46: -1 | AC46: =AC45 -> 3 | AD46: =AD45 -> 2 | AE46: =AE45 -> 2 | AF46: 530 | AJ46: 1 | AK46: 1 | AL46: 42 | AS46: =IF(AR46="","",1) ->  | AU46: =IF(AT46="","",1) ->  | AW46: =IF(AV46="","",1) ->  | AY46: =IF(AX46="","",1) ->  | AZ46: =IF(AN46="","",VLOOKUP(AN46,[4]ItemConfig!$A:$C,3,FALSE)&AO46) ->  | BA46: =IF(AP46="","",VLOOKUP(AP46,[4]ItemConfig!$A:$C,3,FALSE)&AQ46) ->  | BB46: =IF(AR46="","",VLOOKUP(AR46,[4]ItemConfig!$A:$C,3,FALSE)&AS46) ->  | BC46: =IF(AT46="","",VLOOKUP(AT46,[4]ItemConfig!$A:$C,3,FALSE)&AU46) ->  | BD46: =IF(AV46="","",VLOOKUP(AV46,[4]ItemConfig!$A:$C,3,FALSE)&AW46) ->  | BE46: =IF(AX46="","",VLOOKUP(AX46,[4]ItemConfig!$A:$C,3,FALSE)&AY46) ->  | BF46: 120
A47: 43 | B47: 43 | C47: 2 | D47: 5 | E47: 3 | F47: 226;236;240 | G47: 筑基 | H47: 中期. | I47: 三重 | J47: 226 | K47: 236 | L47: 240 | M47: =ROUND([1]ResourceLevelConfig!$E47*[1]ResourceLevelConfig!$L47*0.1,0)*10 -> 1150 | N47: -1 | O47: 0 | P47: -1 | Q47: -1 | R47: -1 | S47: -1 | T47: 0 | U47: =[3]主表!K45 -> 59.57624901 | V47: =[3]主表!L45 -> 2.880406587 | W47: =[3]主表!M45 -> 2.880406587 | X47: =[3]主表!N45 -> 0 | Y47: =[3]主表!$G45 -> 714 | Z47: =[3]升级!$H45 -> 1100 | AA47: 0.1 | AB47: -1 | AC47: =AC46 -> 3 | AD47: =AD46 -> 2 | AE47: =AE46 -> 2 | AF47: 540 | AJ47: 1 | AK47: 1 | AL47: 43 | AS47: =IF(AR47="","",1) ->  | AU47: =IF(AT47="","",1) ->  | AW47: =IF(AV47="","",1) ->  | AY47: =IF(AX47="","",1) ->  | AZ47: =IF(AN47="","",VLOOKUP(AN47,[4]ItemConfig!$A:$C,3,FALSE)&AO47) ->  | BA47: =IF(AP47="","",VLOOKUP(AP47,[4]ItemConfig!$A:$C,3,FALSE)&AQ47) ->  | BB47: =IF(AR47="","",VLOOKUP(AR47,[4]ItemConfig!$A:$C,3,FALSE)&AS47) ->  | BC47: =IF(AT47="","",VLOOKUP(AT47,[4]ItemConfig!$A:$C,3,FALSE)&AU47) ->  | BD47: =IF(AV47="","",VLOOKUP(AV47,[4]ItemConfig!$A:$C,3,FALSE)&AW47) ->  | BE47: =IF(AX47="","",VLOOKUP(AX47,[4]ItemConfig!$A:$C,3,FALSE)&AY47) ->  | BF47: 130
A48: 44 | B48: 44 | C48: 2 | D48: 5 | E48: 4 | F48: 226;236;241 | G48: 筑基 | H48: 中期. | I48: 四重 | J48: 226 | K48: 236 | L48: 241 | M48: =ROUND([1]ResourceLevelConfig!$E48*[1]ResourceLevelConfig!$L48*0.1,0)*10 -> 1160 | N48: -1 | O48: 0 | P48: -1 | Q48: -1 | R48: -1 | S48: -1 | T48: 0 | U48: =[3]主表!K46 -> 61.47073612 | V48: =[3]主表!L46 -> 2.919297342 | W48: =[3]主表!M46 -> 2.919297342 | X48: =[3]主表!N46 -> 0 | Y48: =[3]主表!$G46 -> 727 | Z48: =[3]升级!$H46 -> 1100 | AA48: 0.1 | AB48: -1 | AC48: 3 | AD48: 2 | AE48: 2 | AF48: 550 | AJ48: 1 | AK48: 1 | AL48: 44 | AS48: =IF(AR48="","",1) ->  | AU48: =IF(AT48="","",1) ->  | AW48: =IF(AV48="","",1) ->  | AY48: =IF(AX48="","",1) ->  | AZ48: =IF(AN48="","",VLOOKUP(AN48,[4]ItemConfig!$A:$C,3,FALSE)&AO48) ->  | BA48: =IF(AP48="","",VLOOKUP(AP48,[4]ItemConfig!$A:$C,3,FALSE)&AQ48) ->  | BB48: =IF(AR48="","",VLOOKUP(AR48,[4]ItemConfig!$A:$C,3,FALSE)&AS48) ->  | BC48: =IF(AT48="","",VLOOKUP(AT48,[4]ItemConfig!$A:$C,3,FALSE)&AU48) ->  | BD48: =IF(AV48="","",VLOOKUP(AV48,[4]ItemConfig!$A:$C,3,FALSE)&AW48) ->  | BE48: =IF(AX48="","",VLOOKUP(AX48,[4]ItemConfig!$A:$C,3,FALSE)&AY48) ->  | BF48: 140
A49: 45 | B49: 45 | C49: 2 | D49: 5 | E49: 5 | F49: 226;236;242 | G49: 筑基 | H49: 中期. | I49: 五重 | J49: 226 | K49: 236 | L49: 242 | M49: =ROUND([1]ResourceLevelConfig!$E49*[1]ResourceLevelConfig!$L49*0.1,0)*10 -> 1180 | N49: -1 | O49: 0 | P49: -1 | Q49: -1 | R49: -1 | S49: -1 | T49: 0 | U49: =[3]主表!K47 -> 63.40552061 | V49: =[3]主表!L47 -> 2.958713194 | W49: =[3]主表!M47 -> 2.958713194 | X49: =[3]主表!N47 -> 0 | Y49: =[3]主表!$G47 -> 740 | Z49: =[3]升级!$H47 -> 1100 | AA49: 0.1 | AB49: -1 | AC49: 3 | AD49: 2 | AE49: 2 | AF49: 560 | AJ49: 1 | AK49: 1 | AL49: 45 | AS49: =IF(AR49="","",1) ->  | AU49: =IF(AT49="","",1) ->  | AW49: =IF(AV49="","",1) ->  | AY49: =IF(AX49="","",1) ->  | AZ49: =IF(AN49="","",VLOOKUP(AN49,[4]ItemConfig!$A:$C,3,FALSE)&AO49) ->  | BA49: =IF(AP49="","",VLOOKUP(AP49,[4]ItemConfig!$A:$C,3,FALSE)&AQ49) ->  | BB49: =IF(AR49="","",VLOOKUP(AR49,[4]ItemConfig!$A:$C,3,FALSE)&AS49) ->  | BC49: =IF(AT49="","",VLOOKUP(AT49,[4]ItemConfig!$A:$C,3,FALSE)&AU49) ->  | BD49: =IF(AV49="","",VLOOKUP(AV49,[4]ItemConfig!$A:$C,3,FALSE)&AW49) ->  | BE49: =IF(AX49="","",VLOOKUP(AX49,[4]ItemConfig!$A:$C,3,FALSE)&AY49) ->  | BF49: 150
A50: 46 | B50: 46 | C50: 2 | D50: 5 | E50: 6 | F50: 226;236;243 | G50: 筑基 | H50: 中期. | I50: 六重 | J50: 226 | K50: 236 | L50: 243 | M50: =ROUND([1]ResourceLevelConfig!$E50*[1]ResourceLevelConfig!$L50*0.1,0)*10 -> 1280 | N50: -1 | O50: 0 | P50: -1 | Q50: -1 | R50: -1 | S50: -1 | T50: 0 | U50: =[3]主表!K48 -> 65.38134527 | V50: =[3]主表!L48 -> 2.998661232 | W50: =[3]主表!M48 -> 2.998661232 | X50: =[3]主表!N48 -> 0 | Y50: =[3]主表!$G48 -> 752 | Z50: =[3]升级!$H48 -> 1100 | AA50: 0.1 | AB50: -1 | AC50: 3 | AD50: 2 | AE50: 2 | AF50: 570 | AJ50: 1 | AK50: 1 | AL50: 46 | AS50: =IF(AR50="","",1) ->  | AU50: =IF(AT50="","",1) ->  | AW50: =IF(AV50="","",1) ->  | AY50: =IF(AX50="","",1) ->  | AZ50: =IF(AN50="","",VLOOKUP(AN50,[4]ItemConfig!$A:$C,3,FALSE)&AO50) ->  | BA50: =IF(AP50="","",VLOOKUP(AP50,[4]ItemConfig!$A:$C,3,FALSE)&AQ50) ->  | BB50: =IF(AR50="","",VLOOKUP(AR50,[4]ItemConfig!$A:$C,3,FALSE)&AS50) ->  | BC50: =IF(AT50="","",VLOOKUP(AT50,[4]ItemConfig!$A:$C,3,FALSE)&AU50) ->  | BD50: =IF(AV50="","",VLOOKUP(AV50,[4]ItemConfig!$A:$C,3,FALSE)&AW50) ->  | BE50: =IF(AX50="","",VLOOKUP(AX50,[4]ItemConfig!$A:$C,3,FALSE)&AY50) ->  | BF50: 160
A51: 47 | B51: 47 | C51: 2 | D51: 5 | E51: 7 | F51: 226;236;244 | G51: 筑基 | H51: 中期. | I51: 七重 | J51: 226 | K51: 236 | L51: 244 | M51: =ROUND([1]ResourceLevelConfig!$E51*[1]ResourceLevelConfig!$L51*0.1,0)*10 -> 1290 | N51: -1 | O51: 0 | P51: -1 | Q51: -1 | R51: -1 | S51: -1 | T51: 0 | U51: =[3]主表!K49 -> 67.39896563 | V51: =[3]主表!L49 -> 3.039148641 | W51: =[3]主表!M49 -> 3.039148641 | X51: =[3]主表!N49 -> 0 | Y51: =[3]主表!$G49 -> 766 | Z51: =[3]升级!$H49 -> 1100 | AA51: 0.1 | AB51: -1 | AC51: 3 | AD51: 2 | AE51: 2 | AF51: 580 | AJ51: 1 | AK51: 1 | AL51: 47 | AS51: =IF(AR51="","",1) ->  | AU51: =IF(AT51="","",1) ->  | AW51: =IF(AV51="","",1) ->  | AY51: =IF(AX51="","",1) ->  | AZ51: =IF(AN51="","",VLOOKUP(AN51,[4]ItemConfig!$A:$C,3,FALSE)&AO51) ->  | BA51: =IF(AP51="","",VLOOKUP(AP51,[4]ItemConfig!$A:$C,3,FALSE)&AQ51) ->  | BB51: =IF(AR51="","",VLOOKUP(AR51,[4]ItemConfig!$A:$C,3,FALSE)&AS51) ->  | BC51: =IF(AT51="","",VLOOKUP(AT51,[4]ItemConfig!$A:$C,3,FALSE)&AU51) ->  | BD51: =IF(AV51="","",VLOOKUP(AV51,[4]ItemConfig!$A:$C,3,FALSE)&AW51) ->  | BE51: =IF(AX51="","",VLOOKUP(AX51,[4]ItemConfig!$A:$C,3,FALSE)&AY51) ->  | BF51: 170
A52: 48 | B52: 48 | C52: 2 | D52: 5 | E52: 8 | F52: 226;236;245 | G52: 筑基 | H52: 中期. | I52: 八重 | J52: 226 | K52: 236 | L52: 245 | M52: =ROUND([1]ResourceLevelConfig!$E52*[1]ResourceLevelConfig!$L52*0.1,0)*10 -> 1310 | N52: -1 | O52: 0 | P52: -1 | Q52: -1 | R52: -1 | S52: -1 | T52: 0 | U52: =[3]主表!K50 -> 69.45915015 | V52: =[3]主表!L50 -> 3.080182705 | W52: =[3]主表!M50 -> 3.080182705 | X52: =[3]主表!N50 -> 0 | Y52: =[3]主表!$G50 -> 779 | Z52: =[3]升级!$H50 -> 1100 | AA52: 0.1 | AB52: -1 | AC52: 3 | AD52: 2 | AE52: 2 | AF52: 590 | AJ52: 1 | AK52: 1 | AL52: 48 | AS52: =IF(AR52="","",1) ->  | AU52: =IF(AT52="","",1) ->  | AW52: =IF(AV52="","",1) ->  | AY52: =IF(AX52="","",1) ->  | AZ52: =IF(AN52="","",VLOOKUP(AN52,[4]ItemConfig!$A:$C,3,FALSE)&AO52) ->  | BA52: =IF(AP52="","",VLOOKUP(AP52,[4]ItemConfig!$A:$C,3,FALSE)&AQ52) ->  | BB52: =IF(AR52="","",VLOOKUP(AR52,[4]ItemConfig!$A:$C,3,FALSE)&AS52) ->  | BC52: =IF(AT52="","",VLOOKUP(AT52,[4]ItemConfig!$A:$C,3,FALSE)&AU52) ->  | BD52: =IF(AV52="","",VLOOKUP(AV52,[4]ItemConfig!$A:$C,3,FALSE)&AW52) ->  | BE52: =IF(AX52="","",VLOOKUP(AX52,[4]ItemConfig!$A:$C,3,FALSE)&AY52) ->  | BF52: 180
A53: 49 | B53: 49 | C53: 2 | D53: 5 | E53: 9 | F53: 226;236;246 | G53: 筑基 | H53: 中期. | I53: 九重 | J53: 226 | K53: 236 | L53: 246 | M53: =ROUND([1]ResourceLevelConfig!$E53*[1]ResourceLevelConfig!$L53*0.1,0)*10 -> 1320 | N53: -1 | O53: 0 | P53: -1 | Q53: -1 | R53: -1 | S53: -1 | T53: 0 | U53: =[3]主表!K51 -> 71.56268039 | V53: =[3]主表!L51 -> 3.121770803 | W53: =[3]主表!M51 -> 3.121770803 | X53: =[3]主表!N51 -> 0 | Y53: =[3]主表!$G51 -> 793 | Z53: =[3]升级!$H51 -> 1100 | AA53: 0.1 | AB53: -1 | AC53: 3 | AD53: 2 | AE53: 2 | AF53: 600 | AJ53: 1 | AK53: 1 | AL53: 49 | AS53: =IF(AR53="","",1) ->  | AU53: =IF(AT53="","",1) ->  | AW53: =IF(AV53="","",1) ->  | AY53: =IF(AX53="","",1) ->  | AZ53: =IF(AN53="","",VLOOKUP(AN53,[4]ItemConfig!$A:$C,3,FALSE)&AO53) ->  | BA53: =IF(AP53="","",VLOOKUP(AP53,[4]ItemConfig!$A:$C,3,FALSE)&AQ53) ->  | BB53: =IF(AR53="","",VLOOKUP(AR53,[4]ItemConfig!$A:$C,3,FALSE)&AS53) ->  | BC53: =IF(AT53="","",VLOOKUP(AT53,[4]ItemConfig!$A:$C,3,FALSE)&AU53) ->  | BD53: =IF(AV53="","",VLOOKUP(AV53,[4]ItemConfig!$A:$C,3,FALSE)&AW53) ->  | BE53: =IF(AX53="","",VLOOKUP(AX53,[4]ItemConfig!$A:$C,3,FALSE)&AY53) ->  | BF53: 190
A54: 50 | B54: 50 | C54: 2 | D54: 5 | E54: 10 | F54: 226;236;247 | G54: 筑基 | H54: 中期. | I54: 十重 | J54: 226 | K54: 236 | L54: 247 | M54: =ROUND([1]ResourceLevelConfig!$E54*[1]ResourceLevelConfig!$L54*0.1,0)*10 -> 1340 | N54: 100004 | O54: 0 | P54: =AN54 -> 1305 | Q54: =AO54 -> 1 | R54: =_xlfn.TEXTJOIN(";",1,AP54,AR54,AT54,AV54) -> 1202 | S54: =_xlfn.TEXTJOIN(";",1,AQ54,AS54,AU54,AW54) -> 1 | T54: 0 | U54: =[3]主表!K52 -> 73.71035128 | V54: =[3]主表!L52 -> 3.163920417 | W54: =[3]主表!M52 -> 3.163920417 | X54: =[3]主表!N52 -> 0 | Y54: =[3]主表!$G52 -> 807 | Z54: =[3]升级!$H52 -> 1100 | AA54: 0.1 | AB54: 15 | AC54: 3 | AD54: 2 | AE54: 2 | AF54: 610 | AJ54: 1 | AK54: 1 | AL54: 50 | AN54: 1305 | AO54: 1 | AP54: 1202 | AQ54: 1 | AS54: =IF(AR54="","",1) ->  | AU54: =IF(AT54="","",1) ->  | AW54: =IF(AV54="","",1) ->  | AY54: =IF(AX54="","",1) ->  | AZ54: =IF(AN54="","",VLOOKUP(AN54,[4]ItemConfig!$A:$C,3,FALSE)&AO54) -> 青灵果1 | BA54: =IF(AP54="","",VLOOKUP(AP54,[4]ItemConfig!$A:$C,3,FALSE)&AQ54) -> 玄玉髓1 | BB54: =IF(AR54="","",VLOOKUP(AR54,[4]ItemConfig!$A:$C,3,FALSE)&AS54) ->  | BC54: =IF(AT54="","",VLOOKUP(AT54,[4]ItemConfig!$A:$C,3,FALSE)&AU54) ->  | BD54: =IF(AV54="","",VLOOKUP(AV54,[4]ItemConfig!$A:$C,3,FALSE)&AW54) ->  | BE54: =IF(AX54="","",VLOOKUP(AX54,[4]ItemConfig!$A:$C,3,FALSE)&AY54) ->  | BF54: 200
A55: 51 | B55: 51 | C55: 2 | D55: 6 | E55: 1 | F55: 226;237;238 | G55: 筑基 | H55: 后期. | I55: 一重 | J55: 226 | K55: 237 | L55: 238 | M55: =ROUND([1]ResourceLevelConfig!$E55*[1]ResourceLevelConfig!$L55*0.1,0)*10 -> 1350 | N55: -1 | O55: 0 | P55: -1 | Q55: -1 | R55: =IF(I55=10,"1001;1002;1004",-1) -> -1 | S55: -1 | T55: 0 | U55: =[3]主表!K53 -> 82.38097466 | V55: =[3]主表!L53 -> 3.480312458 | W55: =[3]主表!M53 -> 3.480312458 | X55: =[3]主表!N53 -> 0 | Y55: =[3]主表!$G53 -> 944 | Z55: =[3]升级!$H53 -> 1100 | AA55: 0.1 | AB55: -1 | AC55: 4 | AD55: 2 | AE55: 2 | AF55: 620 | AJ55: 1 | AK55: 1 | AL55: 51 | AS55: =IF(AR55="","",1) ->  | AU55: =IF(AT55="","",1) ->  | AW55: =IF(AV55="","",1) ->  | AY55: =IF(AX55="","",1) ->  | AZ55: =IF(AN55="","",VLOOKUP(AN55,[4]ItemConfig!$A:$C,3,FALSE)&AO55) ->  | BA55: =IF(AP55="","",VLOOKUP(AP55,[4]ItemConfig!$A:$C,3,FALSE)&AQ55) ->  | BB55: =IF(AR55="","",VLOOKUP(AR55,[4]ItemConfig!$A:$C,3,FALSE)&AS55) ->  | BC55: =IF(AT55="","",VLOOKUP(AT55,[4]ItemConfig!$A:$C,3,FALSE)&AU55) ->  | BD55: =IF(AV55="","",VLOOKUP(AV55,[4]ItemConfig!$A:$C,3,FALSE)&AW55) ->  | BE55: =IF(AX55="","",VLOOKUP(AX55,[4]ItemConfig!$A:$C,3,FALSE)&AY55) ->  | BF55: 210
A56: 52 | B56: 52 | C56: 2 | D56: 6 | E56: 2 | F56: 226;237;239 | G56: 筑基 | H56: 后期. | I56: 二重 | J56: 226 | K56: 237 | L56: 239 | M56: =ROUND([1]ResourceLevelConfig!$E56*[1]ResourceLevelConfig!$L56*0.1,0)*10 -> 1370 | N56: -1 | O56: 0 | P56: -1 | Q56: -1 | R56: -1 | S56: -1 | T56: 0 | U56: =[3]主表!K54 -> 84.81040351 | V56: =[3]主表!L54 -> 3.52730304 | W56: =[3]主表!M54 -> 3.52730304 | X56: =[3]主表!N54 -> 0 | Y56: =[3]主表!$G54 -> 960 | Z56: =[3]升级!$H54 -> 1100 | AA56: 0.1 | AB56: -1 | AC56: =AC55 -> 4 | AD56: =AD55 -> 2 | AE56: =AE55 -> 2 | AF56: 630 | AJ56: 1 | AK56: 1 | AL56: 52 | AS56: =IF(AR56="","",1) ->  | AU56: =IF(AT56="","",1) ->  | AW56: =IF(AV56="","",1) ->  | AY56: =IF(AX56="","",1) ->  | AZ56: =IF(AN56="","",VLOOKUP(AN56,[4]ItemConfig!$A:$C,3,FALSE)&AO56) ->  | BA56: =IF(AP56="","",VLOOKUP(AP56,[4]ItemConfig!$A:$C,3,FALSE)&AQ56) ->  | BB56: =IF(AR56="","",VLOOKUP(AR56,[4]ItemConfig!$A:$C,3,FALSE)&AS56) ->  | BC56: =IF(AT56="","",VLOOKUP(AT56,[4]ItemConfig!$A:$C,3,FALSE)&AU56) ->  | BD56: =IF(AV56="","",VLOOKUP(AV56,[4]ItemConfig!$A:$C,3,FALSE)&AW56) ->  | BE56: =IF(AX56="","",VLOOKUP(AX56,[4]ItemConfig!$A:$C,3,FALSE)&AY56) ->  | BF56: 220
A57: 53 | B57: 53 | C57: 2 | D57: 6 | E57: 3 | F57: 226;237;240 | G57: 筑基 | H57: 后期. | I57: 三重 | J57: 226 | K57: 237 | L57: 240 | M57: =ROUND([1]ResourceLevelConfig!$E57*[1]ResourceLevelConfig!$L57*0.1,0)*10 -> 1380 | N57: -1 | O57: 0 | P57: -1 | Q57: -1 | R57: -1 | S57: -1 | T57: 0 | U57: =[3]主表!K55 -> 87.29041782 | V57: =[3]主表!L55 -> 3.57492808 | W57: =[3]主表!M55 -> 3.57492808 | X57: =[3]主表!N55 -> 0 | Y57: =[3]主表!$G55 -> 977 | Z57: =[3]升级!$H55 -> 1100 | AA57: 0.1 | AB57: -1 | AC57: 4 | AD57: 2 | AE57: 2 | AF57: 640 | AJ57: 1 | AK57: 1 | AL57: 53 | AS57: =IF(AR57="","",1) ->  | AU57: =IF(AT57="","",1) ->  | AW57: =IF(AV57="","",1) ->  | AY57: =IF(AX57="","",1) ->  | AZ57: =IF(AN57="","",VLOOKUP(AN57,[4]ItemConfig!$A:$C,3,FALSE)&AO57) ->  | BA57: =IF(AP57="","",VLOOKUP(AP57,[4]ItemConfig!$A:$C,3,FALSE)&AQ57) ->  | BB57: =IF(AR57="","",VLOOKUP(AR57,[4]ItemConfig!$A:$C,3,FALSE)&AS57) ->  | BC57: =IF(AT57="","",VLOOKUP(AT57,[4]ItemConfig!$A:$C,3,FALSE)&AU57) ->  | BD57: =IF(AV57="","",VLOOKUP(AV57,[4]ItemConfig!$A:$C,3,FALSE)&AW57) ->  | BE57: =IF(AX57="","",VLOOKUP(AX57,[4]ItemConfig!$A:$C,3,FALSE)&AY57) ->  | BF57: 230
A58: 54 | B58: 54 | C58: 2 | D58: 6 | E58: 4 | F58: 226;237;241 | G58: 筑基 | H58: 后期. | I58: 四重 | J58: 226 | K58: 237 | L58: 241 | M58: =ROUND([1]ResourceLevelConfig!$E58*[1]ResourceLevelConfig!$L58*0.1,0)*10 -> 1400 | N58: -1 | O58: 0 | P58: -1 | Q58: -1 | R58: -1 | S58: -1 | T58: 0 | U58: =[3]主表!K56 -> 89.8219407 | V58: =[3]主表!L56 -> 3.623196146 | W58: =[3]主表!M56 -> 3.623196146 | X58: =[3]主表!N56 -> 0 | Y58: =[3]主表!$G56 -> 994 | Z58: =[3]升级!$H56 -> 1100 | AA58: 0.1 | AB58: -1 | AC58: 4 | AD58: 2 | AE58: 2 | AF58: 650 | AJ58: 1 | AK58: 1 | AL58: 54 | AS58: =IF(AR58="","",1) ->  | AU58: =IF(AT58="","",1) ->  | AW58: =IF(AV58="","",1) ->  | AY58: =IF(AX58="","",1) ->  | AZ58: =IF(AN58="","",VLOOKUP(AN58,[4]ItemConfig!$A:$C,3,FALSE)&AO58) ->  | BA58: =IF(AP58="","",VLOOKUP(AP58,[4]ItemConfig!$A:$C,3,FALSE)&AQ58) ->  | BB58: =IF(AR58="","",VLOOKUP(AR58,[4]ItemConfig!$A:$C,3,FALSE)&AS58) ->  | BC58: =IF(AT58="","",VLOOKUP(AT58,[4]ItemConfig!$A:$C,3,FALSE)&AU58) ->  | BD58: =IF(AV58="","",VLOOKUP(AV58,[4]ItemConfig!$A:$C,3,FALSE)&AW58) ->  | BE58: =IF(AX58="","",VLOOKUP(AX58,[4]ItemConfig!$A:$C,3,FALSE)&AY58) ->  | BF58: 240
A59: 55 | B59: 55 | C59: 2 | D59: 6 | E59: 5 | F59: 226;237;242 | G59: 筑基 | H59: 后期. | I59: 五重 | J59: 226 | K59: 237 | L59: 242 | M59: =ROUND([1]ResourceLevelConfig!$E59*[1]ResourceLevelConfig!$L59*0.1,0)*10 -> 1410 | N59: -1 | O59: 0 | P59: -1 | Q59: -1 | R59: -1 | S59: -1 | T59: 0 | U59: =[3]主表!K57 -> 92.40591097 | V59: =[3]主表!L57 -> 3.672115918 | W59: =[3]主表!M57 -> 3.672115918 | X59: =[3]主表!N57 -> 0 | Y59: =[3]主表!$G57 -> 1012 | Z59: =[3]升级!$H57 -> 1100 | AA59: 0.1 | AB59: -1 | AC59: 4 | AD59: 2 | AE59: 2 | AF59: 660 | AJ59: 1 | AK59: 1 | AL59: 55 | AS59: =IF(AR59="","",1) ->  | AU59: =IF(AT59="","",1) ->  | AW59: =IF(AV59="","",1) ->  | AY59: =IF(AX59="","",1) ->  | AZ59: =IF(AN59="","",VLOOKUP(AN59,[4]ItemConfig!$A:$C,3,FALSE)&AO59) ->  | BA59: =IF(AP59="","",VLOOKUP(AP59,[4]ItemConfig!$A:$C,3,FALSE)&AQ59) ->  | BB59: =IF(AR59="","",VLOOKUP(AR59,[4]ItemConfig!$A:$C,3,FALSE)&AS59) ->  | BC59: =IF(AT59="","",VLOOKUP(AT59,[4]ItemConfig!$A:$C,3,FALSE)&AU59) ->  | BD59: =IF(AV59="","",VLOOKUP(AV59,[4]ItemConfig!$A:$C,3,FALSE)&AW59) ->  | BE59: =IF(AX59="","",VLOOKUP(AX59,[4]ItemConfig!$A:$C,3,FALSE)&AY59) ->  | BF59: 240
A60: 56 | B60: 56 | C60: 2 | D60: 6 | E60: 6 | F60: 226;237;243 | G60: 筑基 | H60: 后期. | I60: 六重 | J60: 226 | K60: 237 | L60: 243 | M60: =ROUND([1]ResourceLevelConfig!$E60*[1]ResourceLevelConfig!$L60*0.1,0)*10 -> 1520 | N60: -1 | O60: 0 | P60: -1 | Q60: -1 | R60: -1 | S60: -1 | T60: 0 | U60: =[3]主表!K58 -> 95.04328341 | V60: =[3]主表!L58 -> 3.721696197 | W60: =[3]主表!M58 -> 3.721696197 | X60: =[3]主表!N58 -> 0 | Y60: =[3]主表!$G58 -> 1029 | Z60: =[3]升级!$H58 -> 1100 | AA60: 0.11 | AB60: -1 | AC60: 4 | AD60: 2 | AE60: 2 | AF60: 670 | AJ60: 1 | AK60: 1 | AL60: 56 | AS60: =IF(AR60="","",1) ->  | AU60: =IF(AT60="","",1) ->  | AW60: =IF(AV60="","",1) ->  | AY60: =IF(AX60="","",1) ->  | AZ60: =IF(AN60="","",VLOOKUP(AN60,[4]ItemConfig!$A:$C,3,FALSE)&AO60) ->  | BA60: =IF(AP60="","",VLOOKUP(AP60,[4]ItemConfig!$A:$C,3,FALSE)&AQ60) ->  | BB60: =IF(AR60="","",VLOOKUP(AR60,[4]ItemConfig!$A:$C,3,FALSE)&AS60) ->  | BC60: =IF(AT60="","",VLOOKUP(AT60,[4]ItemConfig!$A:$C,3,FALSE)&AU60) ->  | BD60: =IF(AV60="","",VLOOKUP(AV60,[4]ItemConfig!$A:$C,3,FALSE)&AW60) ->  | BE60: =IF(AX60="","",VLOOKUP(AX60,[4]ItemConfig!$A:$C,3,FALSE)&AY60) ->  | BF60: 240
A61: 57 | B61: 57 | C61: 2 | D61: 6 | E61: 7 | F61: 226;237;244 | G61: 筑基 | H61: 后期. | I61: 七重 | J61: 226 | K61: 237 | L61: 244 | M61: =ROUND([1]ResourceLevelConfig!$E61*[1]ResourceLevelConfig!$L61*0.1,0)*10 -> 1540 | N61: -1 | O61: 0 | P61: -1 | Q61: -1 | R61: -1 | S61: -1 | T61: 0 | U61: =[3]主表!K59 -> 97.735029 | V61: =[3]主表!L59 -> 3.771945901 | W61: =[3]主表!M59 -> 3.771945901 | X61: =[3]主表!N59 -> 0 | Y61: =[3]主表!$G59 -> 1048 | Z61: =[3]升级!$H59 -> 1100 | AA61: 0.11 | AB61: -1 | AC61: 4 | AD61: 2 | AE61: 2 | AF61: 680 | AJ61: 1 | AK61: 1 | AL61: 57 | AS61: =IF(AR61="","",1) ->  | AU61: =IF(AT61="","",1) ->  | AW61: =IF(AV61="","",1) ->  | AY61: =IF(AX61="","",1) ->  | AZ61: =IF(AN61="","",VLOOKUP(AN61,[4]ItemConfig!$A:$C,3,FALSE)&AO61) ->  | BA61: =IF(AP61="","",VLOOKUP(AP61,[4]ItemConfig!$A:$C,3,FALSE)&AQ61) ->  | BB61: =IF(AR61="","",VLOOKUP(AR61,[4]ItemConfig!$A:$C,3,FALSE)&AS61) ->  | BC61: =IF(AT61="","",VLOOKUP(AT61,[4]ItemConfig!$A:$C,3,FALSE)&AU61) ->  | BD61: =IF(AV61="","",VLOOKUP(AV61,[4]ItemConfig!$A:$C,3,FALSE)&AW61) ->  | BE61: =IF(AX61="","",VLOOKUP(AX61,[4]ItemConfig!$A:$C,3,FALSE)&AY61) ->  | BF61: 240
A62: 58 | B62: 58 | C62: 2 | D62: 6 | E62: 8 | F62: 226;237;245 | G62: 筑基 | H62: 后期. | I62: 八重 | J62: 226 | K62: 237 | L62: 245 | M62: =ROUND([1]ResourceLevelConfig!$E62*[1]ResourceLevelConfig!$L62*0.1,0)*10 -> 1550 | N62: -1 | O62: 0 | P62: -1 | Q62: -1 | R62: -1 | S62: -1 | T62: 0 | U62: =[3]主表!K60 -> 100.4821352 | V62: =[3]主表!L60 -> 3.822874067 | W62: =[3]主表!M60 -> 3.822874067 | X62: =[3]主表!N60 -> 0 | Y62: =[3]主表!$G60 -> 1067 | Z62: =[3]升级!$H60 -> 1100 | AA62: 0.11 | AB62: -1 | AC62: 4 | AD62: 2 | AE62: 2 | AF62: 690 | AJ62: 1 | AK62: 1 | AL62: 58 | AS62: =IF(AR62="","",1) ->  | AU62: =IF(AT62="","",1) ->  | AW62: =IF(AV62="","",1) ->  | AY62: =IF(AX62="","",1) ->  | AZ62: =IF(AN62="","",VLOOKUP(AN62,[4]ItemConfig!$A:$C,3,FALSE)&AO62) ->  | BA62: =IF(AP62="","",VLOOKUP(AP62,[4]ItemConfig!$A:$C,3,FALSE)&AQ62) ->  | BB62: =IF(AR62="","",VLOOKUP(AR62,[4]ItemConfig!$A:$C,3,FALSE)&AS62) ->  | BC62: =IF(AT62="","",VLOOKUP(AT62,[4]ItemConfig!$A:$C,3,FALSE)&AU62) ->  | BD62: =IF(AV62="","",VLOOKUP(AV62,[4]ItemConfig!$A:$C,3,FALSE)&AW62) ->  | BE62: =IF(AX62="","",VLOOKUP(AX62,[4]ItemConfig!$A:$C,3,FALSE)&AY62) ->  | BF62: 240
A63: 59 | B63: 59 | C63: 2 | D63: 6 | E63: 9 | F63: 226;237;246 | G63: 筑基 | H63: 后期. | I63: 九重 | J63: 226 | K63: 237 | L63: 246 | M63: =ROUND([1]ResourceLevelConfig!$E63*[1]ResourceLevelConfig!$L63*0.1,0)*10 -> 1570 | N63: -1 | O63: 0 | P63: -1 | Q63: -1 | R63: -1 | S63: -1 | T63: 0 | U63: =[3]主表!K61 -> 103.2856064 | V63: =[3]主表!L61 -> 3.874489857 | W63: =[3]主表!M61 -> 3.874489857 | X63: =[3]主表!N61 -> 0 | Y63: =[3]主表!$G61 -> 1086 | Z63: =[3]升级!$H61 -> 1100 | AA63: 0.11 | AB63: -1 | AC63: 4 | AD63: 2 | AE63: 2 | AF63: 700 | AJ63: 1 | AK63: 1 | AL63: 59 | AS63: =IF(AR63="","",1) ->  | AU63: =IF(AT63="","",1) ->  | AW63: =IF(AV63="","",1) ->  | AY63: =IF(AX63="","",1) ->  | AZ63: =IF(AN63="","",VLOOKUP(AN63,[4]ItemConfig!$A:$C,3,FALSE)&AO63) ->  | BA63: =IF(AP63="","",VLOOKUP(AP63,[4]ItemConfig!$A:$C,3,FALSE)&AQ63) ->  | BB63: =IF(AR63="","",VLOOKUP(AR63,[4]ItemConfig!$A:$C,3,FALSE)&AS63) ->  | BC63: =IF(AT63="","",VLOOKUP(AT63,[4]ItemConfig!$A:$C,3,FALSE)&AU63) ->  | BD63: =IF(AV63="","",VLOOKUP(AV63,[4]ItemConfig!$A:$C,3,FALSE)&AW63) ->  | BE63: =IF(AX63="","",VLOOKUP(AX63,[4]ItemConfig!$A:$C,3,FALSE)&AY63) ->  | BF63: 240
A64: 60 | B64: 60 | C64: 2 | D64: 6 | E64: 10 | F64: 226;237;247 | G64: 筑基 | H64: 后期. | I64: 十重 | J64: 226 | K64: 237 | L64: 247 | M64: =ROUND([1]ResourceLevelConfig!$E64*[1]ResourceLevelConfig!$L64*0.1,0)*10 -> 1580 | N64: 100005 | O64: 0 | P64: =AN64 -> 1306 | Q64: =AO64 -> 1 | R64: =_xlfn.TEXTJOIN(";",1,AP64,AR64,AT64,AV64) -> 1202 | S64: =_xlfn.TEXTJOIN(";",1,AQ64,AS64,AU64,AW64) -> 1 | T64: =CONCATENATE(ROUND(0.6*VLOOKUP(A64,[3]主表!$A:$P,16,FALSE)*[5]HeroModelConfig!$Q$5,0),";",ROUND(0.9*VLOOKUP(A64,[3]主表!$A:$P,16,FALSE)*[5]HeroModelConfig!$Q$5,0),";",INT(A64/30)+1) -> 8969;13453;3 | U64: =[3]主表!K62 -> 106.1464636 | V64: =[3]主表!L62 -> 3.926802554 | W64: =[3]主表!M62 -> 3.926802554 | X64: =[3]主表!N62 -> 0 | Y64: =[3]主表!$G62 -> 1106 | Z64: =[3]升级!$H62 -> 1100 | AA64: 0.11 | AB64: 15 | AC64: 4 | AD64: 2 | AE64: 2 | AF64: 710 | AJ64: 1 | AK64: 1 | AL64: 60 | AN64: 1306 | AO64: 1 | AP64: 1202 | AQ64: 1 | AS64: =IF(AR64="","",1) ->  | AU64: =IF(AT64="","",1) ->  | AW64: =IF(AV64="","",1) ->  | AY64: =IF(AX64="","",1) ->  | AZ64: =IF(AN64="","",VLOOKUP(AN64,[4]ItemConfig!$A:$C,3,FALSE)&AO64) -> 金阳果1 | BA64: =IF(AP64="","",VLOOKUP(AP64,[4]ItemConfig!$A:$C,3,FALSE)&AQ64) -> 玄玉髓1 | BB64: =IF(AR64="","",VLOOKUP(AR64,[4]ItemConfig!$A:$C,3,FALSE)&AS64) ->  | BC64: =IF(AT64="","",VLOOKUP(AT64,[4]ItemConfig!$A:$C,3,FALSE)&AU64) ->  | BD64: =IF(AV64="","",VLOOKUP(AV64,[4]ItemConfig!$A:$C,3,FALSE)&AW64) ->  | BE64: =IF(AX64="","",VLOOKUP(AX64,[4]ItemConfig!$A:$C,3,FALSE)&AY64) ->  | BF64: 240
A65: 61 | B65: 61 | C65: 3 | D65: 7 | E65: 1 | F65: 227;235;238 | G65: 结丹 | H65: 前期. | I65: 一重 | J65: 227 | K65: 235 | L65: 238 | M65: =ROUND([1]ResourceLevelConfig!$E65*[1]ResourceLevelConfig!$L65*0.1,0)*10 -> 1600 | N65: -1 | O65: 0 | P65: -1 | Q65: -1 | R65: =IF(I65=10,"1001;1002;1004",-1) -> -1 | S65: =IF(R65=-1,-1,"100;200;300") -> -1 | T65: 0 | U65: =[3]主表!K63 -> 139.8966092 | V65: =[3]主表!L63 -> 5.10484332 | W65: =[3]主表!M63 -> 5.10484332 | X65: =[3]主表!N63 -> 0 | Y65: =[3]主表!$G63 -> 1471 | Z65: =[3]升级!$H63 -> 1200 | AA65: 0.11 | AB65: -1 | AC65: 4 | AD65: 3 | AE65: 2 | AF65: 720 | AJ65: 1 | AK65: 2 | AL65: 61 | AS65: =IF(AR65="","",1) ->  | AU65: =IF(AT65="","",1) ->  | AW65: =IF(AV65="","",1) ->  | AY65: =IF(AX65="","",1) ->  | AZ65: =IF(AN65="","",VLOOKUP(AN65,[4]ItemConfig!$A:$C,3,FALSE)&AO65) ->  | BA65: =IF(AP65="","",VLOOKUP(AP65,[4]ItemConfig!$A:$C,3,FALSE)&AQ65) ->  | BB65: =IF(AR65="","",VLOOKUP(AR65,[4]ItemConfig!$A:$C,3,FALSE)&AS65) ->  | BC65: =IF(AT65="","",VLOOKUP(AT65,[4]ItemConfig!$A:$C,3,FALSE)&AU65) ->  | BD65: =IF(AV65="","",VLOOKUP(AV65,[4]ItemConfig!$A:$C,3,FALSE)&AW65) ->  | BE65: =IF(AX65="","",VLOOKUP(AX65,[4]ItemConfig!$A:$C,3,FALSE)&AY65) ->  | BF65: 240
A66: 62 | B66: 62 | C66: 3 | D66: 7 | E66: 2 | F66: 227;235;239 | G66: 结丹 | H66: 前期. | I66: 二重 | J66: 227 | K66: 235 | L66: 239 | M66: =ROUND([1]ResourceLevelConfig!$E66*[1]ResourceLevelConfig!$L66*0.1,0)*10 -> 1620 | N66: -1 | O66: 0 | P66: -1 | Q66: -1 | R66: =IF(I66=10,"1001;1002;1004",-1) -> -1 | S66: -1 | T66: 0 | U66: =[3]主表!K64 -> 143.7174131 | V66: =[3]主表!L64 -> 5.173768038 | W66: =[3]主表!M64 -> 5.173768038 | X66: =[3]主表!N64 -> 0 | Y66: =[3]主表!$G64 -> 1501 | Z66: =[3]升级!$H64 -> 1200 | AA66: 0.11 | AB66: -1 | AC66: =AC65 -> 4 | AD66: =AD65 -> 3 | AE66: 2 | AF66: 730 | AJ66: 1 | AK66: 2 | AL66: 62 | AS66: =IF(AR66="","",1) ->  | AU66: =IF(AT66="","",1) ->  | AW66: =IF(AV66="","",1) ->  | AY66: =IF(AX66="","",1) ->  | AZ66: =IF(AN66="","",VLOOKUP(AN66,[4]ItemConfig!$A:$C,3,FALSE)&AO66) ->  | BA66: =IF(AP66="","",VLOOKUP(AP66,[4]ItemConfig!$A:$C,3,FALSE)&AQ66) ->  | BB66: =IF(AR66="","",VLOOKUP(AR66,[4]ItemConfig!$A:$C,3,FALSE)&AS66) ->  | BC66: =IF(AT66="","",VLOOKUP(AT66,[4]ItemConfig!$A:$C,3,FALSE)&AU66) ->  | BD66: =IF(AV66="","",VLOOKUP(AV66,[4]ItemConfig!$A:$C,3,FALSE)&AW66) ->  | BE66: =IF(AX66="","",VLOOKUP(AX66,[4]ItemConfig!$A:$C,3,FALSE)&AY66) ->  | BF66: 240
A67: 63 | B67: 63 | C67: 3 | D67: 7 | E67: 3 | F67: 227;235;240 | G67: 结丹 | H67: 前期. | I67: 三重 | J67: 227 | K67: 235 | L67: 240 | M67: =ROUND([1]ResourceLevelConfig!$E67*[1]ResourceLevelConfig!$L67*0.1,0)*10 -> 1630 | N67: -1 | O67: 0 | P67: -1 | Q67: -1 | R67: -1 | S67: -1 | T67: 0 | U67: =[3]主表!K65 -> 147.6158895 | V67: =[3]主表!L65 -> 5.243623367 | W67: =[3]主表!M65 -> 5.243623367 | X67: =[3]主表!N65 -> 0 | Y67: =[3]主表!$G65 -> 1531 | Z67: =[3]升级!$H65 -> 1200 | AA67: 0.11 | AB67: -1 | AC67: =AC66 -> 4 | AD67: =AD66 -> 3 | AE67: =AE66 -> 2 | AF67: 740 | AJ67: 1 | AK67: 2 | AL67: 63 | AS67: =IF(AR67="","",1) ->  | AU67: =IF(AT67="","",1) ->  | AW67: =IF(AV67="","",1) ->  | AY67: =IF(AX67="","",1) ->  | AZ67: =IF(AN67="","",VLOOKUP(AN67,[4]ItemConfig!$A:$C,3,FALSE)&AO67) ->  | BA67: =IF(AP67="","",VLOOKUP(AP67,[4]ItemConfig!$A:$C,3,FALSE)&AQ67) ->  | BB67: =IF(AR67="","",VLOOKUP(AR67,[4]ItemConfig!$A:$C,3,FALSE)&AS67) ->  | BC67: =IF(AT67="","",VLOOKUP(AT67,[4]ItemConfig!$A:$C,3,FALSE)&AU67) ->  | BD67: =IF(AV67="","",VLOOKUP(AV67,[4]ItemConfig!$A:$C,3,FALSE)&AW67) ->  | BE67: =IF(AX67="","",VLOOKUP(AX67,[4]ItemConfig!$A:$C,3,FALSE)&AY67) ->  | BF67: 240
A68: 64 | B68: 64 | C68: 3 | D68: 7 | E68: 4 | F68: 227;235;241 | G68: 结丹 | H68: 前期. | I68: 四重 | J68: 227 | K68: 235 | L68: 241 | M68: =ROUND([1]ResourceLevelConfig!$E68*[1]ResourceLevelConfig!$L68*0.1,0)*10 -> 1650 | N68: -1 | O68: 0 | P68: -1 | Q68: -1 | R68: -1 | S68: -1 | T68: 0 | U68: =[3]主表!K66 -> 151.5934395 | V68: =[3]主表!L66 -> 5.31442187 | W68: =[3]主表!M66 -> 5.31442187 | X68: =[3]主表!N66 -> 0 | Y68: =[3]主表!$G66 -> 1562 | Z68: =[3]升级!$H66 -> 1200 | AA68: 0.11 | AB68: -1 | AC68: 4 | AD68: 3 | AE68: 2 | AF68: 750 | AJ68: 1 | AK68: 2 | AL68: 64 | AS68: =IF(AR68="","",1) ->  | AU68: =IF(AT68="","",1) ->  | AW68: =IF(AV68="","",1) ->  | AY68: =IF(AX68="","",1) ->  | AZ68: =IF(AN68="","",VLOOKUP(AN68,[4]ItemConfig!$A:$C,3,FALSE)&AO68) ->  | BA68: =IF(AP68="","",VLOOKUP(AP68,[4]ItemConfig!$A:$C,3,FALSE)&AQ68) ->  | BB68: =IF(AR68="","",VLOOKUP(AR68,[4]ItemConfig!$A:$C,3,FALSE)&AS68) ->  | BC68: =IF(AT68="","",VLOOKUP(AT68,[4]ItemConfig!$A:$C,3,FALSE)&AU68) ->  | BD68: =IF(AV68="","",VLOOKUP(AV68,[4]ItemConfig!$A:$C,3,FALSE)&AW68) ->  | BE68: =IF(AX68="","",VLOOKUP(AX68,[4]ItemConfig!$A:$C,3,FALSE)&AY68) ->  | BF68: 240
A69: 65 | B69: 65 | C69: 3 | D69: 7 | E69: 5 | F69: 227;235;242 | G69: 结丹 | H69: 前期. | I69: 五重 | J69: 227 | K69: 235 | L69: 242 | M69: =ROUND([1]ResourceLevelConfig!$E69*[1]ResourceLevelConfig!$L69*0.1,0)*10 -> 1660 | N69: -1 | O69: 0 | P69: -1 | Q69: -1 | R69: -1 | S69: -1 | T69: 0 | U69: =[3]主表!K67 -> 155.6514876 | V69: =[3]主表!L67 -> 5.386176282 | W69: =[3]主表!M67 -> 5.386176282 | X69: =[3]主表!N67 -> 0 | Y69: =[3]主表!$G67 -> 1594 | Z69: =[3]升级!$H67 -> 1200 | AA69: 0.12 | AB69: -1 | AC69: 4 | AD69: 3 | AE69: 2 | AF69: 760 | AJ69: 1 | AK69: 2 | AL69: 65 | AS69: =IF(AR69="","",1) ->  | AU69: =IF(AT69="","",1) ->  | AW69: =IF(AV69="","",1) ->  | AY69: =IF(AX69="","",1) ->  | AZ69: =IF(AN69="","",VLOOKUP(AN69,[4]ItemConfig!$A:$C,3,FALSE)&AO69) ->  | BA69: =IF(AP69="","",VLOOKUP(AP69,[4]ItemConfig!$A:$C,3,FALSE)&AQ69) ->  | BB69: =IF(AR69="","",VLOOKUP(AR69,[4]ItemConfig!$A:$C,3,FALSE)&AS69) ->  | BC69: =IF(AT69="","",VLOOKUP(AT69,[4]ItemConfig!$A:$C,3,FALSE)&AU69) ->  | BD69: =IF(AV69="","",VLOOKUP(AV69,[4]ItemConfig!$A:$C,3,FALSE)&AW69) ->  | BE69: =IF(AX69="","",VLOOKUP(AX69,[4]ItemConfig!$A:$C,3,FALSE)&AY69) ->  | BF69: 240
A70: 66 | B70: 66 | C70: 3 | D70: 7 | E70: 6 | F70: =_xlfn.TEXTJOIN(";",1,J70:L70) -> 227;235;243 | G70: 结丹 | H70: 前期. | I70: 六重 | J70: 227 | K70: 235 | L70: 243 | M70: =ROUND([1]ResourceLevelConfig!$E70*[1]ResourceLevelConfig!$L70*0.1,0)*10 -> 1790 | N70: =IF(E70=10,100004,-1) -> -1 | O70: 0 | P70: -1 | Q70: -1 | R70: -1 | S70: =IF(R70=-1,-1,"100;200;300") -> -1 | T70: 0 | U70: =[3]主表!K68 -> 159.7914824 | V70: =[3]主表!L68 -> 5.45889951 | W70: =[3]主表!M68 -> 5.45889951 | X70: =[3]主表!N68 -> 0 | Y70: =[3]主表!$G68 -> 1628 | Z70: =[3]升级!$H68 -> 1200 | AA70: 0.12 | AB70: -1 | AC70: 4 | AD70: 3 | AE70: 2 | AF70: =MAX(AF69+10,ROUND(10^(B70*0.01+1.405),0)) -> 770 | AJ70: 1 | AK70: 2 | AL70: 66 | AO70: =IF(AN70="","",1) ->  | AS70: =IF(AR70="","",1) ->  | AU70: =IF(AT70="","",1) ->  | AW70: =IF(AV70="","",1) ->  | AY70: =IF(AX70="","",1) ->  | AZ70: =IF(AN70="","",VLOOKUP(AN70,[4]ItemConfig!$A:$C,3,FALSE)&AO70) ->  | BA70: =IF(AP70="","",VLOOKUP(AP70,[4]ItemConfig!$A:$C,3,FALSE)&AQ70) ->  | BB70: =IF(AR70="","",VLOOKUP(AR70,[4]ItemConfig!$A:$C,3,FALSE)&AS70) ->  | BC70: =IF(AT70="","",VLOOKUP(AT70,[4]ItemConfig!$A:$C,3,FALSE)&AU70) ->  | BD70: =IF(AV70="","",VLOOKUP(AV70,[4]ItemConfig!$A:$C,3,FALSE)&AW70) ->  | BE70: =IF(AX70="","",VLOOKUP(AX70,[4]ItemConfig!$A:$C,3,FALSE)&AY70) ->  | BF70: 240
A71: 67 | B71: 67 | C71: 3 | D71: 7 | E71: 7 | F71: 227;235;244 | G71: 结丹 | H71: 前期. | I71: 七重 | J71: 227 | K71: 235 | L71: 244 | M71: =ROUND([1]ResourceLevelConfig!$E71*[1]ResourceLevelConfig!$L71*0.1,0)*10 -> 1800 | N71: -1 | O71: 0 | P71: -1 | Q71: -1 | R71: -1 | S71: -1 | T71: 0 | U71: =[3]主表!K69 -> 164.014897 | V71: =[3]主表!L69 -> 5.532604634 | W71: =[3]主表!M69 -> 5.532604634 | X71: =[3]主表!N69 -> 0 | Y71: =[3]主表!$G69 -> 1662 | Z71: =[3]升级!$H69 -> 1200 | AA71: 0.13 | AB71: -1 | AC71: 4 | AD71: 3 | AE71: 2 | AF71: 780 | AJ71: 1 | AK71: 2 | AL71: 67 | AS71: =IF(AR71="","",1) ->  | AU71: =IF(AT71="","",1) ->  | AW71: =IF(AV71="","",1) ->  | AY71: =IF(AX71="","",1) ->  | AZ71: =IF(AN71="","",VLOOKUP(AN71,[4]ItemConfig!$A:$C,3,FALSE)&AO71) ->  | BA71: =IF(AP71="","",VLOOKUP(AP71,[4]ItemConfig!$A:$C,3,FALSE)&AQ71) ->  | BB71: =IF(AR71="","",VLOOKUP(AR71,[4]ItemConfig!$A:$C,3,FALSE)&AS71) ->  | BC71: =IF(AT71="","",VLOOKUP(AT71,[4]ItemConfig!$A:$C,3,FALSE)&AU71) ->  | BD71: =IF(AV71="","",VLOOKUP(AV71,[4]ItemConfig!$A:$C,3,FALSE)&AW71) ->  | BE71: =IF(AX71="","",VLOOKUP(AX71,[4]ItemConfig!$A:$C,3,FALSE)&AY71) ->  | BF71: 240
A72: 68 | B72: 68 | C72: 3 | D72: 7 | E72: 8 | F72: 227;235;245 | G72: 结丹 | H72: 前期. | I72: 八重 | J72: 227 | K72: 235 | L72: 245 | M72: =ROUND([1]ResourceLevelConfig!$E72*[1]ResourceLevelConfig!$L72*0.1,0)*10 -> 1820 | N72: -1 | O72: 0 | P72: -1 | Q72: -1 | R72: -1 | S72: -1 | T72: 0 | U72: =[3]主表!K70 -> 168.3232295 | V72: =[3]主表!L70 -> 5.607304912 | W72: =[3]主表!M70 -> 5.607304912 | X72: =[3]主表!N70 -> 0 | Y72: =[3]主表!$G70 -> 1697 | Z72: =[3]升级!$H70 -> 1200 | AA72: 0.13 | AB72: -1 | AC72: 4 | AD72: 3 | AE72: 2 | AF72: 790 | AJ72: 1 | AK72: 2 | AL72: 68 | AS72: =IF(AR72="","",1) ->  | AU72: =IF(AT72="","",1) ->  | AW72: =IF(AV72="","",1) ->  | AY72: =IF(AX72="","",1) ->  | AZ72: =IF(AN72="","",VLOOKUP(AN72,[4]ItemConfig!$A:$C,3,FALSE)&AO72) ->  | BA72: =IF(AP72="","",VLOOKUP(AP72,[4]ItemConfig!$A:$C,3,FALSE)&AQ72) ->  | BB72: =IF(AR72="","",VLOOKUP(AR72,[4]ItemConfig!$A:$C,3,FALSE)&AS72) ->  | BC72: =IF(AT72="","",VLOOKUP(AT72,[4]ItemConfig!$A:$C,3,FALSE)&AU72) ->  | BD72: =IF(AV72="","",VLOOKUP(AV72,[4]ItemConfig!$A:$C,3,FALSE)&AW72) ->  | BE72: =IF(AX72="","",VLOOKUP(AX72,[4]ItemConfig!$A:$C,3,FALSE)&AY72) ->  | BF72: 240
A73: 69 | B73: 69 | C73: 3 | D73: 7 | E73: 9 | F73: 227;235;246 | G73: 结丹 | H73: 前期. | I73: 九重 | J73: 227 | K73: 235 | L73: 246 | M73: =ROUND([1]ResourceLevelConfig!$E73*[1]ResourceLevelConfig!$L73*0.1,0)*10 -> 1840 | N73: -1 | O73: 0 | P73: -1 | Q73: -1 | R73: -1 | S73: -1 | T73: 0 | U73: =[3]主表!K71 -> 172.7180028 | V73: =[3]主表!L71 -> 5.683013781 | W73: =[3]主表!M71 -> 5.683013781 | X73: =[3]主表!N71 -> 0 | Y73: =[3]主表!$G71 -> 1734 | Z73: =[3]升级!$H71 -> 1200 | AA73: 0.13 | AB73: -1 | AC73: 4 | AD73: 3 | AE73: 2 | AF73: 800 | AJ73: 1 | AK73: 2 | AL73: 69 | AS73: =IF(AR73="","",1) ->  | AU73: =IF(AT73="","",1) ->  | AW73: =IF(AV73="","",1) ->  | AY73: =IF(AX73="","",1) ->  | AZ73: =IF(AN73="","",VLOOKUP(AN73,[4]ItemConfig!$A:$C,3,FALSE)&AO73) ->  | BA73: =IF(AP73="","",VLOOKUP(AP73,[4]ItemConfig!$A:$C,3,FALSE)&AQ73) ->  | BB73: =IF(AR73="","",VLOOKUP(AR73,[4]ItemConfig!$A:$C,3,FALSE)&AS73) ->  | BC73: =IF(AT73="","",VLOOKUP(AT73,[4]ItemConfig!$A:$C,3,FALSE)&AU73) ->  | BD73: =IF(AV73="","",VLOOKUP(AV73,[4]ItemConfig!$A:$C,3,FALSE)&AW73) ->  | BE73: =IF(AX73="","",VLOOKUP(AX73,[4]ItemConfig!$A:$C,3,FALSE)&AY73) ->  | BF73: 240
A74: 70 | B74: 70 | C74: 3 | D74: 7 | E74: 10 | F74: 227;235;247 | G74: 结丹 | H74: 前期. | I74: 十重 | J74: 227 | K74: 235 | L74: 247 | M74: =ROUND([1]ResourceLevelConfig!$E74*[1]ResourceLevelConfig!$L74*0.1,0)*10 -> 1850 | N74: 100005 | O74: 0 | P74: =AN74 -> 1307 | Q74: =AO74 -> 1 | R74: =_xlfn.TEXTJOIN(";",1,AP74,AR74,AT74,AV74) -> 1203;1204 | S74: =_xlfn.TEXTJOIN(";",1,AQ74,AS74,AU74,AW74) -> 1;1 | T74: 0 | U74: =[3]主表!K72 -> 177.2007658 | V74: =[3]主表!L72 -> 5.759744858 | W74: =[3]主表!M72 -> 5.759744858 | X74: =[3]主表!N72 -> 0 | Y74: =[3]主表!$G72 -> 1771 | Z74: =[3]升级!$H72 -> 1200 | AA74: 0.13 | AB74: 15 | AC74: 4 | AD74: 3 | AE74: 2 | AF74: 810 | AJ74: 1 | AK74: 2 | AL74: 70 | AN74: 1307 | AO74: 1 | AP74: 1203 | AQ74: 1 | AR74: 1204 | AS74: =IF(AR74="","",1) -> 1 | AU74: =IF(AT74="","",1) ->  | AW74: =IF(AV74="","",1) ->  | AY74: =IF(AX74="","",1) ->  | AZ74: =IF(AN74="","",VLOOKUP(AN74,[4]ItemConfig!$A:$C,3,FALSE)&AO74) -> 金灵丹1 | BA74: =IF(AP74="","",VLOOKUP(AP74,[4]ItemConfig!$A:$C,3,FALSE)&AQ74) -> 赤阳砂1 | BB74: =IF(AR74="","",VLOOKUP(AR74,[4]ItemConfig!$A:$C,3,FALSE)&AS74) -> 火灵果1 | BC74: =IF(AT74="","",VLOOKUP(AT74,[4]ItemConfig!$A:$C,3,FALSE)&AU74) ->  | BD74: =IF(AV74="","",VLOOKUP(AV74,[4]ItemConfig!$A:$C,3,FALSE)&AW74) ->  | BE74: =IF(AX74="","",VLOOKUP(AX74,[4]ItemConfig!$A:$C,3,FALSE)&AY74) ->  | BF74: 240
A75: 71 | B75: 71 | C75: 3 | D75: 8 | E75: 1 | F75: 227;236;238 | G75: 结丹 | H75: 中期. | I75: 一重 | J75: 227 | K75: 236 | L75: 238 | M75: =ROUND([1]ResourceLevelConfig!$E75*[1]ResourceLevelConfig!$L75*0.1,0)*10 -> 1870 | N75: -1 | O75: 0 | P75: -1 | Q75: -1 | R75: =IF(I75=10,"1001;1002;1004",-1) -> -1 | S75: -1 | T75: 0 | U75: =[3]主表!K73 -> 197.2866721 | V75: =[3]主表!L73 -> 6.335719344 | W75: =[3]主表!M73 -> 6.335719344 | X75: =[3]主表!N73 -> 0 | Y75: =[3]主表!$G73 -> 1996 | Z75: =[3]升级!$H73 -> 1200 | AA75: 0.13 | AB75: -1 | AC75: 4 | AD75: 3 | AE75: 3 | AF75: 820 | AJ75: 1 | AK75: 2 | AL75: 71 | AS75: =IF(AR75="","",1) ->  | AU75: =IF(AT75="","",1) ->  | AW75: =IF(AV75="","",1) ->  | AY75: =IF(AX75="","",1) ->  | AZ75: =IF(AN75="","",VLOOKUP(AN75,[4]ItemConfig!$A:$C,3,FALSE)&AO75) ->  | BA75: =IF(AP75="","",VLOOKUP(AP75,[4]ItemConfig!$A:$C,3,FALSE)&AQ75) ->  | BB75: =IF(AR75="","",VLOOKUP(AR75,[4]ItemConfig!$A:$C,3,FALSE)&AS75) ->  | BC75: =IF(AT75="","",VLOOKUP(AT75,[4]ItemConfig!$A:$C,3,FALSE)&AU75) ->  | BD75: =IF(AV75="","",VLOOKUP(AV75,[4]ItemConfig!$A:$C,3,FALSE)&AW75) ->  | BE75: =IF(AX75="","",VLOOKUP(AX75,[4]ItemConfig!$A:$C,3,FALSE)&AY75) ->  | BF75: 240
A76: 72 | B76: 72 | C76: 3 | D76: 8 | E76: 2 | F76: 227;236;239 | G76: 结丹 | H76: 中期. | I76: 二重 | J76: 227 | K76: 236 | L76: 239 | M76: =ROUND([1]ResourceLevelConfig!$E76*[1]ResourceLevelConfig!$L76*0.1,0)*10 -> 1890 | N76: -1 | O76: 0 | P76: -1 | Q76: -1 | R76: -1 | S76: -1 | T76: 0 | U76: =[3]主表!K74 -> 202.3481755 | V76: =[3]主表!L74 -> 6.421263139 | W76: =[3]主表!M74 -> 6.421263139 | X76: =[3]主表!N74 -> 0 | Y76: =[3]主表!$G74 -> 2038 | Z76: =[3]升级!$H74 -> 1200 | AA76: 0.13 | AB76: -1 | AC76: 4 | AD76: 3 | AE76: 3 | AF76: 830 | AJ76: 1 | AK76: 2 | AL76: 72 | AS76: =IF(AR76="","",1) ->  | AU76: =IF(AT76="","",1) ->  | AW76: =IF(AV76="","",1) ->  | AY76: =IF(AX76="","",1) ->  | AZ76: =IF(AN76="","",VLOOKUP(AN76,[4]ItemConfig!$A:$C,3,FALSE)&AO76) ->  | BA76: =IF(AP76="","",VLOOKUP(AP76,[4]ItemConfig!$A:$C,3,FALSE)&AQ76) ->  | BB76: =IF(AR76="","",VLOOKUP(AR76,[4]ItemConfig!$A:$C,3,FALSE)&AS76) ->  | BC76: =IF(AT76="","",VLOOKUP(AT76,[4]ItemConfig!$A:$C,3,FALSE)&AU76) ->  | BD76: =IF(AV76="","",VLOOKUP(AV76,[4]ItemConfig!$A:$C,3,FALSE)&AW76) ->  | BE76: =IF(AX76="","",VLOOKUP(AX76,[4]ItemConfig!$A:$C,3,FALSE)&AY76) ->  | BF76: 240
A77: 73 | B77: 73 | C77: 3 | D77: 8 | E77: 3 | F77: 227;236;240 | G77: 结丹 | H77: 中期. | I77: 三重 | J77: 227 | K77: 236 | L77: 240 | M77: =ROUND([1]ResourceLevelConfig!$E77*[1]ResourceLevelConfig!$L77*0.1,0)*10 -> 1900 | N77: -1 | O77: 0 | P77: -1 | Q77: -1 | R77: -1 | S77: -1 | T77: 0 | U77: =[3]主表!K75 -> 207.5103929 | V77: =[3]主表!L75 -> 6.507961932 | W77: =[3]主表!M75 -> 6.507961932 | X77: =[3]主表!N75 -> 0 | Y77: =[3]主表!$G75 -> 2082 | Z77: =[3]升级!$H75 -> 1200 | AA77: 0.13 | AB77: -1 | AC77: 4 | AD77: 3 | AE77: 3 | AF77: 840 | AJ77: 1 | AK77: 2 | AL77: 73 | AS77: =IF(AR77="","",1) ->  | AU77: =IF(AT77="","",1) ->  | AW77: =IF(AV77="","",1) ->  | AY77: =IF(AX77="","",1) ->  | AZ77: =IF(AN77="","",VLOOKUP(AN77,[4]ItemConfig!$A:$C,3,FALSE)&AO77) ->  | BA77: =IF(AP77="","",VLOOKUP(AP77,[4]ItemConfig!$A:$C,3,FALSE)&AQ77) ->  | BB77: =IF(AR77="","",VLOOKUP(AR77,[4]ItemConfig!$A:$C,3,FALSE)&AS77) ->  | BC77: =IF(AT77="","",VLOOKUP(AT77,[4]ItemConfig!$A:$C,3,FALSE)&AU77) ->  | BD77: =IF(AV77="","",VLOOKUP(AV77,[4]ItemConfig!$A:$C,3,FALSE)&AW77) ->  | BE77: =IF(AX77="","",VLOOKUP(AX77,[4]ItemConfig!$A:$C,3,FALSE)&AY77) ->  | BF77: 240
A78: 74 | B78: 74 | C78: 3 | D78: 8 | E78: 4 | F78: 227;236;241 | G78: 结丹 | H78: 中期. | I78: 四重 | J78: 227 | K78: 236 | L78: 241 | M78: =ROUND([1]ResourceLevelConfig!$E78*[1]ResourceLevelConfig!$L78*0.1,0)*10 -> 1920 | N78: -1 | O78: 0 | P78: -1 | Q78: -1 | R78: -1 | S78: -1 | T78: 0 | U78: =[3]主表!K76 -> 212.775121 | V78: =[3]主表!L76 -> 6.595831317 | W78: =[3]主表!M76 -> 6.595831317 | X78: =[3]主表!N76 -> 0 | Y78: =[3]主表!$G76 -> 2127 | Z78: =[3]升级!$H76 -> 1200 | AA78: 0.13 | AB78: -1 | AC78: 4 | AD78: 3 | AE78: 3 | AF78: 850 | AJ78: 1 | AK78: 2 | AL78: 74 | AS78: =IF(AR78="","",1) ->  | AU78: =IF(AT78="","",1) ->  | AW78: =IF(AV78="","",1) ->  | AY78: =IF(AX78="","",1) ->  | AZ78: =IF(AN78="","",VLOOKUP(AN78,[4]ItemConfig!$A:$C,3,FALSE)&AO78) ->  | BA78: =IF(AP78="","",VLOOKUP(AP78,[4]ItemConfig!$A:$C,3,FALSE)&AQ78) ->  | BB78: =IF(AR78="","",VLOOKUP(AR78,[4]ItemConfig!$A:$C,3,FALSE)&AS78) ->  | BC78: =IF(AT78="","",VLOOKUP(AT78,[4]ItemConfig!$A:$C,3,FALSE)&AU78) ->  | BD78: =IF(AV78="","",VLOOKUP(AV78,[4]ItemConfig!$A:$C,3,FALSE)&AW78) ->  | BE78: =IF(AX78="","",VLOOKUP(AX78,[4]ItemConfig!$A:$C,3,FALSE)&AY78) ->  | BF78: 240
A79: 75 | B79: 75 | C79: 3 | D79: 8 | E79: 5 | F79: 227;236;242 | G79: 结丹 | H79: 中期. | I79: 五重 | J79: 227 | K79: 236 | L79: 242 | M79: =ROUND([1]ResourceLevelConfig!$E79*[1]ResourceLevelConfig!$L79*0.1,0)*10 -> 1940 | N79: -1 | O79: 0 | P79: -1 | Q79: -1 | R79: -1 | S79: -1 | T79: 0 | U79: =[3]主表!K77 -> 218.144187 | V79: =[3]主表!L77 -> 6.6848871 | W79: =[3]主表!M77 -> 6.6848871 | X79: =[3]主表!N77 -> 0 | Y79: =[3]主表!$G77 -> 2173 | Z79: =[3]升级!$H77 -> 1200 | AA79: 0.13 | AB79: -1 | AC79: 4 | AD79: 3 | AE79: 3 | AF79: 860 | AJ79: 1 | AK79: 2 | AL79: 75 | AS79: =IF(AR79="","",1) ->  | AU79: =IF(AT79="","",1) ->  | AW79: =IF(AV79="","",1) ->  | AY79: =IF(AX79="","",1) ->  | AZ79: =IF(AN79="","",VLOOKUP(AN79,[4]ItemConfig!$A:$C,3,FALSE)&AO79) ->  | BA79: =IF(AP79="","",VLOOKUP(AP79,[4]ItemConfig!$A:$C,3,FALSE)&AQ79) ->  | BB79: =IF(AR79="","",VLOOKUP(AR79,[4]ItemConfig!$A:$C,3,FALSE)&AS79) ->  | BC79: =IF(AT79="","",VLOOKUP(AT79,[4]ItemConfig!$A:$C,3,FALSE)&AU79) ->  | BD79: =IF(AV79="","",VLOOKUP(AV79,[4]ItemConfig!$A:$C,3,FALSE)&AW79) ->  | BE79: =IF(AX79="","",VLOOKUP(AX79,[4]ItemConfig!$A:$C,3,FALSE)&AY79) ->  | BF79: 240
A80: 76 | B80: 76 | C80: 3 | D80: 8 | E80: 6 | F80: 227;236;243 | G80: 结丹 | H80: 中期. | I80: 六重 | J80: 227 | K80: 236 | L80: 243 | M80: =ROUND([1]ResourceLevelConfig!$E80*[1]ResourceLevelConfig!$L80*0.1,0)*10 -> 2070 | N80: -1 | O80: 0 | P80: -1 | Q80: -1 | R80: -1 | S80: -1 | T80: 0 | U80: =[3]主表!K78 -> 223.6194487 | V80: =[3]主表!L78 -> 6.775145298 | W80: =[3]主表!M78 -> 6.775145298 | X80: =[3]主表!N78 -> 0 | Y80: =[3]主表!$G78 -> 2220 | Z80: =[3]升级!$H78 -> 1200 | AA80: 0.14 | AB80: -1 | AC80: 4 | AD80: 3 | AE80: 3 | AF80: 870 | AJ80: 1 | AK80: 2 | AL80: 76 | AS80: =IF(AR80="","",1) ->  | AU80: =IF(AT80="","",1) ->  | AW80: =IF(AV80="","",1) ->  | AY80: =IF(AX80="","",1) ->  | AZ80: =IF(AN80="","",VLOOKUP(AN80,[4]ItemConfig!$A:$C,3,FALSE)&AO80) ->  | BA80: =IF(AP80="","",VLOOKUP(AP80,[4]ItemConfig!$A:$C,3,FALSE)&AQ80) ->  | BB80: =IF(AR80="","",VLOOKUP(AR80,[4]ItemConfig!$A:$C,3,FALSE)&AS80) ->  | BC80: =IF(AT80="","",VLOOKUP(AT80,[4]ItemConfig!$A:$C,3,FALSE)&AU80) ->  | BD80: =IF(AV80="","",VLOOKUP(AV80,[4]ItemConfig!$A:$C,3,FALSE)&AW80) ->  | BE80: =IF(AX80="","",VLOOKUP(AX80,[4]ItemConfig!$A:$C,3,FALSE)&AY80) ->  | BF80: 240
A81: 77 | B81: 77 | C81: 3 | D81: 8 | E81: 7 | F81: 227;236;244 | G81: 结丹 | H81: 中期. | I81: 七重 | J81: 227 | K81: 236 | L81: 244 | M81: =ROUND([1]ResourceLevelConfig!$E81*[1]ResourceLevelConfig!$L81*0.1,0)*10 -> 2090 | N81: -1 | O81: 0 | P81: -1 | Q81: -1 | R81: -1 | S81: -1 | T81: 0 | U81: =[3]主表!K79 -> 229.2027949 | V81: =[3]主表!L79 -> 6.866622148 | W81: =[3]主表!M79 -> 6.866622148 | X81: =[3]主表!N79 -> 0 | Y81: =[3]主表!$G79 -> 2269 | Z81: =[3]升级!$H79 -> 1200 | AA81: 0.15 | AB81: -1 | AC81: 4 | AD81: 3 | AE81: 3 | AF81: 880 | AJ81: 1 | AK81: 2 | AL81: 77 | AS81: =IF(AR81="","",1) ->  | AU81: =IF(AT81="","",1) ->  | AW81: =IF(AV81="","",1) ->  | AY81: =IF(AX81="","",1) ->  | AZ81: =IF(AN81="","",VLOOKUP(AN81,[4]ItemConfig!$A:$C,3,FALSE)&AO81) ->  | BA81: =IF(AP81="","",VLOOKUP(AP81,[4]ItemConfig!$A:$C,3,FALSE)&AQ81) ->  | BB81: =IF(AR81="","",VLOOKUP(AR81,[4]ItemConfig!$A:$C,3,FALSE)&AS81) ->  | BC81: =IF(AT81="","",VLOOKUP(AT81,[4]ItemConfig!$A:$C,3,FALSE)&AU81) ->  | BD81: =IF(AV81="","",VLOOKUP(AV81,[4]ItemConfig!$A:$C,3,FALSE)&AW81) ->  | BE81: =IF(AX81="","",VLOOKUP(AX81,[4]ItemConfig!$A:$C,3,FALSE)&AY81) ->  | BF81: 240
A82: 78 | B82: 78 | C82: 3 | D82: 8 | E82: 8 | F82: 227;236;245 | G82: 结丹 | H82: 中期. | I82: 八重 | J82: 227 | K82: 236 | L82: 245 | M82: =ROUND([1]ResourceLevelConfig!$E82*[1]ResourceLevelConfig!$L82*0.1,0)*10 -> 2110 | N82: -1 | O82: 0 | P82: -1 | Q82: -1 | R82: -1 | S82: -1 | T82: 0 | U82: =[3]主表!K80 -> 234.8961462 | V82: =[3]主表!L80 -> 6.959334102 | W82: =[3]主表!M80 -> 6.959334102 | X82: =[3]主表!N80 -> 0 | Y82: =[3]主表!$G80 -> 2318 | Z82: =[3]升级!$H80 -> 1200 | AA82: 0.15 | AB82: -1 | AC82: 4 | AD82: 3 | AE82: 3 | AF82: 890 | AJ82: 1 | AK82: 2 | AL82: 78 | AS82: =IF(AR82="","",1) ->  | AU82: =IF(AT82="","",1) ->  | AW82: =IF(AV82="","",1) ->  | AY82: =IF(AX82="","",1) ->  | AZ82: =IF(AN82="","",VLOOKUP(AN82,[4]ItemConfig!$A:$C,3,FALSE)&AO82) ->  | BA82: =IF(AP82="","",VLOOKUP(AP82,[4]ItemConfig!$A:$C,3,FALSE)&AQ82) ->  | BB82: =IF(AR82="","",VLOOKUP(AR82,[4]ItemConfig!$A:$C,3,FALSE)&AS82) ->  | BC82: =IF(AT82="","",VLOOKUP(AT82,[4]ItemConfig!$A:$C,3,FALSE)&AU82) ->  | BD82: =IF(AV82="","",VLOOKUP(AV82,[4]ItemConfig!$A:$C,3,FALSE)&AW82) ->  | BE82: =IF(AX82="","",VLOOKUP(AX82,[4]ItemConfig!$A:$C,3,FALSE)&AY82) ->  | BF82: 240
A83: 79 | B83: 79 | C83: 3 | D83: 8 | E83: 9 | F83: 227;236;246 | G83: 结丹 | H83: 中期. | I83: 九重 | J83: 227 | K83: 236 | L83: 246 | M83: =ROUND([1]ResourceLevelConfig!$E83*[1]ResourceLevelConfig!$L83*0.1,0)*10 -> 2120 | N83: -1 | O83: 0 | P83: -1 | Q83: -1 | R83: -1 | S83: -1 | T83: 0 | U83: =[3]主表!K81 -> 240.7014553 | V83: =[3]主表!L81 -> 7.053297836 | W83: =[3]主表!M81 -> 7.053297836 | X83: =[3]主表!N81 -> 0 | Y83: =[3]主表!$G81 -> 2369 | Z83: =[3]升级!$H81 -> 1200 | AA83: 0.15 | AB83: -1 | AC83: 4 | AD83: 3 | AE83: 3 | AF83: 900 | AJ83: 1 | AK83: 2 | AL83: 79 | AS83: =IF(AR83="","",1) ->  | AU83: =IF(AT83="","",1) ->  | AW83: =IF(AV83="","",1) ->  | AY83: =IF(AX83="","",1) ->  | AZ83: =IF(AN83="","",VLOOKUP(AN83,[4]ItemConfig!$A:$C,3,FALSE)&AO83) ->  | BA83: =IF(AP83="","",VLOOKUP(AP83,[4]ItemConfig!$A:$C,3,FALSE)&AQ83) ->  | BB83: =IF(AR83="","",VLOOKUP(AR83,[4]ItemConfig!$A:$C,3,FALSE)&AS83) ->  | BC83: =IF(AT83="","",VLOOKUP(AT83,[4]ItemConfig!$A:$C,3,FALSE)&AU83) ->  | BD83: =IF(AV83="","",VLOOKUP(AV83,[4]ItemConfig!$A:$C,3,FALSE)&AW83) ->  | BE83: =IF(AX83="","",VLOOKUP(AX83,[4]ItemConfig!$A:$C,3,FALSE)&AY83) ->  | BF83: 240
A84: 80 | B84: 80 | C84: 3 | D84: 8 | E84: 10 | F84: 227;236;247 | G84: 结丹 | H84: 中期. | I84: 十重 | J84: 227 | K84: 236 | L84: 247 | M84: =ROUND([1]ResourceLevelConfig!$E84*[1]ResourceLevelConfig!$L84*0.1,0)*10 -> 2140 | N84: 100005 | O84: 0 | P84: =AN84 -> 1308 | Q84: =AO84 -> 1 | R84: =_xlfn.TEXTJOIN(";",1,AP84,AR84,AT84,AV84) -> 1203;1204 | S84: =_xlfn.TEXTJOIN(";",1,AQ84,AS84,AU84,AW84) -> 1;1 | T84: 0 | U84: =[3]主表!K82 -> 246.6207075 | V84: =[3]主表!L82 -> 7.148530253 | W84: =[3]主表!M82 -> 7.148530253 | X84: =[3]主表!N82 -> 0 | Y84: =[3]主表!$G82 -> 2421 | Z84: =[3]升级!$H82 -> 1200 | AA84: 0.15 | AB84: 15 | AC84: 4 | AD84: 3 | AE84: 3 | AF84: 910 | AJ84: 1 | AK84: 2 | AL84: 80 | AN84: 1308 | AO84: 1 | AP84: 1203 | AQ84: 1 | AR84: 1204 | AS84: =IF(AR84="","",1) -> 1 | AU84: =IF(AT84="","",1) ->  | AW84: =IF(AV84="","",1) ->  | AY84: =IF(AX84="","",1) ->  | AZ84: =IF(AN84="","",VLOOKUP(AN84,[4]ItemConfig!$A:$C,3,FALSE)&AO84) -> 紫霞芝1 | BA84: =IF(AP84="","",VLOOKUP(AP84,[4]ItemConfig!$A:$C,3,FALSE)&AQ84) -> 赤阳砂1 | BB84: =IF(AR84="","",VLOOKUP(AR84,[4]ItemConfig!$A:$C,3,FALSE)&AS84) -> 火灵果1 | BC84: =IF(AT84="","",VLOOKUP(AT84,[4]ItemConfig!$A:$C,3,FALSE)&AU84) ->  | BD84: =IF(AV84="","",VLOOKUP(AV84,[4]ItemConfig!$A:$C,3,FALSE)&AW84) ->  | BE84: =IF(AX84="","",VLOOKUP(AX84,[4]ItemConfig!$A:$C,3,FALSE)&AY84) ->  | BF84: 240
A85: 81 | B85: 81 | C85: 3 | D85: 9 | E85: 1 | F85: 227;237;238 | G85: 结丹 | H85: 后期. | I85: 一重 | J85: 227 | K85: 237 | L85: 238 | M85: =ROUND([1]ResourceLevelConfig!$E85*[1]ResourceLevelConfig!$L85*0.1,0)*10 -> 2160 | N85: -1 | O85: 0 | P85: -1 | Q85: -1 | R85: =IF(I85=10,"1001;1002;1004",-1) -> -1 | S85: -1 | T85: 0 | U85: =[3]主表!K83 -> 274.219055 | V85: =[3]主表!L83 -> 7.863383279 | W85: =[3]主表!M83 -> 7.863383279 | X85: =[3]主表!N83 -> 0 | Y85: =[3]主表!$G83 -> 2849 | Z85: =[3]升级!$H83 -> 1200 | AA85: 0.15 | AB85: -1 | AC85: 4 | AD85: 4 | AE85: 3 | AF85: 920 | AJ85: 1 | AK85: 2 | AL85: 81 | AS85: =IF(AR85="","",1) ->  | AU85: =IF(AT85="","",1) ->  | AW85: =IF(AV85="","",1) ->  | AY85: =IF(AX85="","",1) ->  | AZ85: =IF(AN85="","",VLOOKUP(AN85,[4]ItemConfig!$A:$C,3,FALSE)&AO85) ->  | BA85: =IF(AP85="","",VLOOKUP(AP85,[4]ItemConfig!$A:$C,3,FALSE)&AQ85) ->  | BB85: =IF(AR85="","",VLOOKUP(AR85,[4]ItemConfig!$A:$C,3,FALSE)&AS85) ->  | BC85: =IF(AT85="","",VLOOKUP(AT85,[4]ItemConfig!$A:$C,3,FALSE)&AU85) ->  | BD85: =IF(AV85="","",VLOOKUP(AV85,[4]ItemConfig!$A:$C,3,FALSE)&AW85) ->  | BE85: =IF(AX85="","",VLOOKUP(AX85,[4]ItemConfig!$A:$C,3,FALSE)&AY85) ->  | BF85: 240
A86: 82 | B86: 82 | C86: 3 | D86: 9 | E86: 2 | F86: 227;237;239 | G86: 结丹 | H86: 后期. | I86: 二重 | J86: 227 | K86: 237 | L86: 239 | M86: =ROUND([1]ResourceLevelConfig!$E86*[1]ResourceLevelConfig!$L86*0.1,0)*10 -> 2180 | N86: -1 | O86: 0 | P86: -1 | Q86: -1 | R86: -1 | S86: -1 | T86: 0 | U86: =[3]主表!K84 -> 280.8974355 | V86: =[3]主表!L84 -> 7.96955333 | W86: =[3]主表!M84 -> 7.96955333 | X86: =[3]主表!N84 -> 0 | Y86: =[3]主表!$G84 -> 2910 | Z86: =[3]升级!$H84 -> 1200 | AA86: 0.15 | AB86: -1 | AC86: 4 | AD86: 4 | AE86: 3 | AF86: 930 | AJ86: 1 | AK86: 2 | AL86: 82 | AS86: =IF(AR86="","",1) ->  | AU86: =IF(AT86="","",1) ->  | AW86: =IF(AV86="","",1) ->  | AY86: =IF(AX86="","",1) ->  | AZ86: =IF(AN86="","",VLOOKUP(AN86,[4]ItemConfig!$A:$C,3,FALSE)&AO86) ->  | BA86: =IF(AP86="","",VLOOKUP(AP86,[4]ItemConfig!$A:$C,3,FALSE)&AQ86) ->  | BB86: =IF(AR86="","",VLOOKUP(AR86,[4]ItemConfig!$A:$C,3,FALSE)&AS86) ->  | BC86: =IF(AT86="","",VLOOKUP(AT86,[4]ItemConfig!$A:$C,3,FALSE)&AU86) ->  | BD86: =IF(AV86="","",VLOOKUP(AV86,[4]ItemConfig!$A:$C,3,FALSE)&AW86) ->  | BE86: =IF(AX86="","",VLOOKUP(AX86,[4]ItemConfig!$A:$C,3,FALSE)&AY86) ->  | BF86: 240
A87: 83 | B87: 83 | C87: 3 | D87: 9 | E87: 3 | F87: 227;237;240 | G87: 结丹 | H87: 后期. | I87: 三重 | J87: 227 | K87: 237 | L87: 240 | M87: =ROUND([1]ResourceLevelConfig!$E87*[1]ResourceLevelConfig!$L87*0.1,0)*10 -> 2200 | N87: -1 | O87: 0 | P87: -1 | Q87: -1 | R87: -1 | S87: -1 | T87: 0 | U87: =[3]主表!K85 -> 287.7061667 | V87: =[3]主表!L85 -> 8.077156872 | W87: =[3]主表!M85 -> 8.077156872 | X87: =[3]主表!N85 -> 0 | Y87: =[3]主表!$G85 -> 2972 | Z87: =[3]升级!$H85 -> 1200 | AA87: 0.15 | AB87: -1 | AC87: 4 | AD87: 4 | AE87: 3 | AF87: 940 | AJ87: 1 | AK87: 2 | AL87: 83 | AS87: =IF(AR87="","",1) ->  | AU87: =IF(AT87="","",1) ->  | AW87: =IF(AV87="","",1) ->  | AY87: =IF(AX87="","",1) ->  | AZ87: =IF(AN87="","",VLOOKUP(AN87,[4]ItemConfig!$A:$C,3,FALSE)&AO87) ->  | BA87: =IF(AP87="","",VLOOKUP(AP87,[4]ItemConfig!$A:$C,3,FALSE)&AQ87) ->  | BB87: =IF(AR87="","",VLOOKUP(AR87,[4]ItemConfig!$A:$C,3,FALSE)&AS87) ->  | BC87: =IF(AT87="","",VLOOKUP(AT87,[4]ItemConfig!$A:$C,3,FALSE)&AU87) ->  | BD87: =IF(AV87="","",VLOOKUP(AV87,[4]ItemConfig!$A:$C,3,FALSE)&AW87) ->  | BE87: =IF(AX87="","",VLOOKUP(AX87,[4]ItemConfig!$A:$C,3,FALSE)&AY87) ->  | BF87: 240
A88: 84 | B88: 84 | C88: 3 | D88: 9 | E88: 4 | F88: 227;237;241 | G88: 结丹 | H88: 后期. | I88: 四重 | J88: 227 | K88: 237 | L88: 241 | M88: =ROUND([1]ResourceLevelConfig!$E88*[1]ResourceLevelConfig!$L88*0.1,0)*10 -> 2210 | N88: -1 | O88: 0 | P88: -1 | Q88: -1 | R88: -1 | S88: -1 | T88: 0 | U88: =[3]主表!K86 -> 294.6475511 | V88: =[3]主表!L86 -> 8.186213258 | W88: =[3]主表!M86 -> 8.186213258 | X88: =[3]主表!N86 -> 0 | Y88: =[3]主表!$G86 -> 3036 | Z88: =[3]升级!$H86 -> 1200 | AA88: 0.15 | AB88: -1 | AC88: 4 | AD88: 4 | AE88: 3 | AF88: 950 | AJ88: 1 | AK88: 2 | AL88: 84 | AS88: =IF(AR88="","",1) ->  | AU88: =IF(AT88="","",1) ->  | AW88: =IF(AV88="","",1) ->  | AY88: =IF(AX88="","",1) ->  | AZ88: =IF(AN88="","",VLOOKUP(AN88,[4]ItemConfig!$A:$C,3,FALSE)&AO88) ->  | BA88: =IF(AP88="","",VLOOKUP(AP88,[4]ItemConfig!$A:$C,3,FALSE)&AQ88) ->  | BB88: =IF(AR88="","",VLOOKUP(AR88,[4]ItemConfig!$A:$C,3,FALSE)&AS88) ->  | BC88: =IF(AT88="","",VLOOKUP(AT88,[4]ItemConfig!$A:$C,3,FALSE)&AU88) ->  | BD88: =IF(AV88="","",VLOOKUP(AV88,[4]ItemConfig!$A:$C,3,FALSE)&AW88) ->  | BE88: =IF(AX88="","",VLOOKUP(AX88,[4]ItemConfig!$A:$C,3,FALSE)&AY88) ->  | BF88: 240
A89: 85 | B89: 85 | C89: 3 | D89: 9 | E89: 5 | F89: 227;237;242 | G89: 结丹 | H89: 后期. | I89: 五重 | J89: 227 | K89: 237 | L89: 242 | M89: =ROUND([1]ResourceLevelConfig!$E89*[1]ResourceLevelConfig!$L89*0.1,0)*10 -> 2230 | N89: -1 | O89: 0 | P89: -1 | Q89: -1 | R89: -1 | S89: -1 | T89: 0 | U89: =[3]主表!K87 -> 301.7239296 | V89: =[3]主表!L87 -> 8.296742105 | W89: =[3]主表!M87 -> 8.296742105 | X89: =[3]主表!N87 -> 0 | Y89: =[3]主表!$G87 -> 3102 | Z89: =[3]升级!$H87 -> 1200 | AA89: 0.15 | AB89: -1 | AC89: 4 | AD89: 4 | AE89: 3 | AF89: 960 | AJ89: 1 | AK89: 2 | AL89: 85 | AS89: =IF(AR89="","",1) ->  | AU89: =IF(AT89="","",1) ->  | AW89: =IF(AV89="","",1) ->  | AY89: =IF(AX89="","",1) ->  | AZ89: =IF(AN89="","",VLOOKUP(AN89,[4]ItemConfig!$A:$C,3,FALSE)&AO89) ->  | BA89: =IF(AP89="","",VLOOKUP(AP89,[4]ItemConfig!$A:$C,3,FALSE)&AQ89) ->  | BB89: =IF(AR89="","",VLOOKUP(AR89,[4]ItemConfig!$A:$C,3,FALSE)&AS89) ->  | BC89: =IF(AT89="","",VLOOKUP(AT89,[4]ItemConfig!$A:$C,3,FALSE)&AU89) ->  | BD89: =IF(AV89="","",VLOOKUP(AV89,[4]ItemConfig!$A:$C,3,FALSE)&AW89) ->  | BE89: =IF(AX89="","",VLOOKUP(AX89,[4]ItemConfig!$A:$C,3,FALSE)&AY89) ->  | BF89: 240
A90: 86 | B90: 86 | C90: 3 | D90: 9 | E90: 6 | F90: 227;237;243 | G90: 结丹 | H90: 后期. | I90: 六重 | J90: 227 | K90: 237 | L90: 243 | M90: =ROUND([1]ResourceLevelConfig!$E90*[1]ResourceLevelConfig!$L90*0.1,0)*10 -> 2380 | N90: -1 | O90: 0 | P90: -1 | Q90: -1 | R90: -1 | S90: -1 | T90: 0 | U90: =[3]主表!K88 -> 308.9376822 | V90: =[3]主表!L88 -> 8.408763293 | W90: =[3]主表!M88 -> 8.408763293 | X90: =[3]主表!N88 -> 0 | Y90: =[3]主表!$G88 -> 3169 | Z90: =[3]升级!$H88 -> 1200 | AA90: 0.17 | AB90: -1 | AC90: 4 | AD90: 4 | AE90: 3 | AF90: 970 | AJ90: 1 | AK90: 2 | AL90: 86 | AS90: =IF(AR90="","",1) ->  | AU90: =IF(AT90="","",1) ->  | AW90: =IF(AV90="","",1) ->  | AY90: =IF(AX90="","",1) ->  | AZ90: =IF(AN90="","",VLOOKUP(AN90,[4]ItemConfig!$A:$C,3,FALSE)&AO90) ->  | BA90: =IF(AP90="","",VLOOKUP(AP90,[4]ItemConfig!$A:$C,3,FALSE)&AQ90) ->  | BB90: =IF(AR90="","",VLOOKUP(AR90,[4]ItemConfig!$A:$C,3,FALSE)&AS90) ->  | BC90: =IF(AT90="","",VLOOKUP(AT90,[4]ItemConfig!$A:$C,3,FALSE)&AU90) ->  | BD90: =IF(AV90="","",VLOOKUP(AV90,[4]ItemConfig!$A:$C,3,FALSE)&AW90) ->  | BE90: =IF(AX90="","",VLOOKUP(AX90,[4]ItemConfig!$A:$C,3,FALSE)&AY90) ->  | BF90: 240
A91: 87 | B91: 87 | C91: 3 | D91: 9 | E91: 7 | F91: 227;237;244 | G91: 结丹 | H91: 后期. | I91: 七重 | J91: 227 | K91: 237 | L91: 244 | M91: =ROUND([1]ResourceLevelConfig!$E91*[1]ResourceLevelConfig!$L91*0.1,0)*10 -> 2390 | N91: -1 | O91: 0 | P91: -1 | Q91: -1 | R91: -1 | S91: -1 | T91: 0 | U91: =[3]主表!K89 -> 316.2912283 | V91: =[3]主表!L89 -> 8.522296972 | W91: =[3]主表!M89 -> 8.522296972 | X91: =[3]主表!N89 -> 0 | Y91: =[3]主表!$G89 -> 3237 | Z91: =[3]升级!$H89 -> 1200 | AA91: 0.17 | AB91: -1 | AC91: 4 | AD91: 4 | AE91: 3 | AF91: 980 | AJ91: 1 | AK91: 2 | AL91: 87 | AS91: =IF(AR91="","",1) ->  | AU91: =IF(AT91="","",1) ->  | AW91: =IF(AV91="","",1) ->  | AY91: =IF(AX91="","",1) ->  | AZ91: =IF(AN91="","",VLOOKUP(AN91,[4]ItemConfig!$A:$C,3,FALSE)&AO91) ->  | BA91: =IF(AP91="","",VLOOKUP(AP91,[4]ItemConfig!$A:$C,3,FALSE)&AQ91) ->  | BB91: =IF(AR91="","",VLOOKUP(AR91,[4]ItemConfig!$A:$C,3,FALSE)&AS91) ->  | BC91: =IF(AT91="","",VLOOKUP(AT91,[4]ItemConfig!$A:$C,3,FALSE)&AU91) ->  | BD91: =IF(AV91="","",VLOOKUP(AV91,[4]ItemConfig!$A:$C,3,FALSE)&AW91) ->  | BE91: =IF(AX91="","",VLOOKUP(AX91,[4]ItemConfig!$A:$C,3,FALSE)&AY91) ->  | BF91: 240
A92: 88 | B92: 88 | C92: 3 | D92: 9 | E92: 8 | F92: 227;237;245 | G92: 结丹 | H92: 后期. | I92: 八重 | J92: 227 | K92: 237 | L92: 245 | M92: =ROUND([1]ResourceLevelConfig!$E92*[1]ResourceLevelConfig!$L92*0.1,0)*10 -> 2410 | N92: -1 | O92: 0 | P92: -1 | Q92: -1 | R92: -1 | S92: -1 | T92: 0 | U92: =[3]主表!K90 -> 323.787028 | V92: =[3]主表!L90 -> 8.637363563 | W92: =[3]主表!M90 -> 8.637363563 | X92: =[3]主表!N90 -> 0 | Y92: =[3]主表!$G90 -> 3308 | Z92: =[3]升级!$H90 -> 1200 | AA92: 0.17 | AB92: -1 | AC92: 4 | AD92: 4 | AE92: 3 | AF92: 990 | AJ92: 1 | AK92: 2 | AL92: 88 | AS92: =IF(AR92="","",1) ->  | AU92: =IF(AT92="","",1) ->  | AW92: =IF(AV92="","",1) ->  | AY92: =IF(AX92="","",1) ->  | AZ92: =IF(AN92="","",VLOOKUP(AN92,[4]ItemConfig!$A:$C,3,FALSE)&AO92) ->  | BA92: =IF(AP92="","",VLOOKUP(AP92,[4]ItemConfig!$A:$C,3,FALSE)&AQ92) ->  | BB92: =IF(AR92="","",VLOOKUP(AR92,[4]ItemConfig!$A:$C,3,FALSE)&AS92) ->  | BC92: =IF(AT92="","",VLOOKUP(AT92,[4]ItemConfig!$A:$C,3,FALSE)&AU92) ->  | BD92: =IF(AV92="","",VLOOKUP(AV92,[4]ItemConfig!$A:$C,3,FALSE)&AW92) ->  | BE92: =IF(AX92="","",VLOOKUP(AX92,[4]ItemConfig!$A:$C,3,FALSE)&AY92) ->  | BF92: 240
A93: 89 | B93: 89 | C93: 3 | D93: 9 | E93: 9 | F93: 227;237;246 | G93: 结丹 | H93: 后期. | I93: 九重 | J93: 227 | K93: 237 | L93: 246 | M93: =ROUND([1]ResourceLevelConfig!$E93*[1]ResourceLevelConfig!$L93*0.1,0)*10 -> 2430 | N93: -1 | O93: 0 | P93: -1 | Q93: -1 | R93: -1 | S93: -1 | T93: 0 | U93: =[3]主表!K91 -> 331.427582 | V93: =[3]主表!L91 -> 8.753983764 | W93: =[3]主表!M91 -> 8.753983764 | X93: =[3]主表!N91 -> 0 | Y93: =[3]主表!$G91 -> 3380 | Z93: =[3]升级!$H91 -> 1200 | AA93: 0.17 | AB93: -1 | AC93: 4 | AD93: 4 | AE93: 3 | AF93: 1000 | AJ93: 1 | AK93: 2 | AL93: 89 | AS93: =IF(AR93="","",1) ->  | AU93: =IF(AT93="","",1) ->  | AW93: =IF(AV93="","",1) ->  | AY93: =IF(AX93="","",1) ->  | AZ93: =IF(AN93="","",VLOOKUP(AN93,[4]ItemConfig!$A:$C,3,FALSE)&AO93) ->  | BA93: =IF(AP93="","",VLOOKUP(AP93,[4]ItemConfig!$A:$C,3,FALSE)&AQ93) ->  | BB93: =IF(AR93="","",VLOOKUP(AR93,[4]ItemConfig!$A:$C,3,FALSE)&AS93) ->  | BC93: =IF(AT93="","",VLOOKUP(AT93,[4]ItemConfig!$A:$C,3,FALSE)&AU93) ->  | BD93: =IF(AV93="","",VLOOKUP(AV93,[4]ItemConfig!$A:$C,3,FALSE)&AW93) ->  | BE93: =IF(AX93="","",VLOOKUP(AX93,[4]ItemConfig!$A:$C,3,FALSE)&AY93) ->  | BF93: 240
A94: 90 | B94: 90 | C94: 3 | D94: 9 | E94: 10 | F94: 227;237;247 | G94: 结丹 | H94: 后期. | I94: 十重 | J94: 227 | K94: 237 | L94: 247 | M94: =ROUND([1]ResourceLevelConfig!$E94*[1]ResourceLevelConfig!$L94*0.1,0)*10 -> 2450 | N94: 100005 | O94: 0 | P94: =AN94 -> 1309 | Q94: =AO94 -> 1 | R94: =_xlfn.TEXTJOIN(";",1,AP94,AR94,AT94,AV94) -> 1203;1204 | S94: =_xlfn.TEXTJOIN(";",1,AQ94,AS94,AU94,AW94) -> 1;1 | T94: =CONCATENATE(ROUND(0.6*VLOOKUP(A94,[3]主表!$A:$P,16,FALSE)*[5]HeroModelConfig!$Q$5,0),";",ROUND(0.9*VLOOKUP(A94,[3]主表!$A:$P,16,FALSE)*[5]HeroModelConfig!$Q$5,0),";",INT(A94/30)+1) -> 39606;59409;4 | U94: =[3]主表!K92 -> 339.2154326 | V94: =[3]主表!L92 -> 8.87217855 | W94: =[3]主表!M92 -> 8.87217855 | X94: =[3]主表!N92 -> 0 | Y94: =[3]主表!$G92 -> 3453 | Z94: =[3]升级!$H92 -> 1200 | AA94: 0.17 | AB94: 15 | AC94: 4 | AD94: 4 | AE94: 3 | AF94: 1010 | AJ94: 1 | AK94: 2 | AL94: 90 | AN94: 1309 | AO94: 1 | AP94: 1203 | AQ94: 1 | AR94: 1204 | AS94: =IF(AR94="","",1) -> 1 | AU94: =IF(AT94="","",1) ->  | AW94: =IF(AV94="","",1) ->  | AY94: =IF(AX94="","",1) ->  | AZ94: =IF(AN94="","",VLOOKUP(AN94,[4]ItemConfig!$A:$C,3,FALSE)&AO94) -> 九窍芝1 | BA94: =IF(AP94="","",VLOOKUP(AP94,[4]ItemConfig!$A:$C,3,FALSE)&AQ94) -> 赤阳砂1 | BB94: =IF(AR94="","",VLOOKUP(AR94,[4]ItemConfig!$A:$C,3,FALSE)&AS94) -> 火灵果1 | BC94: =IF(AT94="","",VLOOKUP(AT94,[4]ItemConfig!$A:$C,3,FALSE)&AU94) ->  | BD94: =IF(AV94="","",VLOOKUP(AV94,[4]ItemConfig!$A:$C,3,FALSE)&AW94) ->  | BE94: =IF(AX94="","",VLOOKUP(AX94,[4]ItemConfig!$A:$C,3,FALSE)&AY94) ->  | BF94: 240
A95: 91 | B95: 91 | C95: 4 | D95: 10 | E95: 1 | F95: 228;235;238 | G95: 元婴 | H95: 前期. | I95: 一重 | J95: 228 | K95: 235 | L95: 238 | M95: =ROUND([1]ResourceLevelConfig!$E95*[1]ResourceLevelConfig!$L95*0.1,0)*10 -> 2470 | N95: -1 | O95: 0 | P95: -1 | Q95: -1 | R95: =IF(I95=10,"1001;1002;1004",-1) -> -1 | S95: =IF(R95=-1,-1,"100;200;300") -> -1 | T95: 0 | U95: =[3]主表!K93 -> 445.2869265 | V95: =[3]主表!L93 -> 11.53383212 | W95: =[3]主表!M93 -> 11.53383212 | X95: =[3]主表!N93 -> 0 | Y95: =[3]主表!$G93 -> 4623 | Z95: =[3]升级!$H93 -> 1300 | AA95: 0.17 | AB95: -1 | AC95: 4 | AD95: 4 | AE95: 4 | AF95: 1020 | AJ95: 1 | AK95: 2 | AL95: 91 | AS95: =IF(AR95="","",1) ->  | AU95: =IF(AT95="","",1) ->  | AW95: =IF(AV95="","",1) ->  | AY95: =IF(AX95="","",1) ->  | AZ95: =IF(AN95="","",VLOOKUP(AN95,[4]ItemConfig!$A:$C,3,FALSE)&AO95) ->  | BA95: =IF(AP95="","",VLOOKUP(AP95,[4]ItemConfig!$A:$C,3,FALSE)&AQ95) ->  | BB95: =IF(AR95="","",VLOOKUP(AR95,[4]ItemConfig!$A:$C,3,FALSE)&AS95) ->  | BC95: =IF(AT95="","",VLOOKUP(AT95,[4]ItemConfig!$A:$C,3,FALSE)&AU95) ->  | BD95: =IF(AV95="","",VLOOKUP(AV95,[4]ItemConfig!$A:$C,3,FALSE)&AW95) ->  | BE95: =IF(AX95="","",VLOOKUP(AX95,[4]ItemConfig!$A:$C,3,FALSE)&AY95) ->  | BF95: 240
A96: 92 | B96: 92 | C96: 4 | D96: 10 | E96: 2 | F96: 228;235;239 | G96: 元婴 | H96: 前期. | I96: 二重 | J96: 228 | K96: 235 | L96: 239 | M96: =ROUND([1]ResourceLevelConfig!$E96*[1]ResourceLevelConfig!$L96*0.1,0)*10 -> 2490 | N96: -1 | O96: 0 | P96: -1 | Q96: -1 | R96: =IF(I96=10,"1001;1002;1004",-1) -> -1 | S96: =IF(R96=-1,-1,"100;200;300") -> -1 | T96: 0 | U96: =[3]主表!K94 -> 455.6641288 | V96: =[3]主表!L94 -> 11.68955994 | W96: =[3]主表!M94 -> 11.68955994 | X96: =[3]主表!N94 -> 0 | Y96: =[3]主表!$G94 -> 4704 | Z96: =[3]升级!$H94 -> 1300 | AA96: 0.17 | AB96: -1 | AC96: 4 | AD96: 4 | AE96: 4 | AF96: 1030 | AJ96: 1 | AK96: 2 | AL96: 92 | AS96: =IF(AR96="","",1) ->  | AU96: =IF(AT96="","",1) ->  | AW96: =IF(AV96="","",1) ->  | AY96: =IF(AX96="","",1) ->  | AZ96: =IF(AN96="","",VLOOKUP(AN96,[4]ItemConfig!$A:$C,3,FALSE)&AO96) ->  | BA96: =IF(AP96="","",VLOOKUP(AP96,[4]ItemConfig!$A:$C,3,FALSE)&AQ96) ->  | BB96: =IF(AR96="","",VLOOKUP(AR96,[4]ItemConfig!$A:$C,3,FALSE)&AS96) ->  | BC96: =IF(AT96="","",VLOOKUP(AT96,[4]ItemConfig!$A:$C,3,FALSE)&AU96) ->  | BD96: =IF(AV96="","",VLOOKUP(AV96,[4]ItemConfig!$A:$C,3,FALSE)&AW96) ->  | BE96: =IF(AX96="","",VLOOKUP(AX96,[4]ItemConfig!$A:$C,3,FALSE)&AY96) ->  | BF96: 240
A97: 93 | B97: 93 | C97: 4 | D97: 10 | E97: 3 | F97: 228;235;240 | G97: 元婴 | H97: 前期. | I97: 三重 | J97: 228 | K97: 235 | L97: 240 | M97: =ROUND([1]ResourceLevelConfig!$E97*[1]ResourceLevelConfig!$L97*0.1,0)*10 -> 2510 | N97: -1 | O97: 0 | P97: -1 | Q97: -1 | R97: -1 | S97: -1 | T97: 0 | U97: =[3]主表!K95 -> 466.2403779 | V97: =[3]主表!L95 -> 11.84739037 | W97: =[3]主表!M95 -> 11.84739037 | X97: =[3]主表!N95 -> 0 | Y97: =[3]主表!$G95 -> 4787 | Z97: =[3]升级!$H95 -> 1300 | AA97: 0.17 | AB97: -1 | AC97: 4 | AD97: 4 | AE97: 4 | AF97: 1040 | AJ97: 1 | AK97: 2 | AL97: 93 | AS97: =IF(AR97="","",1) ->  | AU97: =IF(AT97="","",1) ->  | AW97: =IF(AV97="","",1) ->  | AY97: =IF(AX97="","",1) ->  | AZ97: =IF(AN97="","",VLOOKUP(AN97,[4]ItemConfig!$A:$C,3,FALSE)&AO97) ->  | BA97: =IF(AP97="","",VLOOKUP(AP97,[4]ItemConfig!$A:$C,3,FALSE)&AQ97) ->  | BB97: =IF(AR97="","",VLOOKUP(AR97,[4]ItemConfig!$A:$C,3,FALSE)&AS97) ->  | BC97: =IF(AT97="","",VLOOKUP(AT97,[4]ItemConfig!$A:$C,3,FALSE)&AU97) ->  | BD97: =IF(AV97="","",VLOOKUP(AV97,[4]ItemConfig!$A:$C,3,FALSE)&AW97) ->  | BE97: =IF(AX97="","",VLOOKUP(AX97,[4]ItemConfig!$A:$C,3,FALSE)&AY97) ->  | BF97: 240
A98: 94 | B98: 94 | C98: 4 | D98: 10 | E98: 4 | F98: 228;235;241 | G98: 元婴 | H98: 前期. | I98: 四重 | J98: 228 | K98: 235 | L98: 241 | M98: =ROUND([1]ResourceLevelConfig!$E98*[1]ResourceLevelConfig!$L98*0.1,0)*10 -> 2530 | N98: -1 | O98: 0 | P98: -1 | Q98: -1 | R98: -1 | S98: -1 | T98: 0 | U98: =[3]主表!K96 -> 477.0191572 | V98: =[3]主表!L96 -> 12.0073518 | W98: =[3]主表!M96 -> 12.0073518 | X98: =[3]主表!N96 -> 0 | Y98: =[3]主表!$G96 -> 4871 | Z98: =[3]升级!$H96 -> 1300 | AA98: 0.18 | AB98: -1 | AC98: 4 | AD98: 4 | AE98: 4 | AF98: 1050 | AJ98: 1 | AK98: 2 | AL98: 94 | AS98: =IF(AR98="","",1) ->  | AU98: =IF(AT98="","",1) ->  | AW98: =IF(AV98="","",1) ->  | AY98: =IF(AX98="","",1) ->  | AZ98: =IF(AN98="","",VLOOKUP(AN98,[4]ItemConfig!$A:$C,3,FALSE)&AO98) ->  | BA98: =IF(AP98="","",VLOOKUP(AP98,[4]ItemConfig!$A:$C,3,FALSE)&AQ98) ->  | BB98: =IF(AR98="","",VLOOKUP(AR98,[4]ItemConfig!$A:$C,3,FALSE)&AS98) ->  | BC98: =IF(AT98="","",VLOOKUP(AT98,[4]ItemConfig!$A:$C,3,FALSE)&AU98) ->  | BD98: =IF(AV98="","",VLOOKUP(AV98,[4]ItemConfig!$A:$C,3,FALSE)&AW98) ->  | BE98: =IF(AX98="","",VLOOKUP(AX98,[4]ItemConfig!$A:$C,3,FALSE)&AY98) ->  | BF98: 240
A99: 95 | B99: 95 | C99: 4 | D99: 10 | E99: 5 | F99: 228;235;242 | G99: 元婴 | H99: 前期. | I99: 五重 | J99: 228 | K99: 235 | L99: 242 | M99: =ROUND([1]ResourceLevelConfig!$E99*[1]ResourceLevelConfig!$L99*0.1,0)*10 -> 2550 | N99: -1 | O99: 0 | P99: -1 | Q99: -1 | R99: -1 | S99: -1 | T99: =IF(G99=G100,0,CONCATENATE("1;1")) -> 0 | U99: =[3]主表!K97 -> 488.0040076 | V99: =[3]主表!L97 -> 12.16947301 | W99: =[3]主表!M97 -> 12.16947301 | X99: =[3]主表!N97 -> 0 | Y99: =[3]主表!$G97 -> 4956 | Z99: =[3]升级!$H97 -> 1300 | AA99: 0.18 | AB99: -1 | AC99: 4 | AD99: 4 | AE99: 4 | AF99: 1060 | AJ99: 1 | AK99: 2 | AL99: 95 | AS99: =IF(AR99="","",1) ->  | AU99: =IF(AT99="","",1) ->  | AW99: =IF(AV99="","",1) ->  | AY99: =IF(AX99="","",1) ->  | AZ99: =IF(AN99="","",VLOOKUP(AN99,[4]ItemConfig!$A:$C,3,FALSE)&AO99) ->  | BA99: =IF(AP99="","",VLOOKUP(AP99,[4]ItemConfig!$A:$C,3,FALSE)&AQ99) ->  | BB99: =IF(AR99="","",VLOOKUP(AR99,[4]ItemConfig!$A:$C,3,FALSE)&AS99) ->  | BC99: =IF(AT99="","",VLOOKUP(AT99,[4]ItemConfig!$A:$C,3,FALSE)&AU99) ->  | BD99: =IF(AV99="","",VLOOKUP(AV99,[4]ItemConfig!$A:$C,3,FALSE)&AW99) ->  | BE99: =IF(AX99="","",VLOOKUP(AX99,[4]ItemConfig!$A:$C,3,FALSE)&AY99) ->  | BF99: 240
A100: 96 | B100: 96 | C100: 4 | D100: 10 | E100: 6 | F100: 228;235;243 | G100: 元婴 | H100: 前期. | I100: 六重 | J100: 228 | K100: 235 | L100: 243 | M100: =ROUND([1]ResourceLevelConfig!$E100*[1]ResourceLevelConfig!$L100*0.1,0)*10 -> 2700 | N100: -1 | O100: 0 | P100: -1 | Q100: -1 | R100: -1 | S100: -1 | T100: 0 | U100: =[3]主表!K98 -> 499.1985289 | V100: =[3]主表!L98 -> 12.33378314 | W100: =[3]主表!M98 -> 12.33378314 | X100: =[3]主表!N98 -> 0 | Y100: =[3]主表!$G98 -> 5043 | Z100: =[3]升级!$H98 -> 1300 | AA100: 0.19 | AB100: -1 | AC100: 4 | AD100: 4 | AE100: 4 | AF100: 1070 | AJ100: 1 | AK100: 2 | AL100: 96 | AS100: =IF(AR100="","",1) ->  | AU100: =IF(AT100="","",1) ->  | AW100: =IF(AV100="","",1) ->  | AY100: =IF(AX100="","",1) ->  | AZ100: =IF(AN100="","",VLOOKUP(AN100,[4]ItemConfig!$A:$C,3,FALSE)&AO100) ->  | BA100: =IF(AP100="","",VLOOKUP(AP100,[4]ItemConfig!$A:$C,3,FALSE)&AQ100) ->  | BB100: =IF(AR100="","",VLOOKUP(AR100,[4]ItemConfig!$A:$C,3,FALSE)&AS100) ->  | BC100: =IF(AT100="","",VLOOKUP(AT100,[4]ItemConfig!$A:$C,3,FALSE)&AU100) ->  | BD100: =IF(AV100="","",VLOOKUP(AV100,[4]ItemConfig!$A:$C,3,FALSE)&AW100) ->  | BE100: =IF(AX100="","",VLOOKUP(AX100,[4]ItemConfig!$A:$C,3,FALSE)&AY100) ->  | BF100: 240
A101: 97 | B101: 97 | C101: 4 | D101: 10 | E101: 7 | F101: 228;235;244 | G101: 元婴 | H101: 前期. | I101: 七重 | J101: 228 | K101: 235 | L101: 244 | M101: =ROUND([1]ResourceLevelConfig!$E101*[1]ResourceLevelConfig!$L101*0.1,0)*10 -> 2720 | N101: -1 | O101: 0 | P101: -1 | Q101: -1 | R101: -1 | S101: -1 | T101: 0 | U101: =[3]主表!K99 -> 510.6063803 | V101: =[3]主表!L99 -> 12.50031177 | W101: =[3]主表!M99 -> 12.50031177 | X101: =[3]主表!N99 -> 0 | Y101: =[3]主表!$G99 -> 5131 | Z101: =[3]升级!$H99 -> 1300 | AA101: 0.19 | AB101: -1 | AC101: 4 | AD101: 4 | AE101: 4 | AF101: 1080 | AJ101: 1 | AK101: 2 | AL101: 97 | AS101: =IF(AR101="","",1) ->  | AU101: =IF(AT101="","",1) ->  | AW101: =IF(AV101="","",1) ->  | AY101: =IF(AX101="","",1) ->  | AZ101: =IF(AN101="","",VLOOKUP(AN101,[4]ItemConfig!$A:$C,3,FALSE)&AO101) ->  | BA101: =IF(AP101="","",VLOOKUP(AP101,[4]ItemConfig!$A:$C,3,FALSE)&AQ101) ->  | BB101: =IF(AR101="","",VLOOKUP(AR101,[4]ItemConfig!$A:$C,3,FALSE)&AS101) ->  | BC101: =IF(AT101="","",VLOOKUP(AT101,[4]ItemConfig!$A:$C,3,FALSE)&AU101) ->  | BD101: =IF(AV101="","",VLOOKUP(AV101,[4]ItemConfig!$A:$C,3,FALSE)&AW101) ->  | BE101: =IF(AX101="","",VLOOKUP(AX101,[4]ItemConfig!$A:$C,3,FALSE)&AY101) ->  | BF101: 240
A102: 98 | B102: 98 | C102: 4 | D102: 10 | E102: 8 | F102: 228;235;245 | G102: 元婴 | H102: 前期. | I102: 八重 | J102: 228 | K102: 235 | L102: 245 | M102: =ROUND([1]ResourceLevelConfig!$E102*[1]ResourceLevelConfig!$L102*0.1,0)*10 -> 2740 | N102: -1 | O102: 0 | P102: -1 | Q102: -1 | R102: -1 | S102: -1 | T102: 0 | U102: =[3]主表!K100 -> 522.2312819 | V102: =[3]主表!L100 -> 12.66908883 | W102: =[3]主表!M100 -> 12.66908883 | X102: =[3]主表!N100 -> 0 | Y102: =[3]主表!$G100 -> 5221 | Z102: =[3]升级!$H100 -> 1300 | AA102: 0.19 | AB102: -1 | AC102: 4 | AD102: 4 | AE102: 4 | AF102: 1090 | AJ102: 1 | AK102: 2 | AL102: 98 | AS102: =IF(AR102="","",1) ->  | AU102: =IF(AT102="","",1) ->  | AW102: =IF(AV102="","",1) ->  | AY102: =IF(AX102="","",1) ->  | AZ102: =IF(AN102="","",VLOOKUP(AN102,[4]ItemConfig!$A:$C,3,FALSE)&AO102) ->  | BA102: =IF(AP102="","",VLOOKUP(AP102,[4]ItemConfig!$A:$C,3,FALSE)&AQ102) ->  | BB102: =IF(AR102="","",VLOOKUP(AR102,[4]ItemConfig!$A:$C,3,FALSE)&AS102) ->  | BC102: =IF(AT102="","",VLOOKUP(AT102,[4]ItemConfig!$A:$C,3,FALSE)&AU102) ->  | BD102: =IF(AV102="","",VLOOKUP(AV102,[4]ItemConfig!$A:$C,3,FALSE)&AW102) ->  | BE102: =IF(AX102="","",VLOOKUP(AX102,[4]ItemConfig!$A:$C,3,FALSE)&AY102) ->  | BF102: 240
A103: 99 | B103: 99 | C103: 4 | D103: 10 | E103: 9 | F103: 228;235;246 | G103: 元婴 | H103: 前期. | I103: 九重 | J103: 228 | K103: 235 | L103: 246 | M103: =ROUND([1]ResourceLevelConfig!$E103*[1]ResourceLevelConfig!$L103*0.1,0)*10 -> 2760 | N103: -1 | O103: 0 | P103: -1 | Q103: -1 | R103: -1 | S103: -1 | T103: 0 | U103: =[3]主表!K101 -> 534.0770151 | V103: =[3]主表!L101 -> 12.84014469 | W103: =[3]主表!M101 -> 12.84014469 | X103: =[3]主表!N101 -> 0 | Y103: =[3]主表!$G101 -> 5312 | Z103: =[3]升级!$H101 -> 1300 | AA103: 0.19 | AB103: -1 | AC103: 4 | AD103: 4 | AE103: 4 | AF103: 1100 | AJ103: 1 | AK103: 2 | AL103: 99 | AS103: =IF(AR103="","",1) ->  | AU103: =IF(AT103="","",1) ->  | AW103: =IF(AV103="","",1) ->  | AY103: =IF(AX103="","",1) ->  | AZ103: =IF(AN103="","",VLOOKUP(AN103,[4]ItemConfig!$A:$C,3,FALSE)&AO103) ->  | BA103: =IF(AP103="","",VLOOKUP(AP103,[4]ItemConfig!$A:$C,3,FALSE)&AQ103) ->  | BB103: =IF(AR103="","",VLOOKUP(AR103,[4]ItemConfig!$A:$C,3,FALSE)&AS103) ->  | BC103: =IF(AT103="","",VLOOKUP(AT103,[4]ItemConfig!$A:$C,3,FALSE)&AU103) ->  | BD103: =IF(AV103="","",VLOOKUP(AV103,[4]ItemConfig!$A:$C,3,FALSE)&AW103) ->  | BE103: =IF(AX103="","",VLOOKUP(AX103,[4]ItemConfig!$A:$C,3,FALSE)&AY103) ->  | BF103: 240
A104: 100 | B104: 100 | C104: 4 | D104: 10 | E104: 10 | F104: 228;235;247 | G104: 元婴 | H104: 前期. | I104: 十重 | J104: 228 | K104: 235 | L104: 247 | M104: =ROUND([1]ResourceLevelConfig!$E104*[1]ResourceLevelConfig!$L104*0.1,0)*10 -> 2780 | N104: 100005 | O104: 0 | P104: =AN104 -> 1310 | Q104: =AO104 -> 1 | R104: =_xlfn.TEXTJOIN(";",1,AP104,AR104,AT104,AV104) -> 1205;1206 | S104: =_xlfn.TEXTJOIN(";",1,AQ104,AS104,AU104,AW104) -> 1;1 | T104: 0 | U104: =[3]主表!K102 -> 546.1474239 | V104: =[3]主表!L102 -> 13.01351012 | W104: =[3]主表!M102 -> 13.01351012 | X104: =[3]主表!N102 -> 0 | Y104: =[3]主表!$G102 -> 5405 | Z104: =[3]升级!$H102 -> 1300 | AA104: 0.19 | AB104: 15 | AC104: 4 | AD104: 4 | AE104: 4 | AF104: 1110 | AJ104: 1 | AK104: 2 | AL104: 100 | AN104: 1310 | AO104: 1 | AP104: 1205 | AQ104: 1 | AR104: 1206 | AS104: =IF(AR104="","",1) -> 1 | AU104: =IF(AT104="","",1) ->  | AW104: =IF(AV104="","",1) ->  | AY104: =IF(AX104="","",1) ->  | AZ104: =IF(AN104="","",VLOOKUP(AN104,[4]ItemConfig!$A:$C,3,FALSE)&AO104) -> 婴化丹1 | BA104: =IF(AP104="","",VLOOKUP(AP104,[4]ItemConfig!$A:$C,3,FALSE)&AQ104) -> 婴魂草1 | BB104: =IF(AR104="","",VLOOKUP(AR104,[4]ItemConfig!$A:$C,3,FALSE)&AS104) -> 灵魄藤1 | BC104: =IF(AT104="","",VLOOKUP(AT104,[4]ItemConfig!$A:$C,3,FALSE)&AU104) ->  | BD104: =IF(AV104="","",VLOOKUP(AV104,[4]ItemConfig!$A:$C,3,FALSE)&AW104) ->  | BE104: =IF(AX104="","",VLOOKUP(AX104,[4]ItemConfig!$A:$C,3,FALSE)&AY104) ->  | BF104: 240
A105: 101 | B105: 101 | C105: 4 | D105: 11 | E105: 1 | F105: 228;236;238 | G105: 元婴 | H105: 中期. | I105: 一重 | J105: 228 | K105: 236 | L105: 238 | M105: =ROUND([1]ResourceLevelConfig!$E105*[1]ResourceLevelConfig!$L105*0.1,0)*10 -> 2800 | N105: -1 | O105: 0 | P105: -1 | Q105: -1 | R105: =IF(I105=10,"1001;1002;1004",-1) -> -1 | S105: -1 | T105: 0 | U105: =[3]主表!K103 -> 606.1074982 | V105: =[3]主表!L103 -> 14.31486114 | W105: =[3]主表!M103 -> 14.31486114 | X105: =[3]主表!N103 -> 0 | Y105: =[3]主表!$G103 -> 6096 | Z105: =[3]升级!$H103 -> 1300 | AA105: 0.19 | AB105: -1 | AC105: 4 | AD105: 4 | AE105: 4 | AF105: 1120 | AJ105: 1 | AK105: 2 | AL105: 101 | AS105: =IF(AR105="","",1) ->  | AU105: =IF(AT105="","",1) ->  | AW105: =IF(AV105="","",1) ->  | AY105: =IF(AX105="","",1) ->  | AZ105: =IF(AN105="","",VLOOKUP(AN105,[4]ItemConfig!$A:$C,3,FALSE)&AO105) ->  | BA105: =IF(AP105="","",VLOOKUP(AP105,[4]ItemConfig!$A:$C,3,FALSE)&AQ105) ->  | BB105: =IF(AR105="","",VLOOKUP(AR105,[4]ItemConfig!$A:$C,3,FALSE)&AS105) ->  | BC105: =IF(AT105="","",VLOOKUP(AT105,[4]ItemConfig!$A:$C,3,FALSE)&AU105) ->  | BD105: =IF(AV105="","",VLOOKUP(AV105,[4]ItemConfig!$A:$C,3,FALSE)&AW105) ->  | BE105: =IF(AX105="","",VLOOKUP(AX105,[4]ItemConfig!$A:$C,3,FALSE)&AY105) ->  | BF105: 240
A106: 102 | B106: 102 | C106: 4 | D106: 11 | E106: 2 | F106: 228;236;239 | G106: 元婴 | H106: 中期. | I106: 二重 | J106: 228 | K106: 236 | L106: 239 | M106: =ROUND([1]ResourceLevelConfig!$E106*[1]ResourceLevelConfig!$L106*0.1,0)*10 -> 2820 | N106: -1 | O106: 0 | P106: -1 | Q106: -1 | R106: -1 | S106: -1 | T106: 0 | U106: =[3]主表!K104 -> 619.7085614 | V106: =[3]主表!L104 -> 14.50813793 | W106: =[3]主表!M104 -> 14.50813793 | X106: =[3]主表!N104 -> 0 | Y106: =[3]主表!$G104 -> 6200 | Z106: =[3]升级!$H104 -> 1300 | AA106: 0.2 | AB106: -1 | AC106: 4 | AD106: 4 | AE106: 4 | AF106: 1130 | AJ106: 1 | AK106: 2 | AL106: 102 | AS106: =IF(AR106="","",1) ->  | AU106: =IF(AT106="","",1) ->  | AW106: =IF(AV106="","",1) ->  | AY106: =IF(AX106="","",1) ->  | AZ106: =IF(AN106="","",VLOOKUP(AN106,[4]ItemConfig!$A:$C,3,FALSE)&AO106) ->  | BA106: =IF(AP106="","",VLOOKUP(AP106,[4]ItemConfig!$A:$C,3,FALSE)&AQ106) ->  | BB106: =IF(AR106="","",VLOOKUP(AR106,[4]ItemConfig!$A:$C,3,FALSE)&AS106) ->  | BC106: =IF(AT106="","",VLOOKUP(AT106,[4]ItemConfig!$A:$C,3,FALSE)&AU106) ->  | BD106: =IF(AV106="","",VLOOKUP(AV106,[4]ItemConfig!$A:$C,3,FALSE)&AW106) ->  | BE106: =IF(AX106="","",VLOOKUP(AX106,[4]ItemConfig!$A:$C,3,FALSE)&AY106) ->  | BF106: 240
A107: 103 | B107: 103 | C107: 4 | D107: 11 | E107: 3 | F107: 228;236;240 | G107: 元婴 | H107: 中期. | I107: 三重 | J107: 228 | K107: 236 | L107: 240 | M107: =ROUND([1]ResourceLevelConfig!$E107*[1]ResourceLevelConfig!$L107*0.1,0)*10 -> 2840 | N107: -1 | O107: 0 | P107: -1 | Q107: -1 | R107: -1 | S107: -1 | T107: 0 | U107: =[3]主表!K105 -> 633.5664099 | V107: =[3]主表!L105 -> 14.70402432 | W107: =[3]主表!M105 -> 14.70402432 | X107: =[3]主表!N105 -> 0 | Y107: =[3]主表!$G105 -> 6307 | Z107: =[3]升级!$H105 -> 1300 | AA107: 0.2 | AB107: -1 | AC107: 4 | AD107: 4 | AE107: 4 | AF107: 1140 | AJ107: 1 | AK107: 2 | AL107: 103 | AS107: =IF(AR107="","",1) ->  | AU107: =IF(AT107="","",1) ->  | AW107: =IF(AV107="","",1) ->  | AY107: =IF(AX107="","",1) ->  | AZ107: =IF(AN107="","",VLOOKUP(AN107,[4]ItemConfig!$A:$C,3,FALSE)&AO107) ->  | BA107: =IF(AP107="","",VLOOKUP(AP107,[4]ItemConfig!$A:$C,3,FALSE)&AQ107) ->  | BB107: =IF(AR107="","",VLOOKUP(AR107,[4]ItemConfig!$A:$C,3,FALSE)&AS107) ->  | BC107: =IF(AT107="","",VLOOKUP(AT107,[4]ItemConfig!$A:$C,3,FALSE)&AU107) ->  | BD107: =IF(AV107="","",VLOOKUP(AV107,[4]ItemConfig!$A:$C,3,FALSE)&AW107) ->  | BE107: =IF(AX107="","",VLOOKUP(AX107,[4]ItemConfig!$A:$C,3,FALSE)&AY107) ->  | BF107: 240
A108: 104 | B108: 104 | C108: 4 | D108: 11 | E108: 4 | F108: 228;236;241 | G108: 元婴 | H108: 中期. | I108: 四重 | J108: 228 | K108: 236 | L108: 241 | M108: =ROUND([1]ResourceLevelConfig!$E108*[1]ResourceLevelConfig!$L108*0.1,0)*10 -> 2860 | N108: -1 | O108: 0 | P108: -1 | Q108: -1 | R108: -1 | S108: -1 | T108: 0 | U108: =[3]主表!K106 -> 647.6854985 | V108: =[3]主表!L106 -> 14.90255554 | W108: =[3]主表!M106 -> 14.90255554 | X108: =[3]主表!N106 -> 0 | Y108: =[3]主表!$G106 -> 6415 | Z108: =[3]升级!$H106 -> 1300 | AA108: 0.2 | AB108: -1 | AC108: 4 | AD108: 4 | AE108: 4 | AF108: 1150 | AJ108: 1 | AK108: 2 | AL108: 104 | AS108: =IF(AR108="","",1) ->  | AU108: =IF(AT108="","",1) ->  | AW108: =IF(AV108="","",1) ->  | AY108: =IF(AX108="","",1) ->  | AZ108: =IF(AN108="","",VLOOKUP(AN108,[4]ItemConfig!$A:$C,3,FALSE)&AO108) ->  | BA108: =IF(AP108="","",VLOOKUP(AP108,[4]ItemConfig!$A:$C,3,FALSE)&AQ108) ->  | BB108: =IF(AR108="","",VLOOKUP(AR108,[4]ItemConfig!$A:$C,3,FALSE)&AS108) ->  | BC108: =IF(AT108="","",VLOOKUP(AT108,[4]ItemConfig!$A:$C,3,FALSE)&AU108) ->  | BD108: =IF(AV108="","",VLOOKUP(AV108,[4]ItemConfig!$A:$C,3,FALSE)&AW108) ->  | BE108: =IF(AX108="","",VLOOKUP(AX108,[4]ItemConfig!$A:$C,3,FALSE)&AY108) ->  | BF108: 240
A109: 105 | B109: 105 | C109: 4 | D109: 11 | E109: 5 | F109: 228;236;242 | G109: 元婴 | H109: 中期. | I109: 五重 | J109: 228 | K109: 236 | L109: 242 | M109: =ROUND([1]ResourceLevelConfig!$E109*[1]ResourceLevelConfig!$L109*0.1,0)*10 -> 2880 | N109: -1 | O109: 0 | P109: -1 | Q109: -1 | R109: -1 | S109: -1 | T109: 0 | U109: =[3]主表!K107 -> 662.0703554 | V109: =[3]主表!L107 -> 15.10376728 | W109: =[3]主表!M107 -> 15.10376728 | X109: =[3]主表!N107 -> 0 | Y109: =[3]主表!$G107 -> 6525 | Z109: =[3]升级!$H107 -> 1300 | AA109: 0.2 | AB109: -1 | AC109: 4 | AD109: 4 | AE109: 4 | AF109: 1160 | AJ109: 1 | AK109: 2 | AL109: 105 | AS109: =IF(AR109="","",1) ->  | AU109: =IF(AT109="","",1) ->  | AW109: =IF(AV109="","",1) ->  | AY109: =IF(AX109="","",1) ->  | AZ109: =IF(AN109="","",VLOOKUP(AN109,[4]ItemConfig!$A:$C,3,FALSE)&AO109) ->  | BA109: =IF(AP109="","",VLOOKUP(AP109,[4]ItemConfig!$A:$C,3,FALSE)&AQ109) ->  | BB109: =IF(AR109="","",VLOOKUP(AR109,[4]ItemConfig!$A:$C,3,FALSE)&AS109) ->  | BC109: =IF(AT109="","",VLOOKUP(AT109,[4]ItemConfig!$A:$C,3,FALSE)&AU109) ->  | BD109: =IF(AV109="","",VLOOKUP(AV109,[4]ItemConfig!$A:$C,3,FALSE)&AW109) ->  | BE109: =IF(AX109="","",VLOOKUP(AX109,[4]ItemConfig!$A:$C,3,FALSE)&AY109) ->  | BF109: 240
A110: 106 | B110: 106 | C110: 4 | D110: 11 | E110: 6 | F110: 228;236;243 | G110: 元婴 | H110: 中期. | I110: 六重 | J110: 228 | K110: 236 | L110: 243 | M110: =ROUND([1]ResourceLevelConfig!$E110*[1]ResourceLevelConfig!$L110*0.1,0)*10 -> 3050 | N110: -1 | O110: 0 | P110: -1 | Q110: -1 | R110: -1 | S110: -1 | T110: 0 | U110: =[3]主表!K108 -> 676.7255834 | V110: =[3]主表!L108 -> 15.30769576 | W110: =[3]主表!M108 -> 15.30769576 | X110: =[3]主表!N108 -> 0 | Y110: =[3]主表!$G108 -> 6637 | Z110: =[3]升级!$H108 -> 1300 | AA110: 0.21 | AB110: -1 | AC110: 4 | AD110: 4 | AE110: 4 | AF110: 1170 | AJ110: 1 | AK110: 2 | AL110: 106 | AS110: =IF(AR110="","",1) ->  | AU110: =IF(AT110="","",1) ->  | AW110: =IF(AV110="","",1) ->  | AY110: =IF(AX110="","",1) ->  | AZ110: =IF(AN110="","",VLOOKUP(AN110,[4]ItemConfig!$A:$C,3,FALSE)&AO110) ->  | BA110: =IF(AP110="","",VLOOKUP(AP110,[4]ItemConfig!$A:$C,3,FALSE)&AQ110) ->  | BB110: =IF(AR110="","",VLOOKUP(AR110,[4]ItemConfig!$A:$C,3,FALSE)&AS110) ->  | BC110: =IF(AT110="","",VLOOKUP(AT110,[4]ItemConfig!$A:$C,3,FALSE)&AU110) ->  | BD110: =IF(AV110="","",VLOOKUP(AV110,[4]ItemConfig!$A:$C,3,FALSE)&AW110) ->  | BE110: =IF(AX110="","",VLOOKUP(AX110,[4]ItemConfig!$A:$C,3,FALSE)&AY110) ->  | BF110: 240
A111: 107 | B111: 107 | C111: 4 | D111: 11 | E111: 7 | F111: 228;236;244 | G111: 元婴 | H111: 中期. | I111: 七重 | J111: 228 | K111: 236 | L111: 244 | M111: =ROUND([1]ResourceLevelConfig!$E111*[1]ResourceLevelConfig!$L111*0.1,0)*10 -> 3070 | N111: -1 | O111: 0 | P111: -1 | Q111: -1 | R111: -1 | S111: -1 | T111: 0 | U111: =[3]主表!K109 -> 691.6558612 | V111: =[3]主表!L109 -> 15.51437764 | W111: =[3]主表!M109 -> 15.51437764 | X111: =[3]主表!N109 -> 0 | Y111: =[3]主表!$G109 -> 6751 | Z111: =[3]升级!$H109 -> 1300 | AA111: 0.21 | AB111: -1 | AC111: 4 | AD111: 4 | AE111: 4 | AF111: 1180 | AJ111: 1 | AK111: 2 | AL111: 107 | AS111: =IF(AR111="","",1) ->  | AU111: =IF(AT111="","",1) ->  | AW111: =IF(AV111="","",1) ->  | AY111: =IF(AX111="","",1) ->  | AZ111: =IF(AN111="","",VLOOKUP(AN111,[4]ItemConfig!$A:$C,3,FALSE)&AO111) ->  | BA111: =IF(AP111="","",VLOOKUP(AP111,[4]ItemConfig!$A:$C,3,FALSE)&AQ111) ->  | BB111: =IF(AR111="","",VLOOKUP(AR111,[4]ItemConfig!$A:$C,3,FALSE)&AS111) ->  | BC111: =IF(AT111="","",VLOOKUP(AT111,[4]ItemConfig!$A:$C,3,FALSE)&AU111) ->  | BD111: =IF(AV111="","",VLOOKUP(AV111,[4]ItemConfig!$A:$C,3,FALSE)&AW111) ->  | BE111: =IF(AX111="","",VLOOKUP(AX111,[4]ItemConfig!$A:$C,3,FALSE)&AY111) ->  | BF111: 240
A112: 108 | B112: 108 | C112: 4 | D112: 11 | E112: 8 | F112: 228;236;245 | G112: 元婴 | H112: 中期. | I112: 八重 | J112: 228 | K112: 236 | L112: 245 | M112: =ROUND([1]ResourceLevelConfig!$E112*[1]ResourceLevelConfig!$L112*0.1,0)*10 -> 3090 | N112: -1 | O112: 0 | P112: -1 | Q112: -1 | R112: -1 | S112: -1 | T112: 0 | U112: =[3]主表!K110 -> 706.8659443 | V112: =[3]主表!L110 -> 15.7238501 | W112: =[3]主表!M110 -> 15.7238501 | X112: =[3]主表!N110 -> 0 | Y112: =[3]主表!$G110 -> 6867 | Z112: =[3]升级!$H110 -> 1300 | AA112: 0.21 | AB112: -1 | AC112: 4 | AD112: 4 | AE112: 4 | AF112: 1190 | AJ112: 1 | AK112: 2 | AL112: 108 | AS112: =IF(AR112="","",1) ->  | AU112: =IF(AT112="","",1) ->  | AW112: =IF(AV112="","",1) ->  | AY112: =IF(AX112="","",1) ->  | AZ112: =IF(AN112="","",VLOOKUP(AN112,[4]ItemConfig!$A:$C,3,FALSE)&AO112) ->  | BA112: =IF(AP112="","",VLOOKUP(AP112,[4]ItemConfig!$A:$C,3,FALSE)&AQ112) ->  | BB112: =IF(AR112="","",VLOOKUP(AR112,[4]ItemConfig!$A:$C,3,FALSE)&AS112) ->  | BC112: =IF(AT112="","",VLOOKUP(AT112,[4]ItemConfig!$A:$C,3,FALSE)&AU112) ->  | BD112: =IF(AV112="","",VLOOKUP(AV112,[4]ItemConfig!$A:$C,3,FALSE)&AW112) ->  | BE112: =IF(AX112="","",VLOOKUP(AX112,[4]ItemConfig!$A:$C,3,FALSE)&AY112) ->  | BF112: 240
A113: 109 | B113: 109 | C113: 4 | D113: 11 | E113: 9 | F113: 228;236;246 | G113: 元婴 | H113: 中期. | I113: 九重 | J113: 228 | K113: 236 | L113: 246 | M113: =ROUND([1]ResourceLevelConfig!$E113*[1]ResourceLevelConfig!$L113*0.1,0)*10 -> 3110 | N113: -1 | O113: 0 | P113: -1 | Q113: -1 | R113: -1 | S113: -1 | T113: 0 | U113: =[3]主表!K111 -> 722.360667 | V113: =[3]主表!L111 -> 15.93615083 | W113: =[3]主表!M111 -> 15.93615083 | X113: =[3]主表!N111 -> 0 | Y113: =[3]主表!$G111 -> 6984 | Z113: =[3]升级!$H111 -> 1300 | AA113: 0.22 | AB113: -1 | AC113: 4 | AD113: 4 | AE113: 4 | AF113: 1200 | AJ113: 1 | AK113: 2 | AL113: 109 | AS113: =IF(AR113="","",1) ->  | AU113: =IF(AT113="","",1) ->  | AW113: =IF(AV113="","",1) ->  | AY113: =IF(AX113="","",1) ->  | AZ113: =IF(AN113="","",VLOOKUP(AN113,[4]ItemConfig!$A:$C,3,FALSE)&AO113) ->  | BA113: =IF(AP113="","",VLOOKUP(AP113,[4]ItemConfig!$A:$C,3,FALSE)&AQ113) ->  | BB113: =IF(AR113="","",VLOOKUP(AR113,[4]ItemConfig!$A:$C,3,FALSE)&AS113) ->  | BC113: =IF(AT113="","",VLOOKUP(AT113,[4]ItemConfig!$A:$C,3,FALSE)&AU113) ->  | BD113: =IF(AV113="","",VLOOKUP(AV113,[4]ItemConfig!$A:$C,3,FALSE)&AW113) ->  | BE113: =IF(AX113="","",VLOOKUP(AX113,[4]ItemConfig!$A:$C,3,FALSE)&AY113) ->  | BF113: 240
A114: 110 | B114: 110 | C114: 4 | D114: 11 | E114: 10 | F114: 228;236;247 | G114: 元婴 | H114: 中期. | I114: 十重 | J114: 228 | K114: 236 | L114: 247 | M114: =ROUND([1]ResourceLevelConfig!$E114*[1]ResourceLevelConfig!$L114*0.1,0)*10 -> 3130 | N114: 100005 | O114: 0 | P114: =AN114 -> 1311 | Q114: =AO114 -> 1 | R114: =_xlfn.TEXTJOIN(";",1,AP114,AR114,AT114,AV114) -> 1205;1206 | S114: =_xlfn.TEXTJOIN(";",1,AQ114,AS114,AU114,AW114) -> 1;1 | T114: 0 | U114: =[3]主表!K112 -> 738.1449425 | V114: =[3]主表!L112 -> 16.151318 | W114: =[3]主表!M112 -> 16.151318 | X114: =[3]主表!N112 -> 0 | Y114: =[3]主表!$G112 -> 7104 | Z114: =[3]升级!$H112 -> 1300 | AA114: 0.22 | AB114: 15 | AC114: 4 | AD114: 4 | AE114: 4 | AF114: 1210 | AJ114: 1 | AK114: 2 | AL114: 110 | AN114: 1311 | AO114: 1 | AP114: 1205 | AQ114: 1 | AR114: 1206 | AS114: =IF(AR114="","",1) -> 1 | AU114: =IF(AT114="","",1) ->  | AW114: =IF(AV114="","",1) ->  | AY114: =IF(AX114="","",1) ->  | AZ114: =IF(AN114="","",VLOOKUP(AN114,[4]ItemConfig!$A:$C,3,FALSE)&AO114) -> 玄婴花1 | BA114: =IF(AP114="","",VLOOKUP(AP114,[4]ItemConfig!$A:$C,3,FALSE)&AQ114) -> 婴魂草1 | BB114: =IF(AR114="","",VLOOKUP(AR114,[4]ItemConfig!$A:$C,3,FALSE)&AS114) -> 灵魄藤1 | BC114: =IF(AT114="","",VLOOKUP(AT114,[4]ItemConfig!$A:$C,3,FALSE)&AU114) ->  | BD114: =IF(AV114="","",VLOOKUP(AV114,[4]ItemConfig!$A:$C,3,FALSE)&AW114) ->  | BE114: =IF(AX114="","",VLOOKUP(AX114,[4]ItemConfig!$A:$C,3,FALSE)&AY114) ->  | BF114: 240
A115: 111 | B115: 111 | C115: 4 | D115: 12 | E115: 1 | F115: 228;237;238 | G115: 元婴 | H115: 后期. | I115: 一重 | J115: 228 | K115: 237 | L115: 238 | M115: =ROUND([1]ResourceLevelConfig!$E115*[1]ResourceLevelConfig!$L115*0.1,0)*10 -> 3150 | N115: -1 | O115: 0 | P115: -1 | Q115: -1 | R115: =IF(I115=10,"1001;1002;1004",-1) -> -1 | S115: -1 | T115: 0 | U115: =[3]主表!K113 -> 818.5936312 | V115: =[3]主表!L113 -> 17.7664498 | W115: =[3]主表!M113 -> 17.7664498 | X115: =[3]主表!N113 -> 0 | Y115: =[3]主表!$G113 -> 8009 | Z115: =[3]升级!$H113 -> 1300 | AA115: 0.22 | AB115: -1 | AC115: 4 | AD115: 4 | AE115: 4 | AF115: 1220 | AJ115: 1 | AK115: 2 | AL115: 111 | AS115: =IF(AR115="","",1) ->  | AU115: =IF(AT115="","",1) ->  | AW115: =IF(AV115="","",1) ->  | AY115: =IF(AX115="","",1) ->  | AZ115: =IF(AN115="","",VLOOKUP(AN115,[4]ItemConfig!$A:$C,3,FALSE)&AO115) ->  | BA115: =IF(AP115="","",VLOOKUP(AP115,[4]ItemConfig!$A:$C,3,FALSE)&AQ115) ->  | BB115: =IF(AR115="","",VLOOKUP(AR115,[4]ItemConfig!$A:$C,3,FALSE)&AS115) ->  | BC115: =IF(AT115="","",VLOOKUP(AT115,[4]ItemConfig!$A:$C,3,FALSE)&AU115) ->  | BD115: =IF(AV115="","",VLOOKUP(AV115,[4]ItemConfig!$A:$C,3,FALSE)&AW115) ->  | BE115: =IF(AX115="","",VLOOKUP(AX115,[4]ItemConfig!$A:$C,3,FALSE)&AY115) ->  | BF115: 240
A116: 112 | B116: 112 | C116: 4 | D116: 12 | E116: 2 | F116: 228;237;239 | G116: 元婴 | H116: 后期. | I116: 二重 | J116: 228 | K116: 237 | L116: 239 | M116: =ROUND([1]ResourceLevelConfig!$E116*[1]ResourceLevelConfig!$L116*0.1,0)*10 -> 3150 | N116: -1 | O116: 0 | P116: -1 | Q116: -1 | R116: -1 | S116: -1 | T116: 0 | U116: =[3]主表!K114 -> 836.36991 | V116: =[3]主表!L114 -> 18.00632936 | W116: =[3]主表!M114 -> 18.00632936 | X116: =[3]主表!N114 -> 0 | Y116: =[3]主表!$G114 -> 8144 | Z116: =[3]升级!$H114 -> 1300 | AA116: 0.22 | AB116: -1 | AC116: 4 | AD116: 4 | AE116: 4 | AF116: 1230 | AJ116: 1 | AK116: 2 | AL116: 112 | AS116: =IF(AR116="","",1) ->  | AU116: =IF(AT116="","",1) ->  | AW116: =IF(AV116="","",1) ->  | AY116: =IF(AX116="","",1) ->  | AZ116: =IF(AN116="","",VLOOKUP(AN116,[4]ItemConfig!$A:$C,3,FALSE)&AO116) ->  | BA116: =IF(AP116="","",VLOOKUP(AP116,[4]ItemConfig!$A:$C,3,FALSE)&AQ116) ->  | BB116: =IF(AR116="","",VLOOKUP(AR116,[4]ItemConfig!$A:$C,3,FALSE)&AS116) ->  | BC116: =IF(AT116="","",VLOOKUP(AT116,[4]ItemConfig!$A:$C,3,FALSE)&AU116) ->  | BD116: =IF(AV116="","",VLOOKUP(AV116,[4]ItemConfig!$A:$C,3,FALSE)&AW116) ->  | BE116: =IF(AX116="","",VLOOKUP(AX116,[4]ItemConfig!$A:$C,3,FALSE)&AY116) ->  | BF116: 240
A117: 113 | B117: 113 | C117: 4 | D117: 12 | E117: 3 | F117: 228;237;240 | G117: 元婴 | H117: 后期. | I117: 三重 | J117: 228 | K117: 237 | L117: 240 | M117: =ROUND([1]ResourceLevelConfig!$E117*[1]ResourceLevelConfig!$L117*0.1,0)*10 -> 3150 | N117: -1 | O117: 0 | P117: -1 | Q117: -1 | R117: -1 | S117: -1 | T117: 0 | U117: =[3]主表!K115 -> 854.4769843 | V117: =[3]主表!L115 -> 18.24944773 | W117: =[3]主表!M115 -> 18.24944773 | X117: =[3]主表!N115 -> 0 | Y117: =[3]主表!$G115 -> 8282 | Z117: =[3]升级!$H115 -> 1300 | AA117: 0.22 | AB117: -1 | AC117: 4 | AD117: 4 | AE117: 4 | AF117: 1240 | AJ117: 1 | AK117: 2 | AL117: 113 | AS117: =IF(AR117="","",1) ->  | AU117: =IF(AT117="","",1) ->  | AW117: =IF(AV117="","",1) ->  | AY117: =IF(AX117="","",1) ->  | AZ117: =IF(AN117="","",VLOOKUP(AN117,[4]ItemConfig!$A:$C,3,FALSE)&AO117) ->  | BA117: =IF(AP117="","",VLOOKUP(AP117,[4]ItemConfig!$A:$C,3,FALSE)&AQ117) ->  | BB117: =IF(AR117="","",VLOOKUP(AR117,[4]ItemConfig!$A:$C,3,FALSE)&AS117) ->  | BC117: =IF(AT117="","",VLOOKUP(AT117,[4]ItemConfig!$A:$C,3,FALSE)&AU117) ->  | BD117: =IF(AV117="","",VLOOKUP(AV117,[4]ItemConfig!$A:$C,3,FALSE)&AW117) ->  | BE117: =IF(AX117="","",VLOOKUP(AX117,[4]ItemConfig!$A:$C,3,FALSE)&AY117) ->  | BF117: 240
A118: 114 | B118: 114 | C118: 4 | D118: 12 | E118: 4 | F118: 228;237;241 | G118: 元婴 | H118: 后期. | I118: 四重 | J118: 228 | K118: 237 | L118: 241 | M118: =ROUND([1]ResourceLevelConfig!$E118*[1]ResourceLevelConfig!$L118*0.1,0)*10 -> 3150 | N118: -1 | O118: 0 | P118: -1 | Q118: -1 | R118: -1 | S118: -1 | T118: 0 | U118: =[3]主表!K116 -> 872.9205462 | V118: =[3]主表!L116 -> 18.49584864 | W118: =[3]主表!M116 -> 18.49584864 | X118: =[3]主表!N116 -> 0 | Y118: =[3]主表!$G116 -> 8421 | Z118: =[3]升级!$H116 -> 1300 | AA118: 0.22 | AB118: -1 | AC118: 4 | AD118: 4 | AE118: 4 | AF118: 1250 | AJ118: 1 | AK118: 2 | AL118: 114 | AS118: =IF(AR118="","",1) ->  | AU118: =IF(AT118="","",1) ->  | AW118: =IF(AV118="","",1) ->  | AY118: =IF(AX118="","",1) ->  | AZ118: =IF(AN118="","",VLOOKUP(AN118,[4]ItemConfig!$A:$C,3,FALSE)&AO118) ->  | BA118: =IF(AP118="","",VLOOKUP(AP118,[4]ItemConfig!$A:$C,3,FALSE)&AQ118) ->  | BB118: =IF(AR118="","",VLOOKUP(AR118,[4]ItemConfig!$A:$C,3,FALSE)&AS118) ->  | BC118: =IF(AT118="","",VLOOKUP(AT118,[4]ItemConfig!$A:$C,3,FALSE)&AU118) ->  | BD118: =IF(AV118="","",VLOOKUP(AV118,[4]ItemConfig!$A:$C,3,FALSE)&AW118) ->  | BE118: =IF(AX118="","",VLOOKUP(AX118,[4]ItemConfig!$A:$C,3,FALSE)&AY118) ->  | BF118: 240
A119: 115 | B119: 115 | C119: 4 | D119: 12 | E119: 5 | F119: 228;237;242 | G119: 元婴 | H119: 后期. | I119: 五重 | J119: 228 | K119: 237 | L119: 242 | M119: =ROUND([1]ResourceLevelConfig!$E119*[1]ResourceLevelConfig!$L119*0.1,0)*10 -> 3150 | N119: -1 | O119: 0 | P119: -1 | Q119: -1 | R119: -1 | S119: -1 | T119: 0 | U119: =[3]主表!K117 -> 891.706381 | V119: =[3]主表!L117 -> 18.74557642 | W119: =[3]主表!M117 -> 18.74557642 | X119: =[3]主表!N117 -> 0 | Y119: =[3]主表!$G117 -> 8563 | Z119: =[3]升级!$H117 -> 1300 | AA119: 0.22 | AB119: -1 | AC119: 4 | AD119: 4 | AE119: 4 | AF119: 1260 | AJ119: 1 | AK119: 2 | AL119: 115 | AS119: =IF(AR119="","",1) ->  | AU119: =IF(AT119="","",1) ->  | AW119: =IF(AV119="","",1) ->  | AY119: =IF(AX119="","",1) ->  | AZ119: =IF(AN119="","",VLOOKUP(AN119,[4]ItemConfig!$A:$C,3,FALSE)&AO119) ->  | BA119: =IF(AP119="","",VLOOKUP(AP119,[4]ItemConfig!$A:$C,3,FALSE)&AQ119) ->  | BB119: =IF(AR119="","",VLOOKUP(AR119,[4]ItemConfig!$A:$C,3,FALSE)&AS119) ->  | BC119: =IF(AT119="","",VLOOKUP(AT119,[4]ItemConfig!$A:$C,3,FALSE)&AU119) ->  | BD119: =IF(AV119="","",VLOOKUP(AV119,[4]ItemConfig!$A:$C,3,FALSE)&AW119) ->  | BE119: =IF(AX119="","",VLOOKUP(AX119,[4]ItemConfig!$A:$C,3,FALSE)&AY119) ->  | BF119: 240
A120: 116 | B120: 116 | C120: 4 | D120: 12 | E120: 6 | F120: 228;237;243 | G120: 元婴 | H120: 后期. | I120: 六重 | J120: 228 | K120: 237 | L120: 243 | M120: =ROUND([1]ResourceLevelConfig!$E120*[1]ResourceLevelConfig!$L120*0.1,0)*10 -> 3300 | N120: -1 | O120: 0 | P120: -1 | Q120: -1 | R120: -1 | S120: -1 | T120: 0 | U120: =[3]主表!K118 -> 910.8403692 | V120: =[3]主表!L118 -> 18.99867597 | W120: =[3]主表!M118 -> 18.99867597 | X120: =[3]主表!N118 -> 0 | Y120: =[3]主表!$G118 -> 8707 | Z120: =[3]升级!$H118 -> 1300 | AA120: 0.23 | AB120: -1 | AC120: 4 | AD120: 4 | AE120: 4 | AF120: 1270 | AJ120: 1 | AK120: 2 | AL120: 116 | AS120: =IF(AR120="","",1) ->  | AU120: =IF(AT120="","",1) ->  | AW120: =IF(AV120="","",1) ->  | AY120: =IF(AX120="","",1) ->  | AZ120: =IF(AN120="","",VLOOKUP(AN120,[4]ItemConfig!$A:$C,3,FALSE)&AO120) ->  | BA120: =IF(AP120="","",VLOOKUP(AP120,[4]ItemConfig!$A:$C,3,FALSE)&AQ120) ->  | BB120: =IF(AR120="","",VLOOKUP(AR120,[4]ItemConfig!$A:$C,3,FALSE)&AS120) ->  | BC120: =IF(AT120="","",VLOOKUP(AT120,[4]ItemConfig!$A:$C,3,FALSE)&AU120) ->  | BD120: =IF(AV120="","",VLOOKUP(AV120,[4]ItemConfig!$A:$C,3,FALSE)&AW120) ->  | BE120: =IF(AX120="","",VLOOKUP(AX120,[4]ItemConfig!$A:$C,3,FALSE)&AY120) ->  | BF120: 240
A121: 117 | B121: 117 | C121: 4 | D121: 12 | E121: 7 | F121: 228;237;244 | G121: 元婴 | H121: 后期. | I121: 七重 | J121: 228 | K121: 237 | L121: 244 | M121: =ROUND([1]ResourceLevelConfig!$E121*[1]ResourceLevelConfig!$L121*0.1,0)*10 -> 3300 | N121: -1 | O121: 0 | P121: -1 | Q121: -1 | R121: -1 | S121: -1 | T121: 0 | U121: =[3]主表!K119 -> 930.3284875 | V121: =[3]主表!L119 -> 19.25519283 | W121: =[3]主表!M119 -> 19.25519283 | X121: =[3]主表!N119 -> 0 | Y121: =[3]主表!$G119 -> 8854 | Z121: =[3]升级!$H119 -> 1300 | AA121: 0.23 | AB121: -1 | AC121: 4 | AD121: 4 | AE121: 4 | AF121: 1280 | AJ121: 1 | AK121: 2 | AL121: 117 | AS121: =IF(AR121="","",1) ->  | AU121: =IF(AT121="","",1) ->  | AW121: =IF(AV121="","",1) ->  | AY121: =IF(AX121="","",1) ->  | AZ121: =IF(AN121="","",VLOOKUP(AN121,[4]ItemConfig!$A:$C,3,FALSE)&AO121) ->  | BA121: =IF(AP121="","",VLOOKUP(AP121,[4]ItemConfig!$A:$C,3,FALSE)&AQ121) ->  | BB121: =IF(AR121="","",VLOOKUP(AR121,[4]ItemConfig!$A:$C,3,FALSE)&AS121) ->  | BC121: =IF(AT121="","",VLOOKUP(AT121,[4]ItemConfig!$A:$C,3,FALSE)&AU121) ->  | BD121: =IF(AV121="","",VLOOKUP(AV121,[4]ItemConfig!$A:$C,3,FALSE)&AW121) ->  | BE121: =IF(AX121="","",VLOOKUP(AX121,[4]ItemConfig!$A:$C,3,FALSE)&AY121) ->  | BF121: 240
A122: 118 | B122: 118 | C122: 4 | D122: 12 | E122: 8 | F122: 228;237;245 | G122: 元婴 | H122: 后期. | I122: 八重 | J122: 228 | K122: 237 | L122: 245 | M122: =ROUND([1]ResourceLevelConfig!$E122*[1]ResourceLevelConfig!$L122*0.1,0)*10 -> 3300 | N122: -1 | O122: 0 | P122: -1 | Q122: -1 | R122: -1 | S122: -1 | T122: 0 | U122: =[3]主表!K120 -> 950.1768106 | V122: =[3]主表!L120 -> 19.51517314 | W122: =[3]主表!M120 -> 19.51517314 | X122: =[3]主表!N120 -> 0 | Y122: =[3]主表!$G120 -> 9003 | Z122: =[3]升级!$H120 -> 1300 | AA122: 0.23 | AB122: -1 | AC122: 4 | AD122: 4 | AE122: 4 | AF122: 1290 | AJ122: 1 | AK122: 2 | AL122: 118 | AS122: =IF(AR122="","",1) ->  | AU122: =IF(AT122="","",1) ->  | AW122: =IF(AV122="","",1) ->  | AY122: =IF(AX122="","",1) ->  | AZ122: =IF(AN122="","",VLOOKUP(AN122,[4]ItemConfig!$A:$C,3,FALSE)&AO122) ->  | BA122: =IF(AP122="","",VLOOKUP(AP122,[4]ItemConfig!$A:$C,3,FALSE)&AQ122) ->  | BB122: =IF(AR122="","",VLOOKUP(AR122,[4]ItemConfig!$A:$C,3,FALSE)&AS122) ->  | BC122: =IF(AT122="","",VLOOKUP(AT122,[4]ItemConfig!$A:$C,3,FALSE)&AU122) ->  | BD122: =IF(AV122="","",VLOOKUP(AV122,[4]ItemConfig!$A:$C,3,FALSE)&AW122) ->  | BE122: =IF(AX122="","",VLOOKUP(AX122,[4]ItemConfig!$A:$C,3,FALSE)&AY122) ->  | BF122: 240
A123: 119 | B123: 119 | C123: 4 | D123: 12 | E123: 9 | F123: 228;237;246 | G123: 元婴 | H123: 后期. | I123: 九重 | J123: 228 | K123: 237 | L123: 246 | M123: =ROUND([1]ResourceLevelConfig!$E123*[1]ResourceLevelConfig!$L123*0.1,0)*10 -> 3300 | N123: -1 | O123: 0 | P123: -1 | Q123: -1 | R123: -1 | S123: -1 | T123: 0 | U123: =[3]主表!K121 -> 970.3915128 | V123: =[3]主表!L121 -> 19.77866366 | W123: =[3]主表!M121 -> 19.77866366 | X123: =[3]主表!N121 -> 0 | Y123: =[3]主表!$G121 -> 9154 | Z123: =[3]升级!$H121 -> 1300 | AA123: 0.23 | AB123: -1 | AC123: 4 | AD123: 4 | AE123: 4 | AF123: 1300 | AJ123: 1 | AK123: 2 | AL123: 119 | AS123: =IF(AR123="","",1) ->  | AU123: =IF(AT123="","",1) ->  | AW123: =IF(AV123="","",1) ->  | AY123: =IF(AX123="","",1) ->  | AZ123: =IF(AN123="","",VLOOKUP(AN123,[4]ItemConfig!$A:$C,3,FALSE)&AO123) ->  | BA123: =IF(AP123="","",VLOOKUP(AP123,[4]ItemConfig!$A:$C,3,FALSE)&AQ123) ->  | BB123: =IF(AR123="","",VLOOKUP(AR123,[4]ItemConfig!$A:$C,3,FALSE)&AS123) ->  | BC123: =IF(AT123="","",VLOOKUP(AT123,[4]ItemConfig!$A:$C,3,FALSE)&AU123) ->  | BD123: =IF(AV123="","",VLOOKUP(AV123,[4]ItemConfig!$A:$C,3,FALSE)&AW123) ->  | BE123: =IF(AX123="","",VLOOKUP(AX123,[4]ItemConfig!$A:$C,3,FALSE)&AY123) ->  | BF123: 240
A124: 120 | B124: 120 | C124: 4 | D124: 12 | E124: 10 | F124: 228;237;247 | G124: 元婴 | H124: 后期. | I124: 十重 | J124: 228 | K124: 237 | L124: 247 | M124: =ROUND([1]ResourceLevelConfig!$E124*[1]ResourceLevelConfig!$L124*0.1,0)*10 -> 3300 | N124: 100006 | O124: 0 | P124: =AN124 -> 1312 | Q124: =AO124 -> 1 | R124: =_xlfn.TEXTJOIN(";",1,AP124,AR124,AT124,AV124) -> 1205;1206 | S124: =_xlfn.TEXTJOIN(";",1,AQ124,AS124,AU124,AW124) -> 1;1 | T124: =CONCATENATE(ROUND(0.6*VLOOKUP(A124,[3]主表!$A:$P,16,FALSE)*[5]HeroModelConfig!$Q$5,0),";",ROUND(0.9*VLOOKUP(A124,[3]主表!$A:$P,16,FALSE)*[5]HeroModelConfig!$Q$5,0),";",INT(A124/30)+1) -> 138045;207067;5 | U124: =[3]主表!K122 -> 990.9788692 | V124: =[3]主表!L122 -> 20.04571179 | W124: =[3]主表!M122 -> 20.04571179 | X124: =[3]主表!N122 -> 0 | Y124: =[3]主表!$G122 -> 9308 | Z124: =[3]升级!$H122 -> 1300 | AA124: 0.23 | AB124: 15 | AC124: 4 | AD124: 4 | AE124: 4 | AF124: 1310 | AJ124: 1 | AK124: 2 | AL124: 120 | AN124: 1312 | AO124: 1 | AP124: 1205 | AQ124: 1 | AR124: 1206 | AS124: =IF(AR124="","",1) -> 1 | AU124: =IF(AT124="","",1) ->  | AW124: =IF(AV124="","",1) ->  | AY124: =IF(AX124="","",1) ->  | AZ124: =IF(AN124="","",VLOOKUP(AN124,[4]ItemConfig!$A:$C,3,FALSE)&AO124) -> 玄冥髓1 | BA124: =IF(AP124="","",VLOOKUP(AP124,[4]ItemConfig!$A:$C,3,FALSE)&AQ124) -> 婴魂草1 | BB124: =IF(AR124="","",VLOOKUP(AR124,[4]ItemConfig!$A:$C,3,FALSE)&AS124) -> 灵魄藤1 | BC124: =IF(AT124="","",VLOOKUP(AT124,[4]ItemConfig!$A:$C,3,FALSE)&AU124) ->  | BD124: =IF(AV124="","",VLOOKUP(AV124,[4]ItemConfig!$A:$C,3,FALSE)&AW124) ->  | BE124: =IF(AX124="","",VLOOKUP(AX124,[4]ItemConfig!$A:$C,3,FALSE)&AY124) ->  | BF124: 240
A125: 121 | B125: 121 | C125: 5 | D125: 13 | E125: 1 | F125: 229;235;238 | G125: 化神 | H125: 前期. | I125: 一重 | J125: 229 | K125: 235 | L125: 238 | M125: =ROUND([1]ResourceLevelConfig!$E125*[1]ResourceLevelConfig!$L125*0.1,0)*10 -> 3300 | N125: -1 | O125: 0 | P125: -1 | Q125: -1 | R125: =IF(I125=10,"1001;1002;1004",-1) -> -1 | S125: =IF(R125=-1,-1,"100;200;300") -> -1 | T125: 0 | U125: =[3]主表!K123 -> 1298.003416 | V125: =[3]主表!L123 -> 26.05942532 | W125: =[3]主表!M123 -> 26.05942532 | X125: =[3]主表!N123 -> 0 | Y125: =[3]主表!$G123 -> 12380 | Z125: =[3]升级!$H123 -> 1400 | AA125: 0.23 | AB125: -1 | AC125: 4 | AD125: 4 | AE125: 4 | AF125: 1320 | AJ125: 1 | AK125: 3 | AL125: 121 | AS125: =IF(AR125="","",1) ->  | AU125: =IF(AT125="","",1) ->  | AW125: =IF(AV125="","",1) ->  | AY125: =IF(AX125="","",1) ->  | AZ125: =IF(AN125="","",VLOOKUP(AN125,[4]ItemConfig!$A:$C,3,FALSE)&AO125) ->  | BA125: =IF(AP125="","",VLOOKUP(AP125,[4]ItemConfig!$A:$C,3,FALSE)&AQ125) ->  | BB125: =IF(AR125="","",VLOOKUP(AR125,[4]ItemConfig!$A:$C,3,FALSE)&AS125) ->  | BC125: =IF(AT125="","",VLOOKUP(AT125,[4]ItemConfig!$A:$C,3,FALSE)&AU125) ->  | BD125: =IF(AV125="","",VLOOKUP(AV125,[4]ItemConfig!$A:$C,3,FALSE)&AW125) ->  | BE125: =IF(AX125="","",VLOOKUP(AX125,[4]ItemConfig!$A:$C,3,FALSE)&AY125) ->  | BF125: 240
A126: 122 | B126: 122 | C126: 5 | D126: 13 | E126: 2 | F126: 229;235;239 | G126: 化神 | H126: 前期. | I126: 二重 | J126: 229 | K126: 235 | L126: 239 | M126: =ROUND([1]ResourceLevelConfig!$E126*[1]ResourceLevelConfig!$L126*0.1,0)*10 -> 3300 | N126: -1 | O126: 0 | P126: -1 | Q126: -1 | R126: =IF(I126=10,"1001;1002;1004",-1) -> -1 | S126: =IF(R126=-1,-1,"100;200;300") -> -1 | T126: 0 | U126: =[3]主表!K124 -> 1325.391106 | V126: =[3]主表!L124 -> 26.41127521 | W126: =[3]主表!M124 -> 26.41127521 | X126: =[3]主表!N124 -> 0 | Y126: =[3]主表!$G124 -> 12566 | Z126: =[3]升级!$H124 -> 1400 | AA126: 0.23 | AB126: -1 | AC126: 4 | AD126: 4 | AE126: 4 | AF126: 1330 | AJ126: 1 | AK126: 3 | AL126: 122 | AS126: =IF(AR126="","",1) ->  | AU126: =IF(AT126="","",1) ->  | AW126: =IF(AV126="","",1) ->  | AY126: =IF(AX126="","",1) ->  | AZ126: =IF(AN126="","",VLOOKUP(AN126,[4]ItemConfig!$A:$C,3,FALSE)&AO126) ->  | BA126: =IF(AP126="","",VLOOKUP(AP126,[4]ItemConfig!$A:$C,3,FALSE)&AQ126) ->  | BB126: =IF(AR126="","",VLOOKUP(AR126,[4]ItemConfig!$A:$C,3,FALSE)&AS126) ->  | BC126: =IF(AT126="","",VLOOKUP(AT126,[4]ItemConfig!$A:$C,3,FALSE)&AU126) ->  | BD126: =IF(AV126="","",VLOOKUP(AV126,[4]ItemConfig!$A:$C,3,FALSE)&AW126) ->  | BE126: =IF(AX126="","",VLOOKUP(AX126,[4]ItemConfig!$A:$C,3,FALSE)&AY126) ->  | BF126: 240
A127: 123 | B127: 123 | C127: 5 | D127: 13 | E127: 3 | F127: 229;235;240 | G127: 化神 | H127: 前期. | I127: 三重 | J127: 229 | K127: 235 | L127: 240 | M127: =ROUND([1]ResourceLevelConfig!$E127*[1]ResourceLevelConfig!$L127*0.1,0)*10 -> 3300 | N127: -1 | O127: 0 | P127: -1 | Q127: -1 | R127: -1 | S127: -1 | T127: 0 | U127: =[3]主表!K125 -> 1353.281738 | V127: =[3]主表!L125 -> 26.76787572 | W127: =[3]主表!M125 -> 26.76787572 | X127: =[3]主表!N125 -> 0 | Y127: =[3]主表!$G125 -> 12754 | Z127: =[3]升级!$H125 -> 1400 | AA127: 0.23 | AB127: -1 | AC127: 4 | AD127: 4 | AE127: 4 | AF127: 1340 | AJ127: 1 | AK127: 3 | AL127: 123 | AS127: =IF(AR127="","",1) ->  | AU127: =IF(AT127="","",1) ->  | AW127: =IF(AV127="","",1) ->  | AY127: =IF(AX127="","",1) ->  | AZ127: =IF(AN127="","",VLOOKUP(AN127,[4]ItemConfig!$A:$C,3,FALSE)&AO127) ->  | BA127: =IF(AP127="","",VLOOKUP(AP127,[4]ItemConfig!$A:$C,3,FALSE)&AQ127) ->  | BB127: =IF(AR127="","",VLOOKUP(AR127,[4]ItemConfig!$A:$C,3,FALSE)&AS127) ->  | BC127: =IF(AT127="","",VLOOKUP(AT127,[4]ItemConfig!$A:$C,3,FALSE)&AU127) ->  | BD127: =IF(AV127="","",VLOOKUP(AV127,[4]ItemConfig!$A:$C,3,FALSE)&AW127) ->  | BE127: =IF(AX127="","",VLOOKUP(AX127,[4]ItemConfig!$A:$C,3,FALSE)&AY127) ->  | BF127: 240
A128: 124 | B128: 124 | C128: 5 | D128: 13 | E128: 4 | F128: 229;235;241 | G128: 化神 | H128: 前期. | I128: 四重 | J128: 229 | K128: 235 | L128: 241 | M128: =ROUND([1]ResourceLevelConfig!$E128*[1]ResourceLevelConfig!$L128*0.1,0)*10 -> 3300 | N128: -1 | O128: 0 | P128: -1 | Q128: -1 | R128: -1 | S128: -1 | T128: 0 | U128: =[3]主表!K126 -> 1381.683902 | V128: =[3]主表!L126 -> 27.12929098 | W128: =[3]主表!M126 -> 27.12929098 | X128: =[3]主表!N126 -> 0 | Y128: =[3]主表!$G126 -> 12946 | Z128: =[3]升级!$H126 -> 1400 | AA128: 0.23 | AB128: -1 | AC128: 4 | AD128: 4 | AE128: 4 | AF128: 1350 | AJ128: 1 | AK128: 3 | AL128: 124 | AS128: =IF(AR128="","",1) ->  | AU128: =IF(AT128="","",1) ->  | AW128: =IF(AV128="","",1) ->  | AY128: =IF(AX128="","",1) ->  | AZ128: =IF(AN128="","",VLOOKUP(AN128,[4]ItemConfig!$A:$C,3,FALSE)&AO128) ->  | BA128: =IF(AP128="","",VLOOKUP(AP128,[4]ItemConfig!$A:$C,3,FALSE)&AQ128) ->  | BB128: =IF(AR128="","",VLOOKUP(AR128,[4]ItemConfig!$A:$C,3,FALSE)&AS128) ->  | BC128: =IF(AT128="","",VLOOKUP(AT128,[4]ItemConfig!$A:$C,3,FALSE)&AU128) ->  | BD128: =IF(AV128="","",VLOOKUP(AV128,[4]ItemConfig!$A:$C,3,FALSE)&AW128) ->  | BE128: =IF(AX128="","",VLOOKUP(AX128,[4]ItemConfig!$A:$C,3,FALSE)&AY128) ->  | BF128: 240
A129: 125 | B129: 125 | C129: 5 | D129: 13 | E129: 5 | F129: 229;235;242 | G129: 化神 | H129: 前期. | I129: 五重 | J129: 229 | K129: 235 | L129: 242 | M129: =ROUND([1]ResourceLevelConfig!$E129*[1]ResourceLevelConfig!$L129*0.1,0)*10 -> 3450 | N129: -1 | O129: 0 | P129: -1 | Q129: -1 | R129: -1 | S129: -1 | T129: 0 | U129: =[3]主表!K127 -> 1410.606325 | V129: =[3]主表!L127 -> 27.49558601 | W129: =[3]主表!M127 -> 27.49558601 | X129: =[3]主表!N127 -> 0 | Y129: =[3]主表!$G127 -> 13141 | Z129: =[3]升级!$H127 -> 1400 | AA129: 0.24 | AB129: -1 | AC129: 4 | AD129: 4 | AE129: 4 | AF129: 1360 | AJ129: 1 | AK129: 3 | AL129: 125 | AS129: =IF(AR129="","",1) ->  | AU129: =IF(AT129="","",1) ->  | AW129: =IF(AV129="","",1) ->  | AY129: =IF(AX129="","",1) ->  | AZ129: =IF(AN129="","",VLOOKUP(AN129,[4]ItemConfig!$A:$C,3,FALSE)&AO129) ->  | BA129: =IF(AP129="","",VLOOKUP(AP129,[4]ItemConfig!$A:$C,3,FALSE)&AQ129) ->  | BB129: =IF(AR129="","",VLOOKUP(AR129,[4]ItemConfig!$A:$C,3,FALSE)&AS129) ->  | BC129: =IF(AT129="","",VLOOKUP(AT129,[4]ItemConfig!$A:$C,3,FALSE)&AU129) ->  | BD129: =IF(AV129="","",VLOOKUP(AV129,[4]ItemConfig!$A:$C,3,FALSE)&AW129) ->  | BE129: =IF(AX129="","",VLOOKUP(AX129,[4]ItemConfig!$A:$C,3,FALSE)&AY129) ->  | BF129: 240
A130: 126 | B130: 126 | C130: 5 | D130: 13 | E130: 6 | F130: 229;235;243 | G130: 化神 | H130: 前期. | I130: 六重 | J130: 229 | K130: 235 | L130: 243 | M130: =ROUND([1]ResourceLevelConfig!$E130*[1]ResourceLevelConfig!$L130*0.1,0)*10 -> 3450 | N130: -1 | O130: 0 | P130: -1 | Q130: -1 | R130: -1 | S130: -1 | T130: 0 | U130: =[3]主表!K128 -> 1440.05788 | V130: =[3]主表!L128 -> 27.8668267 | W130: =[3]主表!M128 -> 27.8668267 | X130: =[3]主表!N128 -> 0 | Y130: =[3]主表!$G128 -> 13335 | Z130: =[3]升级!$H128 -> 1400 | AA130: 0.24 | AB130: -1 | AC130: 4 | AD130: 4 | AE130: 4 | AF130: 1370 | AJ130: 1 | AK130: 3 | AL130: 126 | AS130: =IF(AR130="","",1) ->  | AU130: =IF(AT130="","",1) ->  | AW130: =IF(AV130="","",1) ->  | AY130: =IF(AX130="","",1) ->  | AZ130: =IF(AN130="","",VLOOKUP(AN130,[4]ItemConfig!$A:$C,3,FALSE)&AO130) ->  | BA130: =IF(AP130="","",VLOOKUP(AP130,[4]ItemConfig!$A:$C,3,FALSE)&AQ130) ->  | BB130: =IF(AR130="","",VLOOKUP(AR130,[4]ItemConfig!$A:$C,3,FALSE)&AS130) ->  | BC130: =IF(AT130="","",VLOOKUP(AT130,[4]ItemConfig!$A:$C,3,FALSE)&AU130) ->  | BD130: =IF(AV130="","",VLOOKUP(AV130,[4]ItemConfig!$A:$C,3,FALSE)&AW130) ->  | BE130: =IF(AX130="","",VLOOKUP(AX130,[4]ItemConfig!$A:$C,3,FALSE)&AY130) ->  | BF130: 240
A131: 127 | B131: 127 | C131: 5 | D131: 13 | E131: 7 | F131: 229;235;244 | G131: 化神 | H131: 前期. | I131: 七重 | J131: 229 | K131: 235 | L131: 244 | M131: =ROUND([1]ResourceLevelConfig!$E131*[1]ResourceLevelConfig!$L131*0.1,0)*10 -> 3450 | N131: -1 | O131: 0 | P131: -1 | Q131: -1 | R131: -1 | S131: -1 | T131: 0 | U131: =[3]主表!K129 -> 1470.047581 | V131: =[3]主表!L129 -> 28.24307981 | W131: =[3]主表!M129 -> 28.24307981 | X131: =[3]主表!N129 -> 0 | Y131: =[3]主表!$G129 -> 13532 | Z131: =[3]升级!$H129 -> 1400 | AA131: 0.24 | AB131: -1 | AC131: =AC130 -> 4 | AD131: =AD130 -> 4 | AE131: =AE130 -> 4 | AF131: 1380 | AJ131: 1 | AK131: 3 | AL131: 127 | AS131: =IF(AR131="","",1) ->  | AU131: =IF(AT131="","",1) ->  | AW131: =IF(AV131="","",1) ->  | AY131: =IF(AX131="","",1) ->  | AZ131: =IF(AN131="","",VLOOKUP(AN131,[4]ItemConfig!$A:$C,3,FALSE)&AO131) ->  | BA131: =IF(AP131="","",VLOOKUP(AP131,[4]ItemConfig!$A:$C,3,FALSE)&AQ131) ->  | BB131: =IF(AR131="","",VLOOKUP(AR131,[4]ItemConfig!$A:$C,3,FALSE)&AS131) ->  | BC131: =IF(AT131="","",VLOOKUP(AT131,[4]ItemConfig!$A:$C,3,FALSE)&AU131) ->  | BD131: =IF(AV131="","",VLOOKUP(AV131,[4]ItemConfig!$A:$C,3,FALSE)&AW131) ->  | BE131: =IF(AX131="","",VLOOKUP(AX131,[4]ItemConfig!$A:$C,3,FALSE)&AY131) ->  | BF131: 240
A132: 128 | B132: 128 | C132: 5 | D132: 13 | E132: 8 | F132: 229;235;245 | G132: 化神 | H132: 前期. | I132: 八重 | J132: 229 | K132: 235 | L132: 245 | M132: =ROUND([1]ResourceLevelConfig!$E132*[1]ResourceLevelConfig!$L132*0.1,0)*10 -> 3450 | N132: -1 | O132: 0 | P132: -1 | Q132: -1 | R132: -1 | S132: -1 | T132: 0 | U132: =[3]主表!K130 -> 1500.584593 | V132: =[3]主表!L130 -> 28.62441302 | W132: =[3]主表!M130 -> 28.62441302 | X132: =[3]主表!N130 -> 0 | Y132: =[3]主表!$G130 -> 13732 | Z132: =[3]升级!$H130 -> 1400 | AA132: 0.24 | AB132: -1 | AC132: 4 | AD132: 4 | AE132: 4 | AF132: 1390 | AJ132: 1 | AK132: 3 | AL132: 128 | AS132: =IF(AR132="","",1) ->  | AU132: =IF(AT132="","",1) ->  | AW132: =IF(AV132="","",1) ->  | AY132: =IF(AX132="","",1) ->  | AZ132: =IF(AN132="","",VLOOKUP(AN132,[4]ItemConfig!$A:$C,3,FALSE)&AO132) ->  | BA132: =IF(AP132="","",VLOOKUP(AP132,[4]ItemConfig!$A:$C,3,FALSE)&AQ132) ->  | BB132: =IF(AR132="","",VLOOKUP(AR132,[4]ItemConfig!$A:$C,3,FALSE)&AS132) ->  | BC132: =IF(AT132="","",VLOOKUP(AT132,[4]ItemConfig!$A:$C,3,FALSE)&AU132) ->  | BD132: =IF(AV132="","",VLOOKUP(AV132,[4]ItemConfig!$A:$C,3,FALSE)&AW132) ->  | BE132: =IF(AX132="","",VLOOKUP(AX132,[4]ItemConfig!$A:$C,3,FALSE)&AY132) ->  | BF132: 240
A133: 129 | B133: 129 | C133: 5 | D133: 13 | E133: 9 | F133: 229;235;246 | G133: 化神 | H133: 前期. | I133: 九重 | J133: 229 | K133: 235 | L133: 246 | M133: =ROUND([1]ResourceLevelConfig!$E133*[1]ResourceLevelConfig!$L133*0.1,0)*10 -> 3450 | N133: -1 | O133: 0 | P133: -1 | Q133: -1 | R133: -1 | S133: -1 | T133: 0 | U133: =[3]主表!K131 -> 1531.678226 | V133: =[3]主表!L131 -> 29.01089494 | W133: =[3]主表!M131 -> 29.01089494 | X133: =[3]主表!N131 -> 0 | Y133: =[3]主表!$G131 -> 13935 | Z133: =[3]升级!$H131 -> 1400 | AA133: 0.24 | AB133: -1 | AC133: 4 | AD133: 4 | AE133: 4 | AF133: 1400 | AJ133: 1 | AK133: 3 | AL133: 129 | AS133: =IF(AR133="","",1) ->  | AU133: =IF(AT133="","",1) ->  | AW133: =IF(AV133="","",1) ->  | AY133: =IF(AX133="","",1) ->  | AZ133: =IF(AN133="","",VLOOKUP(AN133,[4]ItemConfig!$A:$C,3,FALSE)&AO133) ->  | BA133: =IF(AP133="","",VLOOKUP(AP133,[4]ItemConfig!$A:$C,3,FALSE)&AQ133) ->  | BB133: =IF(AR133="","",VLOOKUP(AR133,[4]ItemConfig!$A:$C,3,FALSE)&AS133) ->  | BC133: =IF(AT133="","",VLOOKUP(AT133,[4]ItemConfig!$A:$C,3,FALSE)&AU133) ->  | BD133: =IF(AV133="","",VLOOKUP(AV133,[4]ItemConfig!$A:$C,3,FALSE)&AW133) ->  | BE133: =IF(AX133="","",VLOOKUP(AX133,[4]ItemConfig!$A:$C,3,FALSE)&AY133) ->  | BF133: 240
A134: 130 | B134: 130 | C134: 5 | D134: 13 | E134: 10 | F134: =_xlfn.TEXTJOIN(";",1,J134:L134) -> 229;235;247 | G134: 化神 | H134: 前期. | I134: 十重 | J134: 229 | K134: 235 | L134: 247 | M134: =ROUND([1]ResourceLevelConfig!$E134*[1]ResourceLevelConfig!$L134*0.1,0)*10 -> 3450 | N134: 100006 | O134: 0 | P134: =AN134 -> 1313 | Q134: =AO134 -> 1 | R134: =_xlfn.TEXTJOIN(";",1,AP134,AR134,AT134,AV134) -> 1207;1208;1209 | S134: =_xlfn.TEXTJOIN(";",1,AQ134,AS134,AU134,AW134) -> 1;1;1 | T134: 0 | U134: =[3]主表!K132 -> 1563.337946 | V134: =[3]主表!L132 -> 29.40259506 | W134: =[3]主表!M132 -> 29.40259506 | X134: =[3]主表!N132 -> 0 | Y134: =[3]主表!$G132 -> 14142 | Z134: =[3]升级!$H132 -> 1400 | AA134: 0.24 | AB134: 15 | AC134: 4 | AD134: 4 | AE134: 4 | AF134: =MAX(AF133+10,ROUND(10^(B134*0.01+1.405),0)) -> 1410 | AJ134: 1 | AK134: 3 | AL134: 130 | AN134: 1313 | AO134: =IF(AN134="","",1) -> 1 | AP134: 1207 | AQ134: 1 | AR134: 1208 | AS134: =IF(AR134="","",1) -> 1 | AT134: 1209 | AU134: =IF(AT134="","",1) -> 1 | AW134: =IF(AV134="","",1) ->  | AY134: =IF(AX134="","",1) ->  | AZ134: =IF(AN134="","",VLOOKUP(AN134,[4]ItemConfig!$A:$C,3,FALSE)&AO134) -> 聚神丹1 | BA134: =IF(AP134="","",VLOOKUP(AP134,[4]ItemConfig!$A:$C,3,FALSE)&AQ134) -> 灵冥石1 | BB134: =IF(AR134="","",VLOOKUP(AR134,[4]ItemConfig!$A:$C,3,FALSE)&AS134) -> 玄金砂1 | BC134: =IF(AT134="","",VLOOKUP(AT134,[4]ItemConfig!$A:$C,3,FALSE)&AU134) -> 紫玄晶1 | BD134: =IF(AV134="","",VLOOKUP(AV134,[4]ItemConfig!$A:$C,3,FALSE)&AW134) ->  | BE134: =IF(AX134="","",VLOOKUP(AX134,[4]ItemConfig!$A:$C,3,FALSE)&AY134) ->  | BF134: 240
A135: 131 | B135: 131 | C135: 5 | D135: 14 | E135: 1 | F135: 229;236;238 | G135: 化神 | H135: 中期. | I135: 一重 | J135: 229 | K135: 236 | L135: 238 | M135: =ROUND([1]ResourceLevelConfig!$E135*[1]ResourceLevelConfig!$L135*0.1,0)*10 -> 3450 | N135: =IF(E135=10,100004,-1) -> -1 | O135: 0 | P135: -1 | Q135: -1 | R135: =IF(I135=10,"1001;1002;1004",-1) -> -1 | S135: -1 | T135: 0 | U135: =[3]主表!K133 -> 1731.748931 | V135: =[3]主表!L133 -> 32.34285457 | W135: =[3]主表!M133 -> 32.34285457 | X135: =[3]主表!N133 -> 0 | Y135: =[3]主表!$G133 -> 15909 | Z135: =[3]升级!$H133 -> 1400 | AA135: 0.24 | AB135: -1 | AC135: 4 | AD135: 4 | AE135: 4 | AF135: 1420 | AJ135: 1 | AK135: 3 | AL135: 131 | AS135: =IF(AR135="","",1) ->  | AU135: =IF(AT135="","",1) ->  | AW135: =IF(AV135="","",1) ->  | AY135: =IF(AX135="","",1) ->  | AZ135: =IF(AN135="","",VLOOKUP(AN135,[4]ItemConfig!$A:$C,3,FALSE)&AO135) ->  | BA135: =IF(AP135="","",VLOOKUP(AP135,[4]ItemConfig!$A:$C,3,FALSE)&AQ135) ->  | BB135: =IF(AR135="","",VLOOKUP(AR135,[4]ItemConfig!$A:$C,3,FALSE)&AS135) ->  | BC135: =IF(AT135="","",VLOOKUP(AT135,[4]ItemConfig!$A:$C,3,FALSE)&AU135) ->  | BD135: =IF(AV135="","",VLOOKUP(AV135,[4]ItemConfig!$A:$C,3,FALSE)&AW135) ->  | BE135: =IF(AX135="","",VLOOKUP(AX135,[4]ItemConfig!$A:$C,3,FALSE)&AY135) ->  | BF135: 240
A136: 132 | B136: 132 | C136: 5 | D136: 14 | E136: 2 | F136: 229;236;239 | G136: 化神 | H136: 中期. | I136: 二重 | J136: 229 | K136: 236 | L136: 239 | M136: =ROUND([1]ResourceLevelConfig!$E136*[1]ResourceLevelConfig!$L136*0.1,0)*10 -> 3450 | N136: -1 | O136: 0 | P136: -1 | Q136: -1 | R136: -1 | S136: -1 | T136: 0 | U136: =[3]主表!K134 -> 1767.370961 | V136: =[3]主表!L134 -> 32.77954224 | W136: =[3]主表!M134 -> 32.77954224 | X136: =[3]主表!N134 -> 0 | Y136: =[3]主表!$G134 -> 16141 | Z136: =[3]升级!$H134 -> 1400 | AA136: 0.24 | AB136: -1 | AC136: 4 | AD136: 4 | AE136: 4 | AF136: 1430 | AJ136: 1 | AK136: 3 | AL136: 132 | AS136: =IF(AR136="","",1) ->  | AU136: =IF(AT136="","",1) ->  | AW136: =IF(AV136="","",1) ->  | AY136: =IF(AX136="","",1) ->  | AZ136: =IF(AN136="","",VLOOKUP(AN136,[4]ItemConfig!$A:$C,3,FALSE)&AO136) ->  | BA136: =IF(AP136="","",VLOOKUP(AP136,[4]ItemConfig!$A:$C,3,FALSE)&AQ136) ->  | BB136: =IF(AR136="","",VLOOKUP(AR136,[4]ItemConfig!$A:$C,3,FALSE)&AS136) ->  | BC136: =IF(AT136="","",VLOOKUP(AT136,[4]ItemConfig!$A:$C,3,FALSE)&AU136) ->  | BD136: =IF(AV136="","",VLOOKUP(AV136,[4]ItemConfig!$A:$C,3,FALSE)&AW136) ->  | BE136: =IF(AX136="","",VLOOKUP(AX136,[4]ItemConfig!$A:$C,3,FALSE)&AY136) ->  | BF136: 240
A137: 133 | B137: 133 | C137: 5 | D137: 14 | E137: 3 | F137: 229;236;240 | G137: 化神 | H137: 中期. | I137: 三重 | J137: 229 | K137: 236 | L137: 240 | M137: =ROUND([1]ResourceLevelConfig!$E137*[1]ResourceLevelConfig!$L137*0.1,0)*10 -> 3450 | N137: -1 | O137: 0 | P137: -1 | Q137: -1 | R137: -1 | S137: -1 | T137: 0 | U137: =[3]主表!K135 -> 1803.63922 | V137: =[3]主表!L135 -> 33.222126 | W137: =[3]主表!M135 -> 33.222126 | X137: =[3]主表!N135 -> 0 | Y137: =[3]主表!$G135 -> 16377 | Z137: =[3]升级!$H135 -> 1400 | AA137: 0.24 | AB137: -1 | AC137: 4 | AD137: 4 | AE137: 4 | AF137: 1440 | AJ137: 1 | AK137: 3 | AL137: 133 | AS137: =IF(AR137="","",1) ->  | AU137: =IF(AT137="","",1) ->  | AW137: =IF(AV137="","",1) ->  | AY137: =IF(AX137="","",1) ->  | AZ137: =IF(AN137="","",VLOOKUP(AN137,[4]ItemConfig!$A:$C,3,FALSE)&AO137) ->  | BA137: =IF(AP137="","",VLOOKUP(AP137,[4]ItemConfig!$A:$C,3,FALSE)&AQ137) ->  | BB137: =IF(AR137="","",VLOOKUP(AR137,[4]ItemConfig!$A:$C,3,FALSE)&AS137) ->  | BC137: =IF(AT137="","",VLOOKUP(AT137,[4]ItemConfig!$A:$C,3,FALSE)&AU137) ->  | BD137: =IF(AV137="","",VLOOKUP(AV137,[4]ItemConfig!$A:$C,3,FALSE)&AW137) ->  | BE137: =IF(AX137="","",VLOOKUP(AX137,[4]ItemConfig!$A:$C,3,FALSE)&AY137) ->  | BF137: 240
A138: 134 | B138: 134 | C138: 5 | D138: 14 | E138: 4 | F138: 229;236;241 | G138: 化神 | H138: 中期. | I138: 四重 | J138: 229 | K138: 236 | L138: 241 | M138: =ROUND([1]ResourceLevelConfig!$E138*[1]ResourceLevelConfig!$L138*0.1,0)*10 -> 3600 | N138: -1 | O138: 0 | P138: -1 | Q138: -1 | R138: -1 | S138: -1 | T138: 0 | U138: =[3]主表!K136 -> 1840.564664 | V138: =[3]主表!L136 -> 33.67068544 | W138: =[3]主表!M136 -> 33.67068544 | X138: =[3]主表!N136 -> 0 | Y138: =[3]主表!$G136 -> 16617 | Z138: =[3]升级!$H136 -> 1400 | AA138: 0.25 | AB138: -1 | AC138: 4 | AD138: 4 | AE138: 4 | AF138: 1450 | AJ138: 1 | AK138: 3 | AL138: 134 | AS138: =IF(AR138="","",1) ->  | AU138: =IF(AT138="","",1) ->  | AW138: =IF(AV138="","",1) ->  | AY138: =IF(AX138="","",1) ->  | AZ138: =IF(AN138="","",VLOOKUP(AN138,[4]ItemConfig!$A:$C,3,FALSE)&AO138) ->  | BA138: =IF(AP138="","",VLOOKUP(AP138,[4]ItemConfig!$A:$C,3,FALSE)&AQ138) ->  | BB138: =IF(AR138="","",VLOOKUP(AR138,[4]ItemConfig!$A:$C,3,FALSE)&AS138) ->  | BC138: =IF(AT138="","",VLOOKUP(AT138,[4]ItemConfig!$A:$C,3,FALSE)&AU138) ->  | BD138: =IF(AV138="","",VLOOKUP(AV138,[4]ItemConfig!$A:$C,3,FALSE)&AW138) ->  | BE138: =IF(AX138="","",VLOOKUP(AX138,[4]ItemConfig!$A:$C,3,FALSE)&AY138) ->  | BF138: 240
A139: 135 | B139: 135 | C139: 5 | D139: 14 | E139: 5 | F139: 229;236;242 | G139: 化神 | H139: 中期. | I139: 五重 | J139: 229 | K139: 236 | L139: 242 | M139: =ROUND([1]ResourceLevelConfig!$E139*[1]ResourceLevelConfig!$L139*0.1,0)*10 -> 3600 | N139: -1 | O139: 0 | P139: -1 | Q139: -1 | R139: -1 | S139: -1 | T139: 0 | U139: =[3]主表!K137 -> 1878.158428 | V139: =[3]主表!L137 -> 34.12530126 | W139: =[3]主表!M137 -> 34.12530126 | X139: =[3]主表!N137 -> 0 | Y139: =[3]主表!$G137 -> 16860 | Z139: =[3]升级!$H137 -> 1400 | AA139: 0.25 | AB139: -1 | AC139: 4 | AD139: 4 | AE139: 4 | AF139: 1460 | AJ139: 1 | AK139: 3 | AL139: 135 | AS139: =IF(AR139="","",1) ->  | AU139: =IF(AT139="","",1) ->  | AW139: =IF(AV139="","",1) ->  | AY139: =IF(AX139="","",1) ->  | AZ139: =IF(AN139="","",VLOOKUP(AN139,[4]ItemConfig!$A:$C,3,FALSE)&AO139) ->  | BA139: =IF(AP139="","",VLOOKUP(AP139,[4]ItemConfig!$A:$C,3,FALSE)&AQ139) ->  | BB139: =IF(AR139="","",VLOOKUP(AR139,[4]ItemConfig!$A:$C,3,FALSE)&AS139) ->  | BC139: =IF(AT139="","",VLOOKUP(AT139,[4]ItemConfig!$A:$C,3,FALSE)&AU139) ->  | BD139: =IF(AV139="","",VLOOKUP(AV139,[4]ItemConfig!$A:$C,3,FALSE)&AW139) ->  | BE139: =IF(AX139="","",VLOOKUP(AX139,[4]ItemConfig!$A:$C,3,FALSE)&AY139) ->  | BF139: 240
A140: 136 | B140: 136 | C140: 5 | D140: 14 | E140: 6 | F140: 229;236;243 | G140: 化神 | H140: 中期. | I140: 六重 | J140: 229 | K140: 236 | L140: 243 | M140: =ROUND([1]ResourceLevelConfig!$E140*[1]ResourceLevelConfig!$L140*0.1,0)*10 -> 3600 | N140: -1 | O140: 0 | P140: -1 | Q140: -1 | R140: -1 | S140: -1 | T140: 0 | U140: =[3]主表!K138 -> 1916.431827 | V140: =[3]主表!L138 -> 34.58605522 | W140: =[3]主表!M138 -> 34.58605522 | X140: =[3]主表!N138 -> 0 | Y140: =[3]主表!$G138 -> 17107 | Z140: =[3]升级!$H138 -> 1400 | AA140: 0.25 | AB140: -1 | AC140: 4 | AD140: 4 | AE140: 4 | AF140: 1470 | AJ140: 1 | AK140: 3 | AL140: 136 | AS140: =IF(AR140="","",1) ->  | AU140: =IF(AT140="","",1) ->  | AW140: =IF(AV140="","",1) ->  | AY140: =IF(AX140="","",1) ->  | AZ140: =IF(AN140="","",VLOOKUP(AN140,[4]ItemConfig!$A:$C,3,FALSE)&AO140) ->  | BA140: =IF(AP140="","",VLOOKUP(AP140,[4]ItemConfig!$A:$C,3,FALSE)&AQ140) ->  | BB140: =IF(AR140="","",VLOOKUP(AR140,[4]ItemConfig!$A:$C,3,FALSE)&AS140) ->  | BC140: =IF(AT140="","",VLOOKUP(AT140,[4]ItemConfig!$A:$C,3,FALSE)&AU140) ->  | BD140: =IF(AV140="","",VLOOKUP(AV140,[4]ItemConfig!$A:$C,3,FALSE)&AW140) ->  | BE140: =IF(AX140="","",VLOOKUP(AX140,[4]ItemConfig!$A:$C,3,FALSE)&AY140) ->  | BF140: 240
A141: 137 | B141: 137 | C141: 5 | D141: 14 | E141: 7 | F141: 229;236;244 | G141: 化神 | H141: 中期. | I141: 七重 | J141: 229 | K141: 236 | L141: 244 | M141: =ROUND([1]ResourceLevelConfig!$E141*[1]ResourceLevelConfig!$L141*0.1,0)*10 -> 3600 | N141: -1 | O141: 0 | P141: -1 | Q141: -1 | R141: -1 | S141: -1 | T141: 0 | U141: =[3]主表!K139 -> 1955.396361 | V141: =[3]主表!L139 -> 35.0530302 | W141: =[3]主表!M139 -> 35.0530302 | X141: =[3]主表!N139 -> 0 | Y141: =[3]主表!$G139 -> 17358 | Z141: =[3]升级!$H139 -> 1400 | AA141: 0.25 | AB141: -1 | AC141: 4 | AD141: 4 | AE141: 4 | AF141: 1480 | AJ141: 1 | AK141: 3 | AL141: 137 | AS141: =IF(AR141="","",1) ->  | AU141: =IF(AT141="","",1) ->  | AW141: =IF(AV141="","",1) ->  | AY141: =IF(AX141="","",1) ->  | AZ141: =IF(AN141="","",VLOOKUP(AN141,[4]ItemConfig!$A:$C,3,FALSE)&AO141) ->  | BA141: =IF(AP141="","",VLOOKUP(AP141,[4]ItemConfig!$A:$C,3,FALSE)&AQ141) ->  | BB141: =IF(AR141="","",VLOOKUP(AR141,[4]ItemConfig!$A:$C,3,FALSE)&AS141) ->  | BC141: =IF(AT141="","",VLOOKUP(AT141,[4]ItemConfig!$A:$C,3,FALSE)&AU141) ->  | BD141: =IF(AV141="","",VLOOKUP(AV141,[4]ItemConfig!$A:$C,3,FALSE)&AW141) ->  | BE141: =IF(AX141="","",VLOOKUP(AX141,[4]ItemConfig!$A:$C,3,FALSE)&AY141) ->  | BF141: 240
A142: 138 | B142: 138 | C142: 5 | D142: 14 | E142: 8 | F142: 229;236;245 | G142: 化神 | H142: 中期. | I142: 八重 | J142: 229 | K142: 236 | L142: 245 | M142: =ROUND([1]ResourceLevelConfig!$E142*[1]ResourceLevelConfig!$L142*0.1,0)*10 -> 3600 | N142: -1 | O142: 0 | P142: -1 | Q142: -1 | R142: -1 | S142: -1 | T142: 0 | U142: =[3]主表!K140 -> 1995.063715 | V142: =[3]主表!L140 -> 35.5263102 | W142: =[3]主表!M140 -> 35.5263102 | X142: =[3]主表!N140 -> 0 | Y142: =[3]主表!$G140 -> 17613 | Z142: =[3]升级!$H140 -> 1400 | AA142: 0.25 | AB142: -1 | AC142: 4 | AD142: 4 | AE142: 4 | AF142: 1490 | AJ142: 1 | AK142: 3 | AL142: 138 | AS142: =IF(AR142="","",1) ->  | AU142: =IF(AT142="","",1) ->  | AW142: =IF(AV142="","",1) ->  | AY142: =IF(AX142="","",1) ->  | AZ142: =IF(AN142="","",VLOOKUP(AN142,[4]ItemConfig!$A:$C,3,FALSE)&AO142) ->  | BA142: =IF(AP142="","",VLOOKUP(AP142,[4]ItemConfig!$A:$C,3,FALSE)&AQ142) ->  | BB142: =IF(AR142="","",VLOOKUP(AR142,[4]ItemConfig!$A:$C,3,FALSE)&AS142) ->  | BC142: =IF(AT142="","",VLOOKUP(AT142,[4]ItemConfig!$A:$C,3,FALSE)&AU142) ->  | BD142: =IF(AV142="","",VLOOKUP(AV142,[4]ItemConfig!$A:$C,3,FALSE)&AW142) ->  | BE142: =IF(AX142="","",VLOOKUP(AX142,[4]ItemConfig!$A:$C,3,FALSE)&AY142) ->  | BF142: 240
A143: 139 | B143: 139 | C143: 5 | D143: 14 | E143: 9 | F143: 229;236;246 | G143: 化神 | H143: 中期. | I143: 九重 | J143: 229 | K143: 236 | L143: 246 | M143: =ROUND([1]ResourceLevelConfig!$E143*[1]ResourceLevelConfig!$L143*0.1,0)*10 -> 3600 | N143: -1 | O143: 0 | P143: -1 | Q143: -1 | R143: -1 | S143: -1 | T143: 0 | U143: =[3]主表!K141 -> 2035.445766 | V143: =[3]主表!L141 -> 36.00598034 | W143: =[3]主表!M141 -> 36.00598034 | X143: =[3]主表!N141 -> 0 | Y143: =[3]主表!$G141 -> 17872 | Z143: =[3]升级!$H141 -> 1400 | AA143: 0.25 | AB143: -1 | AC143: 4 | AD143: 4 | AE143: 4 | AF143: 1500 | AJ143: 1 | AK143: 3 | AL143: 139 | AS143: =IF(AR143="","",1) ->  | AU143: =IF(AT143="","",1) ->  | AW143: =IF(AV143="","",1) ->  | AY143: =IF(AX143="","",1) ->  | AZ143: =IF(AN143="","",VLOOKUP(AN143,[4]ItemConfig!$A:$C,3,FALSE)&AO143) ->  | BA143: =IF(AP143="","",VLOOKUP(AP143,[4]ItemConfig!$A:$C,3,FALSE)&AQ143) ->  | BB143: =IF(AR143="","",VLOOKUP(AR143,[4]ItemConfig!$A:$C,3,FALSE)&AS143) ->  | BC143: =IF(AT143="","",VLOOKUP(AT143,[4]ItemConfig!$A:$C,3,FALSE)&AU143) ->  | BD143: =IF(AV143="","",VLOOKUP(AV143,[4]ItemConfig!$A:$C,3,FALSE)&AW143) ->  | BE143: =IF(AX143="","",VLOOKUP(AX143,[4]ItemConfig!$A:$C,3,FALSE)&AY143) ->  | BF143: 240
A144: 140 | B144: 140 | C144: 5 | D144: 14 | E144: 10 | F144: 229;236;247 | G144: 化神 | H144: 中期. | I144: 十重 | J144: 229 | K144: 236 | L144: 247 | M144: =ROUND([1]ResourceLevelConfig!$E144*[1]ResourceLevelConfig!$L144*0.1,0)*10 -> 3600 | N144: 100006 | O144: 0 | P144: =AN144 -> 1314 | Q144: =AO144 -> 1 | R144: =_xlfn.TEXTJOIN(";",1,AP144,AR144,AT144,AV144) -> 1207;1208;1209 | S144: =_xlfn.TEXTJOIN(";",1,AQ144,AS144,AU144,AW144) -> 1;1;1 | T144: 0 | U144: =[3]主表!K142 -> 2076.55458 | V144: =[3]主表!L142 -> 36.49212691 | W144: =[3]主表!M142 -> 36.49212691 | X144: =[3]主表!N142 -> 0 | Y144: =[3]主表!$G142 -> 18135 | Z144: =[3]升级!$H142 -> 1400 | AA144: 0.25 | AB144: 15 | AC144: 4 | AD144: 4 | AE144: 4 | AF144: 1510 | AJ144: 1 | AK144: 3 | AL144: 140 | AN144: 1314 | AO144: 1 | AP144: 1207 | AQ144: 1 | AR144: 1208 | AS144: =IF(AR144="","",1) -> 1 | AT144: 1209 | AU144: =IF(AT144="","",1) -> 1 | AW144: =IF(AV144="","",1) ->  | AY144: =IF(AX144="","",1) ->  | AZ144: =IF(AN144="","",VLOOKUP(AN144,[4]ItemConfig!$A:$C,3,FALSE)&AO144) -> 太虚花1 | BA144: =IF(AP144="","",VLOOKUP(AP144,[4]ItemConfig!$A:$C,3,FALSE)&AQ144) -> 灵冥石1 | BB144: =IF(AR144="","",VLOOKUP(AR144,[4]ItemConfig!$A:$C,3,FALSE)&AS144) -> 玄金砂1 | BC144: =IF(AT144="","",VLOOKUP(AT144,[4]ItemConfig!$A:$C,3,FALSE)&AU144) -> 紫玄晶1 | BD144: =IF(AV144="","",VLOOKUP(AV144,[4]ItemConfig!$A:$C,3,FALSE)&AW144) ->  | BE144: =IF(AX144="","",VLOOKUP(AX144,[4]ItemConfig!$A:$C,3,FALSE)&AY144) ->  | BF144: 240
A145: 141 | B145: 141 | C145: 5 | D145: 15 | E145: 1 | F145: 229;237;238 | G145: 化神 | H145: 后期. | I145: 一重 | J145: 229 | K145: 237 | L145: 238 | M145: =ROUND([1]ResourceLevelConfig!$E145*[1]ResourceLevelConfig!$L145*0.1,0)*10 -> 3600 | N145: -1 | O145: 0 | P145: -1 | Q145: -1 | R145: =IF(I145=10,"1001;1002;1004",-1) -> -1 | S145: -1 | T145: 0 | U145: =[3]主表!K143 -> 2299.199271 | V145: =[3]主表!L143 -> 40.1413396 | W145: =[3]主表!M143 -> 40.1413396 | X145: =[3]主表!N143 -> 0 | Y145: =[3]主表!$G143 -> 20399 | Z145: =[3]升级!$H143 -> 1400 | AA145: 0.25 | AB145: -1 | AC145: 4 | AD145: 4 | AE145: 4 | AF145: 1520 | AJ145: 1 | AK145: 3 | AL145: 141 | AS145: =IF(AR145="","",1) ->  | AU145: =IF(AT145="","",1) ->  | AW145: =IF(AV145="","",1) ->  | AY145: =IF(AX145="","",1) ->  | AZ145: =IF(AN145="","",VLOOKUP(AN145,[4]ItemConfig!$A:$C,3,FALSE)&AO145) ->  | BA145: =IF(AP145="","",VLOOKUP(AP145,[4]ItemConfig!$A:$C,3,FALSE)&AQ145) ->  | BB145: =IF(AR145="","",VLOOKUP(AR145,[4]ItemConfig!$A:$C,3,FALSE)&AS145) ->  | BC145: =IF(AT145="","",VLOOKUP(AT145,[4]ItemConfig!$A:$C,3,FALSE)&AU145) ->  | BD145: =IF(AV145="","",VLOOKUP(AV145,[4]ItemConfig!$A:$C,3,FALSE)&AW145) ->  | BE145: =IF(AX145="","",VLOOKUP(AX145,[4]ItemConfig!$A:$C,3,FALSE)&AY145) ->  | BF145: 240
A146: 142 | B146: 142 | C146: 5 | D146: 15 | E146: 2 | F146: 229;237;239 | G146: 化神 | H146: 后期. | I146: 二重 | J146: 229 | K146: 237 | L146: 239 | M146: =ROUND([1]ResourceLevelConfig!$E146*[1]ResourceLevelConfig!$L146*0.1,0)*10 -> 3750 | N146: -1 | O146: 0 | P146: -1 | Q146: -1 | R146: -1 | S146: -1 | T146: 0 | U146: =[3]主表!K144 -> 2345.43428 | V146: =[3]主表!L144 -> 40.68332108 | W146: =[3]主表!M144 -> 40.68332108 | X146: =[3]主表!N144 -> 0 | Y146: =[3]主表!$G144 -> 20695 | Z146: =[3]升级!$H144 -> 1400 | AA146: 0.26 | AB146: -1 | AC146: 4 | AD146: 4 | AE146: 4 | AF146: 1530 | AJ146: 1 | AK146: 3 | AL146: 142 | AS146: =IF(AR146="","",1) ->  | AU146: =IF(AT146="","",1) ->  | AW146: =IF(AV146="","",1) ->  | AY146: =IF(AX146="","",1) ->  | AZ146: =IF(AN146="","",VLOOKUP(AN146,[4]ItemConfig!$A:$C,3,FALSE)&AO146) ->  | BA146: =IF(AP146="","",VLOOKUP(AP146,[4]ItemConfig!$A:$C,3,FALSE)&AQ146) ->  | BB146: =IF(AR146="","",VLOOKUP(AR146,[4]ItemConfig!$A:$C,3,FALSE)&AS146) ->  | BC146: =IF(AT146="","",VLOOKUP(AT146,[4]ItemConfig!$A:$C,3,FALSE)&AU146) ->  | BD146: =IF(AV146="","",VLOOKUP(AV146,[4]ItemConfig!$A:$C,3,FALSE)&AW146) ->  | BE146: =IF(AX146="","",VLOOKUP(AX146,[4]ItemConfig!$A:$C,3,FALSE)&AY146) ->  | BF146: 240
A147: 143 | B147: 143 | C147: 5 | D147: 15 | E147: 3 | F147: 229;237;240 | G147: 化神 | H147: 后期. | I147: 三重 | J147: 229 | K147: 237 | L147: 240 | M147: =ROUND([1]ResourceLevelConfig!$E147*[1]ResourceLevelConfig!$L147*0.1,0)*10 -> 3750 | N147: -1 | O147: 0 | P147: -1 | Q147: -1 | R147: -1 | S147: -1 | T147: 0 | U147: =[3]主表!K145 -> 2392.49866 | V147: =[3]主表!L145 -> 41.2326203 | W147: =[3]主表!M145 -> 41.2326203 | X147: =[3]主表!N145 -> 0 | Y147: =[3]主表!$G145 -> 20995 | Z147: =[3]升级!$H145 -> 1400 | AA147: 0.26 | AB147: -1 | AC147: 4 | AD147: 4 | AE147: 4 | AF147: 1540 | AJ147: 1 | AK147: 3 | AL147: 143 | AS147: =IF(AR147="","",1) ->  | AU147: =IF(AT147="","",1) ->  | AW147: =IF(AV147="","",1) ->  | AY147: =IF(AX147="","",1) ->  | AZ147: =IF(AN147="","",VLOOKUP(AN147,[4]ItemConfig!$A:$C,3,FALSE)&AO147) ->  | BA147: =IF(AP147="","",VLOOKUP(AP147,[4]ItemConfig!$A:$C,3,FALSE)&AQ147) ->  | BB147: =IF(AR147="","",VLOOKUP(AR147,[4]ItemConfig!$A:$C,3,FALSE)&AS147) ->  | BC147: =IF(AT147="","",VLOOKUP(AT147,[4]ItemConfig!$A:$C,3,FALSE)&AU147) ->  | BD147: =IF(AV147="","",VLOOKUP(AV147,[4]ItemConfig!$A:$C,3,FALSE)&AW147) ->  | BE147: =IF(AX147="","",VLOOKUP(AX147,[4]ItemConfig!$A:$C,3,FALSE)&AY147) ->  | BF147: 240
A148: 144 | B148: 144 | C148: 5 | D148: 15 | E148: 4 | F148: 229;237;241 | G148: 化神 | H148: 后期. | I148: 四重 | J148: 229 | K148: 237 | L148: 241 | M148: =ROUND([1]ResourceLevelConfig!$E148*[1]ResourceLevelConfig!$L148*0.1,0)*10 -> 3750 | N148: -1 | O148: 0 | P148: -1 | Q148: -1 | R148: -1 | S148: -1 | T148: 0 | U148: =[3]主表!K146 -> 2440.40638 | V148: =[3]主表!L146 -> 41.78933607 | W148: =[3]主表!M146 -> 41.78933607 | X148: =[3]主表!N146 -> 0 | Y148: =[3]主表!$G146 -> 21300 | Z148: =[3]升级!$H146 -> 1400 | AA148: 0.26 | AB148: -1 | AC148: 4 | AD148: 4 | AE148: 4 | AF148: 1550 | AJ148: 1 | AK148: 3 | AL148: 144 | AS148: =IF(AR148="","",1) ->  | AU148: =IF(AT148="","",1) ->  | AW148: =IF(AV148="","",1) ->  | AY148: =IF(AX148="","",1) ->  | AZ148: =IF(AN148="","",VLOOKUP(AN148,[4]ItemConfig!$A:$C,3,FALSE)&AO148) ->  | BA148: =IF(AP148="","",VLOOKUP(AP148,[4]ItemConfig!$A:$C,3,FALSE)&AQ148) ->  | BB148: =IF(AR148="","",VLOOKUP(AR148,[4]ItemConfig!$A:$C,3,FALSE)&AS148) ->  | BC148: =IF(AT148="","",VLOOKUP(AT148,[4]ItemConfig!$A:$C,3,FALSE)&AU148) ->  | BD148: =IF(AV148="","",VLOOKUP(AV148,[4]ItemConfig!$A:$C,3,FALSE)&AW148) ->  | BE148: =IF(AX148="","",VLOOKUP(AX148,[4]ItemConfig!$A:$C,3,FALSE)&AY148) ->  | BF148: 240
A149: 145 | B149: 145 | C149: 5 | D149: 15 | E149: 5 | F149: 229;237;242 | G149: 化神 | H149: 后期. | I149: 五重 | J149: 229 | K149: 237 | L149: 242 | M149: =ROUND([1]ResourceLevelConfig!$E149*[1]ResourceLevelConfig!$L149*0.1,0)*10 -> 3750 | N149: -1 | O149: 0 | P149: -1 | Q149: -1 | R149: -1 | S149: -1 | T149: 0 | U149: =[3]主表!K147 -> 2489.171632 | V149: =[3]主表!L147 -> 42.35356851 | W149: =[3]主表!M147 -> 42.35356851 | X149: =[3]主表!N147 -> 0 | Y149: =[3]主表!$G147 -> 21610 | Z149: =[3]升级!$H147 -> 1400 | AA149: 0.26 | AB149: -1 | AC149: 4 | AD149: 4 | AE149: 4 | AF149: 1560 | AJ149: 1 | AK149: 3 | AL149: 145 | AS149: =IF(AR149="","",1) ->  | AU149: =IF(AT149="","",1) ->  | AW149: =IF(AV149="","",1) ->  | AY149: =IF(AX149="","",1) ->  | AZ149: =IF(AN149="","",VLOOKUP(AN149,[4]ItemConfig!$A:$C,3,FALSE)&AO149) ->  | BA149: =IF(AP149="","",VLOOKUP(AP149,[4]ItemConfig!$A:$C,3,FALSE)&AQ149) ->  | BB149: =IF(AR149="","",VLOOKUP(AR149,[4]ItemConfig!$A:$C,3,FALSE)&AS149) ->  | BC149: =IF(AT149="","",VLOOKUP(AT149,[4]ItemConfig!$A:$C,3,FALSE)&AU149) ->  | BD149: =IF(AV149="","",VLOOKUP(AV149,[4]ItemConfig!$A:$C,3,FALSE)&AW149) ->  | BE149: =IF(AX149="","",VLOOKUP(AX149,[4]ItemConfig!$A:$C,3,FALSE)&AY149) ->  | BF149: 240
A150: 146 | B150: 146 | C150: 5 | D150: 15 | E150: 6 | F150: 229;237;243 | G150: 化神 | H150: 后期. | I150: 六重 | J150: 229 | K150: 237 | L150: 243 | M150: =ROUND([1]ResourceLevelConfig!$E150*[1]ResourceLevelConfig!$L150*0.1,0)*10 -> 3750 | N150: -1 | O150: 0 | P150: -1 | Q150: -1 | R150: -1 | S150: -1 | T150: 0 | U150: =[3]主表!K148 -> 2538.80884 | V150: =[3]主表!L148 -> 42.92541912 | W150: =[3]主表!M148 -> 42.92541912 | X150: =[3]主表!N148 -> 0 | Y150: =[3]主表!$G148 -> 21924 | Z150: =[3]升级!$H148 -> 1400 | AA150: 0.26 | AB150: -1 | AC150: 4 | AD150: 4 | AE150: 4 | AF150: 1570 | AJ150: 1 | AK150: 3 | AL150: 146 | AS150: =IF(AR150="","",1) ->  | AU150: =IF(AT150="","",1) ->  | AW150: =IF(AV150="","",1) ->  | AY150: =IF(AX150="","",1) ->  | AZ150: =IF(AN150="","",VLOOKUP(AN150,[4]ItemConfig!$A:$C,3,FALSE)&AO150) ->  | BA150: =IF(AP150="","",VLOOKUP(AP150,[4]ItemConfig!$A:$C,3,FALSE)&AQ150) ->  | BB150: =IF(AR150="","",VLOOKUP(AR150,[4]ItemConfig!$A:$C,3,FALSE)&AS150) ->  | BC150: =IF(AT150="","",VLOOKUP(AT150,[4]ItemConfig!$A:$C,3,FALSE)&AU150) ->  | BD150: =IF(AV150="","",VLOOKUP(AV150,[4]ItemConfig!$A:$C,3,FALSE)&AW150) ->  | BE150: =IF(AX150="","",VLOOKUP(AX150,[4]ItemConfig!$A:$C,3,FALSE)&AY150) ->  | BF150: 240
A151: 147 | B151: 147 | C151: 5 | D151: 15 | E151: 7 | F151: 229;237;244 | G151: 化神 | H151: 后期. | I151: 七重 | J151: 229 | K151: 237 | L151: 244 | M151: =ROUND([1]ResourceLevelConfig!$E151*[1]ResourceLevelConfig!$L151*0.1,0)*10 -> 3750 | N151: -1 | O151: 0 | P151: -1 | Q151: -1 | R151: -1 | S151: -1 | T151: 0 | U151: =[3]主表!K149 -> 2589.33266 | V151: =[3]主表!L149 -> 43.50499077 | W151: =[3]主表!M149 -> 43.50499077 | X151: =[3]主表!N149 -> 0 | Y151: =[3]主表!$G149 -> 22244 | Z151: =[3]升级!$H149 -> 1400 | AA151: 0.26 | AB151: -1 | AC151: 4 | AD151: 4 | AE151: 4 | AF151: 1580 | AJ151: 1 | AK151: 3 | AL151: 147 | AS151: =IF(AR151="","",1) ->  | AU151: =IF(AT151="","",1) ->  | AW151: =IF(AV151="","",1) ->  | AY151: =IF(AX151="","",1) ->  | AZ151: =IF(AN151="","",VLOOKUP(AN151,[4]ItemConfig!$A:$C,3,FALSE)&AO151) ->  | BA151: =IF(AP151="","",VLOOKUP(AP151,[4]ItemConfig!$A:$C,3,FALSE)&AQ151) ->  | BB151: =IF(AR151="","",VLOOKUP(AR151,[4]ItemConfig!$A:$C,3,FALSE)&AS151) ->  | BC151: =IF(AT151="","",VLOOKUP(AT151,[4]ItemConfig!$A:$C,3,FALSE)&AU151) ->  | BD151: =IF(AV151="","",VLOOKUP(AV151,[4]ItemConfig!$A:$C,3,FALSE)&AW151) ->  | BE151: =IF(AX151="","",VLOOKUP(AX151,[4]ItemConfig!$A:$C,3,FALSE)&AY151) ->  | BF151: 240
A152: 148 | B152: 148 | C152: 5 | D152: 15 | E152: 8 | F152: 229;237;245 | G152: 化神 | H152: 后期. | I152: 八重 | J152: 229 | K152: 237 | L152: 245 | M152: =ROUND([1]ResourceLevelConfig!$E152*[1]ResourceLevelConfig!$L152*0.1,0)*10 -> 3750 | N152: -1 | O152: 0 | P152: -1 | Q152: -1 | R152: -1 | S152: -1 | T152: 0 | U152: =[3]主表!K150 -> 2640.757984 | V152: =[3]主表!L150 -> 44.09238769 | W152: =[3]主表!M150 -> 44.09238769 | X152: =[3]主表!N150 -> 0 | Y152: =[3]主表!$G150 -> 22568 | Z152: =[3]升级!$H150 -> 1400 | AA152: 0.26 | AB152: -1 | AC152: 4 | AD152: 4 | AE152: 4 | AF152: 1590 | AJ152: 1 | AK152: 3 | AL152: 148 | AS152: =IF(AR152="","",1) ->  | AU152: =IF(AT152="","",1) ->  | AW152: =IF(AV152="","",1) ->  | AY152: =IF(AX152="","",1) ->  | AZ152: =IF(AN152="","",VLOOKUP(AN152,[4]ItemConfig!$A:$C,3,FALSE)&AO152) ->  | BA152: =IF(AP152="","",VLOOKUP(AP152,[4]ItemConfig!$A:$C,3,FALSE)&AQ152) ->  | BB152: =IF(AR152="","",VLOOKUP(AR152,[4]ItemConfig!$A:$C,3,FALSE)&AS152) ->  | BC152: =IF(AT152="","",VLOOKUP(AT152,[4]ItemConfig!$A:$C,3,FALSE)&AU152) ->  | BD152: =IF(AV152="","",VLOOKUP(AV152,[4]ItemConfig!$A:$C,3,FALSE)&AW152) ->  | BE152: =IF(AX152="","",VLOOKUP(AX152,[4]ItemConfig!$A:$C,3,FALSE)&AY152) ->  | BF152: 240
A153: 149 | B153: 149 | C153: 5 | D153: 15 | E153: 9 | F153: 229;237;246 | G153: 化神 | H153: 后期. | I153: 九重 | J153: 229 | K153: 237 | L153: 246 | M153: =ROUND([1]ResourceLevelConfig!$E153*[1]ResourceLevelConfig!$L153*0.1,0)*10 -> 3750 | N153: -1 | O153: 0 | P153: -1 | Q153: -1 | R153: -1 | S153: -1 | T153: 0 | U153: =[3]主表!K151 -> 2693.099946 | V153: =[3]主表!L151 -> 44.68771554 | W153: =[3]主表!M151 -> 44.68771554 | X153: =[3]主表!N151 -> 0 | Y153: =[3]主表!$G151 -> 22898 | Z153: =[3]升级!$H151 -> 1400 | AA153: 0.26 | AB153: -1 | AC153: 4 | AD153: 4 | AE153: 4 | AF153: 1600 | AJ153: 1 | AK153: 3 | AL153: 149 | AS153: =IF(AR153="","",1) ->  | AU153: =IF(AT153="","",1) ->  | AW153: =IF(AV153="","",1) ->  | AY153: =IF(AX153="","",1) ->  | AZ153: =IF(AN153="","",VLOOKUP(AN153,[4]ItemConfig!$A:$C,3,FALSE)&AO153) ->  | BA153: =IF(AP153="","",VLOOKUP(AP153,[4]ItemConfig!$A:$C,3,FALSE)&AQ153) ->  | BB153: =IF(AR153="","",VLOOKUP(AR153,[4]ItemConfig!$A:$C,3,FALSE)&AS153) ->  | BC153: =IF(AT153="","",VLOOKUP(AT153,[4]ItemConfig!$A:$C,3,FALSE)&AU153) ->  | BD153: =IF(AV153="","",VLOOKUP(AV153,[4]ItemConfig!$A:$C,3,FALSE)&AW153) ->  | BE153: =IF(AX153="","",VLOOKUP(AX153,[4]ItemConfig!$A:$C,3,FALSE)&AY153) ->  | BF153: 240
A154: 150 | B154: 150 | C154: 5 | D154: 15 | E154: 10 | F154: 229;237;247 | G154: 化神 | H154: 后期. | I154: 十重 | J154: 229 | K154: 237 | L154: 247 | M154: =ROUND([1]ResourceLevelConfig!$E154*[1]ResourceLevelConfig!$L154*0.1,0)*10 -> 3900 | N154: 100006 | O154: 0 | P154: =AN154 -> 1315 | Q154: =AO154 -> 1 | R154: =_xlfn.TEXTJOIN(";",1,AP154,AR154,AT154,AV154) -> 1207;1208;1209 | S154: =_xlfn.TEXTJOIN(";",1,AQ154,AS154,AU154,AW154) -> 1;1;1 | T154: =CONCATENATE(ROUND(0.6*VLOOKUP(A154,[3]主表!$A:$P,16,FALSE)*[5]HeroModelConfig!$Q$5,0),";",ROUND(0.9*VLOOKUP(A154,[3]主表!$A:$P,16,FALSE)*[5]HeroModelConfig!$Q$5,0),";",INT(A154/30)+1) -> 422625;633937;6 | U154: =[3]主表!K152 -> 2746.373924 | V154: =[3]主表!L152 -> 45.29108141 | W154: =[3]主表!M152 -> 45.29108141 | X154: =[3]主表!N152 -> 0 | Y154: =[3]主表!$G152 -> 23232 | Z154: =[3]升级!$H152 -> 1400 | AA154: 0.27 | AB154: 15 | AC154: 4 | AD154: 4 | AE154: 4 | AF154: 1610 | AJ154: 1 | AK154: 3 | AL154: 150 | AN154: 1315 | AO154: 1 | AP154: 1207 | AQ154: 1 | AR154: 1208 | AS154: =IF(AR154="","",1) -> 1 | AT154: 1209 | AU154: =IF(AT154="","",1) -> 1 | AW154: =IF(AV154="","",1) ->  | AY154: =IF(AX154="","",1) ->  | AZ154: =IF(AN154="","",VLOOKUP(AN154,[4]ItemConfig!$A:$C,3,FALSE)&AO154) -> 九焰莲1 | BA154: =IF(AP154="","",VLOOKUP(AP154,[4]ItemConfig!$A:$C,3,FALSE)&AQ154) -> 灵冥石1 | BB154: =IF(AR154="","",VLOOKUP(AR154,[4]ItemConfig!$A:$C,3,FALSE)&AS154) -> 玄金砂1 | BC154: =IF(AT154="","",VLOOKUP(AT154,[4]ItemConfig!$A:$C,3,FALSE)&AU154) -> 紫玄晶1 | BD154: =IF(AV154="","",VLOOKUP(AV154,[4]ItemConfig!$A:$C,3,FALSE)&AW154) ->  | BE154: =IF(AX154="","",VLOOKUP(AX154,[4]ItemConfig!$A:$C,3,FALSE)&AY154) ->  | BF154: 240
A155: 151 | B155: 151 | C155: 6 | D155: 16 | E155: 1 | F155: 230;235;238 | G155: 炼虚 | H155: 前期. | I155: 一重 | J155: 230 | K155: 235 | L155: 238 | M155: =ROUND([1]ResourceLevelConfig!$E155*[1]ResourceLevelConfig!$L155*0.1,0)*10 -> 3900 | N155: -1 | O155: 0 | P155: -1 | Q155: -1 | R155: =IF(I155=10,"1001;1002;1004",-1) -> -1 | S155: =IF(R155=-1,-1,"100;200;300") -> -1 | T155: 0 | U155: =[3]主表!K153 -> 3592.271968 | V155: =[3]主表!L153 -> 58.87840583 | W155: =[3]主表!M153 -> 58.87840583 | X155: =[3]主表!N153 -> 0 | Y155: =[3]主表!$G153 -> 30881 | Z155: =[3]升级!$H153 -> 1500 | AA155: 0.27 | AB155: -1 | AC155: 4 | AD155: 4 | AE155: 4 | AF155: 1620 | AJ155: 1 | AK155: 3 | AL155: 151 | AS155: =IF(AR155="","",1) ->  | AU155: =IF(AT155="","",1) ->  | AW155: =IF(AV155="","",1) ->  | AY155: =IF(AX155="","",1) ->  | AZ155: =IF(AN155="","",VLOOKUP(AN155,[4]ItemConfig!$A:$C,3,FALSE)&AO155) ->  | BA155: =IF(AP155="","",VLOOKUP(AP155,[4]ItemConfig!$A:$C,3,FALSE)&AQ155) ->  | BB155: =IF(AR155="","",VLOOKUP(AR155,[4]ItemConfig!$A:$C,3,FALSE)&AS155) ->  | BC155: =IF(AT155="","",VLOOKUP(AT155,[4]ItemConfig!$A:$C,3,FALSE)&AU155) ->  | BD155: =IF(AV155="","",VLOOKUP(AV155,[4]ItemConfig!$A:$C,3,FALSE)&AW155) ->  | BE155: =IF(AX155="","",VLOOKUP(AX155,[4]ItemConfig!$A:$C,3,FALSE)&AY155) ->  | BF155: 240
A156: 152 | B156: 152 | C156: 6 | D156: 16 | E156: 2 | F156: 230;235;239 | G156: 炼虚 | H156: 前期. | I156: 二重 | J156: 230 | K156: 235 | L156: 239 | M156: =ROUND([1]ResourceLevelConfig!$E156*[1]ResourceLevelConfig!$L156*0.1,0)*10 -> 3900 | N156: -1 | O156: 0 | P156: -1 | Q156: -1 | R156: =IF(I156=10,"1001;1002;1004",-1) -> -1 | S156: =IF(R156=-1,-1,"100;200;300") -> -1 | T156: 0 | U156: =[3]主表!K154 -> 3663.056923 | V156: =[3]主表!L154 -> 59.67337196 | W156: =[3]主表!M154 -> 59.67337196 | X156: =[3]主表!N154 -> 0 | Y156: =[3]主表!$G154 -> 31326 | Z156: =[3]升级!$H154 -> 1500 | AA156: 0.27 | AB156: -1 | AC156: 4 | AD156: 4 | AE156: 4 | AF156: 1630 | AJ156: 1 | AK156: 3 | AL156: 152 | AS156: =IF(AR156="","",1) ->  | AU156: =IF(AT156="","",1) ->  | AW156: =IF(AV156="","",1) ->  | AY156: =IF(AX156="","",1) ->  | AZ156: =IF(AN156="","",VLOOKUP(AN156,[4]ItemConfig!$A:$C,3,FALSE)&AO156) ->  | BA156: =IF(AP156="","",VLOOKUP(AP156,[4]ItemConfig!$A:$C,3,FALSE)&AQ156) ->  | BB156: =IF(AR156="","",VLOOKUP(AR156,[4]ItemConfig!$A:$C,3,FALSE)&AS156) ->  | BC156: =IF(AT156="","",VLOOKUP(AT156,[4]ItemConfig!$A:$C,3,FALSE)&AU156) ->  | BD156: =IF(AV156="","",VLOOKUP(AV156,[4]ItemConfig!$A:$C,3,FALSE)&AW156) ->  | BE156: =IF(AX156="","",VLOOKUP(AX156,[4]ItemConfig!$A:$C,3,FALSE)&AY156) ->  | BF156: 240
A157: 153 | B157: 153 | C157: 6 | D157: 16 | E157: 3 | F157: 230;235;240 | G157: 炼虚 | H157: 前期. | I157: 三重 | J157: 230 | K157: 235 | L157: 240 | M157: =ROUND([1]ResourceLevelConfig!$E157*[1]ResourceLevelConfig!$L157*0.1,0)*10 -> 3900 | N157: -1 | O157: 0 | P157: -1 | Q157: -1 | R157: -1 | S157: -1 | T157: 0 | U157: =[3]主表!K155 -> 3735.098462 | V157: =[3]主表!L155 -> 60.47907159 | W157: =[3]主表!M155 -> 60.47907159 | X157: =[3]主表!N155 -> 0 | Y157: =[3]主表!$G155 -> 31777 | Z157: =[3]升级!$H155 -> 1500 | AA157: 0.27 | AB157: -1 | AC157: 4 | AD157: 4 | AE157: 4 | AF157: 1640 | AJ157: 1 | AK157: 3 | AL157: 153 | AS157: =IF(AR157="","",1) ->  | AU157: =IF(AT157="","",1) ->  | AW157: =IF(AV157="","",1) ->  | AY157: =IF(AX157="","",1) ->  | AZ157: =IF(AN157="","",VLOOKUP(AN157,[4]ItemConfig!$A:$C,3,FALSE)&AO157) ->  | BA157: =IF(AP157="","",VLOOKUP(AP157,[4]ItemConfig!$A:$C,3,FALSE)&AQ157) ->  | BB157: =IF(AR157="","",VLOOKUP(AR157,[4]ItemConfig!$A:$C,3,FALSE)&AS157) ->  | BC157: =IF(AT157="","",VLOOKUP(AT157,[4]ItemConfig!$A:$C,3,FALSE)&AU157) ->  | BD157: =IF(AV157="","",VLOOKUP(AV157,[4]ItemConfig!$A:$C,3,FALSE)&AW157) ->  | BE157: =IF(AX157="","",VLOOKUP(AX157,[4]ItemConfig!$A:$C,3,FALSE)&AY157) ->  | BF157: 240
A158: 154 | B158: 154 | C158: 6 | D158: 16 | E158: 4 | F158: 230;235;241 | G158: 炼虚 | H158: 前期. | I158: 四重 | J158: 230 | K158: 235 | L158: 241 | M158: =ROUND([1]ResourceLevelConfig!$E158*[1]ResourceLevelConfig!$L158*0.1,0)*10 -> 3900 | N158: -1 | O158: 0 | P158: -1 | Q158: -1 | R158: -1 | S158: -1 | T158: 0 | U158: =[3]主表!K156 -> 3808.417613 | V158: =[3]主表!L156 -> 61.29564963 | W158: =[3]主表!M156 -> 61.29564963 | X158: =[3]主表!N156 -> 0 | Y158: =[3]主表!$G156 -> 32235 | Z158: =[3]升级!$H156 -> 1500 | AA158: 0.27 | AB158: -1 | AC158: 4 | AD158: 4 | AE158: 4 | AF158: 1650 | AJ158: 1 | AK158: 3 | AL158: 154 | AS158: =IF(AR158="","",1) ->  | AU158: =IF(AT158="","",1) ->  | AW158: =IF(AV158="","",1) ->  | AY158: =IF(AX158="","",1) ->  | AZ158: =IF(AN158="","",VLOOKUP(AN158,[4]ItemConfig!$A:$C,3,FALSE)&AO158) ->  | BA158: =IF(AP158="","",VLOOKUP(AP158,[4]ItemConfig!$A:$C,3,FALSE)&AQ158) ->  | BB158: =IF(AR158="","",VLOOKUP(AR158,[4]ItemConfig!$A:$C,3,FALSE)&AS158) ->  | BC158: =IF(AT158="","",VLOOKUP(AT158,[4]ItemConfig!$A:$C,3,FALSE)&AU158) ->  | BD158: =IF(AV158="","",VLOOKUP(AV158,[4]ItemConfig!$A:$C,3,FALSE)&AW158) ->  | BE158: =IF(AX158="","",VLOOKUP(AX158,[4]ItemConfig!$A:$C,3,FALSE)&AY158) ->  | BF158: 240
A159: 155 | B159: 155 | C159: 6 | D159: 16 | E159: 5 | F159: 230;235;242 | G159: 炼虚 | H159: 前期. | I159: 五重 | J159: 230 | K159: 235 | L159: 242 | M159: =ROUND([1]ResourceLevelConfig!$E159*[1]ResourceLevelConfig!$L159*0.1,0)*10 -> 3900 | N159: -1 | O159: 0 | P159: -1 | Q159: -1 | R159: -1 | S159: -1 | T159: 0 | U159: =[3]主表!K157 -> 3883.035743 | V159: =[3]主表!L157 -> 62.12325298 | W159: =[3]主表!M157 -> 62.12325298 | X159: =[3]主表!N157 -> 0 | Y159: =[3]主表!$G157 -> 32701 | Z159: =[3]升级!$H157 -> 1500 | AA159: 0.27 | AB159: -1 | AC159: 4 | AD159: 4 | AE159: 4 | AF159: 1660 | AJ159: 1 | AK159: 3 | AL159: 155 | AS159: =IF(AR159="","",1) ->  | AU159: =IF(AT159="","",1) ->  | AW159: =IF(AV159="","",1) ->  | AY159: =IF(AX159="","",1) ->  | AZ159: =IF(AN159="","",VLOOKUP(AN159,[4]ItemConfig!$A:$C,3,FALSE)&AO159) ->  | BA159: =IF(AP159="","",VLOOKUP(AP159,[4]ItemConfig!$A:$C,3,FALSE)&AQ159) ->  | BB159: =IF(AR159="","",VLOOKUP(AR159,[4]ItemConfig!$A:$C,3,FALSE)&AS159) ->  | BC159: =IF(AT159="","",VLOOKUP(AT159,[4]ItemConfig!$A:$C,3,FALSE)&AU159) ->  | BD159: =IF(AV159="","",VLOOKUP(AV159,[4]ItemConfig!$A:$C,3,FALSE)&AW159) ->  | BE159: =IF(AX159="","",VLOOKUP(AX159,[4]ItemConfig!$A:$C,3,FALSE)&AY159) ->  | BF159: 240
A160: 156 | B160: 156 | C160: 6 | D160: 16 | E160: 6 | F160: 230;235;243 | G160: 炼虚 | H160: 前期. | I160: 六重 | J160: 230 | K160: 235 | L160: 243 | M160: =ROUND([1]ResourceLevelConfig!$E160*[1]ResourceLevelConfig!$L160*0.1,0)*10 -> 3900 | N160: -1 | O160: 0 | P160: -1 | Q160: -1 | R160: -1 | S160: -1 | T160: 0 | U160: =[3]主表!K158 -> 3958.974564 | V160: =[3]主表!L158 -> 62.96203048 | W160: =[3]主表!M158 -> 62.96203048 | X160: =[3]主表!N158 -> 0 | Y160: =[3]主表!$G158 -> 33173 | Z160: =[3]升级!$H158 -> 1500 | AA160: 0.27 | AB160: -1 | AC160: 4 | AD160: 4 | AE160: 4 | AF160: 1670 | AJ160: 1 | AK160: 3 | AL160: 156 | AS160: =IF(AR160="","",1) ->  | AU160: =IF(AT160="","",1) ->  | AW160: =IF(AV160="","",1) ->  | AY160: =IF(AX160="","",1) ->  | AZ160: =IF(AN160="","",VLOOKUP(AN160,[4]ItemConfig!$A:$C,3,FALSE)&AO160) ->  | BA160: =IF(AP160="","",VLOOKUP(AP160,[4]ItemConfig!$A:$C,3,FALSE)&AQ160) ->  | BB160: =IF(AR160="","",VLOOKUP(AR160,[4]ItemConfig!$A:$C,3,FALSE)&AS160) ->  | BC160: =IF(AT160="","",VLOOKUP(AT160,[4]ItemConfig!$A:$C,3,FALSE)&AU160) ->  | BD160: =IF(AV160="","",VLOOKUP(AV160,[4]ItemConfig!$A:$C,3,FALSE)&AW160) ->  | BE160: =IF(AX160="","",VLOOKUP(AX160,[4]ItemConfig!$A:$C,3,FALSE)&AY160) ->  | BF160: 240
A161: 157 | B161: 157 | C161: 6 | D161: 16 | E161: 7 | F161: 230;235;244 | G161: 炼虚 | H161: 前期. | I161: 七重 | J161: 230 | K161: 235 | L161: 244 | M161: =ROUND([1]ResourceLevelConfig!$E161*[1]ResourceLevelConfig!$L161*0.1,0)*10 -> 3900 | N161: -1 | O161: 0 | P161: -1 | Q161: -1 | R161: -1 | S161: -1 | T161: 0 | U161: =[3]主表!K159 -> 4036.256135 | V161: =[3]主表!L159 -> 63.81213301 | W161: =[3]主表!M159 -> 63.81213301 | X161: =[3]主表!N159 -> 0 | Y161: =[3]主表!$G159 -> 33653 | Z161: =[3]升级!$H159 -> 1500 | AA161: 0.27 | AB161: -1 | AC161: 4 | AD161: 4 | AE161: 4 | AF161: 1680 | AJ161: 1 | AK161: 3 | AL161: 157 | AS161: =IF(AR161="","",1) ->  | AU161: =IF(AT161="","",1) ->  | AW161: =IF(AV161="","",1) ->  | AY161: =IF(AX161="","",1) ->  | AZ161: =IF(AN161="","",VLOOKUP(AN161,[4]ItemConfig!$A:$C,3,FALSE)&AO161) ->  | BA161: =IF(AP161="","",VLOOKUP(AP161,[4]ItemConfig!$A:$C,3,FALSE)&AQ161) ->  | BB161: =IF(AR161="","",VLOOKUP(AR161,[4]ItemConfig!$A:$C,3,FALSE)&AS161) ->  | BC161: =IF(AT161="","",VLOOKUP(AT161,[4]ItemConfig!$A:$C,3,FALSE)&AU161) ->  | BD161: =IF(AV161="","",VLOOKUP(AV161,[4]ItemConfig!$A:$C,3,FALSE)&AW161) ->  | BE161: =IF(AX161="","",VLOOKUP(AX161,[4]ItemConfig!$A:$C,3,FALSE)&AY161) ->  | BF161: 240
A162: 158 | B162: 158 | C162: 6 | D162: 16 | E162: 8 | F162: 230;235;245 | G162: 炼虚 | H162: 前期. | I162: 八重 | J162: 230 | K162: 235 | L162: 245 | M162: =ROUND([1]ResourceLevelConfig!$E162*[1]ResourceLevelConfig!$L162*0.1,0)*10 -> 4050 | N162: -1 | O162: 0 | P162: -1 | Q162: -1 | R162: -1 | S162: -1 | T162: 0 | U162: =[3]主表!K160 -> 4114.902873 | V162: =[3]主表!L160 -> 64.67371348 | W162: =[3]主表!M160 -> 64.67371348 | X162: =[3]主表!N160 -> 0 | Y162: =[3]主表!$G160 -> 34141 | Z162: =[3]升级!$H160 -> 1500 | AA162: 0.28 | AB162: -1 | AC162: 4 | AD162: 4 | AE162: 4 | AF162: 1690 | AJ162: 1 | AK162: 3 | AL162: 158 | AS162: =IF(AR162="","",1) ->  | AU162: =IF(AT162="","",1) ->  | AW162: =IF(AV162="","",1) ->  | AY162: =IF(AX162="","",1) ->  | AZ162: =IF(AN162="","",VLOOKUP(AN162,[4]ItemConfig!$A:$C,3,FALSE)&AO162) ->  | BA162: =IF(AP162="","",VLOOKUP(AP162,[4]ItemConfig!$A:$C,3,FALSE)&AQ162) ->  | BB162: =IF(AR162="","",VLOOKUP(AR162,[4]ItemConfig!$A:$C,3,FALSE)&AS162) ->  | BC162: =IF(AT162="","",VLOOKUP(AT162,[4]ItemConfig!$A:$C,3,FALSE)&AU162) ->  | BD162: =IF(AV162="","",VLOOKUP(AV162,[4]ItemConfig!$A:$C,3,FALSE)&AW162) ->  | BE162: =IF(AX162="","",VLOOKUP(AX162,[4]ItemConfig!$A:$C,3,FALSE)&AY162) ->  | BF162: 240
A163: 159 | B163: 159 | C163: 6 | D163: 16 | E163: 9 | F163: 230;235;246 | G163: 炼虚 | H163: 前期. | I163: 九重 | J163: 230 | K163: 235 | L163: 246 | M163: =ROUND([1]ResourceLevelConfig!$E163*[1]ResourceLevelConfig!$L163*0.1,0)*10 -> 4050 | N163: -1 | O163: 0 | P163: -1 | Q163: -1 | R163: -1 | S163: -1 | T163: =IF(G163=G164,0,CONCATENATE("1;1")) -> 0 | U163: =[3]主表!K161 -> 4194.937553 | V163: =[3]主表!L161 -> 65.54692686 | W163: =[3]主表!M161 -> 65.54692686 | X163: =[3]主表!N161 -> 0 | Y163: =[3]主表!$G161 -> 34636 | Z163: =[3]升级!$H161 -> 1500 | AA163: 0.28 | AB163: -1 | AC163: 4 | AD163: 4 | AE163: 4 | AF163: 1700 | AJ163: 1 | AK163: 3 | AL163: 159 | AS163: =IF(AR163="","",1) ->  | AU163: =IF(AT163="","",1) ->  | AW163: =IF(AV163="","",1) ->  | AY163: =IF(AX163="","",1) ->  | AZ163: =IF(AN163="","",VLOOKUP(AN163,[4]ItemConfig!$A:$C,3,FALSE)&AO163) ->  | BA163: =IF(AP163="","",VLOOKUP(AP163,[4]ItemConfig!$A:$C,3,FALSE)&AQ163) ->  | BB163: =IF(AR163="","",VLOOKUP(AR163,[4]ItemConfig!$A:$C,3,FALSE)&AS163) ->  | BC163: =IF(AT163="","",VLOOKUP(AT163,[4]ItemConfig!$A:$C,3,FALSE)&AU163) ->  | BD163: =IF(AV163="","",VLOOKUP(AV163,[4]ItemConfig!$A:$C,3,FALSE)&AW163) ->  | BE163: =IF(AX163="","",VLOOKUP(AX163,[4]ItemConfig!$A:$C,3,FALSE)&AY163) ->  | BF163: 240
A164: 160 | B164: 160 | C164: 6 | D164: 16 | E164: 10 | F164: 230;235;247 | G164: 炼虚 | H164: 前期. | I164: 十重 | J164: 230 | K164: 235 | L164: 247 | M164: =ROUND([1]ResourceLevelConfig!$E164*[1]ResourceLevelConfig!$L164*0.1,0)*10 -> 4050 | N164: 100006 | O164: 0 | P164: =AN164 -> 1316 | Q164: =AO164 -> 1 | R164: =_xlfn.TEXTJOIN(";",1,AP164,AR164,AT164,AV164) -> 1210;1211;1212 | S164: =_xlfn.TEXTJOIN(";",1,AQ164,AS164,AU164,AW164) -> 1;1;1 | T164: 0 | U164: =[3]主表!K162 -> 4276.383318 | V164: =[3]主表!L162 -> 66.43193022 | W164: =[3]主表!M162 -> 66.43193022 | X164: =[3]主表!N162 -> 175.7 | Y164: =[3]主表!$G162 -> 35139 | Z164: =[3]升级!$H162 -> 1500 | AA164: 0.28 | AB164: 15 | AC164: 4 | AD164: 4 | AE164: 4 | AF164: 1710 | AJ164: 1 | AK164: 3 | AL164: 160 | AN164: 1316 | AO164: 1 | AP164: 1210 | AQ164: 1 | AR164: 1211 | AS164: =IF(AR164="","",1) -> 1 | AT164: 1212 | AU164: =IF(AT164="","",1) -> 1 | AW164: =IF(AV164="","",1) ->  | AY164: =IF(AX164="","",1) ->  | AZ164: =IF(AN164="","",VLOOKUP(AN164,[4]ItemConfig!$A:$C,3,FALSE)&AO164) -> 虚灵丹1 | BA164: =IF(AP164="","",VLOOKUP(AP164,[4]ItemConfig!$A:$C,3,FALSE)&AQ164) -> 丹心花1 | BB164: =IF(AR164="","",VLOOKUP(AR164,[4]ItemConfig!$A:$C,3,FALSE)&AS164) -> 太冥草1 | BC164: =IF(AT164="","",VLOOKUP(AT164,[4]ItemConfig!$A:$C,3,FALSE)&AU164) -> 星炎草1 | BD164: =IF(AV164="","",VLOOKUP(AV164,[4]ItemConfig!$A:$C,3,FALSE)&AW164) ->  | BE164: =IF(AX164="","",VLOOKUP(AX164,[4]ItemConfig!$A:$C,3,FALSE)&AY164) ->  | BF164: 240
A165: 161 | B165: 161 | C165: 6 | D165: 17 | E165: 1 | F165: 230;236;238 | G165: 炼虚 | H165: 中期. | I165: 一重 | J165: 230 | K165: 236 | L165: 238 | M165: =ROUND([1]ResourceLevelConfig!$E165*[1]ResourceLevelConfig!$L165*0.1,0)*10 -> 4050 | N165: -1 | O165: 0 | P165: -1 | Q165: -1 | R165: =IF(I165=10,"1001;1002;1004",-1) -> -1 | S165: -1 | T165: 0 | U165: =[3]主表!K163 -> 4731.308732 | V165: =[3]主表!L163 -> 73.07512324 | W165: =[3]主表!M163 -> 73.07512324 | X165: =[3]主表!N163 -> 197.59 | Y165: =[3]主表!$G163 -> 39518 | Z165: =[3]升级!$H163 -> 1500 | AA165: 0.28 | AB165: -1 | AC165: 4 | AD165: 4 | AE165: 4 | AF165: 1720 | AJ165: 1 | AK165: 3 | AL165: 161 | AS165: =IF(AR165="","",1) ->  | AU165: =IF(AT165="","",1) ->  | AW165: =IF(AV165="","",1) ->  | AY165: =IF(AX165="","",1) ->  | AZ165: =IF(AN165="","",VLOOKUP(AN165,[4]ItemConfig!$A:$C,3,FALSE)&AO165) ->  | BA165: =IF(AP165="","",VLOOKUP(AP165,[4]ItemConfig!$A:$C,3,FALSE)&AQ165) ->  | BB165: =IF(AR165="","",VLOOKUP(AR165,[4]ItemConfig!$A:$C,3,FALSE)&AS165) ->  | BC165: =IF(AT165="","",VLOOKUP(AT165,[4]ItemConfig!$A:$C,3,FALSE)&AU165) ->  | BD165: =IF(AV165="","",VLOOKUP(AV165,[4]ItemConfig!$A:$C,3,FALSE)&AW165) ->  | BE165: =IF(AX165="","",VLOOKUP(AX165,[4]ItemConfig!$A:$C,3,FALSE)&AY165) ->  | BF165: 240
A166: 162 | B166: 162 | C166: 6 | D166: 17 | E166: 2 | F166: 230;236;239 | G166: 炼虚 | H166: 中期. | I166: 二重 | J166: 230 | K166: 236 | L166: 239 | M166: =ROUND([1]ResourceLevelConfig!$E166*[1]ResourceLevelConfig!$L166*0.1,0)*10 -> 4050 | N166: -1 | O166: 0 | P166: -1 | Q166: -1 | R166: -1 | S166: -1 | T166: 0 | U166: =[3]主表!K164 -> 4822.845558 | V166: =[3]主表!L164 -> 74.06177102 | W166: =[3]主表!M164 -> 74.06177102 | X166: =[3]主表!N164 -> 200.42 | Y166: =[3]主表!$G164 -> 40083 | Z166: =[3]升级!$H164 -> 1500 | AA166: 0.28 | AB166: -1 | AC166: 4 | AD166: 4 | AE166: 4 | AF166: 1730 | AJ166: 1 | AK166: 3 | AL166: 162 | AS166: =IF(AR166="","",1) ->  | AU166: =IF(AT166="","",1) ->  | AW166: =IF(AV166="","",1) ->  | AY166: =IF(AX166="","",1) ->  | AZ166: =IF(AN166="","",VLOOKUP(AN166,[4]ItemConfig!$A:$C,3,FALSE)&AO166) ->  | BA166: =IF(AP166="","",VLOOKUP(AP166,[4]ItemConfig!$A:$C,3,FALSE)&AQ166) ->  | BB166: =IF(AR166="","",VLOOKUP(AR166,[4]ItemConfig!$A:$C,3,FALSE)&AS166) ->  | BC166: =IF(AT166="","",VLOOKUP(AT166,[4]ItemConfig!$A:$C,3,FALSE)&AU166) ->  | BD166: =IF(AV166="","",VLOOKUP(AV166,[4]ItemConfig!$A:$C,3,FALSE)&AW166) ->  | BE166: =IF(AX166="","",VLOOKUP(AX166,[4]ItemConfig!$A:$C,3,FALSE)&AY166) ->  | BF166: 240
A167: 163 | B167: 163 | C167: 6 | D167: 17 | E167: 3 | F167: 230;236;240 | G167: 炼虚 | H167: 中期. | I167: 三重 | J167: 230 | K167: 236 | L167: 240 | M167: =ROUND([1]ResourceLevelConfig!$E167*[1]ResourceLevelConfig!$L167*0.1,0)*10 -> 4050 | N167: -1 | O167: 0 | P167: -1 | Q167: -1 | R167: -1 | S167: -1 | T167: 0 | U167: =[3]主表!K165 -> 4915.991699 | V167: =[3]主表!L165 -> 75.06174034 | W167: =[3]主表!M165 -> 75.06174034 | X167: =[3]主表!N165 -> 203.29 | Y167: =[3]主表!$G165 -> 40657 | Z167: =[3]升级!$H165 -> 1500 | AA167: 0.28 | AB167: -1 | AC167: 4 | AD167: 4 | AE167: 4 | AF167: 1740 | AJ167: 1 | AK167: 3 | AL167: 163 | AS167: =IF(AR167="","",1) ->  | AU167: =IF(AT167="","",1) ->  | AW167: =IF(AV167="","",1) ->  | AY167: =IF(AX167="","",1) ->  | AZ167: =IF(AN167="","",VLOOKUP(AN167,[4]ItemConfig!$A:$C,3,FALSE)&AO167) ->  | BA167: =IF(AP167="","",VLOOKUP(AP167,[4]ItemConfig!$A:$C,3,FALSE)&AQ167) ->  | BB167: =IF(AR167="","",VLOOKUP(AR167,[4]ItemConfig!$A:$C,3,FALSE)&AS167) ->  | BC167: =IF(AT167="","",VLOOKUP(AT167,[4]ItemConfig!$A:$C,3,FALSE)&AU167) ->  | BD167: =IF(AV167="","",VLOOKUP(AV167,[4]ItemConfig!$A:$C,3,FALSE)&AW167) ->  | BE167: =IF(AX167="","",VLOOKUP(AX167,[4]ItemConfig!$A:$C,3,FALSE)&AY167) ->  | BF167: 240
A168: 164 | B168: 164 | C168: 6 | D168: 17 | E168: 4 | F168: 230;236;241 | G168: 炼虚 | H168: 中期. | I168: 四重 | J168: 230 | K168: 236 | L168: 241 | M168: =ROUND([1]ResourceLevelConfig!$E168*[1]ResourceLevelConfig!$L168*0.1,0)*10 -> 4050 | N168: -1 | O168: 0 | P168: -1 | Q168: -1 | R168: -1 | S168: -1 | T168: 0 | U168: =[3]主表!K166 -> 5010.773924 | V168: =[3]主表!L166 -> 76.07521108 | W168: =[3]主表!M166 -> 76.07521108 | X168: =[3]主表!N166 -> 206.2 | Y168: =[3]主表!$G166 -> 41240 | Z168: =[3]升级!$H166 -> 1500 | AA168: 0.28 | AB168: -1 | AC168: 4 | AD168: 4 | AE168: 4 | AF168: 1750 | AJ168: 1 | AK168: 3 | AL168: 164 | AS168: =IF(AR168="","",1) ->  | AU168: =IF(AT168="","",1) ->  | AW168: =IF(AV168="","",1) ->  | AY168: =IF(AX168="","",1) ->  | AZ168: =IF(AN168="","",VLOOKUP(AN168,[4]ItemConfig!$A:$C,3,FALSE)&AO168) ->  | BA168: =IF(AP168="","",VLOOKUP(AP168,[4]ItemConfig!$A:$C,3,FALSE)&AQ168) ->  | BB168: =IF(AR168="","",VLOOKUP(AR168,[4]ItemConfig!$A:$C,3,FALSE)&AS168) ->  | BC168: =IF(AT168="","",VLOOKUP(AT168,[4]ItemConfig!$A:$C,3,FALSE)&AU168) ->  | BD168: =IF(AV168="","",VLOOKUP(AV168,[4]ItemConfig!$A:$C,3,FALSE)&AW168) ->  | BE168: =IF(AX168="","",VLOOKUP(AX168,[4]ItemConfig!$A:$C,3,FALSE)&AY168) ->  | BF168: 240
A169: 165 | B169: 165 | C169: 6 | D169: 17 | E169: 5 | F169: 230;236;242 | G169: 炼虚 | H169: 中期. | I169: 五重 | J169: 230 | K169: 236 | L169: 242 | M169: =ROUND([1]ResourceLevelConfig!$E169*[1]ResourceLevelConfig!$L169*0.1,0)*10 -> 4200 | N169: -1 | O169: 0 | P169: -1 | Q169: -1 | R169: -1 | S169: -1 | T169: 0 | U169: =[3]主表!K167 -> 5107.219433 | V169: =[3]主表!L167 -> 77.10236552 | W169: =[3]主表!M167 -> 77.10236552 | X169: =[3]主表!N167 -> 209.16 | Y169: =[3]主表!$G167 -> 41831 | Z169: =[3]升级!$H167 -> 1500 | AA169: 0.29 | AB169: -1 | AC169: 4 | AD169: 4 | AE169: 4 | AF169: 1760 | AJ169: 1 | AK169: 3 | AL169: 165 | AS169: =IF(AR169="","",1) ->  | AU169: =IF(AT169="","",1) ->  | AW169: =IF(AV169="","",1) ->  | AY169: =IF(AX169="","",1) ->  | AZ169: =IF(AN169="","",VLOOKUP(AN169,[4]ItemConfig!$A:$C,3,FALSE)&AO169) ->  | BA169: =IF(AP169="","",VLOOKUP(AP169,[4]ItemConfig!$A:$C,3,FALSE)&AQ169) ->  | BB169: =IF(AR169="","",VLOOKUP(AR169,[4]ItemConfig!$A:$C,3,FALSE)&AS169) ->  | BC169: =IF(AT169="","",VLOOKUP(AT169,[4]ItemConfig!$A:$C,3,FALSE)&AU169) ->  | BD169: =IF(AV169="","",VLOOKUP(AV169,[4]ItemConfig!$A:$C,3,FALSE)&AW169) ->  | BE169: =IF(AX169="","",VLOOKUP(AX169,[4]ItemConfig!$A:$C,3,FALSE)&AY169) ->  | BF169: 240
A170: 166 | B170: 166 | C170: 6 | D170: 17 | E170: 6 | F170: 230;236;243 | G170: 炼虚 | H170: 中期. | I170: 六重 | J170: 230 | K170: 236 | L170: 243 | M170: =ROUND([1]ResourceLevelConfig!$E170*[1]ResourceLevelConfig!$L170*0.1,0)*10 -> 4200 | N170: -1 | O170: 0 | P170: -1 | Q170: -1 | R170: -1 | S170: -1 | T170: 0 | U170: =[3]主表!K168 -> 5205.355864 | V170: =[3]主表!L168 -> 78.14338843 | W170: =[3]主表!M168 -> 78.14338843 | X170: =[3]主表!N168 -> 212.16 | Y170: =[3]主表!$G168 -> 42432 | Z170: =[3]升级!$H168 -> 1500 | AA170: 0.29 | AB170: -1 | AC170: 4 | AD170: 4 | AE170: 4 | AF170: 1770 | AJ170: 1 | AK170: 3 | AL170: 166 | AS170: =IF(AR170="","",1) ->  | AU170: =IF(AT170="","",1) ->  | AW170: =IF(AV170="","",1) ->  | AY170: =IF(AX170="","",1) ->  | AZ170: =IF(AN170="","",VLOOKUP(AN170,[4]ItemConfig!$A:$C,3,FALSE)&AO170) ->  | BA170: =IF(AP170="","",VLOOKUP(AP170,[4]ItemConfig!$A:$C,3,FALSE)&AQ170) ->  | BB170: =IF(AR170="","",VLOOKUP(AR170,[4]ItemConfig!$A:$C,3,FALSE)&AS170) ->  | BC170: =IF(AT170="","",VLOOKUP(AT170,[4]ItemConfig!$A:$C,3,FALSE)&AU170) ->  | BD170: =IF(AV170="","",VLOOKUP(AV170,[4]ItemConfig!$A:$C,3,FALSE)&AW170) ->  | BE170: =IF(AX170="","",VLOOKUP(AX170,[4]ItemConfig!$A:$C,3,FALSE)&AY170) ->  | BF170: 240
A171: 167 | B171: 167 | C171: 6 | D171: 17 | E171: 7 | F171: 230;236;244 | G171: 炼虚 | H171: 中期. | I171: 七重 | J171: 230 | K171: 236 | L171: 244 | M171: =ROUND([1]ResourceLevelConfig!$E171*[1]ResourceLevelConfig!$L171*0.1,0)*10 -> 4200 | N171: -1 | O171: 0 | P171: -1 | Q171: -1 | R171: -1 | S171: -1 | T171: 0 | U171: =[3]主表!K169 -> 5305.211293 | V171: =[3]主表!L169 -> 79.19846705 | W171: =[3]主表!M169 -> 79.19846705 | X171: =[3]主表!N169 -> 215.21 | Y171: =[3]主表!$G169 -> 43042 | Z171: =[3]升级!$H169 -> 1500 | AA171: 0.29 | AB171: -1 | AC171: 4 | AD171: 4 | AE171: 4 | AF171: 1780 | AJ171: 1 | AK171: 3 | AL171: 167 | AS171: =IF(AR171="","",1) ->  | AU171: =IF(AT171="","",1) ->  | AW171: =IF(AV171="","",1) ->  | AY171: =IF(AX171="","",1) ->  | AZ171: =IF(AN171="","",VLOOKUP(AN171,[4]ItemConfig!$A:$C,3,FALSE)&AO171) ->  | BA171: =IF(AP171="","",VLOOKUP(AP171,[4]ItemConfig!$A:$C,3,FALSE)&AQ171) ->  | BB171: =IF(AR171="","",VLOOKUP(AR171,[4]ItemConfig!$A:$C,3,FALSE)&AS171) ->  | BC171: =IF(AT171="","",VLOOKUP(AT171,[4]ItemConfig!$A:$C,3,FALSE)&AU171) ->  | BD171: =IF(AV171="","",VLOOKUP(AV171,[4]ItemConfig!$A:$C,3,FALSE)&AW171) ->  | BE171: =IF(AX171="","",VLOOKUP(AX171,[4]ItemConfig!$A:$C,3,FALSE)&AY171) ->  | BF171: 240
A172: 168 | B172: 168 | C172: 6 | D172: 17 | E172: 8 | F172: 230;236;245 | G172: 炼虚 | H172: 中期. | I172: 八重 | J172: 230 | K172: 236 | L172: 245 | M172: =ROUND([1]ResourceLevelConfig!$E172*[1]ResourceLevelConfig!$L172*0.1,0)*10 -> 4200 | N172: -1 | O172: 0 | P172: -1 | Q172: -1 | R172: -1 | S172: -1 | T172: 0 | U172: =[3]主表!K170 -> 5406.814252 | V172: =[3]主表!L170 -> 80.26779116 | W172: =[3]主表!M170 -> 80.26779116 | X172: =[3]主表!N170 -> 218.31 | Y172: =[3]主表!$G170 -> 43662 | Z172: =[3]升级!$H170 -> 1500 | AA172: 0.29 | AB172: -1 | AC172: 4 | AD172: 4 | AE172: 4 | AF172: 1790 | AJ172: 1 | AK172: 3 | AL172: 168 | AS172: =IF(AR172="","",1) ->  | AU172: =IF(AT172="","",1) ->  | AW172: =IF(AV172="","",1) ->  | AY172: =IF(AX172="","",1) ->  | AZ172: =IF(AN172="","",VLOOKUP(AN172,[4]ItemConfig!$A:$C,3,FALSE)&AO172) ->  | BA172: =IF(AP172="","",VLOOKUP(AP172,[4]ItemConfig!$A:$C,3,FALSE)&AQ172) ->  | BB172: =IF(AR172="","",VLOOKUP(AR172,[4]ItemConfig!$A:$C,3,FALSE)&AS172) ->  | BC172: =IF(AT172="","",VLOOKUP(AT172,[4]ItemConfig!$A:$C,3,FALSE)&AU172) ->  | BD172: =IF(AV172="","",VLOOKUP(AV172,[4]ItemConfig!$A:$C,3,FALSE)&AW172) ->  | BE172: =IF(AX172="","",VLOOKUP(AX172,[4]ItemConfig!$A:$C,3,FALSE)&AY172) ->  | BF172: 240
A173: 169 | B173: 169 | C173: 6 | D173: 17 | E173: 9 | F173: 230;236;246 | G173: 炼虚 | H173: 中期. | I173: 九重 | J173: 230 | K173: 236 | L173: 246 | M173: =ROUND([1]ResourceLevelConfig!$E173*[1]ResourceLevelConfig!$L173*0.1,0)*10 -> 4200 | N173: -1 | O173: 0 | P173: -1 | Q173: -1 | R173: -1 | S173: -1 | T173: 0 | U173: =[3]主表!K171 -> 5510.193725 | V173: =[3]主表!L171 -> 81.35155311 | W173: =[3]主表!M171 -> 81.35155311 | X173: =[3]主表!N171 -> 221.46 | Y173: =[3]主表!$G171 -> 44291 | Z173: =[3]升级!$H171 -> 1500 | AA173: 0.29 | AB173: -1 | AC173: 4 | AD173: 4 | AE173: 4 | AF173: 1800 | AJ173: 1 | AK173: 3 | AL173: 169 | AS173: =IF(AR173="","",1) ->  | AU173: =IF(AT173="","",1) ->  | AW173: =IF(AV173="","",1) ->  | AY173: =IF(AX173="","",1) ->  | AZ173: =IF(AN173="","",VLOOKUP(AN173,[4]ItemConfig!$A:$C,3,FALSE)&AO173) ->  | BA173: =IF(AP173="","",VLOOKUP(AP173,[4]ItemConfig!$A:$C,3,FALSE)&AQ173) ->  | BB173: =IF(AR173="","",VLOOKUP(AR173,[4]ItemConfig!$A:$C,3,FALSE)&AS173) ->  | BC173: =IF(AT173="","",VLOOKUP(AT173,[4]ItemConfig!$A:$C,3,FALSE)&AU173) ->  | BD173: =IF(AV173="","",VLOOKUP(AV173,[4]ItemConfig!$A:$C,3,FALSE)&AW173) ->  | BE173: =IF(AX173="","",VLOOKUP(AX173,[4]ItemConfig!$A:$C,3,FALSE)&AY173) ->  | BF173: 240
A174: 170 | B174: 170 | C174: 6 | D174: 17 | E174: 10 | F174: 230;236;247 | G174: 炼虚 | H174: 中期. | I174: 十重 | J174: 230 | K174: 236 | L174: 247 | M174: =ROUND([1]ResourceLevelConfig!$E174*[1]ResourceLevelConfig!$L174*0.1,0)*10 -> 4200 | N174: 100006 | O174: 0 | P174: =AN174 -> 1317 | Q174: =AO174 -> 1 | R174: =_xlfn.TEXTJOIN(";",1,AP174,AR174,AT174,AV174) -> 1210;1211;1212 | S174: =_xlfn.TEXTJOIN(";",1,AQ174,AS174,AU174,AW174) -> 1;1;1 | T174: 0 | U174: =[3]主表!K172 -> 5615.379163 | V174: =[3]主表!L172 -> 82.44994782 | W174: =[3]主表!M172 -> 82.44994782 | X174: =[3]主表!N172 -> 247.11 | Y174: =[3]主表!$G172 -> 44929 | Z174: =[3]升级!$H172 -> 1500 | AA174: 0.29 | AB174: 15 | AC174: 4 | AD174: 4 | AE174: 4 | AF174: 1810 | AJ174: 1 | AK174: 3 | AL174: 170 | AN174: 1317 | AO174: 1 | AP174: 1210 | AQ174: 1 | AR174: 1211 | AS174: =IF(AR174="","",1) -> 1 | AT174: 1212 | AU174: =IF(AT174="","",1) -> 1 | AW174: =IF(AV174="","",1) ->  | AY174: =IF(AX174="","",1) ->  | AZ174: =IF(AN174="","",VLOOKUP(AN174,[4]ItemConfig!$A:$C,3,FALSE)&AO174) -> 梦魇藤1 | BA174: =IF(AP174="","",VLOOKUP(AP174,[4]ItemConfig!$A:$C,3,FALSE)&AQ174) -> 丹心花1 | BB174: =IF(AR174="","",VLOOKUP(AR174,[4]ItemConfig!$A:$C,3,FALSE)&AS174) -> 太冥草1 | BC174: =IF(AT174="","",VLOOKUP(AT174,[4]ItemConfig!$A:$C,3,FALSE)&AU174) -> 星炎草1 | BD174: =IF(AV174="","",VLOOKUP(AV174,[4]ItemConfig!$A:$C,3,FALSE)&AW174) ->  | BE174: =IF(AX174="","",VLOOKUP(AX174,[4]ItemConfig!$A:$C,3,FALSE)&AY174) ->  | BF174: 240
A175: 171 | B175: 171 | C175: 6 | D175: 18 | E175: 1 | F175: 230;237;238 | G175: 炼虚 | H175: 后期. | I175: 一重 | J175: 230 | K175: 237 | L175: 238 | M175: =ROUND([1]ResourceLevelConfig!$E175*[1]ResourceLevelConfig!$L175*0.1,0)*10 -> 4200 | N175: -1 | O175: 0 | P175: -1 | Q175: -1 | R175: =IF(I175=10,"1001;1002;1004",-1) -> -1 | S175: -1 | T175: 0 | U175: =[3]主表!K173 -> 6210.783603 | V175: =[3]主表!L173 -> 90.6949426 | W175: =[3]主表!M173 -> 90.6949426 | X175: =[3]主表!N173 -> 277.89 | Y175: =[3]主表!$G173 -> 50525 | Z175: =[3]升级!$H173 -> 1500 | AA175: 0.29 | AB175: -1 | AC175: 4 | AD175: 4 | AE175: 4 | AF175: 1820 | AJ175: 1 | AK175: 3 | AL175: 171 | AS175: =IF(AR175="","",1) ->  | AU175: =IF(AT175="","",1) ->  | AW175: =IF(AV175="","",1) ->  | AY175: =IF(AX175="","",1) ->  | AZ175: =IF(AN175="","",VLOOKUP(AN175,[4]ItemConfig!$A:$C,3,FALSE)&AO175) ->  | BA175: =IF(AP175="","",VLOOKUP(AP175,[4]ItemConfig!$A:$C,3,FALSE)&AQ175) ->  | BB175: =IF(AR175="","",VLOOKUP(AR175,[4]ItemConfig!$A:$C,3,FALSE)&AS175) ->  | BC175: =IF(AT175="","",VLOOKUP(AT175,[4]ItemConfig!$A:$C,3,FALSE)&AU175) ->  | BD175: =IF(AV175="","",VLOOKUP(AV175,[4]ItemConfig!$A:$C,3,FALSE)&AW175) ->  | BE175: =IF(AX175="","",VLOOKUP(AX175,[4]ItemConfig!$A:$C,3,FALSE)&AY175) ->  | BF175: 240
A176: 172 | B176: 172 | C176: 6 | D176: 18 | E176: 2 | F176: 230;237;239 | G176: 炼虚 | H176: 后期. | I176: 二重 | J176: 230 | K176: 237 | L176: 239 | M176: =ROUND([1]ResourceLevelConfig!$E176*[1]ResourceLevelConfig!$L176*0.1,0)*10 -> 4200 | N176: -1 | O176: 0 | P176: -1 | Q176: -1 | R176: -1 | S176: -1 | T176: 0 | U176: =[3]主表!K174 -> 6328.96432 | V176: =[3]主表!L174 -> 91.91949015 | W176: =[3]主表!M174 -> 91.91949015 | X176: =[3]主表!N174 -> 281.84 | Y176: =[3]主表!$G174 -> 51243 | Z176: =[3]升级!$H174 -> 1500 | AA176: 0.29 | AB176: -1 | AC176: 4 | AD176: 4 | AE176: 4 | AF176: 1830 | AJ176: 1 | AK176: 3 | AL176: 172 | AS176: =IF(AR176="","",1) ->  | AU176: =IF(AT176="","",1) ->  | AW176: =IF(AV176="","",1) ->  | AY176: =IF(AX176="","",1) ->  | AZ176: =IF(AN176="","",VLOOKUP(AN176,[4]ItemConfig!$A:$C,3,FALSE)&AO176) ->  | BA176: =IF(AP176="","",VLOOKUP(AP176,[4]ItemConfig!$A:$C,3,FALSE)&AQ176) ->  | BB176: =IF(AR176="","",VLOOKUP(AR176,[4]ItemConfig!$A:$C,3,FALSE)&AS176) ->  | BC176: =IF(AT176="","",VLOOKUP(AT176,[4]ItemConfig!$A:$C,3,FALSE)&AU176) ->  | BD176: =IF(AV176="","",VLOOKUP(AV176,[4]ItemConfig!$A:$C,3,FALSE)&AW176) ->  | BE176: =IF(AX176="","",VLOOKUP(AX176,[4]ItemConfig!$A:$C,3,FALSE)&AY176) ->  | BF176: 240
A177: 173 | B177: 173 | C177: 6 | D177: 18 | E177: 3 | F177: 230;237;240 | G177: 炼虚 | H177: 后期. | I177: 三重 | J177: 230 | K177: 237 | L177: 240 | M177: =ROUND([1]ResourceLevelConfig!$E177*[1]ResourceLevelConfig!$L177*0.1,0)*10 -> 4350 | N177: -1 | O177: 0 | P177: -1 | Q177: -1 | R177: -1 | S177: -1 | T177: 0 | U177: =[3]主表!K175 -> 6449.204127 | V177: =[3]主表!L175 -> 93.16057133 | W177: =[3]主表!M175 -> 93.16057133 | X177: =[3]主表!N175 -> 285.85 | Y177: =[3]主表!$G175 -> 51972 | Z177: =[3]升级!$H175 -> 1500 | AA177: 0.3 | AB177: -1 | AC177: 4 | AD177: 4 | AE177: 4 | AF177: 1840 | AJ177: 1 | AK177: 3 | AL177: 173 | AS177: =IF(AR177="","",1) ->  | AU177: =IF(AT177="","",1) ->  | AW177: =IF(AV177="","",1) ->  | AY177: =IF(AX177="","",1) ->  | AZ177: =IF(AN177="","",VLOOKUP(AN177,[4]ItemConfig!$A:$C,3,FALSE)&AO177) ->  | BA177: =IF(AP177="","",VLOOKUP(AP177,[4]ItemConfig!$A:$C,3,FALSE)&AQ177) ->  | BB177: =IF(AR177="","",VLOOKUP(AR177,[4]ItemConfig!$A:$C,3,FALSE)&AS177) ->  | BC177: =IF(AT177="","",VLOOKUP(AT177,[4]ItemConfig!$A:$C,3,FALSE)&AU177) ->  | BD177: =IF(AV177="","",VLOOKUP(AV177,[4]ItemConfig!$A:$C,3,FALSE)&AW177) ->  | BE177: =IF(AX177="","",VLOOKUP(AX177,[4]ItemConfig!$A:$C,3,FALSE)&AY177) ->  | BF177: 240
A178: 174 | B178: 174 | C178: 6 | D178: 18 | E178: 4 | F178: 230;237;241 | G178: 炼虚 | H178: 后期. | I178: 四重 | J178: 230 | K178: 237 | L178: 241 | M178: =ROUND([1]ResourceLevelConfig!$E178*[1]ResourceLevelConfig!$L178*0.1,0)*10 -> 4350 | N178: -1 | O178: 0 | P178: -1 | Q178: -1 | R178: -1 | S178: -1 | T178: 0 | U178: =[3]主表!K176 -> 6571.537082 | V178: =[3]主表!L176 -> 94.41840938 | W178: =[3]主表!M176 -> 94.41840938 | X178: =[3]主表!N176 -> 289.92 | Y178: =[3]主表!$G176 -> 52712 | Z178: =[3]升级!$H176 -> 1500 | AA178: 0.3 | AB178: -1 | AC178: 4 | AD178: 4 | AE178: 4 | AF178: 1850 | AJ178: 1 | AK178: 3 | AL178: 174 | AS178: =IF(AR178="","",1) ->  | AU178: =IF(AT178="","",1) ->  | AW178: =IF(AV178="","",1) ->  | AY178: =IF(AX178="","",1) ->  | AZ178: =IF(AN178="","",VLOOKUP(AN178,[4]ItemConfig!$A:$C,3,FALSE)&AO178) ->  | BA178: =IF(AP178="","",VLOOKUP(AP178,[4]ItemConfig!$A:$C,3,FALSE)&AQ178) ->  | BB178: =IF(AR178="","",VLOOKUP(AR178,[4]ItemConfig!$A:$C,3,FALSE)&AS178) ->  | BC178: =IF(AT178="","",VLOOKUP(AT178,[4]ItemConfig!$A:$C,3,FALSE)&AU178) ->  | BD178: =IF(AV178="","",VLOOKUP(AV178,[4]ItemConfig!$A:$C,3,FALSE)&AW178) ->  | BE178: =IF(AX178="","",VLOOKUP(AX178,[4]ItemConfig!$A:$C,3,FALSE)&AY178) ->  | BF178: 240
A179: 175 | B179: 175 | C179: 6 | D179: 18 | E179: 5 | F179: 230;237;242 | G179: 炼虚 | H179: 后期. | I179: 五重 | J179: 230 | K179: 237 | L179: 242 | M179: =ROUND([1]ResourceLevelConfig!$E179*[1]ResourceLevelConfig!$L179*0.1,0)*10 -> 4350 | N179: -1 | O179: 0 | P179: -1 | Q179: -1 | R179: -1 | S179: -1 | T179: 0 | U179: =[3]主表!K177 -> 6695.997788 | V179: =[3]主表!L177 -> 95.69323054 | W179: =[3]主表!M177 -> 95.69323054 | X179: =[3]主表!N177 -> 294.05 | Y179: =[3]主表!$G177 -> 53464 | Z179: =[3]升级!$H177 -> 1500 | AA179: 0.3 | AB179: -1 | AC179: 4 | AD179: 4 | AE179: 4 | AF179: 1860 | AJ179: 1 | AK179: 3 | AL179: 175 | AS179: =IF(AR179="","",1) ->  | AU179: =IF(AT179="","",1) ->  | AW179: =IF(AV179="","",1) ->  | AY179: =IF(AX179="","",1) ->  | AZ179: =IF(AN179="","",VLOOKUP(AN179,[4]ItemConfig!$A:$C,3,FALSE)&AO179) ->  | BA179: =IF(AP179="","",VLOOKUP(AP179,[4]ItemConfig!$A:$C,3,FALSE)&AQ179) ->  | BB179: =IF(AR179="","",VLOOKUP(AR179,[4]ItemConfig!$A:$C,3,FALSE)&AS179) ->  | BC179: =IF(AT179="","",VLOOKUP(AT179,[4]ItemConfig!$A:$C,3,FALSE)&AU179) ->  | BD179: =IF(AV179="","",VLOOKUP(AV179,[4]ItemConfig!$A:$C,3,FALSE)&AW179) ->  | BE179: =IF(AX179="","",VLOOKUP(AX179,[4]ItemConfig!$A:$C,3,FALSE)&AY179) ->  | BF179: 240
A180: 176 | B180: 176 | C180: 6 | D180: 18 | E180: 6 | F180: 230;237;243 | G180: 炼虚 | H180: 后期. | I180: 六重 | J180: 230 | K180: 237 | L180: 243 | M180: =ROUND([1]ResourceLevelConfig!$E180*[1]ResourceLevelConfig!$L180*0.1,0)*10 -> 4350 | N180: -1 | O180: 0 | P180: -1 | Q180: -1 | R180: -1 | S180: -1 | T180: 0 | U180: =[3]主表!K178 -> 6822.621402 | V180: =[3]主表!L178 -> 96.98526412 | W180: =[3]主表!M178 -> 96.98526412 | X180: =[3]主表!N178 -> 298.25 | Y180: =[3]主表!$G178 -> 54227 | Z180: =[3]升级!$H178 -> 1500 | AA180: 0.3 | AB180: -1 | AC180: 4 | AD180: 4 | AE180: 4 | AF180: 1870 | AJ180: 1 | AK180: 3 | AL180: 176 | AS180: =IF(AR180="","",1) ->  | AU180: =IF(AT180="","",1) ->  | AW180: =IF(AV180="","",1) ->  | AY180: =IF(AX180="","",1) ->  | AZ180: =IF(AN180="","",VLOOKUP(AN180,[4]ItemConfig!$A:$C,3,FALSE)&AO180) ->  | BA180: =IF(AP180="","",VLOOKUP(AP180,[4]ItemConfig!$A:$C,3,FALSE)&AQ180) ->  | BB180: =IF(AR180="","",VLOOKUP(AR180,[4]ItemConfig!$A:$C,3,FALSE)&AS180) ->  | BC180: =IF(AT180="","",VLOOKUP(AT180,[4]ItemConfig!$A:$C,3,FALSE)&AU180) ->  | BD180: =IF(AV180="","",VLOOKUP(AV180,[4]ItemConfig!$A:$C,3,FALSE)&AW180) ->  | BE180: =IF(AX180="","",VLOOKUP(AX180,[4]ItemConfig!$A:$C,3,FALSE)&AY180) ->  | BF180: 240
A181: 177 | B181: 177 | C181: 6 | D181: 18 | E181: 7 | F181: 230;237;244 | G181: 炼虚 | H181: 后期. | I181: 七重 | J181: 230 | K181: 237 | L181: 244 | M181: =ROUND([1]ResourceLevelConfig!$E181*[1]ResourceLevelConfig!$L181*0.1,0)*10 -> 4350 | N181: -1 | O181: 0 | P181: -1 | Q181: -1 | R181: -1 | S181: -1 | T181: 0 | U181: =[3]主表!K179 -> 6951.44364 | V181: =[3]主表!L179 -> 98.29474251 | W181: =[3]主表!M179 -> 98.29474251 | X181: =[3]主表!N179 -> 302.51 | Y181: =[3]主表!$G179 -> 55002 | Z181: =[3]升级!$H179 -> 1500 | AA181: 0.3 | AB181: -1 | AC181: 4 | AD181: 4 | AE181: 4 | AF181: 1880 | AJ181: 1 | AK181: 3 | AL181: 177 | AS181: =IF(AR181="","",1) ->  | AU181: =IF(AT181="","",1) ->  | AW181: =IF(AV181="","",1) ->  | AY181: =IF(AX181="","",1) ->  | AZ181: =IF(AN181="","",VLOOKUP(AN181,[4]ItemConfig!$A:$C,3,FALSE)&AO181) ->  | BA181: =IF(AP181="","",VLOOKUP(AP181,[4]ItemConfig!$A:$C,3,FALSE)&AQ181) ->  | BB181: =IF(AR181="","",VLOOKUP(AR181,[4]ItemConfig!$A:$C,3,FALSE)&AS181) ->  | BC181: =IF(AT181="","",VLOOKUP(AT181,[4]ItemConfig!$A:$C,3,FALSE)&AU181) ->  | BD181: =IF(AV181="","",VLOOKUP(AV181,[4]ItemConfig!$A:$C,3,FALSE)&AW181) ->  | BE181: =IF(AX181="","",VLOOKUP(AX181,[4]ItemConfig!$A:$C,3,FALSE)&AY181) ->  | BF181: 240
A182: 178 | B182: 178 | C182: 6 | D182: 18 | E182: 8 | F182: 230;237;245 | G182: 炼虚 | H182: 后期. | I182: 八重 | J182: 230 | K182: 237 | L182: 245 | M182: =ROUND([1]ResourceLevelConfig!$E182*[1]ResourceLevelConfig!$L182*0.1,0)*10 -> 4350 | N182: -1 | O182: 0 | P182: -1 | Q182: -1 | R182: -1 | S182: -1 | T182: 0 | U182: =[3]主表!K180 -> 7082.50079 | V182: =[3]主表!L180 -> 99.62190126 | W182: =[3]主表!M180 -> 99.62190126 | X182: =[3]主表!N180 -> 306.84 | Y182: =[3]主表!$G180 -> 55789 | Z182: =[3]升级!$H180 -> 1500 | AA182: 0.3 | AB182: -1 | AC182: 4 | AD182: 4 | AE182: 4 | AF182: 1890 | AJ182: 1 | AK182: 3 | AL182: 178 | AS182: =IF(AR182="","",1) ->  | AU182: =IF(AT182="","",1) ->  | AW182: =IF(AV182="","",1) ->  | AY182: =IF(AX182="","",1) ->  | AZ182: =IF(AN182="","",VLOOKUP(AN182,[4]ItemConfig!$A:$C,3,FALSE)&AO182) ->  | BA182: =IF(AP182="","",VLOOKUP(AP182,[4]ItemConfig!$A:$C,3,FALSE)&AQ182) ->  | BB182: =IF(AR182="","",VLOOKUP(AR182,[4]ItemConfig!$A:$C,3,FALSE)&AS182) ->  | BC182: =IF(AT182="","",VLOOKUP(AT182,[4]ItemConfig!$A:$C,3,FALSE)&AU182) ->  | BD182: =IF(AV182="","",VLOOKUP(AV182,[4]ItemConfig!$A:$C,3,FALSE)&AW182) ->  | BE182: =IF(AX182="","",VLOOKUP(AX182,[4]ItemConfig!$A:$C,3,FALSE)&AY182) ->  | BF182: 240
A183: 179 | B183: 179 | C183: 6 | D183: 18 | E183: 9 | F183: 230;237;246 | G183: 炼虚 | H183: 后期. | I183: 九重 | J183: 230 | K183: 237 | L183: 246 | M183: =ROUND([1]ResourceLevelConfig!$E183*[1]ResourceLevelConfig!$L183*0.1,0)*10 -> 4500 | N183: -1 | O183: 0 | P183: -1 | Q183: -1 | R183: -1 | S183: -1 | T183: 0 | U183: =[3]主表!K181 -> 7215.829718 | V183: =[3]主表!L181 -> 100.9669791 | W183: =[3]主表!M181 -> 100.9669791 | X183: =[3]主表!N181 -> 311.23 | Y183: =[3]主表!$G181 -> 56588 | Z183: =[3]升级!$H181 -> 1500 | AA183: 0.31 | AB183: -1 | AC183: 4 | AD183: 4 | AE183: 4 | AF183: 1900 | AJ183: 1 | AK183: 3 | AL183: 179 | AS183: =IF(AR183="","",1) ->  | AU183: =IF(AT183="","",1) ->  | AW183: =IF(AV183="","",1) ->  | AY183: =IF(AX183="","",1) ->  | AZ183: =IF(AN183="","",VLOOKUP(AN183,[4]ItemConfig!$A:$C,3,FALSE)&AO183) ->  | BA183: =IF(AP183="","",VLOOKUP(AP183,[4]ItemConfig!$A:$C,3,FALSE)&AQ183) ->  | BB183: =IF(AR183="","",VLOOKUP(AR183,[4]ItemConfig!$A:$C,3,FALSE)&AS183) ->  | BC183: =IF(AT183="","",VLOOKUP(AT183,[4]ItemConfig!$A:$C,3,FALSE)&AU183) ->  | BD183: =IF(AV183="","",VLOOKUP(AV183,[4]ItemConfig!$A:$C,3,FALSE)&AW183) ->  | BE183: =IF(AX183="","",VLOOKUP(AX183,[4]ItemConfig!$A:$C,3,FALSE)&AY183) ->  | BF183: 240
A184: 180 | B184: 180 | C184: 6 | D184: 18 | E184: 10 | F184: 230;237;247 | G184: 炼虚 | H184: 后期. | I184: 十重 | J184: 230 | K184: 237 | L184: 247 | M184: =ROUND([1]ResourceLevelConfig!$E184*[1]ResourceLevelConfig!$L184*0.1,0)*10 -> 4500 | N184: 100006 | O184: 0 | P184: =AN184 -> 1318 | Q184: =AO184 -> 1 | R184: =_xlfn.TEXTJOIN(";",1,AP184,AR184,AT184,AV184) -> 1210;1211;1212 | S184: =_xlfn.TEXTJOIN(";",1,AQ184,AS184,AU184,AW184) -> 1;1;1 | T184: =CONCATENATE(ROUND(0.6*VLOOKUP(A184,[3]主表!$A:$P,16,FALSE)*[5]HeroModelConfig!$Q$5,0),";",ROUND(0.9*VLOOKUP(A184,[3]主表!$A:$P,16,FALSE)*[5]HeroModelConfig!$Q$5,0),";",INT(A184/30)+1) -> 1237074;1855611;7 | U184: =[3]主表!K182 -> 7351.46788 | V184: =[3]主表!L182 -> 102.3302179 | W184: =[3]主表!M182 -> 102.3302179 | X184: =[3]主表!N182 -> 344.39 | Y184: =[3]主表!$G182 -> 57399 | Z184: =[3]升级!$H182 -> 1500 | AA184: 0.31 | AB184: 15 | AC184: 4 | AD184: 4 | AE184: 4 | AF184: 1910 | AJ184: 1 | AK184: 3 | AL184: 180 | AN184: 1318 | AO184: 1 | AP184: 1210 | AQ184: 1 | AR184: 1211 | AS184: =IF(AR184="","",1) -> 1 | AT184: 1212 | AU184: =IF(AT184="","",1) -> 1 | AW184: =IF(AV184="","",1) ->  | AY184: =IF(AX184="","",1) ->  | AZ184: =IF(AN184="","",VLOOKUP(AN184,[4]ItemConfig!$A:$C,3,FALSE)&AO184) -> 混沌合晶1 | BA184: =IF(AP184="","",VLOOKUP(AP184,[4]ItemConfig!$A:$C,3,FALSE)&AQ184) -> 丹心花1 | BB184: =IF(AR184="","",VLOOKUP(AR184,[4]ItemConfig!$A:$C,3,FALSE)&AS184) -> 太冥草1 | BC184: =IF(AT184="","",VLOOKUP(AT184,[4]ItemConfig!$A:$C,3,FALSE)&AU184) -> 星炎草1 | BD184: =IF(AV184="","",VLOOKUP(AV184,[4]ItemConfig!$A:$C,3,FALSE)&AW184) ->  | BE184: =IF(AX184="","",VLOOKUP(AX184,[4]ItemConfig!$A:$C,3,FALSE)&AY184) ->  | BF184: 240
A185: 181 | B185: 181 | C185: 7 | D185: 19 | E185: 1 | F185: 231;235;238 | G185: 合体 | H185: 前期. | I185: 一重 | J185: 231 | K185: 235 | L185: 238 | M185: =ROUND([1]ResourceLevelConfig!$E185*[1]ResourceLevelConfig!$L185*0.1,0)*10 -> 4500 | N185: -1 | O185: 0 | P185: -1 | Q185: -1 | R185: =IF(I185=10,"1001;1002;1004",-1) -> -1 | S185: =IF(R185=-1,-1,"100;200;300") -> -1 | T185: 0 | U185: =[3]主表!K183 -> 9606.582891 | V185: =[3]主表!L183 -> 133.0292833 | W185: =[3]主表!M183 -> 133.0292833 | X185: =[3]主表!N183 -> 458.22 | Y185: =[3]主表!$G183 -> 76370 | Z185: =[3]升级!$H183 -> 1600 | AA185: 0.31 | AB185: -1 | AC185: 4 | AD185: 4 | AE185: 4 | AF185: 1920 | AJ185: 1 | AK185: 4 | AL185: 181 | AS185: =IF(AR185="","",1) ->  | AU185: =IF(AT185="","",1) ->  | AW185: =IF(AV185="","",1) ->  | AY185: =IF(AX185="","",1) ->  | AZ185: =IF(AN185="","",VLOOKUP(AN185,[4]ItemConfig!$A:$C,3,FALSE)&AO185) ->  | BA185: =IF(AP185="","",VLOOKUP(AP185,[4]ItemConfig!$A:$C,3,FALSE)&AQ185) ->  | BB185: =IF(AR185="","",VLOOKUP(AR185,[4]ItemConfig!$A:$C,3,FALSE)&AS185) ->  | BC185: =IF(AT185="","",VLOOKUP(AT185,[4]ItemConfig!$A:$C,3,FALSE)&AU185) ->  | BD185: =IF(AV185="","",VLOOKUP(AV185,[4]ItemConfig!$A:$C,3,FALSE)&AW185) ->  | BE185: =IF(AX185="","",VLOOKUP(AX185,[4]ItemConfig!$A:$C,3,FALSE)&AY185) ->  | BF185: 240
A186: 182 | B186: 182 | C186: 7 | D186: 19 | E186: 2 | F186: 231;235;239 | G186: 合体 | H186: 前期. | I186: 二重 | J186: 231 | K186: 235 | L186: 239 | M186: =ROUND([1]ResourceLevelConfig!$E186*[1]ResourceLevelConfig!$L186*0.1,0)*10 -> 4500 | N186: -1 | O186: 0 | P186: -1 | Q186: -1 | R186: =IF(I186=10,"1001;1002;1004",-1) -> -1 | S186: =IF(R186=-1,-1,"100;200;300") -> -1 | T186: 0 | U186: =[3]主表!K184 -> 9786.63467 | V186: =[3]主表!L184 -> 134.8254218 | W186: =[3]主表!M184 -> 134.8254218 | X186: =[3]主表!N184 -> 465.26 | Y186: =[3]主表!$G184 -> 77543 | Z186: =[3]升级!$H184 -> 1600 | AA186: 0.31 | AB186: -1 | AC186: 4 | AD186: 4 | AE186: 4 | AF186: 1930 | AJ186: 1 | AK186: 4 | AL186: 182 | AS186: =IF(AR186="","",1) ->  | AU186: =IF(AT186="","",1) ->  | AW186: =IF(AV186="","",1) ->  | AY186: =IF(AX186="","",1) ->  | AZ186: =IF(AN186="","",VLOOKUP(AN186,[4]ItemConfig!$A:$C,3,FALSE)&AO186) ->  | BA186: =IF(AP186="","",VLOOKUP(AP186,[4]ItemConfig!$A:$C,3,FALSE)&AQ186) ->  | BB186: =IF(AR186="","",VLOOKUP(AR186,[4]ItemConfig!$A:$C,3,FALSE)&AS186) ->  | BC186: =IF(AT186="","",VLOOKUP(AT186,[4]ItemConfig!$A:$C,3,FALSE)&AU186) ->  | BD186: =IF(AV186="","",VLOOKUP(AV186,[4]ItemConfig!$A:$C,3,FALSE)&AW186) ->  | BE186: =IF(AX186="","",VLOOKUP(AX186,[4]ItemConfig!$A:$C,3,FALSE)&AY186) ->  | BF186: 240
A187: 183 | B187: 183 | C187: 7 | D187: 19 | E187: 3 | F187: 231;235;240 | G187: 合体 | H187: 前期. | I187: 三重 | J187: 231 | K187: 235 | L187: 240 | M187: =ROUND([1]ResourceLevelConfig!$E187*[1]ResourceLevelConfig!$L187*0.1,0)*10 -> 4500 | N187: -1 | O187: 0 | P187: -1 | Q187: -1 | R187: -1 | S187: -1 | T187: 0 | U187: =[3]主表!K185 -> 9969.797232 | V187: =[3]主表!L185 -> 136.6458115 | W187: =[3]主表!M185 -> 136.6458115 | X187: =[3]主表!N185 -> 472.4 | Y187: =[3]主表!$G185 -> 78734 | Z187: =[3]升级!$H185 -> 1600 | AA187: 0.31 | AB187: -1 | AC187: 4 | AD187: 4 | AE187: 4 | AF187: 1940 | AJ187: 1 | AK187: 4 | AL187: 183 | AS187: =IF(AR187="","",1) ->  | AU187: =IF(AT187="","",1) ->  | AW187: =IF(AV187="","",1) ->  | AY187: =IF(AX187="","",1) ->  | AZ187: =IF(AN187="","",VLOOKUP(AN187,[4]ItemConfig!$A:$C,3,FALSE)&AO187) ->  | BA187: =IF(AP187="","",VLOOKUP(AP187,[4]ItemConfig!$A:$C,3,FALSE)&AQ187) ->  | BB187: =IF(AR187="","",VLOOKUP(AR187,[4]ItemConfig!$A:$C,3,FALSE)&AS187) ->  | BC187: =IF(AT187="","",VLOOKUP(AT187,[4]ItemConfig!$A:$C,3,FALSE)&AU187) ->  | BD187: =IF(AV187="","",VLOOKUP(AV187,[4]ItemConfig!$A:$C,3,FALSE)&AW187) ->  | BE187: =IF(AX187="","",VLOOKUP(AX187,[4]ItemConfig!$A:$C,3,FALSE)&AY187) ->  | BF187: 240
A188: 184 | B188: 184 | C188: 7 | D188: 19 | E188: 4 | F188: 231;235;241 | G188: 合体 | H188: 前期. | I188: 四重 | J188: 231 | K188: 235 | L188: 241 | M188: =ROUND([1]ResourceLevelConfig!$E188*[1]ResourceLevelConfig!$L188*0.1,0)*10 -> 4500 | N188: -1 | O188: 0 | P188: -1 | Q188: -1 | R188: -1 | S188: -1 | T188: 0 | U188: =[3]主表!K186 -> 10156.12176 | V188: =[3]主表!L186 -> 138.4907798 | W188: =[3]主表!M186 -> 138.4907798 | X188: =[3]主表!N186 -> 479.66 | Y188: =[3]主表!$G186 -> 79944 | Z188: =[3]升级!$H186 -> 1600 | AA188: 0.31 | AB188: -1 | AC188: 4 | AD188: 4 | AE188: 4 | AF188: 1950 | AJ188: 1 | AK188: 4 | AL188: 184 | AS188: =IF(AR188="","",1) ->  | AU188: =IF(AT188="","",1) ->  | AW188: =IF(AV188="","",1) ->  | AY188: =IF(AX188="","",1) ->  | AZ188: =IF(AN188="","",VLOOKUP(AN188,[4]ItemConfig!$A:$C,3,FALSE)&AO188) ->  | BA188: =IF(AP188="","",VLOOKUP(AP188,[4]ItemConfig!$A:$C,3,FALSE)&AQ188) ->  | BB188: =IF(AR188="","",VLOOKUP(AR188,[4]ItemConfig!$A:$C,3,FALSE)&AS188) ->  | BC188: =IF(AT188="","",VLOOKUP(AT188,[4]ItemConfig!$A:$C,3,FALSE)&AU188) ->  | BD188: =IF(AV188="","",VLOOKUP(AV188,[4]ItemConfig!$A:$C,3,FALSE)&AW188) ->  | BE188: =IF(AX188="","",VLOOKUP(AX188,[4]ItemConfig!$A:$C,3,FALSE)&AY188) ->  | BF188: 240
A189: 185 | B189: 185 | C189: 7 | D189: 19 | E189: 5 | F189: 231;235;242 | G189: 合体 | H189: 前期. | I189: 五重 | J189: 231 | K189: 235 | L189: 242 | M189: =ROUND([1]ResourceLevelConfig!$E189*[1]ResourceLevelConfig!$L189*0.1,0)*10 -> 4500 | N189: -1 | O189: 0 | P189: -1 | Q189: -1 | R189: -1 | S189: -1 | T189: 0 | U189: =[3]主表!K187 -> 10345.66023 | V189: =[3]主表!L187 -> 140.3606586 | W189: =[3]主表!M187 -> 140.3606586 | X189: =[3]主表!N187 -> 487.04 | Y189: =[3]主表!$G187 -> 81174 | Z189: =[3]升级!$H187 -> 1600 | AA189: 0.31 | AB189: -1 | AC189: 4 | AD189: 4 | AE189: 4 | AF189: 1960 | AJ189: 1 | AK189: 4 | AL189: 185 | AS189: =IF(AR189="","",1) ->  | AU189: =IF(AT189="","",1) ->  | AW189: =IF(AV189="","",1) ->  | AY189: =IF(AX189="","",1) ->  | AZ189: =IF(AN189="","",VLOOKUP(AN189,[4]ItemConfig!$A:$C,3,FALSE)&AO189) ->  | BA189: =IF(AP189="","",VLOOKUP(AP189,[4]ItemConfig!$A:$C,3,FALSE)&AQ189) ->  | BB189: =IF(AR189="","",VLOOKUP(AR189,[4]ItemConfig!$A:$C,3,FALSE)&AS189) ->  | BC189: =IF(AT189="","",VLOOKUP(AT189,[4]ItemConfig!$A:$C,3,FALSE)&AU189) ->  | BD189: =IF(AV189="","",VLOOKUP(AV189,[4]ItemConfig!$A:$C,3,FALSE)&AW189) ->  | BE189: =IF(AX189="","",VLOOKUP(AX189,[4]ItemConfig!$A:$C,3,FALSE)&AY189) ->  | BF189: 240
A190: 186 | B190: 186 | C190: 7 | D190: 19 | E190: 6 | F190: 231;235;243 | G190: 合体 | H190: 前期. | I190: 六重 | J190: 231 | K190: 235 | L190: 243 | M190: =ROUND([1]ResourceLevelConfig!$E190*[1]ResourceLevelConfig!$L190*0.1,0)*10 -> 4650 | N190: -1 | O190: 0 | P190: -1 | Q190: -1 | R190: -1 | S190: -1 | T190: 0 | U190: =[3]主表!K188 -> 10538.46549 | V190: =[3]主表!L188 -> 142.2557841 | W190: =[3]主表!M188 -> 142.2557841 | X190: =[3]主表!N188 -> 494.62 | Y190: =[3]主表!$G188 -> 82437 | Z190: =[3]升级!$H188 -> 1600 | AA190: 0.32 | AB190: -1 | AC190: 4 | AD190: 4 | AE190: 4 | AF190: 1970 | AJ190: 1 | AK190: 4 | AL190: 186 | AS190: =IF(AR190="","",1) ->  | AU190: =IF(AT190="","",1) ->  | AW190: =IF(AV190="","",1) ->  | AY190: =IF(AX190="","",1) ->  | AZ190: =IF(AN190="","",VLOOKUP(AN190,[4]ItemConfig!$A:$C,3,FALSE)&AO190) ->  | BA190: =IF(AP190="","",VLOOKUP(AP190,[4]ItemConfig!$A:$C,3,FALSE)&AQ190) ->  | BB190: =IF(AR190="","",VLOOKUP(AR190,[4]ItemConfig!$A:$C,3,FALSE)&AS190) ->  | BC190: =IF(AT190="","",VLOOKUP(AT190,[4]ItemConfig!$A:$C,3,FALSE)&AU190) ->  | BD190: =IF(AV190="","",VLOOKUP(AV190,[4]ItemConfig!$A:$C,3,FALSE)&AW190) ->  | BE190: =IF(AX190="","",VLOOKUP(AX190,[4]ItemConfig!$A:$C,3,FALSE)&AY190) ->  | BF190: 240
A191: 187 | B191: 187 | C191: 7 | D191: 19 | E191: 7 | F191: 231;235;244 | G191: 合体 | H191: 前期. | I191: 七重 | J191: 231 | K191: 235 | L191: 244 | M191: =ROUND([1]ResourceLevelConfig!$E191*[1]ResourceLevelConfig!$L191*0.1,0)*10 -> 4650 | N191: -1 | O191: 0 | P191: -1 | Q191: -1 | R191: -1 | S191: -1 | T191: 0 | U191: =[3]主表!K189 -> 10734.59119 | V191: =[3]主表!L189 -> 144.1764973 | W191: =[3]主表!M189 -> 144.1764973 | X191: =[3]主表!N189 -> 502.33 | Y191: =[3]主表!$G189 -> 83721 | Z191: =[3]升级!$H189 -> 1600 | AA191: 0.32 | AB191: -1 | AC191: 4 | AD191: 4 | AE191: 4 | AF191: 1980 | AJ191: 1 | AK191: 4 | AL191: 187 | AS191: =IF(AR191="","",1) ->  | AU191: =IF(AT191="","",1) ->  | AW191: =IF(AV191="","",1) ->  | AY191: =IF(AX191="","",1) ->  | AZ191: =IF(AN191="","",VLOOKUP(AN191,[4]ItemConfig!$A:$C,3,FALSE)&AO191) ->  | BA191: =IF(AP191="","",VLOOKUP(AP191,[4]ItemConfig!$A:$C,3,FALSE)&AQ191) ->  | BB191: =IF(AR191="","",VLOOKUP(AR191,[4]ItemConfig!$A:$C,3,FALSE)&AS191) ->  | BC191: =IF(AT191="","",VLOOKUP(AT191,[4]ItemConfig!$A:$C,3,FALSE)&AU191) ->  | BD191: =IF(AV191="","",VLOOKUP(AV191,[4]ItemConfig!$A:$C,3,FALSE)&AW191) ->  | BE191: =IF(AX191="","",VLOOKUP(AX191,[4]ItemConfig!$A:$C,3,FALSE)&AY191) ->  | BF191: 240
A192: 188 | B192: 188 | C192: 7 | D192: 19 | E192: 8 | F192: 231;235;245 | G192: 合体 | H192: 前期. | I192: 八重 | J192: 231 | K192: 235 | L192: 245 | M192: =ROUND([1]ResourceLevelConfig!$E192*[1]ResourceLevelConfig!$L192*0.1,0)*10 -> 4650 | N192: -1 | O192: 0 | P192: -1 | Q192: -1 | R192: -1 | S192: -1 | T192: 0 | U192: =[3]主表!K190 -> 10934.09184 | V192: =[3]主表!L190 -> 146.1231436 | W192: =[3]主表!M190 -> 146.1231436 | X192: =[3]主表!N190 -> 510.15 | Y192: =[3]主表!$G190 -> 85025 | Z192: =[3]升级!$H190 -> 1600 | AA192: 0.32 | AB192: -1 | AC192: 4 | AD192: 4 | AE192: 4 | AF192: 1990 | AJ192: 1 | AK192: 4 | AL192: 188 | AS192: =IF(AR192="","",1) ->  | AU192: =IF(AT192="","",1) ->  | AW192: =IF(AV192="","",1) ->  | AY192: =IF(AX192="","",1) ->  | AZ192: =IF(AN192="","",VLOOKUP(AN192,[4]ItemConfig!$A:$C,3,FALSE)&AO192) ->  | BA192: =IF(AP192="","",VLOOKUP(AP192,[4]ItemConfig!$A:$C,3,FALSE)&AQ192) ->  | BB192: =IF(AR192="","",VLOOKUP(AR192,[4]ItemConfig!$A:$C,3,FALSE)&AS192) ->  | BC192: =IF(AT192="","",VLOOKUP(AT192,[4]ItemConfig!$A:$C,3,FALSE)&AU192) ->  | BD192: =IF(AV192="","",VLOOKUP(AV192,[4]ItemConfig!$A:$C,3,FALSE)&AW192) ->  | BE192: =IF(AX192="","",VLOOKUP(AX192,[4]ItemConfig!$A:$C,3,FALSE)&AY192) ->  | BF192: 240
A193: 189 | B193: 189 | C193: 7 | D193: 19 | E193: 9 | F193: 231;235;246 | G193: 合体 | H193: 前期. | I193: 九重 | J193: 231 | K193: 235 | L193: 246 | M193: =ROUND([1]ResourceLevelConfig!$E193*[1]ResourceLevelConfig!$L193*0.1,0)*10 -> 4650 | N193: -1 | O193: 0 | P193: -1 | Q193: -1 | R193: -1 | S193: -1 | T193: 0 | U193: =[3]主表!K191 -> 11137.02283 | V193: =[3]主表!L191 -> 148.0960732 | W193: =[3]主表!M191 -> 148.0960732 | X193: =[3]主表!N191 -> 518.1 | Y193: =[3]主表!$G191 -> 86350 | Z193: =[3]升级!$H191 -> 1600 | AA193: 0.32 | AB193: -1 | AC193: 4 | AD193: 4 | AE193: 4 | AF193: 2000 | AJ193: 1 | AK193: 4 | AL193: 189 | AS193: =IF(AR193="","",1) ->  | AU193: =IF(AT193="","",1) ->  | AW193: =IF(AV193="","",1) ->  | AY193: =IF(AX193="","",1) ->  | AZ193: =IF(AN193="","",VLOOKUP(AN193,[4]ItemConfig!$A:$C,3,FALSE)&AO193) ->  | BA193: =IF(AP193="","",VLOOKUP(AP193,[4]ItemConfig!$A:$C,3,FALSE)&AQ193) ->  | BB193: =IF(AR193="","",VLOOKUP(AR193,[4]ItemConfig!$A:$C,3,FALSE)&AS193) ->  | BC193: =IF(AT193="","",VLOOKUP(AT193,[4]ItemConfig!$A:$C,3,FALSE)&AU193) ->  | BD193: =IF(AV193="","",VLOOKUP(AV193,[4]ItemConfig!$A:$C,3,FALSE)&AW193) ->  | BE193: =IF(AX193="","",VLOOKUP(AX193,[4]ItemConfig!$A:$C,3,FALSE)&AY193) ->  | BF193: 240
A194: 190 | B194: 190 | C194: 7 | D194: 19 | E194: 10 | F194: 231;235;247 | G194: 合体 | H194: 前期. | I194: 十重 | J194: 231 | K194: 235 | L194: 247 | M194: =ROUND([1]ResourceLevelConfig!$E194*[1]ResourceLevelConfig!$L194*0.1,0)*10 -> 4650 | N194: 100006 | O194: 0 | P194: =AN194 -> 1319 | Q194: =AO194 -> 1 | R194: =_xlfn.TEXTJOIN(";",1,AP194,AR194,AT194,AV194) -> 1213;1214;1215 | S194: =_xlfn.TEXTJOIN(";",1,AQ194,AS194,AU194,AW194) -> 1;1;1 | T194: 0 | U194: =[3]主表!K192 -> 11343.44042 | V194: =[3]主表!L192 -> 150.095641 | W194: =[3]主表!M192 -> 150.095641 | X194: =[3]主表!N192 -> 570.03 | Y194: =[3]主表!$G192 -> 87697 | Z194: =[3]升级!$H192 -> 1600 | AA194: 0.32 | AB194: 15 | AC194: 4 | AD194: 4 | AE194: 4 | AF194: 2018 | AJ194: 1 | AK194: 4 | AL194: 190 | AN194: 1319 | AO194: 1 | AP194: 1213 | AQ194: 1 | AR194: 1214 | AS194: =IF(AR194="","",1) -> 1 | AT194: 1215 | AU194: =IF(AT194="","",1) -> 1 | AW194: =IF(AV194="","",1) ->  | AY194: =IF(AX194="","",1) ->  | AZ194: =IF(AN194="","",VLOOKUP(AN194,[4]ItemConfig!$A:$C,3,FALSE)&AO194) -> 天合草1 | BA194: =IF(AP194="","",VLOOKUP(AP194,[4]ItemConfig!$A:$C,3,FALSE)&AQ194) -> 混元晶1 | BB194: =IF(AR194="","",VLOOKUP(AR194,[4]ItemConfig!$A:$C,3,FALSE)&AS194) -> 地髓晶1 | BC194: =IF(AT194="","",VLOOKUP(AT194,[4]ItemConfig!$A:$C,3,FALSE)&AU194) -> 灵月石1 | BD194: =IF(AV194="","",VLOOKUP(AV194,[4]ItemConfig!$A:$C,3,FALSE)&AW194) ->  | BE194: =IF(AX194="","",VLOOKUP(AX194,[4]ItemConfig!$A:$C,3,FALSE)&AY194) ->  | BF194: 240
A195: 191 | B195: 191 | C195: 7 | D195: 20 | E195: 1 | F195: 231;236;238 | G195: 合体 | H195: 中期. | I195: 一重 | J195: 231 | K195: 236 | L195: 238 | M195: =ROUND([1]ResourceLevelConfig!$E195*[1]ResourceLevelConfig!$L195*0.1,0)*10 -> 4650 | N195: -1 | O195: 0 | P195: -1 | Q195: -1 | R195: =IF(I195=10,"1001;1002;1004",-1) -> -1 | S195: -1 | T195: 0 | U195: =[3]主表!K193 -> 12539.43662 | V195: =[3]主表!L193 -> 165.1052051 | W195: =[3]主表!M193 -> 165.1052051 | X195: =[3]主表!N193 -> 641.75 | Y195: =[3]主表!$G193 -> 98731 | Z195: =[3]升级!$H193 -> 1600 | AA195: 0.32 | AB195: -1 | AC195: =AC194 -> 4 | AD195: =AD194 -> 4 | AE195: =AE194 -> 4 | AF195: 2065 | AJ195: 1 | AK195: 4 | AL195: 191 | AS195: =IF(AR195="","",1) ->  | AU195: =IF(AT195="","",1) ->  | AW195: =IF(AV195="","",1) ->  | AY195: =IF(AX195="","",1) ->  | AZ195: =IF(AN195="","",VLOOKUP(AN195,[4]ItemConfig!$A:$C,3,FALSE)&AO195) ->  | BA195: =IF(AP195="","",VLOOKUP(AP195,[4]ItemConfig!$A:$C,3,FALSE)&AQ195) ->  | BB195: =IF(AR195="","",VLOOKUP(AR195,[4]ItemConfig!$A:$C,3,FALSE)&AS195) ->  | BC195: =IF(AT195="","",VLOOKUP(AT195,[4]ItemConfig!$A:$C,3,FALSE)&AU195) ->  | BD195: =IF(AV195="","",VLOOKUP(AV195,[4]ItemConfig!$A:$C,3,FALSE)&AW195) ->  | BE195: =IF(AX195="","",VLOOKUP(AX195,[4]ItemConfig!$A:$C,3,FALSE)&AY195) ->  | BF195: 240
A196: 192 | B196: 192 | C196: 7 | D196: 20 | E196: 2 | F196: 231;236;239 | G196: 合体 | H196: 中期. | I196: 二重 | J196: 231 | K196: 236 | L196: 239 | M196: =ROUND([1]ResourceLevelConfig!$E196*[1]ResourceLevelConfig!$L196*0.1,0)*10 -> 4650 | N196: -1 | O196: 0 | P196: -1 | Q196: -1 | R196: -1 | S196: -1 | T196: 0 | U196: =[3]主表!K194 -> 12771.22652 | V196: =[3]主表!L194 -> 167.3344272 | W196: =[3]主表!M194 -> 167.3344272 | X196: =[3]主表!N194 -> 651.61 | Y196: =[3]主表!$G194 -> 100248 | Z196: =[3]升级!$H194 -> 1600 | AA196: 0.32 | AB196: -1 | AC196: 4 | AD196: 4 | AE196: 4 | AF196: 2113 | AJ196: 1 | AK196: 4 | AL196: 192 | AS196: =IF(AR196="","",1) ->  | AU196: =IF(AT196="","",1) ->  | AW196: =IF(AV196="","",1) ->  | AY196: =IF(AX196="","",1) ->  | AZ196: =IF(AN196="","",VLOOKUP(AN196,[4]ItemConfig!$A:$C,3,FALSE)&AO196) ->  | BA196: =IF(AP196="","",VLOOKUP(AP196,[4]ItemConfig!$A:$C,3,FALSE)&AQ196) ->  | BB196: =IF(AR196="","",VLOOKUP(AR196,[4]ItemConfig!$A:$C,3,FALSE)&AS196) ->  | BC196: =IF(AT196="","",VLOOKUP(AT196,[4]ItemConfig!$A:$C,3,FALSE)&AU196) ->  | BD196: =IF(AV196="","",VLOOKUP(AV196,[4]ItemConfig!$A:$C,3,FALSE)&AW196) ->  | BE196: =IF(AX196="","",VLOOKUP(AX196,[4]ItemConfig!$A:$C,3,FALSE)&AY196) ->  | BF196: 240
A197: 193 | B197: 193 | C197: 7 | D197: 20 | E197: 3 | F197: 231;236;240 | G197: 合体 | H197: 中期. | I197: 三重 | J197: 231 | K197: 236 | L197: 240 | M197: =ROUND([1]ResourceLevelConfig!$E197*[1]ResourceLevelConfig!$L197*0.1,0)*10 -> 4800 | N197: -1 | O197: 0 | P197: -1 | Q197: -1 | R197: -1 | S197: -1 | T197: 0 | U197: =[3]主表!K195 -> 13006.98966 | V197: =[3]主表!L195 -> 169.593748 | W197: =[3]主表!M195 -> 169.593748 | X197: =[3]主表!N195 -> 661.63 | Y197: =[3]主表!$G195 -> 101789 | Z197: =[3]升级!$H195 -> 1600 | AA197: 0.33 | AB197: -1 | AC197: 4 | AD197: 4 | AE197: 4 | AF197: 2163 | AJ197: 1 | AK197: 4 | AL197: 193 | AS197: =IF(AR197="","",1) ->  | AU197: =IF(AT197="","",1) ->  | AW197: =IF(AV197="","",1) ->  | AY197: =IF(AX197="","",1) ->  | AZ197: =IF(AN197="","",VLOOKUP(AN197,[4]ItemConfig!$A:$C,3,FALSE)&AO197) ->  | BA197: =IF(AP197="","",VLOOKUP(AP197,[4]ItemConfig!$A:$C,3,FALSE)&AQ197) ->  | BB197: =IF(AR197="","",VLOOKUP(AR197,[4]ItemConfig!$A:$C,3,FALSE)&AS197) ->  | BC197: =IF(AT197="","",VLOOKUP(AT197,[4]ItemConfig!$A:$C,3,FALSE)&AU197) ->  | BD197: =IF(AV197="","",VLOOKUP(AV197,[4]ItemConfig!$A:$C,3,FALSE)&AW197) ->  | BE197: =IF(AX197="","",VLOOKUP(AX197,[4]ItemConfig!$A:$C,3,FALSE)&AY197) ->  | BF197: 240
A198: 194 | B198: 194 | C198: 7 | D198: 20 | E198: 4 | F198: =_xlfn.TEXTJOIN(";",1,J198:L198) -> 231;236;241 | G198: 合体 | H198: 中期. | I198: 四重 | J198: 231 | K198: 236 | L198: 241 | M198: =ROUND([1]ResourceLevelConfig!$E198*[1]ResourceLevelConfig!$L198*0.1,0)*10 -> 4800 | N198: =IF(E198=10,100004,-1) -> -1 | O198: 0 | P198: -1 | Q198: -1 | R198: -1 | S198: -1 | T198: 0 | U198: =[3]主表!K196 -> 13246.79109 | V198: =[3]主表!L196 -> 171.8835736 | W198: =[3]主表!M196 -> 171.8835736 | X198: =[3]主表!N196 -> 671.8 | Y198: =[3]主表!$G196 -> 103354 | Z198: =[3]升级!$H196 -> 1600 | AA198: 0.33 | AB198: -1 | AC198: 4 | AD198: 4 | AE198: 4 | AF198: =MAX(AF197+10,ROUND(10^(B198*0.01+1.405),0)) -> 2213 | AJ198: 1 | AK198: 4 | AL198: 194 | AO198: =IF(AN198="","",1) ->  | AS198: =IF(AR198="","",1) ->  | AU198: =IF(AT198="","",1) ->  | AW198: =IF(AV198="","",1) ->  | AY198: =IF(AX198="","",1) ->  | AZ198: =IF(AN198="","",VLOOKUP(AN198,[4]ItemConfig!$A:$C,3,FALSE)&AO198) ->  | BA198: =IF(AP198="","",VLOOKUP(AP198,[4]ItemConfig!$A:$C,3,FALSE)&AQ198) ->  | BB198: =IF(AR198="","",VLOOKUP(AR198,[4]ItemConfig!$A:$C,3,FALSE)&AS198) ->  | BC198: =IF(AT198="","",VLOOKUP(AT198,[4]ItemConfig!$A:$C,3,FALSE)&AU198) ->  | BD198: =IF(AV198="","",VLOOKUP(AV198,[4]ItemConfig!$A:$C,3,FALSE)&AW198) ->  | BE198: =IF(AX198="","",VLOOKUP(AX198,[4]ItemConfig!$A:$C,3,FALSE)&AY198) ->  | BF198: 240
A199: 195 | B199: 195 | C199: 7 | D199: 20 | E199: 5 | F199: 231;236;242 | G199: 合体 | H199: 中期. | I199: 五重 | J199: 231 | K199: 236 | L199: 242 | M199: =ROUND([1]ResourceLevelConfig!$E199*[1]ResourceLevelConfig!$L199*0.1,0)*10 -> 4800 | N199: -1 | O199: 0 | P199: -1 | Q199: -1 | R199: -1 | S199: -1 | T199: 0 | U199: =[3]主表!K197 -> 13490.69686 | V199: =[3]主表!L197 -> 174.2043162 | W199: =[3]主表!M197 -> 174.2043162 | X199: =[3]主表!N197 -> 682.14 | Y199: =[3]主表!$G197 -> 104945 | Z199: =[3]升级!$H197 -> 1600 | AA199: 0.33 | AB199: -1 | AC199: 4 | AD199: 4 | AE199: 4 | AF199: 2265 | AJ199: 1 | AK199: 4 | AL199: 195 | AS199: =IF(AR199="","",1) ->  | AU199: =IF(AT199="","",1) ->  | AW199: =IF(AV199="","",1) ->  | AY199: =IF(AX199="","",1) ->  | AZ199: =IF(AN199="","",VLOOKUP(AN199,[4]ItemConfig!$A:$C,3,FALSE)&AO199) ->  | BA199: =IF(AP199="","",VLOOKUP(AP199,[4]ItemConfig!$A:$C,3,FALSE)&AQ199) ->  | BB199: =IF(AR199="","",VLOOKUP(AR199,[4]ItemConfig!$A:$C,3,FALSE)&AS199) ->  | BC199: =IF(AT199="","",VLOOKUP(AT199,[4]ItemConfig!$A:$C,3,FALSE)&AU199) ->  | BD199: =IF(AV199="","",VLOOKUP(AV199,[4]ItemConfig!$A:$C,3,FALSE)&AW199) ->  | BE199: =IF(AX199="","",VLOOKUP(AX199,[4]ItemConfig!$A:$C,3,FALSE)&AY199) ->  | BF199: 240
A200: 196 | B200: 196 | C200: 7 | D200: 20 | E200: 6 | F200: 231;236;243 | G200: 合体 | H200: 中期. | I200: 六重 | J200: 231 | K200: 236 | L200: 243 | M200: =ROUND([1]ResourceLevelConfig!$E200*[1]ResourceLevelConfig!$L200*0.1,0)*10 -> 4800 | N200: -1 | O200: 0 | P200: -1 | Q200: -1 | R200: -1 | S200: -1 | T200: 0 | U200: =[3]主表!K198 -> 13738.7741 | V200: =[3]主表!L198 -> 176.5563929 | W200: =[3]主表!M198 -> 176.5563929 | X200: =[3]主表!N198 -> 692.65 | Y200: =[3]主表!$G198 -> 106561 | Z200: =[3]升级!$H198 -> 1600 | AA200: 0.33 | AB200: -1 | AC200: 4 | AD200: 4 | AE200: 4 | AF200: 2317 | AJ200: 1 | AK200: 4 | AL200: 196 | AS200: =IF(AR200="","",1) ->  | AU200: =IF(AT200="","",1) ->  | AW200: =IF(AV200="","",1) ->  | AY200: =IF(AX200="","",1) ->  | AZ200: =IF(AN200="","",VLOOKUP(AN200,[4]ItemConfig!$A:$C,3,FALSE)&AO200) ->  | BA200: =IF(AP200="","",VLOOKUP(AP200,[4]ItemConfig!$A:$C,3,FALSE)&AQ200) ->  | BB200: =IF(AR200="","",VLOOKUP(AR200,[4]ItemConfig!$A:$C,3,FALSE)&AS200) ->  | BC200: =IF(AT200="","",VLOOKUP(AT200,[4]ItemConfig!$A:$C,3,FALSE)&AU200) ->  | BD200: =IF(AV200="","",VLOOKUP(AV200,[4]ItemConfig!$A:$C,3,FALSE)&AW200) ->  | BE200: =IF(AX200="","",VLOOKUP(AX200,[4]ItemConfig!$A:$C,3,FALSE)&AY200) ->  | BF200: 240
... 104 more rows

Sheet HeroQiangDuAddConfig
A1: ID | B1: qiangDuZhi
A2: int | B2: float
A4: ID | B4: 玩家修为境界（等级）
A5: 1 | B5: 1
A6: 2 | B6: 1.085
A7: 3 | B7: 1.17
A8: 4 | B8: 1.255
A9: 5 | B9: 1.34
A10: 6 | B10: 1.425
A11: 7 | B11: 1.51
A12: 8 | B12: 1.595
A13: 9 | B13: 1.68
A14: 10 | B14: 1.765
A15: 11 | B15: 1.85
A16: 12 | B16: 1.935
A17: 13 | B17: 2.02
A18: 14 | B18: 2.105
A19: 15 | B19: 2.19
A20: 16 | B20: 2.275
A21: 17 | B21: 2.36
A22: 18 | B22: 2.445
A23: 19 | B23: 2.53
A24: 20 | B24: 2.615
A25: 21 | B25: 2.7
A26: 22 | B26: 2.785
A27: 23 | B27: 2.87
A28: 24 | B28: 2.955
A29: 25 | B29: 3.04
A30: 26 | B30: 3.125
A31: 27 | B31: 3.21
A32: 28 | B32: 3.295
A33: 29 | B33: 3.38
A34: 30 | B34: 3.465
A35: 31 | B35: 3.55
A36: 32 | B36: 3.635
A37: 33 | B37: 3.72
A38: 34 | B38: 3.805
A39: 35 | B39: 3.89
A40: 36 | B40: 3.975
A41: 37 | B41: 4.06
A42: 38 | B42: 4.145
A43: 39 | B43: 4.23
A44: 40 | B44: 4.315
A45: 41 | B45: 4.4
A46: 42 | B46: 4.485
A47: 43 | B47: 4.57
A48: 44 | B48: 4.655
A49: 45 | B49: 4.74
A50: 46 | B50: 4.825
A51: 47 | B51: 4.91
A52: 48 | B52: 4.995
A53: 49 | B53: 5.08
A54: 50 | B54: 5.165
A55: 51 | B55: 5.25
A56: 52 | B56: 5.335
A57: 53 | B57: 5.42
A58: 54 | B58: 5.505
A59: 55 | B59: 5.59
A60: 56 | B60: 5.675
A61: 57 | B61: 5.76
A62: 58 | B62: 5.845
A63: 59 | B63: 5.93
A64: 60 | B64: 6
